Workbook

Sheet Overview
A1: test set 3; n=89 | B1: 1 tool, no filter (20, 50, 0.01)
B2: Mutations (TP) | C2: Polymorphisms (TP) | D2: Mutations (FN) | E2: Polymorphisms (FN) | F2: No Mutations (FP_M) | G2: No Mutations (FP_P) | H2: No Mutations (TN2) | I2: No Mutations (TN1) | J2: Variants | K2: Artifacts | L2: sens | M2: PPV
A3: GATK | B3: 69 | C3: 301 | D3: 0 | E3: 0 | F3: 52 | G3: 4 | H3: 769 | I3: 4 | J3: =SUM(B3:E3) -> 370 | K3: =SUM(F3:I3) -> 829 | L3: =J3/390 -> 0.9487179487 | M3: =J3/(J3+K3) -> 0.3085904921
A4: Platypus | B4: 71 | C4: 306 | D4: 1 | E4: 0 | F4: 84 | G4: 8 | H4: 2368 | I4: 5 | J4: =SUM(B4:E4) -> 378 | K4: =SUM(F4:I4) -> 2465 | L4: =J4/390 -> 0.9692307692 | M4: =J4/(J4+K4) -> 0.1329581428
A5: VarScan | B5: 58 | C5: 298 | D5: 0 | E5: 0 | F5: 39 | G5: 2 | H5: 294 | I5: 3 | J5: =SUM(B5:E5) -> 356 | K5: =SUM(F5:I5) -> 338 | L5: =J5/390 -> 0.9128205128 | M5: =J5/(J5+K5) -> 0.5129682997
A6: LoFreq | B6: 59 | C6: 307 | D6: 0 | E6: 0 | F6: 54 | G6: 6 | H6: 738 | I6: 26 | J6: =SUM(B6:E6) -> 366 | K6: =SUM(F6:I6) -> 824 | L6: =J6/390 -> 0.9384615385 | M6: =J6/(J6+K6) -> 0.3075630252
A7: FreeBayes | B7: 78 | C7: 309 | D7: 1 | E7: 0 | F7: 100 | G7: 7 | H7: 5148 | I7: 85 | J7: =SUM(B7:E7) -> 388 | K7: =SUM(F7:I7) -> 5340 | L7: =J7/390 -> 0.9948717949 | M7: =J7/(J7+K7) -> 0.06773743017
A8: SNVer | B8: 76 | C8: 304 | D8: 0 | E8: 0 | F8: 108 | G8: 8 | H8: 3346 | I8: 11 | J8: =SUM(B8:E8) -> 380 | K8: =SUM(F8:I8) -> 3473 | L8: =J8/390 -> 0.9743589744 | M8: =J8/(J8+K8) -> 0.09862444848
A9: SAMtools | B9: 57 | C9: 304 | D9: 0 | E9: 0 | F9: 28 | G9: 1 | H9: 136 | I9: 3 | J9: =SUM(B9:E9) -> 361 | K9: =SUM(F9:I9) -> 168 | L9: =J9/390 -> 0.9256410256 | M9: =J9/(J9+K9) -> 0.6824196597
A10: VarDict | B10: 78 | C10: 309 | D10: 1 | E10: 0 | F10: 87 | G10: 4 | H10: 1064 | I10: 8 | J10: =SUM(B10:E10) -> 388 | K10: =SUM(F10:I10) -> 1163 | L10: =J10/390 -> 0.9948717949 | M10: =J10/(J10+K10) -> 0.2501611863
B11: 78 | C11: 309 | D11: 3 | E11: 0 | F11: 112 | G11: 9 | H11: 6694 | I11: 86 | J11: =SUM(B11:E11) -> 390 | K11: =SUM(F11:I11) -> 6901
B14: 8 tools, no filter (20, 50, 0.01)
B15: Variants | C15: Artifacts | D15: sens | E15: PPV
B16: =SUM(B11,C11,1,E11) -> 388 | C16: =K11 -> 6901 | D16: =B16/B17 -> 0.9948717949 | E16: =B16/(B16+C16) -> 0.05323089587
B17: =J11 -> 390
B19: 8 tools, our filter; single sample info
B20: Mutations | C20: Artifacts | D20: sens | E20: PPV
B21: =B11+C11 -> 387 | C21: 676 | D21: =Overview!B21/B22 -> 0.9923076923 | E21: =Overview!B21/(Overview!B21+Overview!C21) -> 0.3640639699
B22: =J11 -> 390
B24: 8 tools our filter
B25: Variants | C25: Artifacts | D25: sens | E25: PPV
B26: =SUM(B11,C11) -> 387 | C26: =SUM(F11,G11) -> 121 | D26: =B26/B27 -> 0.9923076923 | E26: =B26/(B26+C26) -> 0.7618110236
B27: =J11 -> 390
A36: Mutations only | B36: 1 tool, no filter (20, 50, 0.01)
B37: Mutations (TP) | C37: Mutations (FN) | D37: No Mutations (FP_M) | E37: No Mutations (TN2) | F37: No Mutations (TN1) | G37: Variants | H37: Artifacts | I37: sens | J37: PPV
A38: GATK | B38: 69 | C38: 0 | D38: 54 | E38: 769 | F38: 4 | G38: =SUM(B38,C38) -> 69 | H38: =SUM(D38,E38,F38) -> 827 | I38: =G38/81 -> 0.8518518519 | J38: =G38/(G38+H38) -> 0.07700892857
A39: Platypus | B39: 71 | C39: 1 | D39: 90 | E39: 2368 | F39: 5 | G39: =SUM(B39,C39) -> 72 | H39: =SUM(D39,E39,F39) -> 2463 | I39: =G39/81 -> 0.8888888889 | J39: =G39/(G39+H39) -> 0.02840236686
A40: VarScan | B40: 58 | C40: 0 | D40: 39 | E40: 294 | F40: 3 | G40: =SUM(B40,C40) -> 58 | H40: =SUM(D40,E40,F40) -> 336 | I40: =G40/81 -> 0.7160493827 | J40: =G40/(G40+H40) -> 0.1472081218
A41: LoFreq | B41: 59 | C41: 0 | D41: 61 | E41: 738 | F41: 26 | G41: =SUM(B41,C41) -> 59 | H41: =SUM(D41,E41,F41) -> 825 | I41: =G41/81 -> 0.7283950617 | J41: =G41/(G41+H41) -> 0.06674208145
A42: FreeBayes | B42: 78 | C42: 1 | D42: 107 | E42: 5148 | F42: 85 | G42: =SUM(B42,C42) -> 79 | H42: =SUM(D42,E42,F42) -> 5340 | I42: =G42/81 -> 0.975308642 | J42: =G42/(G42+H42) -> 0.01457833549
A43: SNVer | B43: 76 | C43: 0 | D43: 115 | E43: 3346 | F43: 11 | G43: =SUM(B43,C43) -> 76 | H43: =SUM(D43,E43,F43) -> 3472 | I43: =G43/81 -> 0.9382716049 | J43: =G43/(G43+H43) -> 0.0214205186
A44: SAMtools | B44: 57 | C44: 0 | D44: 30 | E44: 136 | F44: 3 | G44: =SUM(B44,C44) -> 57 | H44: =SUM(D44,E44,F44) -> 169 | I44: =G44/81 -> 0.7037037037 | J44: =G44/(G44+H44) -> 0.2522123894
A45: VarDict | B45: 78 | C45: 1 | D45: 94 | E45: 1064 | F45: 8 | G45: =SUM(B45,C45) -> 79 | H45: =SUM(D45,E45,F45) -> 1166 | I45: =G45/81 -> 0.975308642 | J45: =G45/(G45+H45) -> 0.06345381526
B46: 78 | C46: 3 | D46: 119 | E46: 6694 | F46: 86 | G46: =SUM(B46,C46) -> 81 | H46: =SUM(D46,E46,F46) -> 6899
B49: 8 tools, no filter (20, 50, 0.01)
B50: Variants | C50: Artifacts | D50: sens | E50: PPV
B51: =SUM(B46,1) -> 79 | C51: =H46 -> 6899 | D51: =B51/B52 -> 0.975308642 | E51: =B51/(B51+C51) -> 0.0113212955
B52: =G46 -> 81
B54: 8 tools, our filter; single sample info
B55: Mutations | C55: Artifacts | D55: sens | E55: PPV
B56: =B46 -> 78 | C56: 686 | D56: =Overview!B56/B57 -> 0.962962963 | E56: =Overview!B56/(Overview!B56+Overview!C56) -> 0.1020942408
B57: =G46 -> 81
B59: 8 tools our filter
B60: Variants | C60: Artifacts | D60: sens | E60: PPV
B61: =SUM(B46) -> 78 | C61: =SUM(D46) -> 119 | D61: =B61/B62 -> 0.962962963 | E61: =B61/(B61+C61) -> 0.3959390863
B62: =G46 -> 81

Sheet TP Mutations
A1: True because... | B1: Sample | C1: Chr | D1: Pos | E1: Ref | F1: Alt | G1: Gene | H1: ENST | I1: Type | J1: Mutation | K1: Nr_Ref | L1: Nr_Alt | M1: DP | N1: VAF | O1: GATK | P1: Platypus | Q1: VarScan | R1: LoFreq | S1: FreeBayes | T1: SNVer | U1: SAMtools | V1: VarDict | W1: Called | X1: ESP6500 | Y1: G1000 | Z1: Cosmic | AA1: Cosmic_location | AB1: Cosmic_occurence | AC1: dbSNP_SNPs | AD1: dbSNP_SNVs | AE1: PM_flag | AF1: ExAC | AG1: ClinVar_clinical | AH1: ClinVar_noimpact | AI1: provean_score | AJ1: prediction | AK1: BQ_Ref | AL1: BQ_Alt | AM1: V38 | AN1: V39 | AO1: V40 | AP1: V41 | AQ1: V42 | AR1: V43 | AS1: V44 | AT1: V45 | AU1: strandbias | AV1: nr_samples | AW1: nr_samples_similar | AX1: Category
A2: Hotspot, Expert, Cosmic, prediction, bq | B2: UPN_Te3_065 | C2: 2 | D2: 25457242 | E2: C | F2: T | G2: DNMT3A | H2: ENST00000264709 | I2: missense_variant | J2: cGc/cAc|p.Arg882His/c.2645G>A | K2: 77 | L2: 58 | M2: 136 | N2: 0.4264705882 | O2: 1 | P2: 1 | Q2: 1 | R2: 1 | S2: 1 | T2: 1 | U2: 1 | V2: 1 | W2: 8 | X2: 0.0581 | Y2: NO | Z2: COSM52944 | AA2: breast, haematopoietic_and_lymphoid_tissue | AB2: 1, 452 | AC2: NO | AD2: rs147001633 | AE2: NO | AF2: NA | AG2: NO | AH2: NO | AI2: -4.025 | AJ2: Deleterious | AK2: 38.09 | AL2: 39.24 | AM2: 48 | AN2: 36 | AO2: 84 | AP2: 0.4285714286 | AQ2: 29 | AR2: 22 | AS2: 52 | AT2: 0.4230769231 | AU2: 1 | AV2: 1 | AW2: 1 | AX2: Hotspot (-9)
A3: Hotspot, Expert, Cosmic, prediction, bq | B3: UPN_Te3_077 | C3: 2 | D3: 25457243 | E3: G | F3: A | G3: DNMT3A | H3: ENST00000264709 | I3: missense_variant | J3: Cgc/Tgc|p.Arg882Cys/c.2644C>T | K3: 61 | L3: 37 | M3: 98 | N3: 0.3775510204 | O3: 1 | P3: 1 | Q3: 1 | R3: 1 | S3: 1 | T3: 1 | U3: 1 | V3: 1 | W3: 8 | X3: 0.0465 | Y3: NO | Z3: COSM53042 | AA3: haematopoietic_and_lymphoid_tissue, prostate | AB3: 191, 1 | AC3: NO | AD3: rs377577594 | AE3: NO | AF3: 0.0003624 | AG3: NO | AH3: NO | AI3: -6.901 | AJ3: Deleterious | AK3: 37.74 | AL3: 37.78 | AM3: 38 | AN3: 23 | AO3: 61 | AP3: 0.3770491803 | AQ3: 23 | AR3: 14 | AS3: 37 | AT3: 0.3783783784 | AU3: 1 | AV3: 1 | AW3: 1 | AX3: Hotspot (-9)
A4: Expert, Illumina validated, Ion Torrent validated, bq | B4: UPN_Te3_045 | C4: 2 | D4: 25463307 | E4: C | F4: T | G4: DNMT3A | H4: ENST00000264709 | I4: missense_variant | J4: cGg/cAg|p.Arg729Gln/c.2186G>A | K4: 745 | L4: 261 | M4: 1008 | N4: 0.2589285714 | O4: 1 | P4: 1 | Q4: 1 | R4: 1 | S4: 1 | T4: 1 | U4: 1 | V4: 1 | W4: 8 | X4: NO | Y4: NO | Z4: COSM1318938 | AA4: haematopoietic_and_lymphoid_tissue | AB4: 1 | AC4: NO | AD4: NO | AE4: NO | AF4: 1.647e-05 | AG4: NO | AH4: NO | AI4: -2.914 | AJ4: Deleterious | AK4: 37.42 | AL4: 38.87 | AM4: 367 | AN4: 137 | AO4: 506 | AP4: 0.2707509881 | AQ4: 378 | AR4: 124 | AS4: 502 | AT4: 0.2470119522 | AU4: 0.3884128343 | AV4: 1 | AW4: 1 | AX4: Probably True (-5)
A5: Expert, Ion Torrent validated, bq | B5: UPN_Te3_010 | C5: 2 | D5: 25463544 | E5: AG | F5: A | G5: DNMT3A | H5: ENST00000264709 | I5: frameshift_variant | J5: ctc/|p.Leu713fs/c.2137delC | K5: 179 | L5: 31 | M5: 210 | N5: 0.1476190476 | O5: 1 | P5: 1 | Q5: 0 | R5: 0 | S5: 1 | T5: 1 | U5: 0 | V5: 1 | W5: 5 | X5: NO | Y5: NO | Z5: NO | AA5: NO | AB5: O | AC5: NO | AD5: NO | AE5: NO | AF5: 8.236e-06 | AG5: NO | AH5: NO | AI5: NA | AJ5: NA | AK5: 38.97 | AL5: NA | AM5: 76 | AN5: 13 | AO5: 89 | AP5: 0.1460674157 | AQ5: 103 | AR5: 18 | AS5: 121 | AT5: 0.1487603306 | AU5: 1 | AV5: 1 | AW5: 1 | AX5: Probably True (-2)
A6: Expert, prediction, bq | B6: UPN_Te3_002 | C6: 2 | D6: 25463598 | E6: A | F6: T | G6: DNMT3A | H6: ENST00000264709 | I6: missense_variant | J6: aTc/aAc|p.Ile695Asn/c.2084T>A | K6: 440 | L6: 177 | M6: 619 | N6: 0.2859450727 | O6: 1 | P6: 1 | Q6: 1 | R6: 0 | S6: 1 | T6: 1 | U6: 0 | V6: 1 | W6: 6 | X6: NO | Y6: NO | Z6: NO | AA6: NA | AB6: NA | AC6: NO | AD6: NO | AE6: NO | AF6: 8.237e-06 | AG6: NO | AH6: NO | AI6: -6.539 | AJ6: Deleterious | AK6: 39.19 | AL6: 36.06 | AM6: 214 | AN6: 86 | AO6: 301 | AP6: 0.2857142857 | AQ6: 226 | AR6: 91 | AS6: 318 | AT6: 0.286163522 | AU6: 1 | AV6: 1 | AW6: 1 | AX6: Probably True (-4)
A7: Expert, prediction, bq | B7: UPN_Te3_062 | C7: 2 | D7: 25466805 | E7: G | F7: T | G7: DNMT3A | H7: ENST00000264709 | I7: missense_variant | J7: cCc/cAc|p.Pro633His/c.1898C>A | K7: 41 | L7: 35 | M7: 76 | N7: 0.4605263158 | O7: 1 | P7: 1 | Q7: 1 | R7: 1 | S7: 1 | T7: 1 | U7: 1 | V7: 1 | W7: 8 | X7: NO | Y7: NO | Z7: NO | AA7: NO | AB7: O | AC7: NO | AD7: NO | AE7: NO | AF7: NO | AG7: NO | AH7: NO | AI7: -7.627 | AJ7: Deleterious | AK7: 31.15 | AL7: 38.49 | AM7: 27 | AN7: 22 | AO7: 49 | AP7: 0.4489795918 | AQ7: 14 | AR7: 13 | AS7: 27 | AT7: 0.4814814815 | AU7: 0.8140595466 | AV7: 1 | AW7: 1 | AX7: Probably True (-6)
A8: Expert, bq | B8: UPN_Te3_086 | C8: 2 | D8: 25467111 | E8: GT | F8: G | G8: DNMT3A | H8: ENST00000264709 | I8: frameshift_variant | J8: cac/|p.His588fs/c.1763delA | K8: 70 | L8: 46 | M8: 118 | N8: 0.3898305085 | O8: 1 | P8: 1 | Q8: 1 | R8: 0 | S8: 1 | T8: 1 | U8: 1 | V8: 1 | W8: 7 | X8: NO | Y8: NO | Z8: NO | AA8: NO | AB8: O | AC8: NO | AD8: NO | AE8: NO | AF8: NO | AG8: NO | AH8: NO | AI8: NA | AJ8: NA | AK8: 38.07 | AL8: NA | AM8: 22 | AN8: 14 | AO8: 36 | AP8: 0.3888888889 | AQ8: 48 | AR8: 32 | AS8: 82 | AT8: 0.3902439024 | AU8: 1 | AV8: 1 | AW8: 1 | AX8: Probably True (-3)
A9: Expert, Illumina validated, Ion Torrent validated, prediction, bq | B9: UPN_Te3_031 | C9: 2 | D9: 25467449 | E9: C | F9: A | G9: DNMT3A | H9: ENST00000264709 | I9: missense_variant | J9: Ggc/Tgc|p.Gly543Cys/c.1627G>T | K9: 350 | L9: 205 | M9: 556 | N9: 0.368705036 | O9: 1 | P9: 1 | Q9: 1 | R9: 1 | S9: 1 | T9: 1 | U9: 1 | V9: 1 | W9: 8 | X9: NO | Y9: NO | Z9: COSM87002 | AA9: haematopoietic_and_lymphoid_tissue | AB9: 13 | AC9: NO | AD9: NO | AE9: NO | AF9: 3.295e-05 | AG9: NO | AH9: NO | AI9: -7.59 | AJ9: Deleterious | AK9: 24.04 | AL9: 38.47 | AM9: 158 | AN9: 93 | AO9: 251 | AP9: 0.3705179283 | AQ9: 192 | AR9: 112 | AS9: 305 | AT9: 0.3672131148 | AU9: 1 | AV9: 3 | AW9: 3 | AX9: Probably True (-6)
A10: Expert, Illumina validated, bq | B10: UPN_Te3_052 | C10: 2 | D10: 25469552 | E10: T | F10: TG | G10: DNMT3A | H10: ENST00000264709 | I10: frameshift_variant | J10: ccc/cccC|p.Met406fs/c.1215dupC | K10: 116 | L10: 55 | M10: 116 | N10: 0.474137931 | O10: 1 | P10: 1 | Q10: 1 | R10: 0 | S10: 1 | T10: 1 | U10: 1 | V10: 1 | W10: 7 | X10: NO | Y10: NO | Z10: NO | AA10: NO | AB10: O | AC10: NO | AD10: NO | AE10: NO | AF10: NO | AG10: NO | AH10: NO | AI10: NA | AJ10: NA | AK10: 38.55 | AL10: NA | AM10: 56 | AN10: 28 | AO10: 56 | AP10: 0.5 | AQ10: 60 | AR10: 27 | AS10: 60 | AT10: 0.45 | AU10: 0.8700386708 | AV10: 1 | AW10: 1 | AX10: Probably True (-3)
A11: Expert, Illumina validated, bq | B11: UPN_Te3_083 | C11: 2 | D11: 25470494 | E11: C | F11: T | G11: DNMT3A | H11: ENST00000264709 | I11: stop_gained | J11: tGg/tAg|p.Trp327*/c.980G>A | K11: 109 | L11: 24 | M11: 133 | N11: 0.1804511278 | O11: 1 | P11: 1 | Q11: 0 | R11: 1 | S11: 1 | T11: 1 | U11: 1 | V11: 1 | W11: 7 | X11: NO | Y11: NO | Z11: NO | AA11: NO | AB11: O | AC11: NO | AD11: NO | AE11: NO | AF11: 8.236e-06 | AG11: NO | AH11: NO | AI11: NA | AJ11: NA | AK11: 33.38 | AL11: 36.17 | AM11: 59 | AN11: 5 | AO11: 64 | AP11: 0.078125 | AQ11: 50 | AR11: 19 | AS11: 69 | AT11: 0.2753623188 | AU11: 0.003348664915 | AV11: 1 | AW11: 1 | AX11: Probably True (-5)
A12: Hotspot, Expert, Ion Torrent 2 validated, prediction, bq | B12: UPN_Te3_074 | C12: 2 | D12: 198266494 | E12: T | F12: C | G12: SF3B1 | H12: ENST00000335508 | I12: missense_variant | J12: gAt/gGt|p.Asp781Gly/c.2342A>G | K12: 38 | L12: 20 | M12: 58 | N12: 0.3448275862 | O12: 1 | P12: 1 | Q12: 1 | R12: 1 | S12: 1 | T12: 1 | U12: 1 | V12: 1 | W12: 8 | X12: NO | Y12: NO | Z12: COSM131554 | AA12: haematopoietic_and_lymphoid_tissue, NS | AB12: 4, 8 | AC12: NO | AD12: NO | AE12: NO | AF12: 8.237e-06 | AG12: NO | AH12: NO | AI12: -6.682 | AJ12: Deleterious | AK12: 37.26 | AL12: 36.55 | AM12: 11 | AN12: 6 | AO12: 17 | AP12: 0.3529411765 | AQ12: 27 | AR12: 14 | AS12: 41 | AT12: 0.3414634146 | AU12: 1 | AV12: 1 | AW12: 1 | AX12: Hotspot (-9)
A13: Hotspot, Expert, Illumina validated, Ion Torrent 2 validated, Cosmic, prediction, | B13: UPN_Te3_051 | C13: 2 | D13: 198266611 | E13: C | F13: T | G13: SF3B1 | H13: ENST00000335508 | I13: missense_variant | J13: gGt/gAt|p.Gly742Asp/c.2225G>A | K13: 206 | L13: 68 | M13: 275 | N13: 0.2472727273 | O13: 1 | P13: 0 | Q13: 0 | R13: 0 | S13: 1 | T13: 1 | U13: 0 | V13: 1 | W13: 4 | X13: NO | Y13: NO | Z13: COSM145923 | AA13: haematopoietic_and_lymphoid_tissue, kidney, lung | AB13: 43, 1, 1 | AC13: NO | AD13: NO | AE13: NO | AF13: 1.649e-05 | AG13: NO | AH13: NO | AI13: -4.313 | AJ13: Deleterious | AK13: 31.2 | AL13: 34.63 | AM13: 149 | AN13: 44 | AO13: 193 | AP13: 0.2279792746 | AQ13: 57 | AR13: 24 | AS13: 82 | AT13: 0.2926829268 | AU13: 0.2831855928 | AV13: 1 | AW13: 1 | AX13: Hotspot (-5)
A14: Hotspot, Expert, Cosmic, prediction, bq | B14: UPN_Te3_038 | C14: 2 | D14: 198267359 | E14: C | F14: A | G14: SF3B1 | H14: ENST00000335508 | I14: missense_variant | J14: aaG/aaT|p.Lys666Asn/c.1998G>T | K14: 173 | L14: 122 | M14: 301 | N14: 0.4053156146 | O14: 1 | P14: 1 | Q14: 1 | R14: 1 | S14: 1 | T14: 1 | U14: 1 | V14: 1 | W14: 8 | X14: NO | Y14: NO | Z14: COSM131557 | AA14: endometrium, haematopoietic_and_lymphoid_tissue, NS | AB14: 1, 15, 28 | AC14: NO | AD14: NO | AE14: NO | AF14: NA | AG14: NO | AH14: NO | AI14: -4.774 | AJ14: Deleterious | AK14: 37.6 | AL14: 38.34 | AM14: 98 | AN14: 63 | AO14: 164 | AP14: 0.3841463415 | AQ14: 75 | AR14: 59 | AS14: 137 | AT14: 0.4306569343 | AU14: 0.4082168078 | AV14: 1 | AW14: 1 | AX14: Hotspot (-9)
A15: Hotspot, Expert, Cosmic, bq | B15: UPN_Te3_081 | C15: 2 | D15: 198267360 | E15: T | F15: C | G15: SF3B1 | H15: ENST00000335508 | I15: missense_variant | J15: aAg/aGg|p.Lys666Arg/c.1997A>G | K15: 159 | L15: 88 | M15: 250 | N15: 0.352 | O15: 1 | P15: 1 | Q15: 1 | R15: 1 | S15: 1 | T15: 1 | U15: 1 | V15: 1 | W15: 8 | X15: NO | Y15: NO | Z15: COSM131553 | AA15: haematopoietic_and_lymphoid_tissue | AB15: 21 | AC15: NO | AD15: NO | AE15: NO | AF15: NA | AG15: NO | AH15: NO | AI15: -2.865 | AJ15: Deleterious | AK15: 37.5 | AL15: 36.42 | AM15: 141 | AN15: 79 | AO15: 223 | AP15: 0.3542600897 | AQ15: 18 | AR15: 9 | AS15: 27 | AT15: 0.3333333333 | AU15: 0.8352456583 | AV15: 3 | AW15: 3 | AX15: Hotspot (-8)
A16: Hotspot, Expert, Cosmic, bq | B16: UPN_Te3_009 | C16: 2 | D16: 198267360 | E16: T | F16: C | G16: SF3B1 | H16: ENST00000335508 | I16: missense_variant | J16: aAg/aGg|p.Lys666Arg/c.1997A>G | K16: 261 | L16: 77 | M16: 342 | N16: 0.2251461988 | O16: 1 | P16: 1 | Q16: 1 | R16: 1 | S16: 1 | T16: 1 | U16: 1 | V16: 1 | W16: 8 | X16: NO | Y16: NO | Z16: COSM131553 | AA16: haematopoietic_and_lymphoid_tissue | AB16: 21 | AC16: NO | AD16: NO | AE16: NO | AF16: NA | AG16: NO | AH16: NO | AI16: -2.865 | AJ16: Deleterious | AK16: 36.86 | AL16: 37.58 | AM16: 139 | AN16: 49 | AO16: 191 | AP16: 0.2565445026 | AQ16: 122 | AR16: 28 | AS16: 151 | AT16: 0.1854304636 | AU16: 0.1183432721 | AV16: 3 | AW16: 3 | AX16: Hotspot (-8)
A17: Hotspot, Expert, Cosmic, bq | B17: UPN_Te3_012 | C17: 2 | D17: 198267360 | E17: T | F17: C | G17: SF3B1 | H17: ENST00000335508 | I17: missense_variant | J17: aAg/aGg|p.Lys666Arg/c.1997A>G | K17: 158 | L17: 78 | M17: 236 | N17: 0.3305084746 | O17: 1 | P17: 1 | Q17: 1 | R17: 1 | S17: 1 | T17: 1 | U17: 1 | V17: 1 | W17: 8 | X17: NO | Y17: NO | Z17: COSM131553 | AA17: haematopoietic_and_lymphoid_tissue | AB17: 21 | AC17: NO | AD17: NO | AE17: NO | AF17: NA | AG17: NO | AH17: NO | AI17: -2.865 | AJ17: Deleterious | AK17: 36.09 | AL17: 37.31 | AM17: 83 | AN17: 45 | AO17: 128 | AP17: 0.3515625 | AQ17: 75 | AR17: 33 | AS17: 108 | AT17: 0.3055555556 | AU17: 0.4892365823 | AV17: 3 | AW17: 3 | AX17: Hotspot (-8)
A18: Hotspot, Expert, Cosmic, prediction, bq | B18: UPN_Te3_024 | C18: 2 | D18: 198267371 | E18: G | F18: C | G18: SF3B1 | H18: ENST00000335508 | I18: missense_variant | J18: caC/caG|p.His662Gln/c.1986C>G | K18: 99 | L18: 27 | M18: 128 | N18: 0.2109375 | O18: 1 | P18: 1 | Q18: 1 | R18: 1 | S18: 1 | T18: 1 | U18: 1 | V18: 1 | W18: 8 | X18: NO | Y18: NO | Z18: COSM110692 | AA18: haematopoietic_and_lymphoid_tissue, NS, prostate | AB18: 30, 35, 1 | AC18: NO | AD18: NO | AE18: NO | AF18: NA | AG18: NO | AH18: NO | AI18: -7.601 | AJ18: Deleterious | AK18: 39.29 | AL18: 38.22 | AM18: 37 | AN18: 15 | AO18: 54 | AP18: 0.2777777778 | AQ18: 62 | AR18: 12 | AS18: 74 | AT18: 0.1621621622 | AU18: 0.1222375517 | AV18: 3 | AW18: 3 | AX18: Hotspot (-9)
A19: Hotspot, Expert, Illumina validated, Cosmic, prediction, bq | B19: UPN_Te3_063 | C19: 2 | D19: 198267371 | E19: G | F19: C | G19: SF3B1 | H19: ENST00000335508 | I19: missense_variant | J19: caC/caG|p.His662Gln/c.1986C>G | K19: 174 | L19: 90 | M19: 264 | N19: 0.3409090909 | O19: 1 | P19: 1 | Q19: 1 | R19: 1 | S19: 1 | T19: 1 | U19: 1 | V19: 1 | W19: 8 | X19: NO | Y19: NO | Z19: COSM110692 | AA19: haematopoietic_and_lymphoid_tissue, NS, prostate | AB19: 30, 35, 1 | AC19: NO | AD19: NO | AE19: NO | AF19: NA | AG19: NO | AH19: NO | AI19: -7.601 | AJ19: Deleterious | AK19: 38.66 | AL19: 37.68 | AM19: 98 | AN19: 52 | AO19: 150 | AP19: 0.3466666667 | AQ19: 76 | AR19: 38 | AS19: 114 | AT19: 0.3333333333 | AU19: 0.8958629946 | AV19: 3 | AW19: 3 | AX19: Hotspot (-9)
A20: Hotspot, Expert, Cosmic, prediction, bq | B20: UPN_Te3_065 | C20: 2 | D20: 198267371 | E20: G | F20: C | G20: SF3B1 | H20: ENST00000335508 | I20: missense_variant | J20: caC/caG|p.His662Gln/c.1986C>G | K20: 222 | L20: 136 | M20: 358 | N20: 0.3798882682 | O20: 1 | P20: 1 | Q20: 1 | R20: 1 | S20: 1 | T20: 1 | U20: 1 | V20: 1 | W20: 8 | X20: NO | Y20: NO | Z20: COSM110692 | AA20: haematopoietic_and_lymphoid_tissue, NS, prostate | AB20: 30, 35, 1 | AC20: NO | AD20: NO | AE20: NO | AF20: NA | AG20: NO | AH20: NO | AI20: -7.601 | AJ20: Deleterious | AK20: 38.51 | AL20: 38.28 | AM20: 156 | AN20: 100 | AO20: 256 | AP20: 0.390625 | AQ20: 66 | AR20: 36 | AS20: 102 | AT20: 0.3529411765 | AU20: 0.5475701362 | AV20: 3 | AW20: 3 | AX20: Hotspot (-9)
A21: Hotspot, Expert, Illumina validated, Ion Torrent validated, prediction, bq | B21: UPN_Te3_013 | C21: 2 | D21: 198267373 | E21: G | F21: C | G21: SF3B1 | H21: ENST00000335508 | I21: missense_variant | J21: Cac/Gac|p.His662Asp/c.1984C>G | K21: 721 | L21: 166 | M21: 890 | N21: 0.1865168539 | O21: 1 | P21: 1 | Q21: 0 | R21: 1 | S21: 1 | T21: 1 | U21: 0 | V21: 1 | W21: 6 | X21: NO | Y21: NO | Z21: COSM131560 | AA21: haematopoietic_and_lymphoid_tissue | AB21: 10 | AC21: NO | AD21: NO | AE21: NO | AF21: NO | AG21: NO | AH21: NO | AI21: -8.551 | AJ21: Deleterious | AK21: 38.68 | AL21: 37.49 | AM21: 427 | AN21: 108 | AO21: 538 | AP21: 0.2007434944 | AQ21: 294 | AR21: 58 | AS21: 352 | AT21: 0.1647727273 | AU21: 0.1869515811 | AV21: 1 | AW21: 1 | AX21: Hotspot (-9)
A22: Hotspot, Expert, prediction, bq | B22: UPN_Te3_082 | C22: 2 | D22: 198267481 | E22: T | F22: C | G22: SF3B1 | H22: ENST00000335508 | I22: missense_variant | J22: Aac/Gac|p.Asn626Asp/c.1876A>G | K22: 383 | L22: 245 | M22: 628 | N22: 0.3901273885 | O22: 1 | P22: 1 | Q22: 1 | R22: 1 | S22: 1 | T22: 1 | U22: 1 | V22: 1 | W22: 8 | X22: NO | Y22: NO | Z22: COSM131555 | AA22: breast, haematopoietic_and_lymphoid_tissue, prostate | AB22: 1, 2, 1 | AC22: NO | AD22: NO | AE22: NO | AF22: 8.236e-06 | AG22: NO | AH22: NO | AI22: -4.744 | AJ22: Deleterious | AK22: 34.22 | AL22: 37.54 | AM22: 206 | AN22: 133 | AO22: 339 | AP22: 0.3923303835 | AQ22: 177 | AR22: 112 | AS22: 289 | AT22: 0.3875432526 | AU22: 0.9346628172 | AV22: 1 | AW22: 1 | AX22: Hotspot (-9)
A23: Hotspot, Expert, Cosmic, prediction, | B23: UPN_Te3_067 | C23: 2 | D23: 198267483 | E23: C | F23: A | G23: SF3B1 | H23: ENST00000335508 | I23: missense_variant | J23: cGt/cTt|p.Arg625Leu/c.1874G>T | K23: 243 | L23: 24 | M23: 267 | N23: 0.08988764045 | O23: 0 | P23: 0 | Q23: 0 | R23: 1 | S23: 1 | T23: 1 | U23: 0 | V23: 1 | W23: 4 | X23: NO | Y23: NO | Z23: COSM110695 | AA23: eye, haematopoietic_and_lymphoid_tissue, salivary_gland, skin | AB23: 1, 19, 2, 1 | AC23: NO | AD23: NO | AE23: NO | AF23: NO | AG23: NO | AH23: NO | AI23: -6.575 | AJ23: Deleterious | AK23: 37.54 | AL23: 34.5 | AM23: 171 | AN23: 12 | AO23: 183 | AP23: 0.06557377049 | AQ23: 72 | AR23: 12 | AS23: 84 | AT23: 0.1428571429 | AU23: 0.06268040398 | AV23: 2 | AW23: 2 | AX23: Hotspot (-4)
A24: Hotspot, Expert, Illumina validated, Ion Torrent validated, Cosmic, prediction, bq | B24: UPN_Te3_031 | C24: 2 | D24: 198267484 | E24: G | F24: A | G24: SF3B1 | H24: ENST00000335508 | I24: missense_variant | J24: Cgt/Tgt|p.Arg625Cys/c.1873C>T | K24: 282 | L24: 112 | M24: 394 | N24: 0.2842639594 | O24: 1 | P24: 1 | Q24: 1 | R24: 1 | S24: 1 | T24: 1 | U24: 1 | V24: 1 | W24: 8 | X24: NO | Y24: NO | Z24: COSM110696 | AA24: eye, haematopoietic_and_lymphoid_tissue, pancreas, salivary_gland, skin, urinary_tract | AB24: 12, 11, 2, 1, 3, 1 | AC24: NO | AD24: NO | AE24: NO | AF24: 1.647e-05 | AG24: NO | AH24: NO | AI24: -7.491 | AJ24: Deleterious | AK24: 37.51 | AL24: 39.23 | AM24: 167 | AN24: 65 | AO24: 232 | AP24: 0.2801724138 | AQ24: 115 | AR24: 47 | AS24: 162 | AT24: 0.2901234568 | AU24: 0.9096749585 | AV24: 3 | AW24: 3 | AX24: Hotspot (-9)
A25: Hotspot, Expert, Illumina validated, Ion Torrent validated, Cosmic, prediction, bq | B25: UPN_Te3_036 | C25: 2 | D25: 198267484 | E25: G | F25: A | G25: SF3B1 | H25: ENST00000335508 | I25: missense_variant | J25: Cgt/Tgt|p.Arg625Cys/c.1873C>T | K25: 203 | L25: 28 | M25: 231 | N25: 0.1212121212 | O25: 1 | P25: 1 | Q25: 0 | R25: 1 | S25: 1 | T25: 1 | U25: 0 | V25: 1 | W25: 6 | X25: NO | Y25: NO | Z25: COSM110696 | AA25: eye, haematopoietic_and_lymphoid_tissue, pancreas, salivary_gland, skin, urinary_tract | AB25: 12, 11, 2, 1, 3, 1 | AC25: NO | AD25: NO | AE25: NO | AF25: 1.647e-05 | AG25: NO | AH25: NO | AI25: -7.491 | AJ25: Deleterious | AK25: 37.98 | AL25: 37.75 | AM25: 137 | AN25: 18 | AO25: 155 | AP25: 0.1161290323 | AQ25: 66 | AR25: 10 | AS25: 76 | AT25: 0.1315789474 | AU25: 0.8304931464 | AV25: 3 | AW25: 3 | AX25: Hotspot (-9)
A26: Hotspot, Expert, Illumina validated, Cosmic, prediction, bq | B26: UPN_Te3_053 | C26: 2 | D26: 198267484 | E26: G | F26: A | G26: SF3B1 | H26: ENST00000335508 | I26: missense_variant | J26: Cgt/Tgt|p.Arg625Cys/c.1873C>T | K26: 240 | L26: 70 | M26: 310 | N26: 0.2258064516 | O26: 1 | P26: 1 | Q26: 1 | R26: 1 | S26: 1 | T26: 1 | U26: 1 | V26: 1 | W26: 8 | X26: NO | Y26: NO | Z26: COSM110696 | AA26: eye, haematopoietic_and_lymphoid_tissue, pancreas, salivary_gland, skin, urinary_tract | AB26: 12, 11, 2, 1, 3, 1 | AC26: NO | AD26: NO | AE26: NO | AF26: 1.647e-05 | AG26: NO | AH26: NO | AI26: -7.491 | AJ26: Deleterious | AK26: 36.88 | AL26: 38.74 | AM26: 133 | AN26: 38 | AO26: 171 | AP26: 0.2222222222 | AQ26: 107 | AR26: 32 | AS26: 139 | AT26: 0.2302158273 | AU26: 0.8919644011 | AV26: 3 | AW26: 3 | AX26: Hotspot (-9)
A27: Expert, prediction, bq | B27: UPN_Te3_075 | C27: 2 | D27: 198267489 | E27: T | F27: C | G27: SF3B1 | H27: ENST00000335508 | I27: missense_variant | J27: tAt/tGt|p.Tyr623Cys/c.1868A>G | K27: 96 | L27: 62 | M27: 158 | N27: 0.3924050633 | O27: 1 | P27: 1 | Q27: 1 | R27: 1 | S27: 1 | T27: 0 | U27: 1 | V27: 1 | W27: 7 | X27: NO | Y27: NO | Z27: COSM131558 | AA27: haematopoietic_and_lymphoid_tissue | AB27: 6 | AC27: NO | AD27: NO | AE27: NO | AF27: NO | AG27: NO | AH27: NO | AI27: -7.936 | AJ27: Deleterious | AK27: 39.57 | AL27: 38.66 | AM27: 95 | AN27: 62 | AO27: 157 | AP27: 0.3949044586 | AQ27: 1 | AR27: 0 | AS27: 1 | AT27: 0 | AU27: 1 | AV27: 2 | AW27: 2 | AX27: Probably True (-6)
A28: Hotspot, Expert, Illumina validated, Ion Torrent validated, Cosmic, bq | B28: UPN_Te3_017 | C28: 2 | D28: 198267491 | E28: C | F28: A | G28: SF3B1 | H28: ENST00000335508 | I28: missense_variant | J28: gaG/gaT|p.Glu622Asp/c.1866G>T | K28: 305 | L28: 76 | M28: 388 | N28: 0.1958762887 | O28: 1 | P28: 1 | Q28: 0 | R28: 1 | S28: 1 | T28: 1 | U28: 1 | V28: 1 | W28: 7 | X28: NO | Y28: NO | Z28: COSM110693 | AA28: haematopoietic_and_lymphoid_tissue | AB28: 30 | AC28: NO | AD28: NO | AE28: NO | AF28: NO | AG28: NO | AH28: NO | AI28: -2.737 | AJ28: Deleterious | AK28: 38.38 | AL28: 38.68 | AM28: 166 | AN28: 37 | AO28: 203 | AP28: 0.1822660099 | AQ28: 139 | AR28: 39 | AS28: 185 | AT28: 0.2108108108 | AU28: 0.3723309138 | AV28: 2 | AW28: 4 | AX28: Hotspot (-8)
A29: Hotspot, Expert, Cosmic, bq | B29: UPN_Te3_067 | C29: 2 | D29: 198267491 | E29: C | F29: A | G29: SF3B1 | H29: ENST00000335508 | I29: missense_variant | J29: gaG/gaT|p.Glu622Asp/c.1866G>T | K29: 200 | L29: 66 | M29: 266 | N29: 0.2481203008 | O29: 1 | P29: 1 | Q29: 1 | R29: 1 | S29: 1 | T29: 1 | U29: 1 | V29: 1 | W29: 8 | X29: NO | Y29: NO | Z29: COSM110693 | AA29: haematopoietic_and_lymphoid_tissue | AB29: 30 | AC29: NO | AD29: NO | AE29: NO | AF29: NO | AG29: NO | AH29: NO | AI29: -2.737 | AJ29: Deleterious | AK29: 38.04 | AL29: 36.77 | AM29: 139 | AN29: 43 | AO29: 182 | AP29: 0.2362637363 | AQ29: 61 | AR29: 23 | AS29: 84 | AT29: 0.2738095238 | AU29: 0.5427458815 | AV29: 2 | AW29: 4 | AX29: Hotspot (-8)
A30: Hotspot, Expert, Cosmic, bq | B30: UPN_Te3_072 | C30: 2 | D30: 198267491 | E30: C | F30: G | G30: SF3B1 | H30: ENST00000335508 | I30: missense_variant | J30: gaG/gaC|p.Glu622Asp/c.1866G>C | K30: 100 | L30: 51 | M30: 151 | N30: 0.3377483444 | O30: 1 | P30: 1 | Q30: 1 | R30: 1 | S30: 1 | T30: 1 | U30: 1 | V30: 1 | W30: 8 | X30: NO | Y30: NO | Z30: COSM132938 | AA30: eye, haematopoietic_and_lymphoid_tissue, NS | AB30: 1, 16, 33 | AC30: NO | AD30: NO | AE30: NO | AF30: 8.236e-06 | AG30: NO | AH30: NO | AI30: -2.737 | AJ30: Deleterious | AK30: 38.98 | AL30: 37.73 | AM30: 37 | AN30: 28 | AO30: 65 | AP30: 0.4307692308 | AQ30: 63 | AR30: 23 | AS30: 86 | AT30: 0.2674418605 | AU30: 0.03898810068 | AV30: 2 | AW30: 4 | AX30: Hotspot (-8)
A31: Hotspot, Expert, Cosmic, bq | B31: UPN_Te3_047 | C31: 2 | D31: 198267491 | E31: C | F31: G | G31: SF3B1 | H31: ENST00000335508 | I31: missense_variant | J31: gaG/gaC|p.Glu622Asp/c.1866G>C | K31: 298 | L31: 80 | M31: 383 | N31: 0.2088772846 | O31: 1 | P31: 1 | Q31: 1 | R31: 1 | S31: 1 | T31: 1 | U31: 1 | V31: 1 | W31: 8 | X31: NO | Y31: NO | Z31: COSM132938 | AA31: eye, haematopoietic_and_lymphoid_tissue, NS | AB31: 1, 16, 33 | AC31: NO | AD31: NO | AE31: NO | AF31: 8.236e-06 | AG31: NO | AH31: NO | AI31: -2.737 | AJ31: Deleterious | AK31: 38.71 | AL31: 37.58 | AM31: 207 | AN31: 50 | AO31: 258 | AP31: 0.1937984496 | AQ31: 91 | AR31: 30 | AS31: 125 | AT31: 0.24 | AU31: 0.2801257136 | AV31: 2 | AW31: 4 | AX31: Hotspot (-8)
A32: Expert, Illumina validated, Ion Torrent validated, bq | B32: UPN_Te3_031 | C32: 4 | D32: 106156426 | E32: AC | F32: A | G32: TET2 | H32: ENST00000380013 | I32: frameshift_variant | J32: aca/|p.Thr443fs/c.1328delC | K32: 236 | L32: 459 | M32: 700 | N32: 0.6557142857 | O32: 1 | P32: 1 | Q32: 1 | R32: 0 | S32: 1 | T32: 1 | U32: 0 | V32: 1 | W32: 6 | X32: NO | Y32: NO | Z32: NO | AA32: NA | AB32: NA | AC32: NO | AD32: NO | AE32: NO | AF32: NO | AG32: NO | AH32: NO | AI32: NA | AJ32: NA | AK32: 36.64 | AL32: NA | AM32: 145 | AN32: 262 | AO32: 410 | AP32: 0.6390243902 | AQ32: 91 | AR32: 197 | AS32: 290 | AT32: 0.6793103448 | AU32: 0.2908558601 | AV32: 3 | AW32: 3 | AX32: Probably True (-3)
A33: Expert, Illumina validated, bq | B33: UPN_Te3_001 | C33: 4 | D33: 106157105 | E33: CA | F33: C | G33: TET2 | H33: ENST00000380013 | I33: frameshift_variant | J33: aaa/|p.Ala671fs/c.2010delA | K33: 111 | L33: 50 | M33: 161 | N33: 0.3105590062 | O33: 1 | P33: 1 | Q33: 1 | R33: 0 | S33: 1 | T33: 1 | U33: 1 | V33: 1 | W33: 7 | X33: NO | Y33: NO | Z33: NO | AA33: NA | AB33: NA | AC33: NO | AD33: NO | AE33: NO | AF33: NO | AG33: NO | AH33: NO | AI33: NA | AJ33: NA | AK33: 30.28 | AL33: NA | AM33: 38 | AN33: 16 | AO33: 54 | AP33: 0.2962962963 | AQ33: 73 | AR33: 34 | AS33: 107 | AT33: 0.3177570093 | AU33: 0.8577721741 | AV33: 1 | AW33: 1 | AX33: Probably True (-3)
A34: Expert, bq | B34: UPN_Te3_029 | C34: 4 | D34: 106157711 | E34: ATG | F34: A | G34: TET2 | H34: ENST00000380013 | I34: frameshift_variant | J34: gtg/|p.Val872fs/c.2615_2616delTG | K34: 377 | L34: 250 | M34: 629 | N34: 0.3974562798 | O34: 1 | P34: 1 | Q34: 1 | R34: 0 | S34: 1 | T34: 1 | U34: 0 | V34: 1 | W34: 6 | X34: NO | Y34: NO | Z34: NO | AA34: NO | AB34: O | AC34: NO | AD34: NO | AE34: NO | AF34: NO | AG34: NO | AH34: NO | AI34: NA | AJ34: NA | AK34: 38.1 | AL34: NA | AM34: 181 | AN34: 139 | AO34: 322 | AP34: 0.4316770186 | AQ34: 196 | AR34: 111 | AS34: 307 | AT34: 0.3615635179 | AU34: 0.07262332528 | AV34: 1 | AW34: 1 | AX34: Probably True (-3)
A35: Expert, Cosmic, | B35: UPN_Te3_064 | C35: 4 | D35: 106157845 | E35: C | F35: T | G35: TET2 | H35: ENST00000380013 | I35: stop_gained | J35: Cag/Tag|p.Gln916*/c.2746C>T | K35: 80 | L35: 29 | M35: 109 | N35: 0.2660550459 | O35: 0 | P35: 1 | Q35: 1 | R35: 1 | S35: 1 | T35: 1 | U35: 1 | V35: 1 | W35: 7 | X35: NO | Y35: NO | Z35: COSM43417, COSM3733079 | AA35: haematopoietic_and_lymphoid_tissue | AB35: 26 | AC35: NO | AD35: NO | AE35: NO | AF35: 1.647e-05 | AG35: NO | AH35: NO | AI35: NA | AJ35: NA | AK35: 38.74 | AL35: 33.93 | AM35: 33 | AN35: 14 | AO35: 47 | AP35: 0.2978723404 | AQ35: 47 | AR35: 15 | AS35: 62 | AT35: 0.2419354839 | AU35: 0.5209470233 | AV35: 1 | AW35: 1 | AX35: Probably True (-5)
A36: Expert, Illumina validated, bq | B36: UPN_Te3_052 | C36: 4 | D36: 106158201 | E36: G | F36: GT | G36: TET2 | H36: ENST00000380013 | I36: frameshift_variant | J36: cac/Tcac|p.His1036fs/c.3105dupT | K36: 366 | L36: 48 | M36: 366 | N36: 0.131147541 | O36: 0 | P36: 1 | Q36: 0 | R36: 0 | S36: 1 | T36: 1 | U36: 0 | V36: 1 | W36: 4 | X36: NO | Y36: NO | Z36: NO | AA36: NA | AB36: NA | AC36: NO | AD36: NO | AE36: NO | AF36: NO | AG36: NO | AH36: NO | AI36: NA | AJ36: NA | AK36: 38.14 | AL36: NA | AM36: 163 | AN36: 25 | AO36: 163 | AP36: 0.1533742331 | AQ36: 203 | AR36: 23 | AS36: 203 | AT36: 0.1133004926 | AU36: 0.3567546087 | AV36: 1 | AW36: 1 | AX36: Probably True (-1)
A37: Expert, prediction, bq | B37: UPN_Te3_062 | C37: 4 | D37: 106164071 | E37: C | F37: G | G37: TET2 | H37: ENST00000380013 | I37: missense_variant | J37: cCt/cGt|p.Pro1194Arg/c.3581C>G | K37: 434 | L37: 369 | M37: 804 | N37: 0.4589552239 | O37: 1 | P37: 1 | Q37: 1 | R37: 1 | S37: 1 | T37: 1 | U37: 1 | V37: 1 | W37: 8 | X37: NO | Y37: NO | Z37: NO | AA37: NA | AB37: NA | AC37: NO | AD37: NO | AE37: NO | AF37: NO | AG37: NO | AH37: NO | AI37: -7.905 | AJ37: Deleterious | AK37: 37.48 | AL37: 38.27 | AM37: 146 | AN37: 140 | AO37: 286 | AP37: 0.4895104895 | AQ37: 288 | AR37: 229 | AS37: 518 | AT37: 0.4420849421 | AU37: 0.2096203428 | AV37: 1 | AW37: 1 | AX37: Probably True (-6)
A38: Expert, bq | B38: UPN_Te3_023 | C38: 4 | D38: 106164769 | E38: G | F38: A | G38: TET2 | H38: ENST00000380013 | I38: missense_variant | J38: Gtg/Atg|p.Val1213Met/c.3637G>A | K38: 128 | L38: 140 | M38: 268 | N38: 0.5223880597 | O38: 1 | P38: 1 | Q38: 1 | R38: 1 | S38: 1 | T38: 1 | U38: 1 | V38: 1 | W38: 8 | X38: NO | Y38: NO | Z38: NO | AA38: NO | AB38: O | AC38: NO | AD38: NO | AE38: NO | AF38: NO | AG38: NO | AH38: NO | AI38: -2.855 | AJ38: Deleterious | AK38: 34.66 | AL38: 39.01 | AM38: 91 | AN38: 73 | AO38: 164 | AP38: 0.4451219512 | AQ38: 37 | AR38: 67 | AS38: 104 | AT38: 0.6442307692 | AU38: 0.001703342985 | AV38: 1 | AW38: 1 | AX38: Probably True (-5)
A39: Expert, prediction, bq | B39: UPN_Te3_081 | C39: 4 | D39: 106164875 | E39: T | F39: A | G39: TET2 | H39: ENST00000380013 | I39: missense_variant | J39: cTt/cAt|p.Leu1248His/c.3743T>A | K39: 145 | L39: 66 | M39: 212 | N39: 0.3113207547 | O39: 1 | P39: 1 | Q39: 1 | R39: 1 | S39: 1 | T39: 1 | U39: 1 | V39: 1 | W39: 8 | X39: NO | Y39: NO | Z39: COSM4383916 | AA39: haematopoietic_and_lymphoid_tissue | AB39: 1 | AC39: NO | AD39: NO | AE39: NO | AF39: NO | AG39: NO | AH39: NO | AI39: -6.252 | AJ39: Deleterious | AK39: 38.86 | AL39: 39.02 | AM39: 41 | AN39: 18 | AO39: 59 | AP39: 0.3050847458 | AQ39: 104 | AR39: 48 | AS39: 153 | AT39: 0.3137254902 | AU39: 1 | AV39: 1 | AW39: 1 | AX39: Probably True (-6)
A40: Expert, prediction, bq | B40: UPN_Te3_082 | C40: 4 | D40: 106164914 | E40: G | F40: A | G40: TET2 | H40: ENST00000380013 | I40: missense_variant | J40: cGc/cAc|p.Arg1261His/c.3782G>A | K40: 227 | L40: 127 | M40: 360 | N40: 0.3527777778 | O40: 1 | P40: 1 | Q40: 1 | R40: 1 | S40: 1 | T40: 1 | U40: 1 | V40: 1 | W40: 8 | X40: NO | Y40: NO | Z40: COSM211643 | AA40: haematopoietic_and_lymphoid_tissue | AB40: 4 | AC40: NO | AD40: NO | AE40: NO | AF40: 8.035e-05 | AG40: NO | AH40: NO | AI40: -4.562 | AJ40: Deleterious | AK40: 38.69 | AL40: 37.91 | AM40: 123 | AN40: 84 | AO40: 209 | AP40: 0.4019138756 | AQ40: 104 | AR40: 43 | AS40: 151 | AT40: 0.2847682119 | AU40: 0.03271123962 | AV40: 1 | AW40: 1 | AX40: Probably True (-6)
A41: Expert, prediction, bq | B41: UPN_Te3_044 | C41: 4 | D41: 106190797 | E41: C | F41: T | G41: TET2 | H41: ENST00000380013 | I41: missense_variant | J41: Cgt/Tgt|p.Arg1359Cys/c.4075C>T | K41: 1253 | L41: 171 | M41: 1424 | N41: 0.1200842697 | O41: 0 | P41: 1 | Q41: 0 | R41: 1 | S41: 1 | T41: 1 | U41: 0 | V41: 1 | W41: 5 | X41: NO | Y41: NO | Z41: COSM41649 | AA41: cervix, haematopoietic_and_lymphoid_tissue | AB41: 1, 5 | AC41: NO | AD41: NO | AE41: NO | AF41: NO | AG41: NO | AH41: NO | AI41: -7.245 | AJ41: Deleterious | AK41: 38.34 | AL41: 39.51 | AM41: 617 | AN41: 93 | AO41: 710 | AP41: 0.1309859155 | AQ41: 636 | AR41: 78 | AS41: 714 | AT41: 0.1092436975 | AU41: 0.2217127443 | AV41: 2 | AW41: 2 | AX41: Probably True (-5)
A42: Expert, prediction, bq | B42: UPN_Te3_062 | C42: 4 | D42: 106190797 | E42: C | F42: T | G42: TET2 | H42: ENST00000380013 | I42: missense_variant | J42: Cgt/Tgt|p.Arg1359Cys/c.4075C>T | K42: 1545 | L42: 67 | M42: 1613 | N42: 0.04153750775 | O42: 0 | P42: 0 | Q42: 0 | R42: 1 | S42: 1 | T42: 1 | U42: 0 | V42: 1 | W42: 4 | X42: NO | Y42: NO | Z42: COSM41649 | AA42: cervix, haematopoietic_and_lymphoid_tissue | AB42: 1, 5 | AC42: NO | AD42: NO | AE42: NO | AF42: NO | AG42: NO | AH42: NO | AI42: -7.245 | AJ42: Deleterious | AK42: 38.06 | AL42: 38.55 | AM42: 583 | AN42: 27 | AO42: 610 | AP42: 0.04426229508 | AQ42: 962 | AR42: 40 | AS42: 1003 | AT42: 0.03988035892 | AU42: 0.7003085125 | AV42: 2 | AW42: 2 | AX42: Probably True (-4)
A43: Expert, prediction, | B43: UPN_Te3_003 | C43: 4 | D43: 106190836 | E43: A | F43: C | G43: TET2 | H43: ENST00000380013 | I43: missense_variant | J43: Act/Cct|p.Thr1372Pro/c.4114A>C | K43: 616 | L43: 652 | M43: 1271 | N43: 0.512981904 | O43: 1 | P43: 1 | Q43: 1 | R43: 1 | S43: 1 | T43: 1 | U43: 1 | V43: 1 | W43: 8 | X43: NO | Y43: NO | Z43: NO | AA43: NA | AB43: NA | AC43: NO | AD43: NO | AE43: NO | AF43: NO | AG43: NO | AH43: NO | AI43: -5.729 | AJ43: Deleterious | AK43: 39.58 | AL43: 33.65 | AM43: 333 | AN43: 328 | AO43: 662 | AP43: 0.4954682779 | AQ43: 283 | AR43: 324 | AS43: 609 | AT43: 0.5320197044 | AU43: 0.1958559765 | AV43: 1 | AW43: 1 | AX43: Probably True (-6)
A44: Expert, Illumina validated, Ion Torrent validated, prediction, bq | B44: UPN_Te3_036 | C44: 4 | D44: 106190854 | E44: T | F44: C | G44: TET2 | H44: ENST00000380013 | I44: missense_variant | J44: Tgt/Cgt|p.Cys1378Arg/c.4132T>C | K44: 945 | L44: 20 | M44: 968 | N44: 0.02066115702 | O44: 0 | P44: 0 | Q44: 0 | R44: 1 | S44: 1 | T44: 0 | U44: 0 | V44: 1 | W44: 3 | X44: NO | Y44: NO | Z44: NO | AA44: NA | AB44: NA | AC44: NO | AD44: NO | AE44: NO | AF44: NO | AG44: NO | AH44: NO | AI44: -11.019 | AJ44: Deleterious | AK44: 39.25 | AL44: 36.7 | AM44: 470 | AN44: 12 | AO44: 485 | AP44: 0.02474226804 | AQ44: 475 | AR44: 8 | AS44: 483 | AT44: 0.016563147 | AU44: 0.3780240931 | AV44: 1 | AW44: 1 | AX44: Probably True (-2)
A45: Expert, prediction, | B45: UPN_Te3_084 | C45: 4 | D45: 106190898 | E45: C | F45: A | G45: TET2 | H45: ENST00000380013 | I45: missense_variant | J45: agC/agA|p.Ser1392Arg/c.4176C>A | K45: 150 | L45: 46 | M45: 198 | N45: 0.2323232323 | O45: 1 | P45: 1 | Q45: 1 | R45: 1 | S45: 1 | T45: 1 | U45: 1 | V45: 1 | W45: 8 | X45: NO | Y45: NO | Z45: NO | AA45: NA | AB45: NA | AC45: NO | AD45: NO | AE45: NO | AF45: NO | AG45: NO | AH45: NO | AI45: -3.767 | AJ45: Deleterious | AK45: 37.73 | AL45: 34.26 | AM45: 71 | AN45: 27 | AO45: 100 | AP45: 0.27 | AQ45: 79 | AR45: 19 | AS45: 98 | AT45: 0.193877551 | AU45: 0.2379072518 | AV45: 2 | AW45: 2 | AX45: Probably True (-6)
A46: Expert, bq | B46: UPN_Te3_002 | C46: 4 | D46: 106196213 | E46: C | F46: T | G46: TET2 | H46: ENST00000380013 | I46: stop_gained | J46: Cga/Tga|p.Arg1516*/c.4546C>T | K46: 197 | L46: 62 | M46: 265 | N46: 0.2339622642 | O46: 1 | P46: 1 | Q46: 1 | R46: 1 | S46: 1 | T46: 1 | U46: 1 | V46: 1 | W46: 8 | X46: 0.0314 | Y46: NO | Z46: COSM43420 | AA46: haematopoietic_and_lymphoid_tissue | AB46: 11 | AC46: NO | AD46: rs370735654 | AE46: NO | AF46: NO | AG46: NO | AH46: NO | AI46: NA | AJ46: NA | AK46: 38.46 | AL46: 37.15 | AM46: 86 | AN46: 23 | AO46: 114 | AP46: 0.201754386 | AQ46: 111 | AR46: 39 | AS46: 151 | AT46: 0.2582781457 | AU46: 0.3802586529 | AV46: 1 | AW46: 1 | AX46: Probably True (-5)
A47: Expert, bq | B47: UPN_Te3_058 | C47: 4 | D47: 106196265 | E47: A | F47: AG | G47: TET2 | H47: ENST00000380013 | I47: frameshift_variant | J47: cag/Gcag|p.Gln1534fs/c.4599dupG | K47: 170 | L47: 91 | M47: 171 | N47: 0.5321637427 | O47: 1 | P47: 1 | Q47: 1 | R47: 0 | S47: 1 | T47: 1 | U47: 1 | V47: 1 | W47: 7 | X47: NO | Y47: NO | Z47: NO | AA47: NA | AB47: NA | AC47: NO | AD47: NO | AE47: NO | AF47: NO | AG47: NO | AH47: NO | AI47: NA | AJ47: NA | AK47: 35.65 | AL47: NA | AM47: 71 | AN47: 34 | AO47: 71 | AP47: 0.4788732394 | AQ47: 99 | AR47: 57 | AS47: 100 | AT47: 0.57 | AU47: 0.5105138506 | AV47: 1 | AW47: 1 | AX47: Probably True (-3)
A48: Expert | B48: UPN_Te3_058 | C48: 4 | D48: 106196474 | E48: C | F48: T | G48: TET2 | H48: ENST00000380013 | I48: stop_gained | J48: Caa/Taa|p.Gln1603*/c.4807C>T | K48: 618 | L48: 269 | M48: 905 | N48: 0.2972375691 | O48: 1 | P48: 1 | Q48: 1 | R48: 1 | S48: 1 | T48: 1 | U48: 1 | V48: 1 | W48: 8 | X48: NO | Y48: NO | Z48: COSM211738 | AA48: breast, haematopoietic_and_lymphoid_tissue | AB48: 1, 1 | AC48: NO | AD48: NO | AE48: NO | AF48: NO | AG48: NO | AH48: NO | AI48: NA | AJ48: NA | AK48: 38.89 | AL48: 34.73 | AM48: 257 | AN48: 134 | AO48: 406 | AP48: 0.3300492611 | AQ48: 361 | AR48: 135 | AS48: 499 | AT48: 0.2705410822 | AU48: 0.02723589649 | AV48: 1 | AW48: 1 | AX48: Probably True (-5)
A49: Expert, bq | B49: UPN_Te3_049 | C49: 4 | D49: 106196705 | E49: C | F49: T | G49: TET2 | H49: ENST00000380013 | I49: stop_gained | J49: Cag/Tag|p.Gln1680*/c.5038C>T | K49: 1157 | L49: 823 | M49: 1980 | N49: 0.4156565657 | O49: 1 | P49: 1 | Q49: 1 | R49: 1 | S49: 1 | T49: 1 | U49: 1 | V49: 1 | W49: 8 | X49: NO | Y49: NO | Z49: COSM132898 | AA49: haematopoietic_and_lymphoid_tissue | AB49: 4 | AC49: NO | AD49: NO | AE49: NO | AF49: NO | AG49: NO | AH49: NO | AI49: NA | AJ49: NA | AK49: 36.25 | AL49: 36.94 | AM49: 556 | AN49: 376 | AO49: 932 | AP49: 0.4034334764 | AQ49: 601 | AR49: 447 | AS49: 1048 | AT49: 0.4265267176 | AU49: 0.3149560154 | AV49: 1 | AW49: 1 | AX49: Probably True (-5)
A50: Expert, bq | B50: UPN_Te3_044 | C50: 4 | D50: 106196726 | E50: C | F50: T | G50: TET2 | H50: ENST00000380013 | I50: stop_gained | J50: Cag/Tag|p.Gln1687*/c.5059C>T | K50: 1264 | L50: 218 | M50: 1482 | N50: 0.1470985155 | O50: 1 | P50: 1 | Q50: 0 | R50: 1 | S50: 1 | T50: 1 | U50: 1 | V50: 1 | W50: 7 | X50: NO | Y50: NO | Z50: COSM43421 | AA50: haematopoietic_and_lymphoid_tissue | AB50: 2 | AC50: NO | AD50: NO | AE50: NO | AF50: NO | AG50: NO | AH50: NO | AI50: NA | AJ50: NA | AK50: 37.07 | AL50: 36.17 | AM50: 580 | AN50: 85 | AO50: 665 | AP50: 0.1278195489 | AQ50: 684 | AR50: 133 | AS50: 817 | AT50: 0.1627906977 | AU50: 0.06521182381 | AV50: 1 | AW50: 1 | AX50: Probably True (-5)
A51: Expert, bq | B51: UPN_Te3_016 | C51: 4 | D51: 106196771 | E51: C | F51: T | G51: TET2 | H51: ENST00000380013 | I51: stop_gained | J51: Cag/Tag|p.Gln1702*/c.5104C>T | K51: 90 | L51: 425 | M51: 516 | N51: 0.8236434109 | O51: 1 | P51: 1 | Q51: 1 | R51: 1 | S51: 1 | T51: 1 | U51: 1 | V51: 1 | W51: 8 | X51: NO | Y51: NO | Z51: COSM43442 | AA51: haematopoietic_and_lymphoid_tissue | AB51: 5 | AC51: NO | AD51: NO | AE51: NO | AF51: NO | AG51: NO | AH51: NO | AI51: NA | AJ51: NA | AK51: 38.04 | AL51: 37.19 | AM51: 43 | AN51: 221 | AO51: 265 | AP51: 0.8339622642 | AQ51: 47 | AR51: 204 | AS51: 251 | AT51: 0.812749004 | AU51: 0.4877991855 | AV51: 1 | AW51: 1 | AX51: Probably True (-5)
A52: Expert, Illumina validated, Ion Torrent validated, prediction, bq | B52: UPN_Te3_013 | C52: 4 | D52: 106197302 | E52: G | F52: A | G52: TET2 | H52: ENST00000380013 | I52: missense_variant | J52: Gag/Aag|p.Glu1879Lys/c.5635G>A | K52: 354 | L52: 120 | M52: 474 | N52: 0.253164557 | O52: 1 | P52: 1 | Q52: 1 | R52: 1 | S52: 1 | T52: 1 | U52: 1 | V52: 1 | W52: 8 | X52: NO | Y52: NO | Z52: NO | AA52: NO | AB52: O | AC52: NO | AD52: NO | AE52: NO | AF52: NO | AG52: NO | AH52: NO | AI52: -3.735 | AJ52: Deleterious | AK52: 38.42 | AL52: 38.03 | AM52: 163 | AN52: 44 | AO52: 207 | AP52: 0.2125603865 | AQ52: 191 | AR52: 76 | AS52: 267 | AT52: 0.2846441948 | AU52: 0.08822396629 | AV52: 1 | AW52: 1 | AX52: Probably True (-6)
A53: Expert, prediction, bq | B53: UPN_Te3_086 | C53: 4 | D53: 106197402 | E53: A | F53: G | G53: TET2 | H53: ENST00000380013 | I53: missense_variant | J53: cAt/cGt|p.His1912Arg/c.5735A>G | K53: 118 | L53: 54 | M53: 172 | N53: 0.3139534884 | O53: 1 | P53: 1 | Q53: 1 | R53: 1 | S53: 1 | T53: 1 | U53: 1 | V53: 1 | W53: 8 | X53: NO | Y53: NO | Z53: NO | AA53: NA | AB53: NA | AC53: NO | AD53: NO | AE53: NO | AF53: NO | AG53: NO | AH53: NO | AI53: -7.458 | AJ53: Deleterious | AK53: 33.01 | AL53: 37.93 | AM53: 72 | AN53: 39 | AO53: 111 | AP53: 0.3513513514 | AQ53: 46 | AR53: 15 | AS53: 61 | AT53: 0.2459016393 | AU53: 0.1725630851 | AV53: 1 | AW53: 1 | AX53: Probably True (-6)
A54: Expert, bq | B54: UPN_Te3_062 | C54: 4 | D54: 106197617 | E54: G | F54: GT | G54: TET2 | H54: ENST00000380013 | I54: frameshift_variant | J54: gta/gtTa|p.Thr1985fs/c.5951dupT | K54: 476 | L54: 153 | M54: 476 | N54: 0.3214285714 | O54: 1 | P54: 1 | Q54: 1 | R54: 0 | S54: 1 | T54: 1 | U54: 0 | V54: 1 | W54: 6 | X54: NO | Y54: NO | Z54: NO | AA54: NA | AB54: NA | AC54: NO | AD54: NO | AE54: NO | AF54: NO | AG54: NO | AH54: NO | AI54: NA | AJ54: NA | AK54: 38.2 | AL54: NA | AM54: 124 | AN54: 24 | AO54: 124 | AP54: 0.1935483871 | AQ54: 352 | AR54: 129 | AS54: 352 | AT54: 0.3664772727 | AU54: 0.008472617023 | AV54: 1 | AW54: 1 | AX54: Probably True (-3)
A55: Expert, Illumina validated, prediction, bq | B55: UPN_Te3_070 | C55: 7 | D55: 148506402 | E55: C | F55: A | G55: EZH2 | H55: ENST00000320356 | I55: missense_variant | J55: Gtt/Ttt|p.Val704Phe/c.2110G>T | K55: 99 | L55: 78 | M55: 180 | N55: 0.4333333333 | O55: 0 | P55: 1 | Q55: 1 | R55: 0 | S55: 1 | T55: 1 | U55: 1 | V55: 1 | W55: 6 | X55: NO | Y55: NO | Z55: NO | AA55: NA | AB55: NA | AC55: NO | AD55: NO | AE55: NO | AF55: NO | AG55: NO | AH55: NO | AI55: -4.002 | AJ55: Deleterious | AK55: 36.54 | AL55: 38 | AM55: 57 | AN55: 38 | AO55: 98 | AP55: 0.387755102 | AQ55: 42 | AR55: 40 | AS55: 82 | AT55: 0.487804878 | AU55: 0.2883059683 | AV55: 1 | AW55: 1 | AX55: Probably True (-4)
A56: Expert, Illumina validated, Ion Torrent validated, bq | B56: UPN_Te3_068 | C56: 7 | D56: 148523591 | E56: G | F56: A | G56: EZH2 | H56: ENST00000320356 | I56: stop_gained | J56: Cga/Tga|p.Arg288*/c.862C>T | K56: 34 | L56: 20 | M56: 54 | N56: 0.3703703704 | O56: 1 | P56: 1 | Q56: 1 | R56: 1 | S56: 1 | T56: 1 | U56: 1 | V56: 1 | W56: 8 | X56: NO | Y56: NO | Z56: COSM1000721 | AA56: haematopoietic_and_lymphoid_tissue | AB56: 2 | AC56: NO | AD56: NO | AE56: NO | AF56: NO | AG56: NO | AH56: NO | AI56: NA | AJ56: NA | AK56: 36.71 | AL56: 35.95 | AM56: 27 | AN56: 11 | AO56: 38 | AP56: 0.2894736842 | AQ56: 7 | AR56: 9 | AS56: 16 | AT56: 0.5625 | AU56: 0.07152915616 | AV56: 1 | AW56: 1 | AX56: Probably True (-5)
A57: Expert, prediction, bq | B57: UPN_Te3_056 | C57: 7 | D57: 148526907 | E57: A | F57: G | G57: EZH2 | H57: ENST00000320356 | I57: missense_variant | J57: Tat/Cat|p.Tyr133His/c.397T>C | K57: 528 | L57: 87 | M57: 621 | N57: 0.1400966184 | O57: 1 | P57: 1 | Q57: 0 | R57: 1 | S57: 1 | T57: 1 | U57: 0 | V57: 1 | W57: 6 | X57: NO | Y57: NO | Z57: COSM144172 | AA57: haematopoietic_and_lymphoid_tissue | AB57: 1 | AC57: NO | AD57: NO | AE57: NO | AF57: NO | AG57: NO | AH57: NO | AI57: -4.51 | AJ57: Deleterious | AK57: 37.21 | AL57: 39.43 | AM57: 255 | AN57: 40 | AO57: 295 | AP57: 0.1355932203 | AQ57: 273 | AR57: 47 | AS57: 326 | AT57: 0.1441717791 | AU57: 0.7290038474 | AV57: 1 | AW57: 1 | AX57: Probably True (-6)
A58: Hotspot, Expert, dbSNP, Cosmic, prediction, | B58: UPN_Te3_016 | C58: 9 | D58: 5073770 | E58: G | F58: T | G58: JAK2 | H58: ENST00000381652 | I58: missense_variant | J58: Gtc/Ttc|p.Val617Phe/c.1849G>T | K58: 503 | L58: 166 | M58: 673 | N58: 0.2466567608 | O58: 1 | P58: 1 | Q58: 1 | R58: 1 | S58: 1 | T58: 1 | U58: 1 | V58: 1 | W58: 8 | X58: 0.0233 | Y58: NO | Z58: COSM12600 | AA58: central_nervous_system, haematopoietic_and_lymphoid_tissue, lung | AB58: 1, 37620, 3 | AC58: NO | AD58: rs77375493 | AE58: YES | AF58: 0.0006919 | AG58: NO | AH58: NO | AI58: -3.94 | AJ58: Deleterious | AK58: 39.64 | AL58: 34.41 | AM58: 273 | AN58: 93 | AO58: 369 | AP58: 0.2520325203 | AQ58: 230 | AR58: 73 | AS58: 304 | AT58: 0.2401315789 | AU58: 0.7196826359 | AV58: 2 | AW58: 2 | AX58: Hotspot (-9)
A59: Hotspot, Expert, dbSNP, Cosmic, prediction, | B59: UPN_Te3_062 | C59: 9 | D59: 5073770 | E59: G | F59: T | G59: JAK2 | H59: ENST00000381652 | I59: missense_variant | J59: Gtc/Ttc|p.Val617Phe/c.1849G>T | K59: 174 | L59: 411 | M59: 586 | N59: 0.7013651877 | O59: 1 | P59: 1 | Q59: 1 | R59: 1 | S59: 1 | T59: 1 | U59: 1 | V59: 1 | W59: 8 | X59: 0.0233 | Y59: NO | Z59: COSM12600 | AA59: central_nervous_system, haematopoietic_and_lymphoid_tissue, lung | AB59: 1, 37620, 3 | AC59: NO | AD59: rs77375493 | AE59: YES | AF59: 0.0006919 | AG59: NO | AH59: NO | AI59: -3.94 | AJ59: Deleterious | AK59: 38.8 | AL59: 33.36 | AM59: 62 | AN59: 133 | AO59: 196 | AP59: 0.6785714286 | AQ59: 112 | AR59: 278 | AS59: 390 | AT59: 0.7128205128 | AU59: 0.444513043 | AV59: 2 | AW59: 2 | AX59: Hotspot (-9)
A60: Hotspot, Expert, Illumina validated, dbSNP, Cosmic, prediction, bq | B60: UPN_Te3_051 | C60: 15 | D60: 90631934 | E60: C | F60: T | G60: IDH2 | H60: ENST00000330062 | I60: missense_variant | J60: cGg/cAg|p.Arg140Gln/c.419G>A | K60: 438 | L60: 138 | M60: 576 | N60: 0.2395833333 | O60: 1 | P60: 1 | Q60: 1 | R60: 1 | S60: 1 | T60: 1 | U60: 1 | V60: 1 | W60: 8 | X60: NO | Y60: NO | Z60: COSM41590 | AA60: haematopoietic_and_lymphoid_tissue | AB60: 489 | AC60: NO | AD60: rs121913502 | AE60: YES | AF60: 0.0001071 | AG60: NO | AH60: NO | AI60: -3.75 | AJ60: Deleterious | AK60: 38.09 | AL60: 39.13 | AM60: 216 | AN60: 70 | AO60: 286 | AP60: 0.2447552448 | AQ60: 222 | AR60: 68 | AS60: 290 | AT60: 0.2344827586 | AU60: 0.845257679 | AV60: 1 | AW60: 1 | AX60: Hotspot (-9)
A61: Hotspot, Expert, Ion Torrent 2 validated, Cosmic, prediction, | B61: UPN_Te3_078 | C61: 17 | D61: 74732959 | E61: G | F61: A | G61: SRSF2 | H61: ENST00000392485 | I61: missense_variant | J61: cCc/cTc|p.Pro95Leu/c.284C>T | K61: 126 | L61: 48 | M61: 174 | N61: 0.275862069 | O61: 1 | P61: 1 | Q61: 1 | R61: 1 | S61: 1 | T61: 1 | U61: 1 | V61: 1 | W61: 8 | X61: NO | Y61: NO | Z61: COSM146288 | AA61: haematopoietic_and_lymphoid_tissue | AB61: 93 | AC61: NO | AD61: NO | AE61: NO | AF61: NO | AG61: NO | AH61: NO | AI61: -5.208 | AJ61: Deleterious | AK61: 16.31 | AL61: 34.23 | AM61: 47 | AN61: 15 | AO61: 62 | AP61: 0.2419354839 | AQ61: 79 | AR61: 33 | AS61: 112 | AT61: 0.2946428571 | AU61: 0.484464676 | AV61: 2 | AW61: 2 | AX61: Hotspot (-9)
A62: Hotspot, Expert, Ion Torrent 2 validated, Cosmic, prediction, bq | B62: UPN_Te3_082 | C62: 17 | D62: 74732959 | E62: G | F62: A | G62: SRSF2 | H62: ENST00000392485 | I62: missense_variant | J62: cCc/cTc|p.Pro95Leu/c.284C>T | K62: 95 | L62: 34 | M62: 129 | N62: 0.2635658915 | O62: 1 | P62: 1 | Q62: 1 | R62: 1 | S62: 1 | T62: 1 | U62: 1 | V62: 1 | W62: 8 | X62: NO | Y62: NO | Z62: COSM146288 | AA62: haematopoietic_and_lymphoid_tissue | AB62: 93 | AC62: NO | AD62: NO | AE62: NO | AF62: NO | AG62: NO | AH62: NO | AI62: -5.208 | AJ62: Deleterious | AK62: 16.42 | AL62: 37.59 | AM62: 32 | AN62: 15 | AO62: 47 | AP62: 0.3191489362 | AQ62: 63 | AR62: 19 | AS62: 82 | AT62: 0.2317073171 | AU62: 0.3039920157 | AV62: 2 | AW62: 2 | AX62: Hotspot (-9)
A63: Hotspot, Expert, bq | B63: UPN_Te3_033 | C63: 20 | D63: 31022288 | E63: C | F63: A | G63: ASXL1 | H63: ENST00000375687 | I63: stop_gained | J63: taC/taA|p.Tyr591*/c.1773C>A | K63: 448 | L63: 23 | M63: 474 | N63: 0.04852320675 | O63: 0 | P63: 0 | Q63: 0 | R63: 1 | S63: 1 | T63: 1 | U63: 0 | V63: 1 | W63: 4 | X63: NO | Y63: NO | Z63: COSM1681609 | AA63: haematopoietic_and_lymphoid_tissue | AB63: 2 | AC63: NO | AD63: NO | AE63: NO | AF63: NA | AG63: NO | AH63: NO | AI63: NA | AJ63: NA | AK63: 37.71 | AL63: 37.43 | AM63: 164 | AN63: 5 | AO63: 170 | AP63: 0.02941176471 | AQ63: 284 | AR63: 18 | AS63: 304 | AT63: 0.05921052632 | AU63: 0.1834320168 | AV63: 1 | AW63: 1 | AX63: Hotspot (-6)
A64: Hotspot, Expert, Illumina validated, Ion Torrent validated, bq | B64: UPN_Te3_026 | C64: 20 | D64: 31022402 | E64: TCACCACTGCCATAGAGAGGCGGC | F64: T | G64: ASXL1 | H64: ENST00000375687 | I64: frameshift_variant | J64: agagaggcggccaccactgccatc/|p.Glu635fs/c.1900_1922delAGAGAGGCGGCCACCACTGCCAT | K64: 373 | L64: 69 | M64: 443 | N64: 0.1557562077 | O64: 1 | P64: 1 | Q64: 0 | R64: 0 | S64: 1 | T64: 1 | U64: 0 | V64: 1 | W64: 5 | X64: NO | Y64: NO | Z64: NO | AA64: NA | AB64: NA | AC64: NO | AD64: NO | AE64: NO | AF64: 0.0001403 | AG64: NO | AH64: NO | AI64: NA | AJ64: NA | AK64: 38.88 | AL64: NA | AM64: 184 | AN64: 42 | AO64: 226 | AP64: 0.185840708 | AQ64: 189 | AR64: 27 | AS64: 217 | AT64: 0.1244239631 | AU64: 0.0887110444 | AV64: 1 | AW64: 1 | AX64: Hotspot (-5)
A65: Expert, bq | B65: UPN_Te3_055 | C65: 20 | D65: 31022403 | E65: C | F65: T | G65: ASXL1 | H65: ENST00000375687 | I65: missense_variant | J65: Cac/Tac|p.His630Tyr/c.1888C>T | K65: 29 | L65: 22 | M65: 51 | N65: 0.431372549 | O65: 1 | P65: 1 | Q65: 1 | R65: 1 | S65: 1 | T65: 1 | U65: 1 | V65: 1 | W65: 8 | X65: NO | Y65: NO | Z65: NO | AA65: NA | AB65: NA | AC65: NO | AD65: NO | AE65: NO | AF65: NO | AG65: NO | AH65: NO | AI65: -0.157 | AJ65: Tolerated | AK65: 37.79 | AL65: 38.68 | AM65: 19 | AN65: 15 | AO65: 34 | AP65: 0.4411764706 | AQ65: 10 | AR65: 7 | AS65: 17 | AT65: 0.4117647059 | AU65: 1 | AV65: 1 | AW65: 1 | AX65: Probably True (-5)
A66: Expert, Illumina validated, Ion Torrent validated, bq | B66: UPN_Te3_045 | C66: 20 | D66: 31022732 | E66: CA | F66: C | G66: ASXL1 | H66: ENST00000375687 | I66: frameshift_variant | J66: aca/|p.Thr740fs/c.2218delA | K66: 45 | L66: 50 | M66: 96 | N66: 0.5208333333 | O66: 1 | P66: 1 | Q66: 1 | R66: 0 | S66: 1 | T66: 1 | U66: 1 | V66: 1 | W66: 7 | X66: NO | Y66: NO | Z66: NO | AA66: NO | AB66: O | AC66: NO | AD66: NO | AE66: NO | AF66: NO | AG66: NO | AH66: NO | AI66: NA | AJ66: NA | AK66: 39.18 | AL66: NA | AM66: 15 | AN66: 13 | AO66: 28 | AP66: 0.4642857143 | AQ66: 30 | AR66: 37 | AS66: 68 | AT66: 0.5441176471 | AU66: 0.502221721 | AV66: 1 | AW66: 1 | AX66: Probably True (-3)
A67: Expert, Illumina validated, Ion Torrent validated, bq | B67: UPN_Te3_036 | C67: 20 | D67: 31023336 | E67: CCT | F67: C | G67: ASXL1 | H67: ENST00000375687 | I67: frameshift_variant | J67: cct/|p.Pro941fs/c.2822_2823delCT | K67: 235 | L67: 41 | M67: 277 | N67: 0.1480144404 | O67: 1 | P67: 1 | Q67: 0 | R67: 0 | S67: 1 | T67: 1 | U67: 0 | V67: 1 | W67: 5 | X67: NO | Y67: NO | Z67: NO | AA67: NA | AB67: NA | AC67: NO | AD67: NO | AE67: NO | AF67: NO | AG67: NO | AH67: NO | AI67: NA | AJ67: NA | AK67: 38.16 | AL67: NA | AM67: 121 | AN67: 18 | AO67: 140 | AP67: 0.1285714286 | AQ67: 114 | AR67: 23 | AS67: 137 | AT67: 0.1678832117 | AU67: 0.40090476 | AV67: 2 | AW67: 2 | AX67: Probably True (-2)
A68: Expert, Illumina validated, bq | B68: UPN_Te3_053 | C68: 20 | D68: 31023336 | E68: CCT | F68: C | G68: ASXL1 | H68: ENST00000375687 | I68: frameshift_variant | J68: cct/|p.Pro941fs/c.2822_2823delCT | K68: 303 | L68: 65 | M68: 368 | N68: 0.1766304348 | O68: 1 | P68: 1 | Q68: 0 | R68: 0 | S68: 1 | T68: 1 | U68: 0 | V68: 1 | W68: 5 | X68: NO | Y68: NO | Z68: NO | AA68: NA | AB68: NA | AC68: NO | AD68: NO | AE68: NO | AF68: NO | AG68: NO | AH68: NO | AI68: NA | AJ68: NA | AK68: 37.99 | AL68: NA | AM68: 157 | AN68: 25 | AO68: 182 | AP68: 0.1373626374 | AQ68: 146 | AR68: 40 | AS68: 186 | AT68: 0.2150537634 | AU68: 0.0562137796 | AV68: 2 | AW68: 2 | AX68: Probably True (-2)
A69: Expert, Illumina validated, bq | B69: UPN_Te3_028 | C69: 20 | D69: 31024457 | E69: T | F69: TA | G69: ASXL1 | H69: ENST00000375687 | I69: frameshift_variant | J69: cag/Acag|p.Gln1315fs/c.3942_3943insA | K69: 662 | L69: 101 | M69: 662 | N69: 0.1525679758 | O69: 1 | P69: 1 | Q69: 0 | R69: 0 | S69: 1 | T69: 1 | U69: 0 | V69: 1 | W69: 5 | X69: NO | Y69: NO | Z69: NO | AA69: NO | AB69: O | AC69: NO | AD69: NO | AE69: NO | AF69: NO | AG69: NO | AH69: NO | AI69: NA | AJ69: NA | AK69: 37.32 | AL69: NA | AM69: 353 | AN69: 50 | AO69: 353 | AP69: 0.1416430595 | AQ69: 309 | AR69: 51 | AS69: 309 | AT69: 0.1650485437 | AU69: 0.5212234302 | AV69: 1 | AW69: 1 | AX69: Probably True (-2)
A70: Expert, Illumina validated, Ion Torrent validated, prediction, bq | B70: UPN_Te3_037 | C70: 21 | D70: 36206893 | E70: G | F70: A | G70: RUNX1 | H70: ENST00000437180 | I70: missense_variant | J70: Cgg/Tgg|p.Arg207Trp/c.619C>T | K70: 254 | L70: 38 | M70: 298 | N70: 0.1275167785 | O70: 1 | P70: 0 | Q70: 0 | R70: 1 | S70: 1 | T70: 1 | U70: 0 | V70: 1 | W70: 5 | X70: NO | Y70: NO | Z70: NO | AA70: NO | AB70: O | AC70: NO | AD70: NO | AE70: NO | AF70: NO | AG70: NO | AH70: NO | AI70: -6.351 | AJ70: Deleterious | AK70: 38.58 | AL70: 35.61 | AM70: 144 | AN70: 22 | AO70: 168 | AP70: 0.130952381 | AQ70: 110 | AR70: 16 | AS70: 130 | AT70: 0.1230769231 | AU70: 1 | AV70: 2 | AW70: 2 | AX70: Probably True (-1)
A71: Hotspot, Expert, Illumina validated, Ion Torrent validated, dbSNP, Cosmic, prediction, bq | B71: UPN_Te3_031 | C71: 21 | D71: 36231782 | E71: C | F71: T | G71: RUNX1 | H71: ENST00000437180 | I71: missense_variant | J71: cGa/cAa|p.Arg201Gln/c.602G>A | K71: 188 | L71: 72 | M71: 268 | N71: 0.2686567164 | O71: 1 | P71: 1 | Q71: 1 | R71: 1 | S71: 1 | T71: 1 | U71: 1 | V71: 1 | W71: 8 | X71: NO | Y71: NO | Z71: COSM24805 | AA71: breast, haematopoietic_and_lymphoid_tissue, oesophagus | AB71: 1, 13, 1 | AC71: NO | AD71: rs74315450 | AE71: YES | AF71: NO | AG71: NO | AH71: NO | AI71: -3.686 | AJ71: Deleterious | AK71: 36.92 | AL71: 38.53 | AM71: 90 | AN71: 36 | AO71: 131 | AP71: 0.2748091603 | AQ71: 98 | AR71: 36 | AS71: 137 | AT71: 0.2627737226 | AU71: 0.7828737709 | AV71: 3 | AW71: 3 | AX71: Hotspot (-9)
A72: Hotspot, Expert, dbSNP, Cosmic, prediction, bq | B72: UPN_Te3_042 | C72: 21 | D72: 36231782 | E72: C | F72: T | G72: RUNX1 | H72: ENST00000437180 | I72: missense_variant | J72: cGa/cAa|p.Arg201Gln/c.602G>A | K72: 113 | L72: 57 | M72: 177 | N72: 0.3220338983 | O72: 1 | P72: 1 | Q72: 1 | R72: 1 | S72: 1 | T72: 1 | U72: 1 | V72: 1 | W72: 8 | X72: NO | Y72: NO | Z72: COSM24805 | AA72: breast, haematopoietic_and_lymphoid_tissue, oesophagus | AB72: 1, 13, 1 | AC72: NO | AD72: rs74315450 | AE72: YES | AF72: NO | AG72: NO | AH72: NO | AI72: -3.686 | AJ72: Deleterious | AK72: 36.61 | AL72: 37.86 | AM72: 62 | AN72: 21 | AO72: 90 | AP72: 0.2333333333 | AQ72: 51 | AR72: 36 | AS72: 87 | AT72: 0.4137931034 | AU72: 0.03445332139 | AV72: 3 | AW72: 3 | AX72: Hotspot (-9)
A73: Hotspot, Expert, Illumina validated, | B73: UPN_Te3_040 | C73: 21 | D73: 36252866 | E73: G | F73: A | G73: RUNX1 | H73: ENST00000437180 | I73: stop_gained | J73: Cga/Tga|p.Arg166*/c.496C>T | K73: 312 | L73: 118 | M73: 471 | N73: 0.2505307856 | O73: 1 | P73: 1 | Q73: 1 | R73: 1 | S73: 1 | T73: 1 | U73: 1 | V73: 1 | W73: 8 | X73: NO | Y73: NO | Z73: COSM24769 | AA73: haematopoietic_and_lymphoid_tissue | AB73: 10 | AC73: NO | AD73: NO | AE73: NO | AF73: NO | AG73: NO | AH73: NO | AI73: NA | AJ73: NA | AK73: 36.43 | AL73: 32.27 | AM73: 150 | AN73: 46 | AO73: 235 | AP73: 0.1957446809 | AQ73: 162 | AR73: 72 | AS73: 236 | AT73: 0.3050847458 | AU73: 0.1037930411 | AV73: 1 | AW73: 3 | AX73: Hotspot (-8)
A74: Hotspot, Expert, prediction, bq | B74: UPN_Te3_061 | C74: 21 | D74: 36252866 | E74: G | F74: C | G74: RUNX1 | H74: ENST00000437180 | I74: missense_variant | J74: Cga/Gga|p.Arg166Gly/c.496C>G | K74: 692 | L74: 38 | M74: 754 | N74: 0.05039787798 | O74: 0 | P74: 0 | Q74: 0 | R74: 1 | S74: 1 | T74: 1 | U74: 0 | V74: 1 | W74: 4 | X74: NO | Y74: NO | Z74: COSM24742 | AA74: haematopoietic_and_lymphoid_tissue | AB74: 5 | AC74: NO | AD74: NO | AE74: NO | AF74: NO | AG74: NO | AH74: NO | AI74: -6.288 | AJ74: Deleterious | AK74: 37.33 | AL74: 35.5 | AM74: 447 | AN74: 33 | AO74: 499 | AP74: 0.06613226453 | AQ74: 245 | AR74: 5 | AS74: 255 | AT74: 0.01960784314 | AU74: 0.00441833031 | AV74: 2 | AW74: 3 | AX74: Hotspot (-4)
A75: Expert, Illumina validated, prediction, | B75: UPN_Te3_070 | C75: 21 | D75: 36259178 | E75: G | F75: T | G75: RUNX1 | H75: ENST00000437180 | I75: missense_variant | J75: Cac/Aac|p.His105Asn/c.313C>A | K75: 147 | L75: 107 | M75: 258 | N75: 0.4147286822 | O75: 1 | P75: 1 | Q75: 1 | R75: 1 | S75: 1 | T75: 1 | U75: 1 | V75: 1 | W75: 8 | X75: NO | Y75: NO | Z75: NO | AA75: NA | AB75: NA | AC75: NO | AD75: NO | AE75: NO | AF75: NO | AG75: NO | AH75: NO | AI75: -5.94 | AJ75: Deleterious | AK75: 39.21 | AL75: 34.27 | AM75: 80 | AN75: 66 | AO75: 146 | AP75: 0.4520547945 | AQ75: 67 | AR75: 41 | AS75: 112 | AT75: 0.3660714286 | AU75: 0.3038573975 | AV75: 1 | AW75: 1 | AX75: Probably True (-6)
A76: Expert, bq | B76: UPN_Te3_078 | C76: 21 | D76: 36259218 | E76: G | F76: GCGCA | G76: RUNX1 | H76: ENST00000437180 | I76: frameshift_variant | J76: cgc/cgTGCGc|p.Thr92fs/c.269_272dupTGCG | K76: 223 | L76: 62 | M76: 224 | N76: 0.2767857143 | O76: 1 | P76: 1 | Q76: 1 | R76: 0 | S76: 1 | T76: 1 | U76: 1 | V76: 1 | W76: 7 | X76: NO | Y76: NO | Z76: NO | AA76: NA | AB76: NA | AC76: NO | AD76: NO | AE76: NO | AF76: NO | AG76: NO | AH76: NO | AI76: NA | AJ76: NA | AK76: 38.48 | AL76: NA | AM76: 81 | AN76: 22 | AO76: 82 | AP76: 0.2682926829 | AQ76: 142 | AR76: 40 | AS76: 142 | AT76: 0.2816901408 | AU76: 1 | AV76: 1 | AW76: 1 | AX76: Probably True (-3)
A77: Expert, bq | B77: UPN_Te3_044 | C77: X | D77: 15821878 | E77: GA | F77: G | G77: ZRSR2 | H77: ENST00000307771 | I77: frameshift_variant | J77: aag/|p.Lys92fs/c.275delA | K77: 43 | L77: 37 | M77: 80 | N77: 0.4625 | O77: 1 | P77: 1 | Q77: 1 | R77: 0 | S77: 1 | T77: 1 | U77: 1 | V77: 1 | W77: 7 | X77: NO | Y77: NO | Z77: NO | AA77: NO | AB77: O | AC77: NO | AD77: NO | AE77: NO | AF77: NO | AG77: NO | AH77: NO | AI77: NA | AJ77: NA | AK77: 29.86 | AL77: NA | AM77: 11 | AN77: 18 | AO77: 29 | AP77: 0.6206896552 | AQ77: 32 | AR77: 19 | AS77: 51 | AT77: 0.3725490196 | AU77: 0.03847694822 | AV77: 1 | AW77: 1 | AX77: Probably True (-3)
A78: Expert, bq | B78: UPN_Te3_016 | C78: X | D78: 15838388 | E78: C | F78: T | G78: ZRSR2 | H78: ENST00000307771 | I78: stop_gained | J78: Cag/Tag|p.Gln296*/c.886C>T | K78: 70 | L78: 727 | M78: 803 | N78: 0.9053549191 | O78: 1 | P78: 1 | Q78: 1 | R78: 1 | S78: 1 | T78: 1 | U78: 1 | V78: 1 | W78: 8 | X78: NO | Y78: NO | Z78: NO | AA78: NO | AB78: O | AC78: NO | AD78: NO | AE78: NO | AF78: NO | AG78: NO | AH78: NO | AI78: NA | AJ78: NA | AK78: 35.33 | AL78: 39.17 | AM78: 42 | AN78: 382 | AO78: 424 | AP78: 0.9009433962 | AQ78: 28 | AR78: 345 | AS78: 379 | AT78: 0.9102902375 | AU78: 0.259904615 | AV78: 1 | AW78: 1 | AX78: Probably True (-5)
A79: Expert, Illumina validated, Ion Torrent validated, prediction, bq | B79: UPN_Te3_026 | C79: X | D79: 15840894 | E79: C | F79: G | G79: ZRSR2 | H79: ENST00000307771 | I79: missense_variant | J79: tgC/tgG|p.Cys326Trp/c.978C>G | K79: 593 | L79: 541 | M79: 1139 | N79: 0.4749780509 | O79: 1 | P79: 1 | Q79: 1 | R79: 1 | S79: 1 | T79: 1 | U79: 1 | V79: 1 | W79: 8 | X79: NO | Y79: NO | Z79: NO | AA79: NO | AB79: O | AC79: NO | AD79: NO | AE79: NO | AF79: NO | AG79: NO | AH79: NO | AI79: -10.461 | AJ79: Deleterious | AK79: 38.32 | AL79: 38.15 | AM79: 266 | AN79: 297 | AO79: 566 | AP79: 0.5247349823 | AQ79: 327 | AR79: 244 | AS79: 573 | AT79: 0.4258289703 | AU79: 0.0008628671343 | AV79: 1 | AW79: 1 | AX79: Probably True (-6)
O80: =SUM(O2:O79) -> 69 | P80: =SUM(P2:P79) -> 71 | Q80: =SUM(Q2:Q79) -> 58 | R80: =SUM(R2:R79) -> 59 | S80: =SUM(S2:S79) -> 78 | T80: =SUM(T2:T79) -> 76 | U80: =SUM(U2:U79) -> 57 | V80: =SUM(V2:V79) -> 78

Sheet TP Polymorphisms
A1: Polymorphism because... | B1: Sample | C1: Chr | D1: Pos | E1: Ref | F1: Alt | G1: Gene | H1: ENST | I1: Type | J1: Mutation | K1: Nr_Ref | L1: Nr_Alt | M1: DP | N1: VAF | O1: GATK | P1: Platypus | Q1: VarScan | R1: LoFreq | S1: FreeBayes | T1: SNVer | U1: SAMtools | V1: VarDict | W1: Called | X1: ESP6500 | Y1: G1000 | Z1: Cosmic | AA1: Cosmic_location | AB1: Cosmic_occurence | AC1: dbSNP_SNPs | AD1: dbSNP_SNVs | AE1: PM_flag | AF1: ExAC | AG1: ClinVar_clinical | AH1: ClinVar_noimpact | AI1: provean_score | AJ1: prediction | AK1: BQ_Ref | AL1: BQ_Alt | AM1: V38 | AN1: V39 | AO1: V40 | AP1: V41 | AQ1: V42 | AR1: V43 | AS1: V44 | AT1: V45 | AU1: strandbias | AV1: nr_samples | AW1: nr_samples_similar | AX1: Category
A2: ESP6500, dbSNP, ExAC, ClinVar, prediction, many samples | B2: UPN_Te3_083 | C2: 4 | D2: 106155185 | E2: C | F2: G | G2: TET2 | H2: ENST00000380013 | I2: missense_variant | J2: cCt/cGt|p.Pro29Arg/c.86C>G | K2: 149 | L2: 48 | M2: 197 | N2: 0.2436548223 | O2: 1 | P2: 1 | Q2: 1 | R2: 1 | S2: 1 | T2: 1 | U2: 1 | V2: 1 | W2: 8 | X2: 1.5465 | Y2: NO | Z2: COSM5020248, COSM5020249 | AA2: soft_tissue | AB2: 4 | AC2: rs12498609 | AD2: rs12498609 | AE2: NO | AF2: 0.06 | AG2: NO | AH2: YES | AI2: -1.923 | AJ2: Tolerated | AK2: 36.29 | AL2: 38.46 | AM2: 33 | AN2: 27 | AO2: 60 | AP2: 0.45 | AQ2: 116 | AR2: 21 | AS2: 137 | AT2: 0.1532846715 | AU2: 2.11825396e-05 | AV2: 4 | AW2: 4 | AX2: Polymorphism
A3: ESP6500, dbSNP, ExAC, ClinVar, prediction, many samples | B3: UPN_Te3_074 | C3: 4 | D3: 106155185 | E3: C | F3: G | G3: TET2 | H3: ENST00000380013 | I3: missense_variant | J3: cCt/cGt|p.Pro29Arg/c.86C>G | K3: 70 | L3: 50 | M3: 120 | N3: 0.4166666667 | O3: 1 | P3: 1 | Q3: 1 | R3: 1 | S3: 1 | T3: 1 | U3: 1 | V3: 1 | W3: 8 | X3: 1.5465 | Y3: NO | Z3: COSM5020248, COSM5020249 | AA3: soft_tissue | AB3: 4 | AC3: rs12498609 | AD3: rs12498609 | AE3: NO | AF3: 0.06 | AG3: NO | AH3: YES | AI3: -1.923 | AJ3: Tolerated | AK3: 33.36 | AL3: 38.64 | AM3: 24 | AN3: 24 | AO3: 48 | AP3: 0.5 | AQ3: 46 | AR3: 26 | AS3: 72 | AT3: 0.3611111111 | AU3: 0.1369007042 | AV3: 4 | AW3: 4 | AX3: Polymorphism
A4: ESP6500, dbSNP, ExAC, ClinVar, prediction, many samples | B4: UPN_Te3_018 | C4: 4 | D4: 106155185 | E4: C | F4: G | G4: TET2 | H4: ENST00000380013 | I4: missense_variant | J4: cCt/cGt|p.Pro29Arg/c.86C>G | K4: 302 | L4: 255 | M4: 557 | N4: 0.4578096948 | O4: 1 | P4: 1 | Q4: 1 | R4: 1 | S4: 1 | T4: 1 | U4: 1 | V4: 1 | W4: 8 | X4: 1.5465 | Y4: NO | Z4: COSM5020248, COSM5020249 | AA4: soft_tissue | AB4: 4 | AC4: rs12498609 | AD4: rs12498609 | AE4: NO | AF4: 0.06 | AG4: NO | AH4: YES | AI4: -1.923 | AJ4: Tolerated | AK4: 36.01 | AL4: 38.44 | AM4: 140 | AN4: 118 | AO4: 258 | AP4: 0.4573643411 | AQ4: 162 | AR4: 137 | AS4: 299 | AT4: 0.4581939799 | AU4: 1 | AV4: 4 | AW4: 4 | AX4: Polymorphism
A5: VAF, many samples, ESP6500, ExAC, ClinVar, prediction | B5: UPN_Te3_030 | C5: 4 | D5: 106155199 | E5: C | F5: T | G5: TET2 | H5: ENST00000380013 | I5: missense_variant | J5: Ctc/Ttc|p.Leu34Phe/c.100C>T | K5: 203 | L5: 237 | M5: 442 | N5: 0.536199095 | O5: 1 | P5: 1 | Q5: 1 | R5: 1 | S5: 1 | T5: 1 | U5: 1 | V5: 1 | W5: 8 | X5: 1.8953 | Y5: NO | Z5: NO | AA5: NO | AB5: O | AC5: NO | AD5: rs111948941 | AE5: NO | AF5: 0.015 | AG5: NO | AH5: YES | AI5: -1.31 | AJ5: Tolerated | AK5: 39.42 | AL5: 38.03 | AM5: 79 | AN5: 101 | AO5: 181 | AP5: 0.5580110497 | AQ5: 124 | AR5: 136 | AS5: 261 | AT5: 0.5210727969 | AU5: 0.4384275339 | AV5: 7 | AW5: 7 | AX5: Polymorphism
A6: VAF, many samples, ESP6500, ExAC, ClinVar, prediction | B6: UPN_Te3_035 | C6: 4 | D6: 106155199 | E6: C | F6: T | G6: TET2 | H6: ENST00000380013 | I6: missense_variant | J6: Ctc/Ttc|p.Leu34Phe/c.100C>T | K6: 180 | L6: 80 | M6: 261 | N6: 0.30651341 | O6: 1 | P6: 1 | Q6: 1 | R6: 1 | S6: 1 | T6: 1 | U6: 1 | V6: 1 | W6: 8 | X6: 1.8953 | Y6: NO | Z6: NO | AA6: NO | AB6: O | AC6: NO | AD6: rs111948941 | AE6: NO | AF6: 0.015 | AG6: NO | AH6: YES | AI6: -1.31 | AJ6: Tolerated | AK6: 39.06 | AL6: 37.4 | AM6: 65 | AN6: 24 | AO6: 90 | AP6: 0.2666666667 | AQ6: 115 | AR6: 56 | AS6: 171 | AT6: 0.3274853801 | AU6: 0.3960999906 | AV6: 7 | AW6: 7 | AX6: Polymorphism
A7: VAF, many samples, ESP6500, ExAC, ClinVar, prediction | B7: UPN_Te3_040 | C7: 4 | D7: 106155199 | E7: C | F7: T | G7: TET2 | H7: ENST00000380013 | I7: missense_variant | J7: Ctc/Ttc|p.Leu34Phe/c.100C>T | K7: 303 | L7: 344 | M7: 657 | N7: 0.5235920852 | O7: 1 | P7: 1 | Q7: 1 | R7: 1 | S7: 1 | T7: 1 | U7: 1 | V7: 1 | W7: 8 | X7: 1.8953 | Y7: NO | Z7: NO | AA7: NO | AB7: O | AC7: NO | AD7: rs111948941 | AE7: NO | AF7: 0.015 | AG7: NO | AH7: YES | AI7: -1.31 | AJ7: Tolerated | AK7: 39.7 | AL7: 38.12 | AM7: 135 | AN7: 142 | AO7: 285 | AP7: 0.498245614 | AQ7: 168 | AR7: 202 | AS7: 372 | AT7: 0.5430107527 | AU7: 0.4262628962 | AV7: 7 | AW7: 7 | AX7: Polymorphism
A8: VAF, many samples, ESP6500, ExAC, ClinVar, prediction | B8: UPN_Te3_043 | C8: 4 | D8: 106155199 | E8: C | F8: T | G8: TET2 | H8: ENST00000380013 | I8: missense_variant | J8: Ctc/Ttc|p.Leu34Phe/c.100C>T | K8: 421 | L8: 110 | M8: 537 | N8: 0.2048417132 | O8: 1 | P8: 1 | Q8: 1 | R8: 1 | S8: 1 | T8: 1 | U8: 1 | V8: 1 | W8: 8 | X8: 1.8953 | Y8: NO | Z8: NO | AA8: NO | AB8: O | AC8: NO | AD8: rs111948941 | AE8: NO | AF8: 0.015 | AG8: NO | AH8: YES | AI8: -1.31 | AJ8: Tolerated | AK8: 39.44 | AL8: 37.83 | AM8: 183 | AN8: 43 | AO8: 232 | AP8: 0.1853448276 | AQ8: 238 | AR8: 67 | AS8: 305 | AT8: 0.2196721311 | AU8: 0.4490426024 | AV8: 7 | AW8: 7 | AX8: Polymorphism
A9: VAF, many samples, ESP6500, ExAC, ClinVar, prediction | B9: UPN_Te3_060 | C9: 4 | D9: 106155199 | E9: C | F9: T | G9: TET2 | H9: ENST00000380013 | I9: missense_variant | J9: Ctc/Ttc|p.Leu34Phe/c.100C>T | K9: 229 | L9: 230 | M9: 467 | N9: 0.4925053533 | O9: 1 | P9: 1 | Q9: 1 | R9: 1 | S9: 1 | T9: 1 | U9: 1 | V9: 1 | W9: 8 | X9: 1.8953 | Y9: NO | Z9: NO | AA9: NO | AB9: O | AC9: NO | AD9: rs111948941 | AE9: NO | AF9: 0.015 | AG9: NO | AH9: YES | AI9: -1.31 | AJ9: Tolerated | AK9: 38.21 | AL9: 36.35 | AM9: 72 | AN9: 66 | AO9: 144 | AP9: 0.4583333333 | AQ9: 157 | AR9: 164 | AS9: 323 | AT9: 0.5077399381 | AU9: 0.5424646359 | AV9: 7 | AW9: 7 | AX9: Polymorphism
A10: VAF, many samples, ESP6500, ExAC, ClinVar, prediction | B10: UPN_Te3_071 | C10: 4 | D10: 106155199 | E10: C | F10: T | G10: TET2 | H10: ENST00000380013 | I10: missense_variant | J10: Ctc/Ttc|p.Leu34Phe/c.100C>T | K10: 52 | L10: 63 | M10: 115 | N10: 0.547826087 | O10: 1 | P10: 1 | Q10: 1 | R10: 1 | S10: 1 | T10: 1 | U10: 1 | V10: 1 | W10: 8 | X10: 1.8953 | Y10: NO | Z10: NO | AA10: NO | AB10: O | AC10: NO | AD10: rs111948941 | AE10: NO | AF10: 0.015 | AG10: NO | AH10: YES | AI10: -1.31 | AJ10: Tolerated | AK10: 37.85 | AL10: 36.32 | AM10: 21 | AN10: 35 | AO10: 56 | AP10: 0.625 | AQ10: 31 | AR10: 28 | AS10: 59 | AT10: 0.4745762712 | AU10: 0.1342961542 | AV10: 7 | AW10: 7 | AX10: Polymorphism
A11: VAF, many samples, ESP6500, dbSNP, ClinVar, prediction | B11: UPN_Te3_030 | C11: 4 | D11: 106155751 | E11: G | F11: A | G11: TET2 | H11: ENST00000380013 | I11: missense_variant | J11: Gtg/Atg|p.Val218Met/c.652G>A | K11: 179 | L11: 191 | M11: 370 | N11: 0.5162162162 | O11: 1 | P11: 1 | Q11: 1 | R11: 1 | S11: 1 | T11: 1 | U11: 1 | V11: 1 | W11: 8 | X11: 2.093 | Y11: NO | Z11: COSM4416139, COSM4416140 | AA11: haematopoietic_and_lymphoid_tissue | AB11: 2 | AC11: rs6843141 | AD11: rs6843141 | AE11: NO | AF11: NA | AG11: NO | AH11: YES | AI11: 0.498 | AJ11: Tolerated | AK11: 37.96 | AL11: 39.32 | AM11: 104 | AN11: 107 | AO11: 211 | AP11: 0.5071090047 | AQ11: 75 | AR11: 84 | AS11: 159 | AT11: 0.5283018868 | AU11: 0.7526842927 | AV11: 7 | AW11: 7 | AX11: Polymorphism
A12: VAF, many samples, ESP6500, dbSNP, ClinVar, prediction | B12: UPN_Te3_040 | C12: 4 | D12: 106155751 | E12: G | F12: A | G12: TET2 | H12: ENST00000380013 | I12: missense_variant | J12: Gtg/Atg|p.Val218Met/c.652G>A | K12: 386 | L12: 335 | M12: 726 | N12: 0.4614325069 | O12: 1 | P12: 1 | Q12: 1 | R12: 1 | S12: 1 | T12: 1 | U12: 1 | V12: 1 | W12: 8 | X12: 2.093 | Y12: NO | Z12: COSM4416139, COSM4416140 | AA12: haematopoietic_and_lymphoid_tissue | AB12: 2 | AC12: rs6843141 | AD12: rs6843141 | AE12: NO | AF12: NA | AG12: NO | AH12: YES | AI12: 0.498 | AJ12: Tolerated | AK12: 38.88 | AL12: 39.7 | AM12: 208 | AN12: 180 | AO12: 389 | AP12: 0.4627249357 | AQ12: 178 | AR12: 155 | AS12: 337 | AT12: 0.4599406528 | AU12: 1 | AV12: 7 | AW12: 7 | AX12: Polymorphism
A13: VAF, many samples, ESP6500, dbSNP, ClinVar, prediction | B13: UPN_Te3_060 | C13: 4 | D13: 106155751 | E13: G | F13: A | G13: TET2 | H13: ENST00000380013 | I13: missense_variant | J13: Gtg/Atg|p.Val218Met/c.652G>A | K13: 352 | L13: 435 | M13: 787 | N13: 0.5527318933 | O13: 1 | P13: 1 | Q13: 1 | R13: 1 | S13: 1 | T13: 1 | U13: 1 | V13: 1 | W13: 8 | X13: 2.093 | Y13: NO | Z13: COSM4416139, COSM4416140 | AA13: haematopoietic_and_lymphoid_tissue | AB13: 2 | AC13: rs6843141 | AD13: rs6843141 | AE13: NO | AF13: NA | AG13: NO | AH13: YES | AI13: 0.498 | AJ13: Tolerated | AK13: 38.1 | AL13: 38.28 | AM13: 118 | AN13: 171 | AO13: 289 | AP13: 0.5916955017 | AQ13: 234 | AR13: 264 | AS13: 498 | AT13: 0.5301204819 | AU13: 0.1019837923 | AV13: 7 | AW13: 7 | AX13: Polymorphism
A14: VAF, many samples, ESP6500, dbSNP, ClinVar, prediction | B14: UPN_Te3_071 | C14: 4 | D14: 106155751 | E14: G | F14: A | G14: TET2 | H14: ENST00000380013 | I14: missense_variant | J14: Gtg/Atg|p.Val218Met/c.652G>A | K14: 185 | L14: 255 | M14: 440 | N14: 0.5795454545 | O14: 1 | P14: 1 | Q14: 1 | R14: 1 | S14: 1 | T14: 1 | U14: 1 | V14: 1 | W14: 8 | X14: 2.093 | Y14: NO | Z14: COSM4416139, COSM4416140 | AA14: haematopoietic_and_lymphoid_tissue | AB14: 2 | AC14: rs6843141 | AD14: rs6843141 | AE14: NO | AF14: NA | AG14: NO | AH14: YES | AI14: 0.498 | AJ14: Tolerated | AK14: 37.02 | AL14: 37.2 | AM14: 114 | AN14: 172 | AO14: 286 | AP14: 0.6013986014 | AQ14: 71 | AR14: 83 | AS14: 154 | AT14: 0.538961039 | AU14: 0.2248864449 | AV14: 7 | AW14: 7 | AX14: Polymorphism
A15: Many samples, ESP6500, dbSNP, ExAC ClinVar, prediction | B15: UPN_Te3_085 | C15: 4 | D15: 106156163 | E15: G | F15: A | G15: TET2 | H15: ENST00000380013 | I15: missense_variant | J15: gGt/gAt|p.Gly355Asp/c.1064G>A | K15: 578 | L15: 196 | M15: 774 | N15: 0.2532299742 | O15: 1 | P15: 1 | Q15: 1 | R15: 1 | S15: 1 | T15: 1 | U15: 1 | V15: 1 | W15: 8 | X15: 4.3721 | Y15: NO | Z15: NO | AA15: NO | AB15: O | AC15: rs61744960 | AD15: rs61744960 | AE15: NO | AF15: 0.027 | AG15: NO | AH15: YES | AI15: -1.044 | AJ15: Tolerated | AK15: 37.12 | AL15: 37.28 | AM15: 214 | AN15: 140 | AO15: 354 | AP15: 0.395480226 | AQ15: 364 | AR15: 56 | AS15: 420 | AT15: 0.1333333333 | AU15: 6.19969189e-17 | AV15: 7 | AW15: 7 | AX15: Polymorphism
A16: VAF, many samples, ESP6500, dbSNP, ExAC, ClinVar, prediction | B16: UPN_Te3_032 | C16: 4 | D16: 106156163 | E16: G | F16: A | G16: TET2 | H16: ENST00000380013 | I16: missense_variant | J16: gGt/gAt|p.Gly355Asp/c.1064G>A | K16: 443 | L16: 487 | M16: 930 | N16: 0.523655914 | O16: 1 | P16: 1 | Q16: 1 | R16: 1 | S16: 1 | T16: 1 | U16: 1 | V16: 1 | W16: 8 | X16: 4.3721 | Y16: NO | Z16: NO | AA16: NO | AB16: O | AC16: rs61744960 | AD16: rs61744960 | AE16: NO | AF16: 0.027 | AG16: NO | AH16: YES | AI16: -1.044 | AJ16: Tolerated | AK16: 37.4 | AL16: 38.91 | AM16: 225 | AN16: 243 | AO16: 468 | AP16: 0.5192307692 | AQ16: 218 | AR16: 244 | AS16: 462 | AT16: 0.5281385281 | AU16: 0.7931740544 | AV16: 7 | AW16: 7 | AX16: Polymorphism
A17: VAF, many samples, ESP6500, dbSNP, ExAC, ClinVar, prediction | B17: UPN_Te3_034 | C17: 4 | D17: 106156163 | E17: G | F17: A | G17: TET2 | H17: ENST00000380013 | I17: missense_variant | J17: gGt/gAt|p.Gly355Asp/c.1064G>A | K17: 300 | L17: 258 | M17: 558 | N17: 0.4623655914 | O17: 1 | P17: 1 | Q17: 1 | R17: 1 | S17: 1 | T17: 1 | U17: 1 | V17: 1 | W17: 8 | X17: 4.3721 | Y17: NO | Z17: NO | AA17: NO | AB17: O | AC17: rs61744960 | AD17: rs61744960 | AE17: NO | AF17: 0.027 | AG17: NO | AH17: YES | AI17: -1.044 | AJ17: Tolerated | AK17: 36.44 | AL17: 38.54 | AM17: 185 | AN17: 144 | AO17: 329 | AP17: 0.4376899696 | AQ17: 115 | AR17: 114 | AS17: 229 | AT17: 0.4978165939 | AU17: 0.1681606914 | AV17: 7 | AW17: 7 | AX17: Polymorphism
A18: VAF, many samples, ESP6500, dbSNP, ExAC, ClinVar, prediction | B18: UPN_Te3_061 | C18: 4 | D18: 106156163 | E18: G | F18: A | G18: TET2 | H18: ENST00000380013 | I18: missense_variant | J18: gGt/gAt|p.Gly355Asp/c.1064G>A | K18: 341 | L18: 315 | M18: 656 | N18: 0.4801829268 | O18: 1 | P18: 1 | Q18: 1 | R18: 1 | S18: 1 | T18: 1 | U18: 1 | V18: 1 | W18: 8 | X18: 4.3721 | Y18: NO | Z18: NO | AA18: NO | AB18: O | AC18: rs61744960 | AD18: rs61744960 | AE18: NO | AF18: 0.027 | AG18: NO | AH18: YES | AI18: -1.044 | AJ18: Tolerated | AK18: 36.68 | AL18: 38.17 | AM18: 137 | AN18: 136 | AO18: 273 | AP18: 0.4981684982 | AQ18: 204 | AR18: 179 | AS18: 383 | AT18: 0.4673629243 | AU18: 0.4756496057 | AV18: 7 | AW18: 7 | AX18: Polymorphism
A19: VAF, many samples, ESP6500, dbSNP, ExAC, ClinVar, prediction | B19: UPN_Te3_068 | C19: 4 | D19: 106156163 | E19: G | F19: A | G19: TET2 | H19: ENST00000380013 | I19: missense_variant | J19: gGt/gAt|p.Gly355Asp/c.1064G>A | K19: 5 | L19: 1770 | M19: 1775 | N19: 0.9971830986 | O19: 1 | P19: 1 | Q19: 1 | R19: 1 | S19: 1 | T19: 1 | U19: 1 | V19: 1 | W19: 8 | X19: 4.3721 | Y19: NO | Z19: NO | AA19: NO | AB19: O | AC19: rs61744960 | AD19: rs61744960 | AE19: NO | AF19: 0.027 | AG19: NO | AH19: YES | AI19: -1.044 | AJ19: Tolerated | AK19: 37.2 | AL19: 38.74 | AM19: 2 | AN19: 641 | AO19: 643 | AP19: 0.9968895801 | AQ19: 3 | AR19: 1129 | AS19: 1132 | AT19: 0.9973498233 | AU19: 1 | AV19: 7 | AW19: 7 | AX19: Polymorphism
A20: VAF, many samples, ESP6500, dbSNP, ExAC, ClinVar, prediction | B20: UPN_Te3_013 | C20: 4 | D20: 106156187 | E20: C | F20: T | G20: TET2 | H20: ENST00000380013 | I20: missense_variant | J20: cCt/cTt|p.Pro363Leu/c.1088C>T | K20: 247 | L20: 197 | M20: 444 | N20: 0.4436936937 | O20: 0 | P20: 1 | Q20: 1 | R20: 1 | S20: 1 | T20: 1 | U20: 1 | V20: 1 | W20: 7 | X20: 5.8953 | Y20: NO | Z20: COSM5020142, COSM5020141 | AA20: soft_tissue | AB20: 4 | AC20: rs17253672 | AD20: rs17253672 | AE20: NO | AF20: 0.048 | AG20: NO | AH20: YES | AI20: -1.15 | AJ20: Tolerated | AK20: 33.7 | AL20: 34.04 | AM20: 120 | AN20: 70 | AO20: 190 | AP20: 0.3684210526 | AQ20: 127 | AR20: 127 | AS20: 254 | AT20: 0.5 | AU20: 0.0068349979 | AV20: 10 | AW20: 10 | AX20: Polymorphism
A21: VAF, many samples, ESP6500, dbSNP, ExAC, ClinVar, prediction | B21: UPN_Te3_074 | C21: 4 | D21: 106156187 | E21: C | F21: T | G21: TET2 | H21: ENST00000380013 | I21: missense_variant | J21: cCt/cTt|p.Pro363Leu/c.1088C>T | K21: 155 | L21: 104 | M21: 259 | N21: 0.4015444015 | O21: 1 | P21: 1 | Q21: 1 | R21: 1 | S21: 1 | T21: 1 | U21: 1 | V21: 1 | W21: 8 | X21: 5.8953 | Y21: NO | Z21: COSM5020142, COSM5020141 | AA21: soft_tissue | AB21: 4 | AC21: rs17253672 | AD21: rs17253672 | AE21: NO | AF21: 0.048 | AG21: NO | AH21: YES | AI21: -1.15 | AJ21: Tolerated | AK21: 37.26 | AL21: 37.49 | AM21: 55 | AN21: 52 | AO21: 107 | AP21: 0.4859813084 | AQ21: 100 | AR21: 52 | AS21: 152 | AT21: 0.3421052632 | AU21: 0.0212460367 | AV21: 10 | AW21: 10 | AX21: Polymorphism
A22: VAF, many samples, ESP6500, dbSNP, ExAC, ClinVar, prediction | B22: UPN_Te3_016 | C22: 4 | D22: 106156187 | E22: C | F22: T | G22: TET2 | H22: ENST00000380013 | I22: missense_variant | J22: cCt/cTt|p.Pro363Leu/c.1088C>T | K22: 189 | L22: 532 | M22: 721 | N22: 0.7378640777 | O22: 1 | P22: 1 | Q22: 1 | R22: 1 | S22: 1 | T22: 1 | U22: 1 | V22: 1 | W22: 8 | X22: 5.8953 | Y22: NO | Z22: COSM5020142, COSM5020141 | AA22: soft_tissue | AB22: 4 | AC22: rs17253672 | AD22: rs17253672 | AE22: NO | AF22: 0.048 | AG22: NO | AH22: YES | AI22: -1.15 | AJ22: Tolerated | AK22: 32.12 | AL22: 36.8 | AM22: 95 | AN22: 242 | AO22: 337 | AP22: 0.7181008902 | AQ22: 94 | AR22: 290 | AS22: 384 | AT22: 0.7552083333 | AU22: 0.2706730906 | AV22: 10 | AW22: 10 | AX22: Polymorphism
A23: VAF, many samples, ESP6500, dbSNP, ExAC, ClinVar, prediction | B23: UPN_Te3_028 | C23: 4 | D23: 106156187 | E23: C | F23: T | G23: TET2 | H23: ENST00000380013 | I23: missense_variant | J23: cCt/cTt|p.Pro363Leu/c.1088C>T | K23: 206 | L23: 397 | M23: 604 | N23: 0.6572847682 | O23: 1 | P23: 1 | Q23: 1 | R23: 1 | S23: 1 | T23: 1 | U23: 1 | V23: 1 | W23: 8 | X23: 5.8953 | Y23: NO | Z23: COSM5020142, COSM5020141 | AA23: soft_tissue | AB23: 4 | AC23: rs17253672 | AD23: rs17253672 | AE23: NO | AF23: 0.048 | AG23: NO | AH23: YES | AI23: -1.15 | AJ23: Tolerated | AK23: 34.75 | AL23: 37.77 | AM23: 117 | AN23: 179 | AO23: 297 | AP23: 0.6026936027 | AQ23: 89 | AR23: 218 | AS23: 307 | AT23: 0.7100977199 | AU23: 0.0076991863 | AV23: 10 | AW23: 10 | AX23: Polymorphism
A24: VAF, many samples, ESP6500, dbSNP, ExAC, ClinVar, prediction | B24: UPN_Te3_010 | C24: 4 | D24: 106156187 | E24: C | F24: T | G24: TET2 | H24: ENST00000380013 | I24: missense_variant | J24: cCt/cTt|p.Pro363Leu/c.1088C>T | K24: 291 | L24: 245 | M24: 536 | N24: 0.4570895522 | O24: 1 | P24: 1 | Q24: 1 | R24: 1 | S24: 1 | T24: 1 | U24: 1 | V24: 1 | W24: 8 | X24: 5.8953 | Y24: NO | Z24: COSM5020142, COSM5020141 | AA24: soft_tissue | AB24: 4 | AC24: rs17253672 | AD24: rs17253672 | AE24: NO | AF24: 0.048 | AG24: NO | AH24: YES | AI24: -1.15 | AJ24: Tolerated | AK24: 36.18 | AL24: 37.16 | AM24: 158 | AN24: 128 | AO24: 286 | AP24: 0.4475524476 | AQ24: 133 | AR24: 117 | AS24: 250 | AT24: 0.468 | AU24: 0.6643029206 | AV24: 10 | AW24: 10 | AX24: Polymorphism
A25: VAF, many samples, ESP6500, dbSNP, ExAC, ClinVar, prediction | B25: UPN_Te3_011 | C25: 4 | D25: 106156187 | E25: C | F25: T | G25: TET2 | H25: ENST00000380013 | I25: missense_variant | J25: cCt/cTt|p.Pro363Leu/c.1088C>T | K25: 285 | L25: 214 | M25: 499 | N25: 0.4288577154 | O25: 1 | P25: 1 | Q25: 1 | R25: 1 | S25: 1 | T25: 1 | U25: 1 | V25: 1 | W25: 8 | X25: 5.8953 | Y25: NO | Z25: COSM5020142, COSM5020141 | AA25: soft_tissue | AB25: 4 | AC25: rs17253672 | AD25: rs17253672 | AE25: NO | AF25: 0.048 | AG25: NO | AH25: YES | AI25: -1.15 | AJ25: Tolerated | AK25: 35.27 | AL25: 37.49 | AM25: 144 | AN25: 94 | AO25: 238 | AP25: 0.3949579832 | AQ25: 141 | AR25: 120 | AS25: 261 | AT25: 0.4597701149 | AU25: 0.1485622697 | AV25: 10 | AW25: 10 | AX25: Polymorphism
A26: VAF, many samples, ESP6500, dbSNP, ExAC, ClinVar, prediction | B26: UPN_Te3_048 | C26: 4 | D26: 106156187 | E26: C | F26: T | G26: TET2 | H26: ENST00000380013 | I26: missense_variant | J26: cCt/cTt|p.Pro363Leu/c.1088C>T | K26: 438 | L26: 258 | M26: 698 | N26: 0.3696275072 | O26: 1 | P26: 1 | Q26: 1 | R26: 1 | S26: 1 | T26: 1 | U26: 1 | V26: 1 | W26: 8 | X26: 5.8953 | Y26: NO | Z26: COSM5020142, COSM5020141 | AA26: soft_tissue | AB26: 4 | AC26: rs17253672 | AD26: rs17253672 | AE26: NO | AF26: 0.048 | AG26: NO | AH26: YES | AI26: -1.15 | AJ26: Tolerated | AK26: 35.5 | AL26: 36.55 | AM26: 207 | AN26: 105 | AO26: 312 | AP26: 0.3365384615 | AQ26: 231 | AR26: 153 | AS26: 386 | AT26: 0.396373057 | AU26: 0.0979328736 | AV26: 10 | AW26: 10 | AX26: Polymorphism
A27: VAF, many samples, ESP6500, dbSNP, ExAC, ClinVar, prediction | B27: UPN_Te3_054 | C27: 4 | D27: 106156187 | E27: C | F27: T | G27: TET2 | H27: ENST00000380013 | I27: missense_variant | J27: cCt/cTt|p.Pro363Leu/c.1088C>T | K27: 461 | L27: 260 | M27: 722 | N27: 0.3601108033 | O27: 0 | P27: 1 | Q27: 1 | R27: 1 | S27: 1 | T27: 1 | U27: 1 | V27: 1 | W27: 7 | X27: 5.8953 | Y27: NO | Z27: COSM5020142, COSM5020141 | AA27: soft_tissue | AB27: 4 | AC27: rs17253672 | AD27: rs17253672 | AE27: NO | AF27: 0.048 | AG27: NO | AH27: YES | AI27: -1.15 | AJ27: Tolerated | AK27: 35.72 | AL27: 36.95 | AM27: 236 | AN27: 120 | AO27: 357 | AP27: 0.3361344538 | AQ27: 225 | AR27: 140 | AS27: 365 | AT27: 0.3835616438 | AU27: 0.2146391702 | AV27: 10 | AW27: 10 | AX27: Polymorphism
A28: VAF, many samples, ESP6500, ExAC, ClinVar, prediction | B28: UPN_Te3_024 | C28: 4 | D28: 106157698 | E28: T | F28: C | G28: TET2 | H28: ENST00000380013 | I28: missense_variant | J28: Tat/Cat|p.Tyr867His/c.2599T>C | K28: 371 | L28: 342 | M28: 779 | N28: 0.4390243902 | O28: 1 | P28: 1 | Q28: 1 | R28: 1 | S28: 1 | T28: 1 | U28: 1 | V28: 1 | W28: 8 | X28: 1.2442 | Y28: NO | Z28: COSM327337 | AA28: haematopoietic_and_lymphoid_tissue | AB28: 1 | AC28: NO | AD28: rs144386291 | AE28: NO | AF28: 0.006894 | AG28: NO | AH28: YES | AI28: -1.224 | AJ28: Tolerated | AK28: 36.01 | AL28: 38.22 | AM28: 211 | AN28: 187 | AO28: 401 | AP28: 0.4663341646 | AQ28: 160 | AR28: 155 | AS28: 378 | AT28: 0.4100529101 | AU28: 0.5973385431 | AV28: 4 | AW28: 4 | AX28: Polymorphism
A29: VAF, many samples, ESP6500, ExAC, ClinVar, prediction | B29: UPN_Te3_015 | C29: 4 | D29: 106157698 | E29: T | F29: C | G29: TET2 | H29: ENST00000380013 | I29: missense_variant | J29: Tat/Cat|p.Tyr867His/c.2599T>C | K29: 408 | L29: 311 | M29: 781 | N29: 0.3982074264 | O29: 1 | P29: 1 | Q29: 1 | R29: 1 | S29: 1 | T29: 1 | U29: 1 | V29: 1 | W29: 8 | X29: 1.2442 | Y29: NO | Z29: COSM327337 | AA29: haematopoietic_and_lymphoid_tissue | AB29: 1 | AC29: NO | AD29: rs144386291 | AE29: NO | AF29: 0.006894 | AG29: NO | AH29: YES | AI29: -1.224 | AJ29: Tolerated | AK29: 36.43 | AL29: 37.02 | AM29: 208 | AN29: 160 | AO29: 376 | AP29: 0.4255319149 | AQ29: 200 | AR29: 151 | AS29: 405 | AT29: 0.3728395062 | AU29: 0.9400077527 | AV29: 4 | AW29: 4 | AX29: Polymorphism
A30: VAF, many samples, ESP6500, ExAC, ClinVar, prediction | B30: UPN_Te3_026 | C30: 4 | D30: 106157698 | E30: T | F30: C | G30: TET2 | H30: ENST00000380013 | I30: missense_variant | J30: Tat/Cat|p.Tyr867His/c.2599T>C | K30: 399 | L30: 248 | M30: 686 | N30: 0.361516035 | O30: 1 | P30: 1 | Q30: 1 | R30: 1 | S30: 1 | T30: 1 | U30: 1 | V30: 1 | W30: 8 | X30: 1.2442 | Y30: NO | Z30: COSM327337 | AA30: haematopoietic_and_lymphoid_tissue | AB30: 1 | AC30: NO | AD30: rs144386291 | AE30: NO | AF30: 0.006894 | AG30: NO | AH30: YES | AI30: -1.224 | AJ30: Tolerated | AK30: 37.3 | AL30: 37.98 | AM30: 210 | AN30: 151 | AO30: 365 | AP30: 0.4136986301 | AQ30: 189 | AR30: 97 | AS30: 321 | AT30: 0.3021806854 | AU30: 0.0420887421 | AV30: 4 | AW30: 4 | AX30: Polymorphism
A31: VAF, many samples, ESP6500, ExAC, ClinVar, prediction | B31: UPN_Te3_037 | C31: 4 | D31: 106157698 | E31: T | F31: C | G31: TET2 | H31: ENST00000380013 | I31: missense_variant | J31: Tat/Cat|p.Tyr867His/c.2599T>C | K31: 480 | L31: 311 | M31: 845 | N31: 0.3680473373 | O31: 1 | P31: 1 | Q31: 1 | R31: 1 | S31: 1 | T31: 1 | U31: 1 | V31: 1 | W31: 8 | X31: 1.2442 | Y31: NO | Z31: COSM327337 | AA31: haematopoietic_and_lymphoid_tissue | AB31: 1 | AC31: NO | AD31: rs144386291 | AE31: NO | AF31: 0.006894 | AG31: NO | AH31: YES | AI31: -1.224 | AJ31: Tolerated | AK31: 37.63 | AL31: 38.35 | AM31: 252 | AN31: 161 | AO31: 413 | AP31: 0.3898305085 | AQ31: 228 | AR31: 150 | AS31: 432 | AT31: 0.3472222222 | AU31: 0.8841665392 | AV31: 4 | AW31: 4 | AX31: Polymorphism
A32: ESP6500, ClinVar, prediction, 2 samples; likely SNP | B32: UPN_Te3_039 | C32: 4 | D32: 106158350 | E32: A | F32: C | G32: TET2 | H32: ENST00000380013 | I32: missense_variant | J32: cAa/cCa|p.Gln1084Pro/c.3251A>C | K32: 1146 | L32: 255 | M32: 1412 | N32: 0.1805949008 | O32: 1 | P32: 1 | Q32: 0 | R32: 1 | S32: 1 | T32: 1 | U32: 1 | V32: 1 | W32: 7 | X32: 0.3953 | Y32: NO | Z32: NO | AA32: NA | AB32: NA | AC32: NO | AD32: rs75056899 | AE32: NO | AF32: NO | AG32: NO | AH32: YES | AI32: -1.959 | AJ32: Tolerated | AK32: 33.16 | AL32: 37.13 | AM32: 523 | AN32: 109 | AO32: 636 | AP32: 0.1713836478 | AQ32: 623 | AR32: 146 | AS32: 776 | AT32: 0.1881443299 | AU32: 0.4049131282 | AV32: 2 | AW32: 2 | AX32: Probably True (-4)
A33: ESP6500, ClinVar, prediction, 2 samples | B33: UPN_Te3_052 | C33: 4 | D33: 106158350 | E33: A | F33: C | G33: TET2 | H33: ENST00000380013 | I33: missense_variant | J33: cAa/cCa|p.Gln1084Pro/c.3251A>C | K33: 918 | L33: 353 | M33: 1288 | N33: 0.274068323 | O33: 1 | P33: 1 | Q33: 1 | R33: 1 | S33: 1 | T33: 1 | U33: 1 | V33: 1 | W33: 8 | X33: 0.3953 | Y33: NO | Z33: NO | AA33: NA | AB33: NA | AC33: NO | AD33: rs75056899 | AE33: NO | AF33: NO | AG33: NO | AH33: YES | AI33: -1.959 | AJ33: Tolerated | AK33: 32.54 | AL33: 36.86 | AM33: 434 | AN33: 139 | AO33: 580 | AP33: 0.2396551724 | AQ33: 484 | AR33: 214 | AS33: 708 | AT33: 0.302259887 | AU33: 0.0118402252 | AV33: 2 | AW33: 2 | AX33: Polymorphism
A34: ESP6500, dbSNP, ExAC, prediction, VAF | B34: UPN_Te3_013 | C34: 4 | D34: 106196770 | E34: G | F34: A | G34: TET2 | H34: ENST00000380013 | I34: missense_variant | J34: atG/atA|p.Met1701Ile/c.5103G>A | K34: 264 | L34: 279 | M34: 544 | N34: 0.5128676471 | O34: 1 | P34: 1 | Q34: 1 | R34: 1 | S34: 1 | T34: 1 | U34: 1 | V34: 1 | W34: 8 | X34: 0.7857 | Y34: NO | Z34: NO | AA34: NO | AB34: O | AC34: rs62623390 | AD34: rs62623390 | AE34: NO | AF34: 0.003439 | AG34: NO | AH34: NO | AI34: -0.73 | AJ34: Tolerated | AK34: 38.28 | AL34: 37.2 | AM34: 138 | AN34: 140 | AO34: 278 | AP34: 0.5035971223 | AQ34: 126 | AR34: 139 | AS34: 266 | AT34: 0.522556391 | AU34: 0.6677703939 | AV34: 1 | AW34: 1 | AX34: Polymorphism
A35: ESP6500, ExAC, prediction, VAF, many samples | B35: UPN_Te3_002 | C35: 4 | D35: 106196819 | E35: G | F35: T | G35: TET2 | H35: ENST00000380013 | I35: missense_variant | J35: Gta/Tta|p.Val1718Leu/c.5152G>T | K35: 423 | L35: 419 | M35: 845 | N35: 0.4958579882 | O35: 1 | P35: 1 | Q35: 1 | R35: 1 | S35: 1 | T35: 1 | U35: 1 | V35: 1 | W35: 8 | X35: 0.66 | Y35: NO | Z35: COSM41742 | AA35: haematopoietic_and_lymphoid_tissue | AB35: 11 | AC35: NO | AD35: rs142312318 | AE35: NO | AF35: 0.002662 | AG35: NO | AH35: NO | AI35: -0.339 | AJ35: Tolerated | AK35: 38.56 | AL35: 34.36 | AM35: 219 | AN35: 213 | AO35: 434 | AP35: 0.4907834101 | AQ35: 204 | AR35: 206 | AS35: 411 | AT35: 0.501216545 | AU35: 0.8361461886 | AV35: 3 | AW35: 3 | AX35: Polymorphism
A36: ESP6500, ExAC, prediction, VAF, many samples | B36: UPN_Te3_086 | C36: 4 | D36: 106196819 | E36: G | F36: T | G36: TET2 | H36: ENST00000380013 | I36: missense_variant | J36: Gta/Tta|p.Val1718Leu/c.5152G>T | K36: 47 | L36: 72 | M36: 119 | N36: 0.6050420168 | O36: 1 | P36: 1 | Q36: 1 | R36: 1 | S36: 1 | T36: 1 | U36: 1 | V36: 1 | W36: 8 | X36: 0.66 | Y36: NO | Z36: COSM41742 | AA36: haematopoietic_and_lymphoid_tissue | AB36: 11 | AC36: NO | AD36: rs142312318 | AE36: NO | AF36: 0.002662 | AG36: NO | AH36: NO | AI36: -0.339 | AJ36: Tolerated | AK36: 37.74 | AL36: 35.46 | AM36: 35 | AN36: 59 | AO36: 94 | AP36: 0.6276595745 | AQ36: 12 | AR36: 13 | AS36: 25 | AT36: 0.52 | AU36: 0.3627920203 | AV36: 3 | AW36: 3 | AX36: Polymorphism
A37: ESP6500, ExAC, prediction, VAF, many samples | B37: UPN_Te3_049 | C37: 4 | D37: 106196819 | E37: G | F37: T | G37: TET2 | H37: ENST00000380013 | I37: missense_variant | J37: Gta/Tta|p.Val1718Leu/c.5152G>T | K37: 627 | L37: 436 | M37: 1068 | N37: 0.4082397004 | O37: 1 | P37: 1 | Q37: 1 | R37: 1 | S37: 1 | T37: 1 | U37: 1 | V37: 1 | W37: 8 | X37: 0.66 | Y37: NO | Z37: COSM41742 | AA37: haematopoietic_and_lymphoid_tissue | AB37: 11 | AC37: NO | AD37: rs142312318 | AE37: NO | AF37: 0.002662 | AG37: NO | AH37: NO | AI37: -0.339 | AJ37: Tolerated | AK37: 38.03 | AL37: 32.56 | AM37: 283 | AN37: 190 | AO37: 474 | AP37: 0.4008438819 | AQ37: 344 | AR37: 246 | AS37: 594 | AT37: 0.4141414141 | AU37: 0.6605610092 | AV37: 3 | AW37: 3 | AX37: Polymorphism
A38: Many samples, VAF, ESP6500, dbSNP, ExAC, ClinVar, prediction | B38: UPN_Te3_013 | C38: 4 | D38: 106196829 | E38: T | F38: G | G38: TET2 | H38: ENST00000380013 | I38: missense_variant | J38: tTg/tGg|p.Leu1721Trp/c.5162T>G | K38: 295 | L38: 248 | M38: 543 | N38: 0.4567219153 | O38: 1 | P38: 1 | Q38: 1 | R38: 1 | S38: 1 | T38: 1 | U38: 1 | V38: 1 | W38: 8 | X38: 13.4821 | Y38: NO | Z38: COSM5020013 | AA38: soft_tissue | AB38: 4 | AC38: rs34402524 | AD38: rs34402524 | AE38: NO | AF38: 0.118 | AG38: NO | AH38: YES | AI38: -0.294 | AJ38: Tolerated | AK38: 37.98 | AL38: 38.31 | AM38: 147 | AN38: 129 | AO38: 276 | AP38: 0.4673913043 | AQ38: 148 | AR38: 119 | AS38: 267 | AT38: 0.4456928839 | AU38: 0.6666570987 | AV38: 24 | AW38: 24 | AX38: Polymorphism
A39: Many samples, VAF, ESP6500, dbSNP, ExAC, ClinVar, prediction | B39: UPN_Te3_014 | C39: 4 | D39: 106196829 | E39: T | F39: G | G39: TET2 | H39: ENST00000380013 | I39: missense_variant | J39: tTg/tGg|p.Leu1721Trp/c.5162T>G | K39: 468 | L39: 348 | M39: 817 | N39: 0.4259485924 | O39: 1 | P39: 1 | Q39: 1 | R39: 1 | S39: 1 | T39: 1 | U39: 1 | V39: 1 | W39: 8 | X39: 13.4821 | Y39: NO | Z39: COSM5020013 | AA39: soft_tissue | AB39: 4 | AC39: rs34402524 | AD39: rs34402524 | AE39: NO | AF39: 0.118 | AG39: NO | AH39: YES | AI39: -0.294 | AJ39: Tolerated | AK39: 35.6 | AL39: 37.82 | AM39: 232 | AN39: 160 | AO39: 392 | AP39: 0.4081632653 | AQ39: 236 | AR39: 188 | AS39: 425 | AT39: 0.4423529412 | AU39: 0.3218432885 | AV39: 24 | AW39: 24 | AX39: Polymorphism
A40: Many samples, VAF, ESP6500, dbSNP, ExAC, ClinVar, prediction | B40: UPN_Te3_074 | C40: 4 | D40: 106196829 | E40: T | F40: G | G40: TET2 | H40: ENST00000380013 | I40: missense_variant | J40: tTg/tGg|p.Leu1721Trp/c.5162T>G | K40: 82 | L40: 92 | M40: 175 | N40: 0.5257142857 | O40: 1 | P40: 1 | Q40: 1 | R40: 1 | S40: 1 | T40: 1 | U40: 1 | V40: 1 | W40: 8 | X40: 13.4821 | Y40: NO | Z40: COSM5020013 | AA40: soft_tissue | AB40: 4 | AC40: rs34402524 | AD40: rs34402524 | AE40: NO | AF40: 0.118 | AG40: NO | AH40: YES | AI40: -0.294 | AJ40: Tolerated | AK40: 36.73 | AL40: 38.61 | AM40: 14 | AN40: 12 | AO40: 26 | AP40: 0.4615384615 | AQ40: 68 | AR40: 80 | AS40: 149 | AT40: 0.5369127517 | AU40: 0.5255102021 | AV40: 24 | AW40: 24 | AX40: Polymorphism
A41: Many samples, VAF, ESP6500, dbSNP, ExAC, ClinVar, prediction | B41: UPN_Te3_075 | C41: 4 | D41: 106196829 | E41: T | F41: G | G41: TET2 | H41: ENST00000380013 | I41: missense_variant | J41: tTg/tGg|p.Leu1721Trp/c.5162T>G | K41: 127 | L41: 114 | M41: 241 | N41: 0.4730290456 | O41: 1 | P41: 1 | Q41: 1 | R41: 1 | S41: 1 | T41: 1 | U41: 1 | V41: 1 | W41: 8 | X41: 13.4821 | Y41: NO | Z41: COSM5020013 | AA41: soft_tissue | AB41: 4 | AC41: rs34402524 | AD41: rs34402524 | AE41: NO | AF41: 0.118 | AG41: NO | AH41: YES | AI41: -0.294 | AJ41: Tolerated | AK41: 36.94 | AL41: 37.73 | AM41: 0 | AN41: 3 | AO41: 3 | AP41: 1 | AQ41: 127 | AR41: 111 | AS41: 238 | AT41: 0.4663865546 | AU41: 0.1043698675 | AV41: 24 | AW41: 24 | AX41: Polymorphism
A42: Many samples, VAF, ESP6500, dbSNP, ExAC, ClinVar, prediction | B42: UPN_Te3_016 | C42: 4 | D42: 106196829 | E42: T | F42: G | G42: TET2 | H42: ENST00000380013 | I42: missense_variant | J42: tTg/tGg|p.Leu1721Trp/c.5162T>G | K42: 76 | L42: 442 | M42: 519 | N42: 0.8516377649 | O42: 1 | P42: 1 | Q42: 1 | R42: 1 | S42: 1 | T42: 1 | U42: 1 | V42: 1 | W42: 8 | X42: 13.4821 | Y42: NO | Z42: COSM5020013 | AA42: soft_tissue | AB42: 4 | AC42: rs34402524 | AD42: rs34402524 | AE42: NO | AF42: 0.118 | AG42: NO | AH42: YES | AI42: -0.294 | AJ42: Tolerated | AK42: 37.04 | AL42: 37.77 | AM42: 34 | AN42: 228 | AO42: 263 | AP42: 0.8669201521 | AQ42: 42 | AR42: 214 | AS42: 256 | AT42: 0.8359375 | AU42: 0.320530438 | AV42: 24 | AW42: 24 | AX42: Polymorphism
A43: Many samples, VAF, ESP6500, dbSNP, ExAC, ClinVar, prediction | B43: UPN_Te3_078 | C43: 4 | D43: 106196829 | E43: T | F43: G | G43: TET2 | H43: ENST00000380013 | I43: missense_variant | J43: tTg/tGg|p.Leu1721Trp/c.5162T>G | K43: 150 | L43: 117 | M43: 267 | N43: 0.4382022472 | O43: 1 | P43: 1 | Q43: 1 | R43: 1 | S43: 1 | T43: 1 | U43: 1 | V43: 1 | W43: 8 | X43: 13.4821 | Y43: NO | Z43: COSM5020013 | AA43: soft_tissue | AB43: 4 | AC43: rs34402524 | AD43: rs34402524 | AE43: NO | AF43: 0.118 | AG43: NO | AH43: YES | AI43: -0.294 | AJ43: Tolerated | AK43: 35.9 | AL43: 37.39 | AM43: 106 | AN43: 84 | AO43: 190 | AP43: 0.4421052632 | AQ43: 44 | AR43: 33 | AS43: 77 | AT43: 0.4285714286 | AU43: 0.8920976202 | AV43: 24 | AW43: 24 | AX43: Polymorphism
A44: Many samples, VAF, ESP6500, dbSNP, ExAC, ClinVar, prediction | B44: UPN_Te3_028 | C44: 4 | D44: 106196829 | E44: T | F44: G | G44: TET2 | H44: ENST00000380013 | I44: missense_variant | J44: tTg/tGg|p.Leu1721Trp/c.5162T>G | K44: 176 | L44: 556 | M44: 733 | N44: 0.758526603 | O44: 1 | P44: 1 | Q44: 1 | R44: 1 | S44: 1 | T44: 1 | U44: 1 | V44: 1 | W44: 8 | X44: 13.4821 | Y44: NO | Z44: COSM5020013 | AA44: soft_tissue | AB44: 4 | AC44: rs34402524 | AD44: rs34402524 | AE44: NO | AF44: 0.118 | AG44: NO | AH44: YES | AI44: -0.294 | AJ44: Tolerated | AK44: 36.28 | AL44: 38.45 | AM44: 88 | AN44: 270 | AO44: 359 | AP44: 0.7520891365 | AQ44: 88 | AR44: 286 | AS44: 374 | AT44: 0.7647058824 | AU44: 0.7952950075 | AV44: 24 | AW44: 24 | AX44: Polymorphism
A45: Many samples, VAF, ESP6500, dbSNP, ExAC, ClinVar, prediction | B45: UPN_Te3_029 | C45: 4 | D45: 106196829 | E45: T | F45: G | G45: TET2 | H45: ENST00000380013 | I45: missense_variant | J45: tTg/tGg|p.Leu1721Trp/c.5162T>G | K45: 426 | L45: 360 | M45: 789 | N45: 0.4562737643 | O45: 1 | P45: 1 | Q45: 1 | R45: 1 | S45: 1 | T45: 1 | U45: 1 | V45: 1 | W45: 8 | X45: 13.4821 | Y45: NO | Z45: COSM5020013 | AA45: soft_tissue | AB45: 4 | AC45: rs34402524 | AD45: rs34402524 | AE45: NO | AF45: 0.118 | AG45: NO | AH45: YES | AI45: -0.294 | AJ45: Tolerated | AK45: 36.06 | AL45: 37.98 | AM45: 232 | AN45: 189 | AO45: 424 | AP45: 0.445754717 | AQ45: 194 | AR45: 171 | AS45: 365 | AT45: 0.4684931507 | AU45: 0.6155174584 | AV45: 24 | AW45: 24 | AX45: Polymorphism
A46: Many samples, VAF, ESP6500, dbSNP, ExAC, ClinVar, prediction | B46: UPN_Te3_022 | C46: 4 | D46: 106196829 | E46: T | F46: G | G46: TET2 | H46: ENST00000380013 | I46: missense_variant | J46: tTg/tGg|p.Leu1721Trp/c.5162T>G | K46: 495 | L46: 359 | M46: 858 | N46: 0.4184149184 | O46: 1 | P46: 1 | Q46: 1 | R46: 1 | S46: 1 | T46: 1 | U46: 1 | V46: 1 | W46: 8 | X46: 13.4821 | Y46: NO | Z46: COSM5020013 | AA46: soft_tissue | AB46: 4 | AC46: rs34402524 | AD46: rs34402524 | AE46: NO | AF46: 0.118 | AG46: NO | AH46: YES | AI46: -0.294 | AJ46: Tolerated | AK46: 35.77 | AL46: 36.09 | AM46: 256 | AN46: 207 | AO46: 467 | AP46: 0.443254818 | AQ46: 239 | AR46: 152 | AS46: 391 | AT46: 0.3887468031 | AU46: 0.0949702756 | AV46: 24 | AW46: 24 | AX46: Polymorphism
A47: Many samples, VAF, ESP6500, dbSNP, ExAC, ClinVar, prediction | B47: UPN_Te3_030 | C47: 4 | D47: 106196829 | E47: T | F47: G | G47: TET2 | H47: ENST00000380013 | I47: missense_variant | J47: tTg/tGg|p.Leu1721Trp/c.5162T>G | K47: 97 | L47: 146 | M47: 243 | N47: 0.6008230453 | O47: 1 | P47: 1 | Q47: 1 | R47: 1 | S47: 1 | T47: 1 | U47: 1 | V47: 1 | W47: 8 | X47: 13.4821 | Y47: NO | Z47: COSM5020013 | AA47: soft_tissue | AB47: 4 | AC47: rs34402524 | AD47: rs34402524 | AE47: NO | AF47: 0.118 | AG47: NO | AH47: YES | AI47: -0.294 | AJ47: Tolerated | AK47: 32.78 | AL47: 36.62 | AM47: 48 | AN47: 78 | AO47: 126 | AP47: 0.619047619 | AQ47: 49 | AR47: 68 | AS47: 117 | AT47: 0.5811965812 | AU47: 0.6006658529 | AV47: 24 | AW47: 24 | AX47: Polymorphism
A48: Many samples, VAF, ESP6500, dbSNP, ExAC, ClinVar, prediction | B48: UPN_Te3_031 | C48: 4 | D48: 106196829 | E48: T | F48: G | G48: TET2 | H48: ENST00000380013 | I48: missense_variant | J48: tTg/tGg|p.Leu1721Trp/c.5162T>G | K48: 2 | L48: 821 | M48: 823 | N48: 0.9975698663 | O48: 1 | P48: 1 | Q48: 1 | R48: 1 | S48: 1 | T48: 1 | U48: 1 | V48: 1 | W48: 8 | X48: 13.4821 | Y48: NO | Z48: COSM5020013 | AA48: soft_tissue | AB48: 4 | AC48: rs34402524 | AD48: rs34402524 | AE48: NO | AF48: 0.118 | AG48: NO | AH48: YES | AI48: -0.294 | AJ48: Tolerated | AK48: 31.5 | AL48: 38.61 | AM48: 1 | AN48: 452 | AO48: 453 | AP48: 0.9977924945 | AQ48: 1 | AR48: 369 | AS48: 370 | AT48: 0.9972972973 | AU48: 1 | AV48: 24 | AW48: 24 | AX48: Polymorphism
A49: Many samples, VAF, ESP6500, dbSNP, ExAC, ClinVar, prediction | B49: UPN_Te3_087 | C49: 4 | D49: 106196829 | E49: T | F49: G | G49: TET2 | H49: ENST00000380013 | I49: missense_variant | J49: tTg/tGg|p.Leu1721Trp/c.5162T>G | K49: 137 | L49: 47 | M49: 185 | N49: 0.2540540541 | O49: 1 | P49: 1 | Q49: 1 | R49: 0 | S49: 1 | T49: 1 | U49: 1 | V49: 1 | W49: 7 | X49: 13.4821 | Y49: NO | Z49: COSM5020013 | AA49: soft_tissue | AB49: 4 | AC49: rs34402524 | AD49: rs34402524 | AE49: NO | AF49: 0.118 | AG49: NO | AH49: YES | AI49: -0.294 | AJ49: Tolerated | AK49: 36.95 | AL49: 37.87 | AM49: 43 | AN49: 41 | AO49: 85 | AP49: 0.4823529412 | AQ49: 94 | AR49: 6 | AS49: 100 | AT49: 0.06 | AU49: 1.342976029e-11 | AV49: 24 | AW49: 24 | AX49: Polymorphism
A50: Many samples, VAF, ESP6500, dbSNP, ExAC, ClinVar, prediction | B50: UPN_Te3_043 | C50: 4 | D50: 106196829 | E50: T | F50: G | G50: TET2 | H50: ENST00000380013 | I50: missense_variant | J50: tTg/tGg|p.Leu1721Trp/c.5162T>G | K50: 799 | L50: 398 | M50: 1201 | N50: 0.3313905079 | O50: 1 | P50: 1 | Q50: 1 | R50: 1 | S50: 1 | T50: 1 | U50: 1 | V50: 1 | W50: 8 | X50: 13.4821 | Y50: NO | Z50: COSM5020013 | AA50: soft_tissue | AB50: 4 | AC50: rs34402524 | AD50: rs34402524 | AE50: NO | AF50: 0.118 | AG50: NO | AH50: YES | AI50: -0.294 | AJ50: Tolerated | AK50: 35.92 | AL50: 37.96 | AM50: 381 | AN50: 192 | AO50: 576 | AP50: 0.3333333333 | AQ50: 418 | AR50: 206 | AS50: 625 | AT50: 0.3296 | AU50: 0.9022626917 | AV50: 24 | AW50: 24 | AX50: Polymorphism
A51: Many samples, VAF, ESP6500, dbSNP, ExAC, ClinVar, prediction | B51: UPN_Te3_010 | C51: 4 | D51: 106196829 | E51: T | F51: G | G51: TET2 | H51: ENST00000380013 | I51: missense_variant | J51: tTg/tGg|p.Leu1721Trp/c.5162T>G | K51: 350 | L51: 290 | M51: 642 | N51: 0.4517133956 | O51: 1 | P51: 1 | Q51: 1 | R51: 1 | S51: 1 | T51: 1 | U51: 1 | V51: 1 | W51: 8 | X51: 13.4821 | Y51: NO | Z51: COSM5020013 | AA51: soft_tissue | AB51: 4 | AC51: rs34402524 | AD51: rs34402524 | AE51: NO | AF51: 0.118 | AG51: NO | AH51: YES | AI51: -0.294 | AJ51: Tolerated | AK51: 38.05 | AL51: 38.21 | AM51: 188 | AN51: 137 | AO51: 325 | AP51: 0.4215384615 | AQ51: 162 | AR51: 153 | AS51: 317 | AT51: 0.4826498423 | AU51: 0.1123876659 | AV51: 24 | AW51: 24 | AX51: Polymorphism
A52: Many samples, VAF, ESP6500, dbSNP, ExAC, ClinVar, prediction | B52: UPN_Te3_011 | C52: 4 | D52: 106196829 | E52: T | F52: G | G52: TET2 | H52: ENST00000380013 | I52: missense_variant | J52: tTg/tGg|p.Leu1721Trp/c.5162T>G | K52: 167 | L52: 254 | M52: 421 | N52: 0.6033254157 | O52: 1 | P52: 1 | Q52: 1 | R52: 1 | S52: 1 | T52: 1 | U52: 1 | V52: 1 | W52: 8 | X52: 13.4821 | Y52: NO | Z52: COSM5020013 | AA52: soft_tissue | AB52: 4 | AC52: rs34402524 | AD52: rs34402524 | AE52: NO | AF52: 0.118 | AG52: NO | AH52: YES | AI52: -0.294 | AJ52: Tolerated | AK52: 38.45 | AL52: 38.77 | AM52: 90 | AN52: 131 | AO52: 221 | AP52: 0.592760181 | AQ52: 77 | AR52: 123 | AS52: 200 | AT52: 0.615 | AU52: 0.6901252036 | AV52: 24 | AW52: 24 | AX52: Polymorphism
A53: Many samples, VAF, ESP6500, dbSNP, ExAC, ClinVar, prediction | B53: UPN_Te3_048 | C53: 4 | D53: 106196829 | E53: T | F53: G | G53: TET2 | H53: ENST00000380013 | I53: missense_variant | J53: tTg/tGg|p.Leu1721Trp/c.5162T>G | K53: 559 | L53: 395 | M53: 956 | N53: 0.4131799163 | O53: 1 | P53: 1 | Q53: 1 | R53: 1 | S53: 1 | T53: 1 | U53: 1 | V53: 1 | W53: 8 | X53: 13.4821 | Y53: NO | Z53: COSM5020013 | AA53: soft_tissue | AB53: 4 | AC53: rs34402524 | AD53: rs34402524 | AE53: NO | AF53: 0.118 | AG53: NO | AH53: YES | AI53: -0.294 | AJ53: Tolerated | AK53: 34.55 | AL53: 37.56 | AM53: 281 | AN53: 172 | AO53: 454 | AP53: 0.3788546256 | AQ53: 278 | AR53: 223 | AS53: 502 | AT53: 0.4442231076 | AU53: 0.0415966216 | AV53: 24 | AW53: 24 | AX53: Polymorphism
A54: Many samples, VAF, ESP6500, dbSNP, ExAC, ClinVar, prediction | B54: UPN_Te3_052 | C54: 4 | D54: 106196829 | E54: T | F54: G | G54: TET2 | H54: ENST00000380013 | I54: missense_variant | J54: tTg/tGg|p.Leu1721Trp/c.5162T>G | K54: 271 | L54: 264 | M54: 537 | N54: 0.4916201117 | O54: 1 | P54: 1 | Q54: 1 | R54: 1 | S54: 1 | T54: 1 | U54: 1 | V54: 1 | W54: 8 | X54: 13.4821 | Y54: NO | Z54: COSM5020013 | AA54: soft_tissue | AB54: 4 | AC54: rs34402524 | AD54: rs34402524 | AE54: NO | AF54: 0.118 | AG54: NO | AH54: YES | AI54: -0.294 | AJ54: Tolerated | AK54: 35.54 | AL54: 38.06 | AM54: 130 | AN54: 115 | AO54: 247 | AP54: 0.4655870445 | AQ54: 141 | AR54: 149 | AS54: 290 | AT54: 0.5137931034 | AU54: 0.3398617146 | AV54: 24 | AW54: 24 | AX54: Polymorphism
A55: Many samples, VAF, ESP6500, dbSNP, ExAC, ClinVar, prediction | B55: UPN_Te3_054 | C55: 4 | D55: 106196829 | E55: T | F55: G | G55: TET2 | H55: ENST00000380013 | I55: missense_variant | J55: tTg/tGg|p.Leu1721Trp/c.5162T>G | K55: 602 | L55: 253 | M55: 860 | N55: 0.2941860465 | O55: 1 | P55: 1 | Q55: 1 | R55: 1 | S55: 1 | T55: 1 | U55: 1 | V55: 1 | W55: 8 | X55: 13.4821 | Y55: NO | Z55: COSM5020013 | AA55: soft_tissue | AB55: 4 | AC55: rs34402524 | AD55: rs34402524 | AE55: NO | AF55: 0.118 | AG55: NO | AH55: YES | AI55: -0.294 | AJ55: Tolerated | AK55: 37.84 | AL55: 37.28 | AM55: 298 | AN55: 135 | AO55: 438 | AP55: 0.3082191781 | AQ55: 304 | AR55: 118 | AS55: 422 | AT55: 0.2796208531 | AU55: 0.3301023702 | AV55: 24 | AW55: 24 | AX55: Polymorphism
A56: Many samples, VAF, ESP6500, dbSNP, ExAC, ClinVar, prediction | B56: UPN_Te3_060 | C56: 4 | D56: 106196829 | E56: T | F56: G | G56: TET2 | H56: ENST00000380013 | I56: missense_variant | J56: tTg/tGg|p.Leu1721Trp/c.5162T>G | K56: 280 | L56: 421 | M56: 703 | N56: 0.5988620199 | O56: 1 | P56: 1 | Q56: 1 | R56: 1 | S56: 1 | T56: 1 | U56: 1 | V56: 1 | W56: 8 | X56: 13.4821 | Y56: NO | Z56: COSM5020013 | AA56: soft_tissue | AB56: 4 | AC56: rs34402524 | AD56: rs34402524 | AE56: NO | AF56: 0.118 | AG56: NO | AH56: YES | AI56: -0.294 | AJ56: Tolerated | AK56: 33.5 | AL56: 35.15 | AM56: 92 | AN56: 123 | AO56: 217 | AP56: 0.5668202765 | AQ56: 188 | AR56: 298 | AS56: 486 | AT56: 0.6131687243 | AU56: 0.3164987693 | AV56: 24 | AW56: 24 | AX56: Polymorphism
A57: Many samples, VAF, ESP6500, dbSNP, ExAC, ClinVar, prediction | B57: UPN_Te3_067 | C57: 4 | D57: 106196829 | E57: T | F57: G | G57: TET2 | H57: ENST00000380013 | I57: missense_variant | J57: tTg/tGg|p.Leu1721Trp/c.5162T>G | K57: 625 | L57: 460 | M57: 1085 | N57: 0.4239631336 | O57: 1 | P57: 1 | Q57: 1 | R57: 1 | S57: 1 | T57: 1 | U57: 1 | V57: 1 | W57: 8 | X57: 13.4821 | Y57: NO | Z57: COSM5020013 | AA57: soft_tissue | AB57: 4 | AC57: rs34402524 | AD57: rs34402524 | AE57: NO | AF57: 0.118 | AG57: NO | AH57: YES | AI57: -0.294 | AJ57: Tolerated | AK57: 37.56 | AL57: 37.06 | AM57: 234 | AN57: 175 | AO57: 409 | AP57: 0.4278728606 | AQ57: 391 | AR57: 285 | AS57: 676 | AT57: 0.4215976331 | AU57: 0.8493860945 | AV57: 24 | AW57: 24 | AX57: Polymorphism
A58: ESP6500, ExAC, ClinVar, many samples, VAF, prediction | B58: UPN_Te3_024 | C58: 4 | D58: 106196834 | E58: C | F58: T | G58: TET2 | H58: ENST00000380013 | I58: missense_variant | J58: Cct/Tct|p.Pro1723Ser/c.5167C>T | K58: 419 | L58: 252 | M58: 699 | N58: 0.3605150215 | O58: 1 | P58: 1 | Q58: 1 | R58: 1 | S58: 1 | T58: 1 | U58: 1 | V58: 1 | W58: 8 | X58: 1.2256 | Y58: NO | Z58: COSM1235472 | AA58: haematopoietic_and_lymphoid_tissue, skin | AB58: 1, 1 | AC58: NO | AD58: rs146348065 | AE58: NO | AF58: 0.005322 | AG58: NO | AH58: YES | AI58: -1.591 | AJ58: Tolerated | AK58: 36.41 | AL58: 38.24 | AM58: 225 | AN58: 139 | AO58: 387 | AP58: 0.3591731266 | AQ58: 194 | AR58: 113 | AS58: 312 | AT58: 0.3621794872 | AU58: 0.7491245858 | AV58: 4 | AW58: 4 | AX58: Polymorphism
A59: ESP6500, ExAC, ClinVar, many samples, VAF, prediction | B59: UPN_Te3_015 | C59: 4 | D59: 106196834 | E59: C | F59: T | G59: TET2 | H59: ENST00000380013 | I59: missense_variant | J59: Cct/Tct|p.Pro1723Ser/c.5167C>T | K59: 413 | L59: 257 | M59: 676 | N59: 0.3801775148 | O59: 1 | P59: 1 | Q59: 1 | R59: 1 | S59: 1 | T59: 1 | U59: 1 | V59: 1 | W59: 8 | X59: 1.2256 | Y59: NO | Z59: COSM1235472 | AA59: haematopoietic_and_lymphoid_tissue, skin | AB59: 1, 1 | AC59: NO | AD59: rs146348065 | AE59: NO | AF59: 0.005322 | AG59: NO | AH59: YES | AI59: -1.591 | AJ59: Tolerated | AK59: 34.59 | AL59: 37.75 | AM59: 170 | AN59: 101 | AO59: 275 | AP59: 0.3672727273 | AQ59: 243 | AR59: 156 | AS59: 401 | AT59: 0.3890274314 | AU59: 0.6857549584 | AV59: 4 | AW59: 4 | AX59: Polymorphism
A60: ESP6500, ExAC, ClinVar, many samples, VAF, prediction | B60: UPN_Te3_026 | C60: 4 | D60: 106196834 | E60: C | F60: T | G60: TET2 | H60: ENST00000380013 | I60: missense_variant | J60: Cct/Tct|p.Pro1723Ser/c.5167C>T | K60: 557 | L60: 306 | M60: 891 | N60: 0.3434343434 | O60: 1 | P60: 1 | Q60: 1 | R60: 1 | S60: 1 | T60: 1 | U60: 1 | V60: 1 | W60: 8 | X60: 1.2256 | Y60: NO | Z60: COSM1235472 | AA60: haematopoietic_and_lymphoid_tissue, skin | AB60: 1, 1 | AC60: NO | AD60: rs146348065 | AE60: NO | AF60: 0.005322 | AG60: NO | AH60: YES | AI60: -1.591 | AJ60: Tolerated | AK60: 36.68 | AL60: 38.43 | AM60: 294 | AN60: 182 | AO60: 496 | AP60: 0.3669354839 | AQ60: 263 | AR60: 124 | AS60: 395 | AT60: 0.3139240506 | AU60: 0.0630031179 | AV60: 4 | AW60: 4 | AX60: Polymorphism
A61: ESP6500, ExAC, ClinVar, many samples, VAF, prediction | B61: UPN_Te3_037 | C61: 4 | D61: 106196834 | E61: C | F61: T | G61: TET2 | H61: ENST00000380013 | I61: missense_variant | J61: Cct/Tct|p.Pro1723Ser/c.5167C>T | K61: 362 | L61: 371 | M61: 798 | N61: 0.4649122807 | O61: 1 | P61: 1 | Q61: 1 | R61: 1 | S61: 1 | T61: 1 | U61: 1 | V61: 1 | W61: 8 | X61: 1.2256 | Y61: NO | Z61: COSM1235472 | AA61: haematopoietic_and_lymphoid_tissue, skin | AB61: 1, 1 | AC61: NO | AD61: rs146348065 | AE61: NO | AF61: 0.005322 | AG61: NO | AH61: YES | AI61: -1.591 | AJ61: Tolerated | AK61: 37.25 | AL61: 36.87 | AM61: 145 | AN61: 191 | AO61: 359 | AP61: 0.5320334262 | AQ61: 217 | AR61: 180 | AS61: 439 | AT61: 0.410022779 | AU61: 0.0023476065 | AV61: 4 | AW61: 4 | AX61: Polymorphism
A62: VAF, many samples, ESP6500, dbSNP, ExAC, ClinVar, prediction | B62: UPN_Te3_001 | C62: 4 | D62: 106196951 | E62: A | F62: G | G62: TET2 | H62: ENST00000380013 | I62: missense_variant | J62: Ata/Gta|p.Ile1762Val/c.5284A>G | K62: 1 | L62: 563 | M62: 564 | N62: 0.9982269504 | O62: 1 | P62: 1 | Q62: 1 | R62: 1 | S62: 1 | T62: 1 | U62: 1 | V62: 1 | W62: 8 | X62: 37.335 | Y62: NO | Z62: COSM3760322 | AA62: haematopoietic_and_lymphoid_tissue, prostate, thyroid | AB62: 2, 5, 1 | AC62: rs2454206 | AD62: rs2454206 | AE62: NO | AF62: 0.272 | AG62: NO | AH62: YES | AI62: 0.041 | AJ62: Tolerated | AK62: 33 | AL62: 39.44 | AM62: 0 | AN62: 290 | AO62: 290 | AP62: 1 | AQ62: 1 | AR62: 273 | AS62: 274 | AT62: 0.996350365 | AU62: 0.4858156028 | AV62: 62 | AW62: 62 | AX62: Polymorphism
A63: VAF, many samples, ESP6500, dbSNP, ExAC, ClinVar, prediction | B63: UPN_Te3_024 | C63: 4 | D63: 106196951 | E63: A | F63: G | G63: TET2 | H63: ENST00000380013 | I63: missense_variant | J63: Ata/Gta|p.Ile1762Val/c.5284A>G | K63: 394 | L63: 629 | M63: 1023 | N63: 0.61485826 | O63: 1 | P63: 1 | Q63: 1 | R63: 1 | S63: 1 | T63: 1 | U63: 1 | V63: 1 | W63: 8 | X63: 37.335 | Y63: NO | Z63: COSM3760322 | AA63: haematopoietic_and_lymphoid_tissue, prostate, thyroid | AB63: 2, 5, 1 | AC63: rs2454206 | AD63: rs2454206 | AE63: NO | AF63: 0.272 | AG63: NO | AH63: YES | AI63: 0.041 | AJ63: Tolerated | AK63: 37.78 | AL63: 38.82 | AM63: 206 | AN63: 343 | AO63: 549 | AP63: 0.6247723133 | AQ63: 188 | AR63: 286 | AS63: 474 | AT63: 0.6033755274 | AU63: 0.5194658708 | AV63: 62 | AW63: 62 | AX63: Polymorphism
A64: VAF, many samples, ESP6500, dbSNP, ExAC, ClinVar, prediction | B64: UPN_Te3_013 | C64: 4 | D64: 106196951 | E64: A | F64: G | G64: TET2 | H64: ENST00000380013 | I64: missense_variant | J64: Ata/Gta|p.Ile1762Val/c.5284A>G | K64: 755 | L64: 737 | M64: 1497 | N64: 0.4923179693 | O64: 1 | P64: 1 | Q64: 1 | R64: 1 | S64: 1 | T64: 1 | U64: 1 | V64: 1 | W64: 8 | X64: 37.335 | Y64: NO | Z64: COSM3760322 | AA64: haematopoietic_and_lymphoid_tissue, prostate, thyroid | AB64: 2, 5, 1 | AC64: rs2454206 | AD64: rs2454206 | AE64: NO | AF64: 0.272 | AG64: NO | AH64: YES | AI64: 0.041 | AJ64: Tolerated | AK64: 35.65 | AL64: 38.24 | AM64: 371 | AN64: 358 | AO64: 729 | AP64: 0.4910836763 | AQ64: 384 | AR64: 379 | AS64: 768 | AT64: 0.4934895833 | AU64: 0.8360143082 | AV64: 62 | AW64: 62 | AX64: Polymorphism
A65: VAF, many samples, ESP6500, dbSNP, ExAC, ClinVar, prediction | B65: UPN_Te3_015 | C65: 4 | D65: 106196951 | E65: A | F65: G | G65: TET2 | H65: ENST00000380013 | I65: missense_variant | J65: Ata/Gta|p.Ile1762Val/c.5284A>G | K65: 512 | L65: 680 | M65: 1197 | N65: 0.5680868839 | O65: 1 | P65: 1 | Q65: 1 | R65: 1 | S65: 1 | T65: 1 | U65: 1 | V65: 1 | W65: 8 | X65: 37.335 | Y65: NO | Z65: COSM3760322 | AA65: haematopoietic_and_lymphoid_tissue, prostate, thyroid | AB65: 2, 5, 1 | AC65: rs2454206 | AD65: rs2454206 | AE65: NO | AF65: 0.272 | AG65: NO | AH65: YES | AI65: 0.041 | AJ65: Tolerated | AK65: 35.77 | AL65: 38.16 | AM65: 210 | AN65: 285 | AO65: 496 | AP65: 0.5745967742 | AQ65: 302 | AR65: 395 | AS65: 701 | AT65: 0.5634807418 | AU65: 0.7668415909 | AV65: 62 | AW65: 62 | AX65: Polymorphism
A66: VAF, many samples, ESP6500, dbSNP, ExAC, ClinVar, prediction | B66: UPN_Te3_073 | C66: 4 | D66: 106196951 | E66: A | F66: G | G66: TET2 | H66: ENST00000380013 | I66: missense_variant | J66: Ata/Gta|p.Ile1762Val/c.5284A>G | K66: 170 | L66: 176 | M66: 346 | N66: 0.5086705202 | O66: 1 | P66: 1 | Q66: 1 | R66: 1 | S66: 1 | T66: 0 | U66: 1 | V66: 1 | W66: 7 | X66: 37.335 | Y66: NO | Z66: COSM3760322 | AA66: haematopoietic_and_lymphoid_tissue, prostate, thyroid | AB66: 2, 5, 1 | AC66: rs2454206 | AD66: rs2454206 | AE66: NO | AF66: 0.272 | AG66: NO | AH66: YES | AI66: 0.041 | AJ66: Tolerated | AK66: 34.94 | AL66: 37.3 | AM66: 0 | AN66: 0 | AO66: 0 | AP66: NA | AQ66: 170 | AR66: 176 | AS66: 346 | AT66: 0.5086705202 | AU66: 1 | AV66: 62 | AW66: 62 | AX66: Polymorphism
A67: VAF, many samples, ESP6500, dbSNP, ExAC, ClinVar, prediction | B67: UPN_Te3_089 | C67: 4 | D67: 106196951 | E67: A | F67: G | G67: TET2 | H67: ENST00000380013 | I67: missense_variant | J67: Ata/Gta|p.Ile1762Val/c.5284A>G | K67: 616 | L67: 643 | M67: 1260 | N67: 0.5103174603 | O67: 1 | P67: 1 | Q67: 1 | R67: 1 | S67: 1 | T67: 1 | U67: 1 | V67: 1 | W67: 8 | X67: 37.335 | Y67: NO | Z67: COSM3760322 | AA67: haematopoietic_and_lymphoid_tissue, prostate, thyroid | AB67: 2, 5, 1 | AC67: rs2454206 | AD67: rs2454206 | AE67: NO | AF67: 0.272 | AG67: NO | AH67: YES | AI67: 0.041 | AJ67: Tolerated | AK67: 38.08 | AL67: 39.18 | AM67: 282 | AN67: 333 | AO67: 615 | AP67: 0.5414634146 | AQ67: 334 | AR67: 310 | AS67: 645 | AT67: 0.480620155 | AU67: 0.0368952438 | AV67: 62 | AW67: 62 | AX67: Polymorphism
A68: VAF, many samples, ESP6500, dbSNP, ExAC, ClinVar, prediction | B68: UPN_Te3_076 | C68: 4 | D68: 106196951 | E68: A | F68: G | G68: TET2 | H68: ENST00000380013 | I68: missense_variant | J68: Ata/Gta|p.Ile1762Val/c.5284A>G | K68: 187 | L68: 217 | M68: 405 | N68: 0.5358024691 | O68: 1 | P68: 1 | Q68: 1 | R68: 1 | S68: 1 | T68: 0 | U68: 1 | V68: 1 | W68: 7 | X68: 37.335 | Y68: NO | Z68: COSM3760322 | AA68: haematopoietic_and_lymphoid_tissue, prostate, thyroid | AB68: 2, 5, 1 | AC68: rs2454206 | AD68: rs2454206 | AE68: NO | AF68: 0.272 | AG68: NO | AH68: YES | AI68: 0.041 | AJ68: Tolerated | AK68: 36.26 | AL68: 37.49 | AM68: 1 | AN68: 0 | AO68: 1 | AP68: 0 | AQ68: 186 | AR68: 217 | AS68: 404 | AT68: 0.5371287129 | AU68: 0.4628712871 | AV68: 62 | AW68: 62 | AX68: Polymorphism
A69: VAF, many samples, ESP6500, dbSNP, ExAC, ClinVar, prediction | B69: UPN_Te3_077 | C69: 4 | D69: 106196951 | E69: A | F69: G | G69: TET2 | H69: ENST00000380013 | I69: missense_variant | J69: Ata/Gta|p.Ile1762Val/c.5284A>G | K69: 171 | L69: 201 | M69: 372 | N69: 0.5403225806 | O69: 1 | P69: 1 | Q69: 1 | R69: 1 | S69: 1 | T69: 1 | U69: 1 | V69: 1 | W69: 8 | X69: 37.335 | Y69: NO | Z69: COSM3760322 | AA69: haematopoietic_and_lymphoid_tissue, prostate, thyroid | AB69: 2, 5, 1 | AC69: rs2454206 | AD69: rs2454206 | AE69: NO | AF69: 0.272 | AG69: NO | AH69: YES | AI69: 0.041 | AJ69: Tolerated | AK69: 36.09 | AL69: 37.87 | AM69: 85 | AN69: 97 | AO69: 182 | AP69: 0.532967033 | AQ69: 86 | AR69: 104 | AS69: 190 | AT69: 0.5473684211 | AU69: 0.8352651764 | AV69: 62 | AW69: 62 | AX69: Polymorphism
A70: VAF, many samples, ESP6500, dbSNP, ExAC, ClinVar, prediction | B70: UPN_Te3_017 | C70: 4 | D70: 106196951 | E70: A | F70: G | G70: TET2 | H70: ENST00000380013 | I70: missense_variant | J70: Ata/Gta|p.Ile1762Val/c.5284A>G | K70: 644 | L70: 523 | M70: 1169 | N70: 0.4473909324 | O70: 1 | P70: 1 | Q70: 1 | R70: 1 | S70: 1 | T70: 1 | U70: 1 | V70: 1 | W70: 8 | X70: 37.335 | Y70: NO | Z70: COSM3760322 | AA70: haematopoietic_and_lymphoid_tissue, prostate, thyroid | AB70: 2, 5, 1 | AC70: rs2454206 | AD70: rs2454206 | AE70: NO | AF70: 0.272 | AG70: NO | AH70: YES | AI70: 0.041 | AJ70: Tolerated | AK70: 36.52 | AL70: 38.32 | AM70: 367 | AN70: 279 | AO70: 646 | AP70: 0.4318885449 | AQ70: 277 | AR70: 244 | AS70: 523 | AT70: 0.4665391969 | AU70: 0.2145103221 | AV70: 62 | AW70: 62 | AX70: Polymorphism
A71: VAF, many samples, ESP6500, dbSNP, ExAC, ClinVar, prediction | B71: UPN_Te3_018 | C71: 4 | D71: 106196951 | E71: A | F71: G | G71: TET2 | H71: ENST00000380013 | I71: missense_variant | J71: Ata/Gta|p.Ile1762Val/c.5284A>G | K71: 610 | L71: 665 | M71: 1279 | N71: 0.5199374511 | O71: 1 | P71: 1 | Q71: 1 | R71: 1 | S71: 1 | T71: 1 | U71: 1 | V71: 1 | W71: 8 | X71: 37.335 | Y71: NO | Z71: COSM3760322 | AA71: haematopoietic_and_lymphoid_tissue, prostate, thyroid | AB71: 2, 5, 1 | AC71: rs2454206 | AD71: rs2454206 | AE71: NO | AF71: 0.272 | AG71: NO | AH71: YES | AI71: 0.041 | AJ71: Tolerated | AK71: 37.04 | AL71: 38.7 | AM71: 350 | AN71: 366 | AO71: 718 | AP71: 0.5097493036 | AQ71: 260 | AR71: 299 | AS71: 561 | AT71: 0.5329768271 | AU71: 0.4290210281 | AV71: 62 | AW71: 62 | AX71: Polymorphism
A72: VAF, many samples, ESP6500, dbSNP, ExAC, ClinVar, prediction | B72: UPN_Te3_078 | C72: 4 | D72: 106196951 | E72: A | F72: G | G72: TET2 | H72: ENST00000380013 | I72: missense_variant | J72: Ata/Gta|p.Ile1762Val/c.5284A>G | K72: 291 | L72: 276 | M72: 567 | N72: 0.4867724868 | O72: 1 | P72: 1 | Q72: 1 | R72: 1 | S72: 1 | T72: 1 | U72: 1 | V72: 1 | W72: 8 | X72: 37.335 | Y72: NO | Z72: COSM3760322 | AA72: haematopoietic_and_lymphoid_tissue, prostate, thyroid | AB72: 2, 5, 1 | AC72: rs2454206 | AD72: rs2454206 | AE72: NO | AF72: 0.272 | AG72: NO | AH72: YES | AI72: 0.041 | AJ72: Tolerated | AK72: 36.45 | AL72: 37.24 | AM72: 207 | AN72: 195 | AO72: 402 | AP72: 0.4850746269 | AQ72: 84 | AR72: 81 | AS72: 165 | AT72: 0.4909090909 | AU72: 0.9264517802 | AV72: 62 | AW72: 62 | AX72: Polymorphism
A73: VAF, many samples, ESP6500, dbSNP, ExAC, ClinVar, prediction | B73: UPN_Te3_003 | C73: 4 | D73: 106196951 | E73: A | F73: G | G73: TET2 | H73: ENST00000380013 | I73: missense_variant | J73: Ata/Gta|p.Ile1762Val/c.5284A>G | K73: 393 | L73: 1477 | M73: 1871 | N73: 0.7894174238 | O73: 1 | P73: 1 | Q73: 1 | R73: 1 | S73: 1 | T73: 1 | U73: 1 | V73: 1 | W73: 8 | X73: 37.335 | Y73: NO | Z73: COSM3760322 | AA73: haematopoietic_and_lymphoid_tissue, prostate, thyroid | AB73: 2, 5, 1 | AC73: rs2454206 | AD73: rs2454206 | AE73: NO | AF73: 0.272 | AG73: NO | AH73: YES | AI73: 0.041 | AJ73: Tolerated | AK73: 38.3 | AL73: 39.4 | AM73: 183 | AN73: 718 | AO73: 901 | AP73: 0.7968923418 | AQ73: 210 | AR73: 759 | AS73: 970 | AT73: 0.7824742268 | AU73: 0.4956159231 | AV73: 62 | AW73: 62 | AX73: Polymorphism
A74: VAF, many samples, ESP6500, dbSNP, ExAC, ClinVar, prediction | B74: UPN_Te3_026 | C74: 4 | D74: 106196951 | E74: A | F74: G | G74: TET2 | H74: ENST00000380013 | I74: missense_variant | J74: Ata/Gta|p.Ile1762Val/c.5284A>G | K74: 724 | L74: 552 | M74: 1276 | N74: 0.4326018809 | O74: 1 | P74: 1 | Q74: 1 | R74: 1 | S74: 1 | T74: 1 | U74: 1 | V74: 1 | W74: 8 | X74: 37.335 | Y74: NO | Z74: COSM3760322 | AA74: haematopoietic_and_lymphoid_tissue, prostate, thyroid | AB74: 2, 5, 1 | AC74: rs2454206 | AD74: rs2454206 | AE74: NO | AF74: 0.272 | AG74: NO | AH74: YES | AI74: 0.041 | AJ74: Tolerated | AK74: 38.06 | AL74: 38.73 | AM74: 395 | AN74: 319 | AO74: 714 | AP74: 0.4467787115 | AQ74: 329 | AR74: 233 | AS74: 562 | AT74: 0.4145907473 | AU74: 0.2554749133 | AV74: 62 | AW74: 62 | AX74: Polymorphism
A75: VAF, many samples, ESP6500, dbSNP, ExAC, ClinVar, prediction | B75: UPN_Te3_027 | C75: 4 | D75: 106196951 | E75: A | F75: G | G75: TET2 | H75: ENST00000380013 | I75: missense_variant | J75: Ata/Gta|p.Ile1762Val/c.5284A>G | K75: 546 | L75: 622 | M75: 1169 | N75: 0.5320786997 | O75: 1 | P75: 1 | Q75: 1 | R75: 1 | S75: 1 | T75: 1 | U75: 1 | V75: 1 | W75: 8 | X75: 37.335 | Y75: NO | Z75: COSM3760322 | AA75: haematopoietic_and_lymphoid_tissue, prostate, thyroid | AB75: 2, 5, 1 | AC75: rs2454206 | AD75: rs2454206 | AE75: NO | AF75: 0.272 | AG75: NO | AH75: YES | AI75: 0.041 | AJ75: Tolerated | AK75: 37.75 | AL75: 39.12 | AM75: 288 | AN75: 317 | AO75: 605 | AP75: 0.5239669421 | AQ75: 258 | AR75: 305 | AS75: 564 | AT75: 0.5407801418 | AU75: 0.5576122146 | AV75: 62 | AW75: 62 | AX75: Polymorphism
A76: VAF, many samples, ESP6500, dbSNP, ExAC, ClinVar, prediction | B76: UPN_Te3_019 | C76: 4 | D76: 106196951 | E76: A | F76: G | G76: TET2 | H76: ENST00000380013 | I76: missense_variant | J76: Ata/Gta|p.Ile1762Val/c.5284A>G | K76: 589 | L76: 697 | M76: 1286 | N76: 0.5419906687 | O76: 1 | P76: 1 | Q76: 1 | R76: 1 | S76: 1 | T76: 1 | U76: 1 | V76: 1 | W76: 8 | X76: 37.335 | Y76: NO | Z76: COSM3760322 | AA76: haematopoietic_and_lymphoid_tissue, prostate, thyroid | AB76: 2, 5, 1 | AC76: rs2454206 | AD76: rs2454206 | AE76: NO | AF76: 0.272 | AG76: NO | AH76: YES | AI76: 0.041 | AJ76: Tolerated | AK76: 36.74 | AL76: 38.56 | AM76: 226 | AN76: 303 | AO76: 529 | AP76: 0.572778828 | AQ76: 363 | AR76: 394 | AS76: 757 | AT76: 0.5204755614 | AU76: 0.0688171106 | AV76: 62 | AW76: 62 | AX76: Polymorphism
A77: VAF, many samples, ESP6500, dbSNP, ExAC, ClinVar, prediction | B77: UPN_Te3_020 | C77: 4 | D77: 106196951 | E77: A | F77: G | G77: TET2 | H77: ENST00000380013 | I77: missense_variant | J77: Ata/Gta|p.Ile1762Val/c.5284A>G | K77: 751 | L77: 731 | M77: 1482 | N77: 0.4932523617 | O77: 1 | P77: 1 | Q77: 1 | R77: 1 | S77: 1 | T77: 1 | U77: 1 | V77: 1 | W77: 8 | X77: 37.335 | Y77: NO | Z77: COSM3760322 | AA77: haematopoietic_and_lymphoid_tissue, prostate, thyroid | AB77: 2, 5, 1 | AC77: rs2454206 | AD77: rs2454206 | AE77: NO | AF77: 0.272 | AG77: NO | AH77: YES | AI77: 0.041 | AJ77: Tolerated | AK77: 37.52 | AL77: 38.62 | AM77: 378 | AN77: 304 | AO77: 682 | AP77: 0.4457478006 | AQ77: 373 | AR77: 427 | AS77: 800 | AT77: 0.53375 | AU77: 0.0008449911 | AV77: 62 | AW77: 62 | AX77: Polymorphism
A78: VAF, many samples, ESP6500, dbSNP, ExAC, ClinVar, prediction | B78: UPN_Te3_028 | C78: 4 | D78: 106196951 | E78: A | F78: G | G78: TET2 | H78: ENST00000380013 | I78: missense_variant | J78: Ata/Gta|p.Ile1762Val/c.5284A>G | K78: 805 | L78: 256 | M78: 1062 | N78: 0.2410546139 | O78: 1 | P78: 1 | Q78: 1 | R78: 1 | S78: 1 | T78: 1 | U78: 1 | V78: 1 | W78: 8 | X78: 37.335 | Y78: NO | Z78: COSM3760322 | AA78: haematopoietic_and_lymphoid_tissue, prostate, thyroid | AB78: 2, 5, 1 | AC78: rs2454206 | AD78: rs2454206 | AE78: NO | AF78: 0.272 | AG78: NO | AH78: YES | AI78: 0.041 | AJ78: Tolerated | AK78: 37.89 | AL78: 38.25 | AM78: 357 | AN78: 115 | AO78: 473 | AP78: 0.2431289641 | AQ78: 448 | AR78: 141 | AS78: 589 | AT78: 0.2393887946 | AU78: 0.8853676779 | AV78: 62 | AW78: 62 | AX78: Polymorphism
A79: VAF, many samples, ESP6500, dbSNP, ExAC, ClinVar, prediction | B79: UPN_Te3_079 | C79: 4 | D79: 106196951 | E79: A | F79: G | G79: TET2 | H79: ENST00000380013 | I79: missense_variant | J79: Ata/Gta|p.Ile1762Val/c.5284A>G | K79: 0 | L79: 378 | M79: 379 | N79: 0.9973614776 | O79: 1 | P79: 1 | Q79: 1 | R79: 1 | S79: 1 | T79: 1 | U79: 1 | V79: 1 | W79: 8 | X79: 37.335 | Y79: NO | Z79: COSM3760322 | AA79: haematopoietic_and_lymphoid_tissue, prostate, thyroid | AB79: 2, 5, 1 | AC79: rs2454206 | AD79: rs2454206 | AE79: NO | AF79: 0.272 | AG79: NO | AH79: YES | AI79: 0.041 | AJ79: Tolerated | AK79: 0 | AL79: 37.82 | AM79: 0 | AN79: 130 | AO79: 130 | AP79: 1 | AQ79: 0 | AR79: 248 | AS79: 249 | AT79: 0.9959839357 | AU79: 1 | AV79: 62 | AW79: 62 | AX79: Polymorphism
A80: VAF, many samples, ESP6500, dbSNP, ExAC, ClinVar, prediction | B80: UPN_Te3_021 | C80: 4 | D80: 106196951 | E80: A | F80: G | G80: TET2 | H80: ENST00000380013 | I80: missense_variant | J80: Ata/Gta|p.Ile1762Val/c.5284A>G | K80: 704 | L80: 712 | M80: 1421 | N80: 0.5010555947 | O80: 1 | P80: 1 | Q80: 1 | R80: 1 | S80: 1 | T80: 1 | U80: 1 | V80: 1 | W80: 8 | X80: 37.335 | Y80: NO | Z80: COSM3760322 | AA80: haematopoietic_and_lymphoid_tissue, prostate, thyroid | AB80: 2, 5, 1 | AC80: rs2454206 | AD80: rs2454206 | AE80: NO | AF80: 0.272 | AG80: NO | AH80: YES | AI80: 0.041 | AJ80: Tolerated | AK80: 36.9 | AL80: 38.53 | AM80: 337 | AN80: 309 | AO80: 647 | AP80: 0.4775888717 | AQ80: 367 | AR80: 403 | AS80: 774 | AT80: 0.5206718346 | AU80: 0.0981484768 | AV80: 62 | AW80: 62 | AX80: Polymorphism
A81: VAF, many samples, ESP6500, dbSNP, ExAC, ClinVar, prediction | B81: UPN_Te3_004 | C81: 4 | D81: 106196951 | E81: A | F81: G | G81: TET2 | H81: ENST00000380013 | I81: missense_variant | J81: Ata/Gta|p.Ile1762Val/c.5284A>G | K81: 783 | L81: 835 | M81: 1619 | N81: 0.5157504632 | O81: 1 | P81: 1 | Q81: 1 | R81: 1 | S81: 1 | T81: 1 | U81: 1 | V81: 1 | W81: 8 | X81: 37.335 | Y81: NO | Z81: COSM3760322 | AA81: haematopoietic_and_lymphoid_tissue, prostate, thyroid | AB81: 2, 5, 1 | AC81: rs2454206 | AD81: rs2454206 | AE81: NO | AF81: 0.272 | AG81: NO | AH81: YES | AI81: 0.041 | AJ81: Tolerated | AK81: 37.26 | AL81: 38.48 | AM81: 303 | AN81: 326 | AO81: 629 | AP81: 0.5182829889 | AQ81: 480 | AR81: 509 | AS81: 990 | AT81: 0.5141414141 | AU81: 0.9187258782 | AV81: 62 | AW81: 62 | AX81: Polymorphism
A82: VAF, many samples, ESP6500, dbSNP, ExAC, ClinVar, prediction | B82: UPN_Te3_005 | C82: 4 | D82: 106196951 | E82: A | F82: G | G82: TET2 | H82: ENST00000380013 | I82: missense_variant | J82: Ata/Gta|p.Ile1762Val/c.5284A>G | K82: 591 | L82: 677 | M82: 1271 | N82: 0.5326514555 | O82: 1 | P82: 1 | Q82: 1 | R82: 1 | S82: 1 | T82: 1 | U82: 1 | V82: 1 | W82: 8 | X82: 37.335 | Y82: NO | Z82: COSM3760322 | AA82: haematopoietic_and_lymphoid_tissue, prostate, thyroid | AB82: 2, 5, 1 | AC82: rs2454206 | AD82: rs2454206 | AE82: NO | AF82: 0.272 | AG82: NO | AH82: YES | AI82: 0.041 | AJ82: Tolerated | AK82: 38.3 | AL82: 39.02 | AM82: 299 | AN82: 348 | AO82: 648 | AP82: 0.537037037 | AQ82: 292 | AR82: 329 | AS82: 623 | AT82: 0.5280898876 | AU82: 0.7785782109 | AV82: 62 | AW82: 62 | AX82: Polymorphism
A83: VAF, many samples, ESP6500, dbSNP, ExAC, ClinVar, prediction | B83: UPN_Te3_085 | C83: 4 | D83: 106196951 | E83: A | F83: G | G83: TET2 | H83: ENST00000380013 | I83: missense_variant | J83: Ata/Gta|p.Ile1762Val/c.5284A>G | K83: 302 | L83: 142 | M83: 446 | N83: 0.3183856502 | O83: 1 | P83: 1 | Q83: 1 | R83: 1 | S83: 1 | T83: 1 | U83: 1 | V83: 1 | W83: 8 | X83: 37.335 | Y83: NO | Z83: COSM3760322 | AA83: haematopoietic_and_lymphoid_tissue, prostate, thyroid | AB83: 2, 5, 1 | AC83: rs2454206 | AD83: rs2454206 | AE83: NO | AF83: 0.272 | AG83: NO | AH83: YES | AI83: 0.041 | AJ83: Tolerated | AK83: 33.72 | AL83: 38.75 | AM83: 118 | AN83: 119 | AO83: 237 | AP83: 0.5021097046 | AQ83: 184 | AR83: 23 | AS83: 209 | AT83: 0.1100478469 | AU83: 1.078456923e-19 | AV83: 62 | AW83: 62 | AX83: Polymorphism
A84: VAF, many samples, ESP6500, dbSNP, ExAC, ClinVar, prediction | B84: UPN_Te3_006 | C84: 4 | D84: 106196951 | E84: A | F84: G | G84: TET2 | H84: ENST00000380013 | I84: missense_variant | J84: Ata/Gta|p.Ile1762Val/c.5284A>G | K84: 581 | L84: 610 | M84: 1195 | N84: 0.510460251 | O84: 1 | P84: 1 | Q84: 1 | R84: 1 | S84: 1 | T84: 1 | U84: 1 | V84: 1 | W84: 8 | X84: 37.335 | Y84: NO | Z84: COSM3760322 | AA84: haematopoietic_and_lymphoid_tissue, prostate, thyroid | AB84: 2, 5, 1 | AC84: rs2454206 | AD84: rs2454206 | AE84: NO | AF84: 0.272 | AG84: NO | AH84: YES | AI84: 0.041 | AJ84: Tolerated | AK84: 38 | AL84: 39.02 | AM84: 304 | AN84: 312 | AO84: 616 | AP84: 0.5064935065 | AQ84: 277 | AR84: 298 | AS84: 579 | AT84: 0.5146804836 | AU84: 0.7278369939 | AV84: 62 | AW84: 62 | AX84: Polymorphism
A85: VAF, many samples, ESP6500, dbSNP, ExAC, ClinVar, prediction | B85: UPN_Te3_086 | C85: 4 | D85: 106196951 | E85: A | F85: G | G85: TET2 | H85: ENST00000380013 | I85: missense_variant | J85: Ata/Gta|p.Ile1762Val/c.5284A>G | K85: 146 | L85: 89 | M85: 235 | N85: 0.3787234043 | O85: 1 | P85: 1 | Q85: 1 | R85: 1 | S85: 1 | T85: 1 | U85: 1 | V85: 1 | W85: 8 | X85: 37.335 | Y85: NO | Z85: COSM3760322 | AA85: haematopoietic_and_lymphoid_tissue, prostate, thyroid | AB85: 2, 5, 1 | AC85: rs2454206 | AD85: rs2454206 | AE85: NO | AF85: 0.272 | AG85: NO | AH85: YES | AI85: 0.041 | AJ85: Tolerated | AK85: 37.16 | AL85: 38.62 | AM85: 117 | AN85: 67 | AO85: 184 | AP85: 0.3641304348 | AQ85: 29 | AR85: 22 | AS85: 51 | AT85: 0.431372549 | AU85: 0.4165182003 | AV85: 62 | AW85: 62 | AX85: Polymorphism
A86: VAF, many samples, ESP6500, dbSNP, ExAC, ClinVar, prediction | B86: UPN_Te3_023 | C86: 4 | D86: 106196951 | E86: A | F86: G | G86: TET2 | H86: ENST00000380013 | I86: missense_variant | J86: Ata/Gta|p.Ile1762Val/c.5284A>G | K86: 836 | L86: 837 | M86: 1675 | N86: 0.4997014925 | O86: 1 | P86: 1 | Q86: 1 | R86: 1 | S86: 1 | T86: 1 | U86: 1 | V86: 1 | W86: 8 | X86: 37.335 | Y86: NO | Z86: COSM3760322 | AA86: haematopoietic_and_lymphoid_tissue, prostate, thyroid | AB86: 2, 5, 1 | AC86: rs2454206 | AD86: rs2454206 | AE86: NO | AF86: 0.272 | AG86: NO | AH86: YES | AI86: 0.041 | AJ86: Tolerated | AK86: 36.63 | AL86: 37.67 | AM86: 377 | AN86: 391 | AO86: 768 | AP86: 0.5091145833 | AQ86: 459 | AR86: 446 | AS86: 907 | AT86: 0.4917309813 | AU86: 0.5237199649 | AV86: 62 | AW86: 62 | AX86: Polymorphism
A87: VAF, many samples, ESP6500, dbSNP, ExAC, ClinVar, prediction | B87: UPN_Te3_008 | C87: 4 | D87: 106196951 | E87: A | F87: G | G87: TET2 | H87: ENST00000380013 | I87: missense_variant | J87: Ata/Gta|p.Ile1762Val/c.5284A>G | K87: 637 | L87: 682 | M87: 1322 | N87: 0.5158850227 | O87: 1 | P87: 1 | Q87: 1 | R87: 1 | S87: 1 | T87: 1 | U87: 1 | V87: 1 | W87: 8 | X87: 37.335 | Y87: NO | Z87: COSM3760322 | AA87: haematopoietic_and_lymphoid_tissue, prostate, thyroid | AB87: 2, 5, 1 | AC87: rs2454206 | AD87: rs2454206 | AE87: NO | AF87: 0.272 | AG87: NO | AH87: YES | AI87: 0.041 | AJ87: Tolerated | AK87: 38.28 | AL87: 39.12 | AM87: 296 | AN87: 278 | AO87: 576 | AP87: 0.4826388889 | AQ87: 341 | AR87: 404 | AS87: 746 | AT87: 0.5415549598 | AU87: 0.0397838268 | AV87: 62 | AW87: 62 | AX87: Polymorphism
A88: VAF, many samples, ESP6500, dbSNP, ExAC, ClinVar, prediction | B88: UPN_Te3_032 | C88: 4 | D88: 106196951 | E88: A | F88: G | G88: TET2 | H88: ENST00000380013 | I88: missense_variant | J88: Ata/Gta|p.Ile1762Val/c.5284A>G | K88: 560 | L88: 625 | M88: 1186 | N88: 0.5269814503 | O88: 1 | P88: 1 | Q88: 1 | R88: 1 | S88: 1 | T88: 1 | U88: 1 | V88: 1 | W88: 8 | X88: 37.335 | Y88: NO | Z88: COSM3760322 | AA88: haematopoietic_and_lymphoid_tissue, prostate, thyroid | AB88: 2, 5, 1 | AC88: rs2454206 | AD88: rs2454206 | AE88: NO | AF88: 0.272 | AG88: NO | AH88: YES | AI88: 0.041 | AJ88: Tolerated | AK88: 37.72 | AL88: 38.57 | AM88: 321 | AN88: 326 | AO88: 648 | AP88: 0.5030864198 | AQ88: 239 | AR88: 299 | AS88: 538 | AT88: 0.5557620818 | AU88: 0.0796834705 | AV88: 62 | AW88: 62 | AX88: Polymorphism
A89: VAF, many samples, ESP6500, dbSNP, ExAC, ClinVar, prediction | B89: UPN_Te3_033 | C89: 4 | D89: 106196951 | E89: A | F89: G | G89: TET2 | H89: ENST00000380013 | I89: missense_variant | J89: Ata/Gta|p.Ile1762Val/c.5284A>G | K89: 351 | L89: 481 | M89: 832 | N89: 0.578125 | O89: 1 | P89: 1 | Q89: 1 | R89: 1 | S89: 1 | T89: 1 | U89: 1 | V89: 1 | W89: 8 | X89: 37.335 | Y89: NO | Z89: COSM3760322 | AA89: haematopoietic_and_lymphoid_tissue, prostate, thyroid | AB89: 2, 5, 1 | AC89: rs2454206 | AD89: rs2454206 | AE89: NO | AF89: 0.272 | AG89: NO | AH89: YES | AI89: 0.041 | AJ89: Tolerated | AK89: 36.62 | AL89: 38.45 | AM89: 170 | AN89: 235 | AO89: 405 | AP89: 0.5802469136 | AQ89: 181 | AR89: 246 | AS89: 427 | AT89: 0.5761124122 | AU89: 0.9440325389 | AV89: 62 | AW89: 62 | AX89: Polymorphism
A90: VAF, many samples, ESP6500, dbSNP, ExAC, ClinVar, prediction | B90: UPN_Te3_034 | C90: 4 | D90: 106196951 | E90: A | F90: G | G90: TET2 | H90: ENST00000380013 | I90: missense_variant | J90: Ata/Gta|p.Ile1762Val/c.5284A>G | K90: 243 | L90: 226 | M90: 470 | N90: 0.4808510638 | O90: 1 | P90: 1 | Q90: 1 | R90: 1 | S90: 1 | T90: 1 | U90: 1 | V90: 1 | W90: 8 | X90: 37.335 | Y90: NO | Z90: COSM3760322 | AA90: haematopoietic_and_lymphoid_tissue, prostate, thyroid | AB90: 2, 5, 1 | AC90: rs2454206 | AD90: rs2454206 | AE90: NO | AF90: 0.272 | AG90: NO | AH90: YES | AI90: 0.041 | AJ90: Tolerated | AK90: 37.65 | AL90: 38.57 | AM90: 132 | AN90: 122 | AO90: 254 | AP90: 0.4803149606 | AQ90: 111 | AR90: 104 | AS90: 216 | AT90: 0.4814814815 | AU90: 1 | AV90: 62 | AW90: 62 | AX90: Polymorphism
A91: VAF, many samples, ESP6500, dbSNP, ExAC, ClinVar, prediction | B91: UPN_Te3_035 | C91: 4 | D91: 106196951 | E91: A | F91: G | G91: TET2 | H91: ENST00000380013 | I91: missense_variant | J91: Ata/Gta|p.Ile1762Val/c.5284A>G | K91: 311 | L91: 470 | M91: 783 | N91: 0.6002554278 | O91: 1 | P91: 1 | Q91: 1 | R91: 1 | S91: 1 | T91: 1 | U91: 1 | V91: 1 | W91: 8 | X91: 37.335 | Y91: NO | Z91: COSM3760322 | AA91: haematopoietic_and_lymphoid_tissue, prostate, thyroid | AB91: 2, 5, 1 | AC91: rs2454206 | AD91: rs2454206 | AE91: NO | AF91: 0.272 | AG91: NO | AH91: YES | AI91: 0.041 | AJ91: Tolerated | AK91: 36.54 | AL91: 38.72 | AM91: 119 | AN91: 227 | AO91: 346 | AP91: 0.6560693642 | AQ91: 192 | AR91: 243 | AS91: 437 | AT91: 0.5560640732 | AU91: 0.0064617891 | AV91: 62 | AW91: 62 | AX91: Polymorphism
A92: VAF, many samples, ESP6500, dbSNP, ExAC, ClinVar, prediction | B92: UPN_Te3_081 | C92: 4 | D92: 106196951 | E92: A | F92: G | G92: TET2 | H92: ENST00000380013 | I92: missense_variant | J92: Ata/Gta|p.Ile1762Val/c.5284A>G | K92: 211 | L92: 243 | M92: 455 | N92: 0.5340659341 | O92: 1 | P92: 1 | Q92: 1 | R92: 1 | S92: 1 | T92: 1 | U92: 1 | V92: 1 | W92: 8 | X92: 37.335 | Y92: NO | Z92: COSM3760322 | AA92: haematopoietic_and_lymphoid_tissue, prostate, thyroid | AB92: 2, 5, 1 | AC92: rs2454206 | AD92: rs2454206 | AE92: NO | AF92: 0.272 | AG92: NO | AH92: YES | AI92: 0.041 | AJ92: Tolerated | AK92: 36.14 | AL92: 37.78 | AM92: 91 | AN92: 99 | AO92: 190 | AP92: 0.5210526316 | AQ92: 120 | AR92: 144 | AS92: 265 | AT92: 0.5433962264 | AU92: 0.6340593699 | AV92: 62 | AW92: 62 | AX92: Polymorphism
A93: VAF, many samples, ESP6500, dbSNP, ExAC, ClinVar, prediction | B93: UPN_Te3_036 | C93: 4 | D93: 106196951 | E93: A | F93: G | G93: TET2 | H93: ENST00000380013 | I93: missense_variant | J93: Ata/Gta|p.Ile1762Val/c.5284A>G | K93: 500 | L93: 648 | M93: 1148 | N93: 0.5644599303 | O93: 1 | P93: 1 | Q93: 1 | R93: 1 | S93: 1 | T93: 1 | U93: 1 | V93: 1 | W93: 8 | X93: 37.335 | Y93: NO | Z93: COSM3760322 | AA93: haematopoietic_and_lymphoid_tissue, prostate, thyroid | AB93: 2, 5, 1 | AC93: rs2454206 | AD93: rs2454206 | AE93: NO | AF93: 0.272 | AG93: NO | AH93: YES | AI93: 0.041 | AJ93: Tolerated | AK93: 38.35 | AL93: 39.23 | AM93: 258 | AN93: 332 | AO93: 590 | AP93: 0.5627118644 | AQ93: 242 | AR93: 316 | AS93: 558 | AT93: 0.5663082437 | AU93: 0.9053544318 | AV93: 62 | AW93: 62 | AX93: Polymorphism
A94: VAF, many samples, ESP6500, dbSNP, ExAC, ClinVar, prediction | B94: UPN_Te3_038 | C94: 4 | D94: 106196951 | E94: A | F94: G | G94: TET2 | H94: ENST00000380013 | I94: missense_variant | J94: Ata/Gta|p.Ile1762Val/c.5284A>G | K94: 32 | L94: 2129 | M94: 2161 | N94: 0.9851920407 | O94: 1 | P94: 1 | Q94: 1 | R94: 1 | S94: 1 | T94: 1 | U94: 1 | V94: 1 | W94: 8 | X94: 37.335 | Y94: NO | Z94: COSM3760322 | AA94: haematopoietic_and_lymphoid_tissue, prostate, thyroid | AB94: 2, 5, 1 | AC94: rs2454206 | AD94: rs2454206 | AE94: NO | AF94: 0.272 | AG94: NO | AH94: YES | AI94: 0.041 | AJ94: Tolerated | AK94: 38.34 | AL94: 39.15 | AM94: 16 | AN94: 908 | AO94: 924 | AP94: 0.9826839827 | AQ94: 16 | AR94: 1221 | AS94: 1237 | AT94: 0.987065481 | AU94: 0.4724482839 | AV94: 62 | AW94: 62 | AX94: Polymorphism
A95: VAF, many samples, ESP6500, dbSNP, ExAC, ClinVar, prediction | B95: UPN_Te3_040 | C95: 4 | D95: 106196951 | E95: A | F95: G | G95: TET2 | H95: ENST00000380013 | I95: missense_variant | J95: Ata/Gta|p.Ile1762Val/c.5284A>G | K95: 591 | L95: 662 | M95: 1253 | N95: 0.5283320032 | O95: 1 | P95: 1 | Q95: 1 | R95: 1 | S95: 1 | T95: 1 | U95: 1 | V95: 1 | W95: 8 | X95: 37.335 | Y95: NO | Z95: COSM3760322 | AA95: haematopoietic_and_lymphoid_tissue, prostate, thyroid | AB95: 2, 5, 1 | AC95: rs2454206 | AD95: rs2454206 | AE95: NO | AF95: 0.272 | AG95: NO | AH95: YES | AI95: 0.041 | AJ95: Tolerated | AK95: 37.82 | AL95: 39.1 | AM95: 290 | AN95: 337 | AO95: 627 | AP95: 0.5374800638 | AQ95: 301 | AR95: 325 | AS95: 626 | AT95: 0.5191693291 | AU95: 0.5338070537 | AV95: 62 | AW95: 62 | AX95: Polymorphism
A96: VAF, many samples, ESP6500, dbSNP, ExAC, ClinVar, prediction | B96: UPN_Te3_041 | C96: 4 | D96: 106196951 | E96: A | F96: G | G96: TET2 | H96: ENST00000380013 | I96: missense_variant | J96: Ata/Gta|p.Ile1762Val/c.5284A>G | K96: 400 | L96: 277 | M96: 677 | N96: 0.4091580502 | O96: 1 | P96: 1 | Q96: 1 | R96: 1 | S96: 1 | T96: 1 | U96: 1 | V96: 1 | W96: 8 | X96: 37.335 | Y96: NO | Z96: COSM3760322 | AA96: haematopoietic_and_lymphoid_tissue, prostate, thyroid | AB96: 2, 5, 1 | AC96: rs2454206 | AD96: rs2454206 | AE96: NO | AF96: 0.272 | AG96: NO | AH96: YES | AI96: 0.041 | AJ96: Tolerated | AK96: 38.4 | AL96: 38.99 | AM96: 165 | AN96: 130 | AO96: 295 | AP96: 0.4406779661 | AQ96: 235 | AR96: 147 | AS96: 382 | AT96: 0.3848167539 | AU96: 0.156104151 | AV96: 62 | AW96: 62 | AX96: Polymorphism
A97: VAF, many samples, ESP6500, dbSNP, ExAC, ClinVar, prediction | B97: UPN_Te3_042 | C97: 4 | D97: 106196951 | E97: A | F97: G | G97: TET2 | H97: ENST00000380013 | I97: missense_variant | J97: Ata/Gta|p.Ile1762Val/c.5284A>G | K97: 9 | L97: 1460 | M97: 1470 | N97: 0.9931972789 | O97: 1 | P97: 1 | Q97: 1 | R97: 1 | S97: 1 | T97: 1 | U97: 1 | V97: 1 | W97: 8 | X97: 37.335 | Y97: NO | Z97: COSM3760322 | AA97: haematopoietic_and_lymphoid_tissue, prostate, thyroid | AB97: 2, 5, 1 | AC97: rs2454206 | AD97: rs2454206 | AE97: NO | AF97: 0.272 | AG97: NO | AH97: YES | AI97: 0.041 | AJ97: Tolerated | AK97: 39.89 | AL97: 39.11 | AM97: 5 | AN97: 595 | AO97: 600 | AP97: 0.9916666667 | AQ97: 4 | AR97: 865 | AS97: 870 | AT97: 0.9942528736 | AU97: 0.4993803861 | AV97: 62 | AW97: 62 | AX97: Polymorphism
A98: VAF, many samples, ESP6500, dbSNP, ExAC, ClinVar, prediction | B98: UPN_Te3_082 | C98: 4 | D98: 106196951 | E98: A | F98: G | G98: TET2 | H98: ENST00000380013 | I98: missense_variant | J98: Ata/Gta|p.Ile1762Val/c.5284A>G | K98: 1 | L98: 713 | M98: 715 | N98: 0.9972027972 | O98: 1 | P98: 1 | Q98: 1 | R98: 1 | S98: 1 | T98: 1 | U98: 1 | V98: 1 | W98: 8 | X98: 37.335 | Y98: NO | Z98: COSM3760322 | AA98: haematopoietic_and_lymphoid_tissue, prostate, thyroid | AB98: 2, 5, 1 | AC98: rs2454206 | AD98: rs2454206 | AE98: NO | AF98: 0.272 | AG98: NO | AH98: YES | AI98: 0.041 | AJ98: Tolerated | AK98: 40 | AL98: 38.13 | AM98: 0 | AN98: 454 | AO98: 454 | AP98: 1 | AQ98: 1 | AR98: 259 | AS98: 261 | AT98: 0.9923371648 | AU98: 0.3641456583 | AV98: 62 | AW98: 62 | AX98: Polymorphism
A99: VAF, many samples, ESP6500, dbSNP, ExAC, ClinVar, prediction | B99: UPN_Te3_009 | C99: 4 | D99: 106196951 | E99: A | F99: G | G99: TET2 | H99: ENST00000380013 | I99: missense_variant | J99: Ata/Gta|p.Ile1762Val/c.5284A>G | K99: 785 | L99: 891 | M99: 1677 | N99: 0.5313059034 | O99: 1 | P99: 1 | Q99: 1 | R99: 1 | S99: 1 | T99: 1 | U99: 1 | V99: 1 | W99: 8 | X99: 37.335 | Y99: NO | Z99: COSM3760322 | AA99: haematopoietic_and_lymphoid_tissue, prostate, thyroid | AB99: 2, 5, 1 | AC99: rs2454206 | AD99: rs2454206 | AE99: NO | AF99: 0.272 | AG99: NO | AH99: YES | AI99: 0.041 | AJ99: Tolerated | AK99: 35.95 | AL99: 38.35 | AM99: 275 | AN99: 293 | AO99: 569 | AP99: 0.5149384886 | AQ99: 510 | AR99: 598 | AS99: 1108 | AT99: 0.5397111913 | AU99: 0.3793859759 | AV99: 62 | AW99: 62 | AX99: Polymorphism
A100: VAF, many samples, ESP6500, dbSNP, ExAC, ClinVar, prediction | B100: UPN_Te3_044 | C100: 4 | D100: 106196951 | E100: A | F100: G | G100: TET2 | H100: ENST00000380013 | I100: missense_variant | J100: Ata/Gta|p.Ile1762Val/c.5284A>G | K100: 518 | L100: 627 | M100: 1146 | N100: 0.5471204188 | O100: 1 | P100: 0 | Q100: 1 | R100: 1 | S100: 1 | T100: 1 | U100: 1 | V100: 1 | W100: 7 | X100: 37.335 | Y100: NO | Z100: COSM3760322 | AA100: haematopoietic_and_lymphoid_tissue, prostate, thyroid | AB100: 2, 5, 1 | AC100: rs2454206 | AD100: rs2454206 | AE100: NO | AF100: 0.272 | AG100: NO | AH100: YES | AI100: 0.041 | AJ100: Tolerated | AK100: 38.03 | AL100: 38.67 | AM100: 223 | AN100: 286 | AO100: 510 | AP100: 0.5607843137 | AQ100: 295 | AR100: 341 | AS100: 636 | AT100: 0.536163522 | AU100: 0.4031145744 | AV100: 62 | AW100: 62 | AX100: Polymorphism
A101: VAF, many samples, ESP6500, dbSNP, ExAC, ClinVar, prediction | B101: UPN_Te3_010 | C101: 4 | D101: 106196951 | E101: A | F101: G | G101: TET2 | H101: ENST00000380013 | I101: missense_variant | J101: Ata/Gta|p.Ile1762Val/c.5284A>G | K101: 789 | L101: 841 | M101: 1637 | N101: 0.5137446549 | O101: 1 | P101: 1 | Q101: 1 | R101: 1 | S101: 1 | T101: 1 | U101: 1 | V101: 1 | W101: 8 | X101: 37.335 | Y101: NO | Z101: COSM3760322 | AA101: haematopoietic_and_lymphoid_tissue, prostate, thyroid | AB101: 2, 5, 1 | AC101: rs2454206 | AD101: rs2454206 | AE101: NO | AF101: 0.272 | AG101: NO | AH101: YES | AI101: 0.041 | AJ101: Tolerated | AK101: 37.48 | AL101: 38.81 | AM101: 425 | AN101: 459 | AO101: 885 | AP101: 0.5186440678 | AQ101: 364 | AR101: 382 | AS101: 752 | AT101: 0.5079787234 | AU101: 0.8036057897 | AV101: 62 | AW101: 62 | AX101: Polymorphism
A102: VAF, many samples, ESP6500, dbSNP, ExAC, ClinVar, prediction | B102: UPN_Te3_011 | C102: 4 | D102: 106196951 | E102: A | F102: G | G102: TET2 | H102: ENST00000380013 | I102: missense_variant | J102: Ata/Gta|p.Ile1762Val/c.5284A>G | K102: 451 | L102: 314 | M102: 766 | N102: 0.409921671 | O102: 1 | P102: 1 | Q102: 1 | R102: 1 | S102: 1 | T102: 1 | U102: 1 | V102: 1 | W102: 8 | X102: 37.335 | Y102: NO | Z102: COSM3760322 | AA102: haematopoietic_and_lymphoid_tissue, prostate, thyroid | AB102: 2, 5, 1 | AC102: rs2454206 | AD102: rs2454206 | AE102: NO | AF102: 0.272 | AG102: NO | AH102: YES | AI102: 0.041 | AJ102: Tolerated | AK102: 38.01 | AL102: 39.18 | AM102: 242 | AN102: 163 | AO102: 406 | AP102: 0.4014778325 | AQ102: 209 | AR102: 151 | AS102: 360 | AT102: 0.4194444444 | AU102: 0.6589325147 | AV102: 62 | AW102: 62 | AX102: Polymorphism
A103: VAF, many samples, ESP6500, dbSNP, ExAC, ClinVar, prediction | B103: UPN_Te3_046 | C103: 4 | D103: 106196951 | E103: A | F103: G | G103: TET2 | H103: ENST00000380013 | I103: missense_variant | J103: Ata/Gta|p.Ile1762Val/c.5284A>G | K103: 775 | L103: 1011 | M103: 1792 | N103: 0.5641741071 | O103: 1 | P103: 1 | Q103: 1 | R103: 1 | S103: 1 | T103: 1 | U103: 1 | V103: 1 | W103: 8 | X103: 37.335 | Y103: NO | Z103: COSM3760322 | AA103: haematopoietic_and_lymphoid_tissue, prostate, thyroid | AB103: 2, 5, 1 | AC103: rs2454206 | AD103: rs2454206 | AE103: NO | AF103: 0.272 | AG103: NO | AH103: YES | AI103: 0.041 | AJ103: Tolerated | AK103: 37.57 | AL103: 38.5 | AM103: 384 | AN103: 460 | AO103: 844 | AP103: 0.5450236967 | AQ103: 391 | AR103: 551 | AS103: 948 | AT103: 0.5812236287 | AU103: 0.0942750095 | AV103: 62 | AW103: 62 | AX103: Polymorphism
A104: VAF, many samples, ESP6500, dbSNP, ExAC, ClinVar, prediction | B104: UPN_Te3_047 | C104: 4 | D104: 106196951 | E104: A | F104: G | G104: TET2 | H104: ENST00000380013 | I104: missense_variant | J104: Ata/Gta|p.Ile1762Val/c.5284A>G | K104: 568 | L104: 688 | M104: 1260 | N104: 0.546031746 | O104: 1 | P104: 1 | Q104: 1 | R104: 1 | S104: 1 | T104: 1 | U104: 1 | V104: 1 | W104: 8 | X104: 37.335 | Y104: NO | Z104: COSM3760322 | AA104: haematopoietic_and_lymphoid_tissue, prostate, thyroid | AB104: 2, 5, 1 | AC104: rs2454206 | AD104: rs2454206 | AE104: NO | AF104: 0.272 | AG104: NO | AH104: YES | AI104: 0.041 | AJ104: Tolerated | AK104: 37 | AL104: 38.62 | AM104: 228 | AN104: 289 | AO104: 517 | AP104: 0.5589941973 | AQ104: 340 | AR104: 399 | AS104: 743 | AT104: 0.5370121131 | AU104: 0.5264798264 | AV104: 62 | AW104: 62 | AX104: Polymorphism
A105: VAF, many samples, ESP6500, dbSNP, ExAC, ClinVar, prediction | B105: UPN_Te3_012 | C105: 4 | D105: 106196951 | E105: A | F105: G | G105: TET2 | H105: ENST00000380013 | I105: missense_variant | J105: Ata/Gta|p.Ile1762Val/c.5284A>G | K105: 276 | L105: 350 | M105: 627 | N105: 0.5582137161 | O105: 0 | P105: 1 | Q105: 1 | R105: 1 | S105: 1 | T105: 1 | U105: 1 | V105: 1 | W105: 7 | X105: 37.335 | Y105: NO | Z105: COSM3760322 | AA105: haematopoietic_and_lymphoid_tissue, prostate, thyroid | AB105: 2, 5, 1 | AC105: rs2454206 | AD105: rs2454206 | AE105: NO | AF105: 0.272 | AG105: NO | AH105: YES | AI105: 0.041 | AJ105: Tolerated | AK105: 36.87 | AL105: 38.66 | AM105: 161 | AN105: 208 | AO105: 370 | AP105: 0.5621621622 | AQ105: 115 | AR105: 142 | AS105: 257 | AT105: 0.5525291829 | AU105: 0.8063549365 | AV105: 62 | AW105: 62 | AX105: Polymorphism
A106: VAF, many samples, ESP6500, dbSNP, ExAC, ClinVar, prediction | B106: UPN_Te3_053 | C106: 4 | D106: 106196951 | E106: A | F106: G | G106: TET2 | H106: ENST00000380013 | I106: missense_variant | J106: Ata/Gta|p.Ile1762Val/c.5284A>G | K106: 736 | L106: 695 | M106: 1439 | N106: 0.4829742877 | O106: 1 | P106: 1 | Q106: 1 | R106: 1 | S106: 1 | T106: 1 | U106: 1 | V106: 1 | W106: 8 | X106: 37.335 | Y106: NO | Z106: COSM3760322 | AA106: haematopoietic_and_lymphoid_tissue, prostate, thyroid | AB106: 2, 5, 1 | AC106: rs2454206 | AD106: rs2454206 | AE106: NO | AF106: 0.272 | AG106: NO | AH106: YES | AI106: 0.041 | AJ106: Tolerated | AK106: 37.28 | AL106: 38.61 | AM106: 314 | AN106: 284 | AO106: 602 | AP106: 0.4717607973 | AQ106: 422 | AR106: 411 | AS106: 837 | AT106: 0.4910394265 | AU106: 0.5199676711 | AV106: 62 | AW106: 62 | AX106: Polymorphism
A107: VAF, many samples, ESP6500, dbSNP, ExAC, ClinVar, prediction | B107: UPN_Te3_054 | C107: 4 | D107: 106196951 | E107: A | F107: G | G107: TET2 | H107: ENST00000380013 | I107: missense_variant | J107: Ata/Gta|p.Ile1762Val/c.5284A>G | K107: 373 | L107: 894 | M107: 1268 | N107: 0.7050473186 | O107: 1 | P107: 1 | Q107: 1 | R107: 1 | S107: 1 | T107: 1 | U107: 1 | V107: 1 | W107: 8 | X107: 37.335 | Y107: NO | Z107: COSM3760322 | AA107: haematopoietic_and_lymphoid_tissue, prostate, thyroid | AB107: 2, 5, 1 | AC107: rs2454206 | AD107: rs2454206 | AE107: NO | AF107: 0.272 | AG107: NO | AH107: YES | AI107: 0.041 | AJ107: Tolerated | AK107: 37.12 | AL107: 38.8 | AM107: 195 | AN107: 437 | AO107: 633 | AP107: 0.6903633491 | AQ107: 178 | AR107: 457 | AS107: 635 | AT107: 0.7196850394 | AU107: 0.2946968449 | AV107: 62 | AW107: 62 | AX107: Polymorphism
A108: VAF, many samples, ESP6500, dbSNP, ExAC, ClinVar, prediction | B108: UPN_Te3_055 | C108: 4 | D108: 106196951 | E108: A | F108: G | G108: TET2 | H108: ENST00000380013 | I108: missense_variant | J108: Ata/Gta|p.Ile1762Val/c.5284A>G | K108: 7 | L108: 1054 | M108: 1062 | N108: 0.9924670433 | O108: 1 | P108: 1 | Q108: 1 | R108: 1 | S108: 1 | T108: 1 | U108: 1 | V108: 1 | W108: 8 | X108: 37.335 | Y108: NO | Z108: COSM3760322 | AA108: haematopoietic_and_lymphoid_tissue, prostate, thyroid | AB108: 2, 5, 1 | AC108: rs2454206 | AD108: rs2454206 | AE108: NO | AF108: 0.272 | AG108: NO | AH108: YES | AI108: 0.041 | AJ108: Tolerated | AK108: 39 | AL108: 39 | AM108: 3 | AN108: 513 | AO108: 516 | AP108: 0.9941860465 | AQ108: 4 | AR108: 541 | AS108: 546 | AT108: 0.9908424908 | AU108: 1 | AV108: 62 | AW108: 62 | AX108: Polymorphism
A109: VAF, many samples, ESP6500, dbSNP, ExAC, ClinVar, prediction | B109: UPN_Te3_056 | C109: 4 | D109: 106196951 | E109: A | F109: G | G109: TET2 | H109: ENST00000380013 | I109: missense_variant | J109: Ata/Gta|p.Ile1762Val/c.5284A>G | K109: 3 | L109: 1522 | M109: 1526 | N109: 0.997378768 | O109: 1 | P109: 1 | Q109: 1 | R109: 1 | S109: 1 | T109: 1 | U109: 1 | V109: 1 | W109: 8 | X109: 37.335 | Y109: NO | Z109: COSM3760322 | AA109: haematopoietic_and_lymphoid_tissue, prostate, thyroid | AB109: 2, 5, 1 | AC109: rs2454206 | AD109: rs2454206 | AE109: NO | AF109: 0.272 | AG109: NO | AH109: YES | AI109: 0.041 | AJ109: Tolerated | AK109: 37.67 | AL109: 38.81 | AM109: 1 | AN109: 757 | AO109: 758 | AP109: 0.9986807388 | AQ109: 2 | AR109: 765 | AS109: 768 | AT109: 0.99609375 | AU109: 1 | AV109: 62 | AW109: 62 | AX109: Polymorphism
A110: VAF, many samples, ESP6500, dbSNP, ExAC, ClinVar, prediction | B110: UPN_Te3_057 | C110: 4 | D110: 106196951 | E110: A | F110: G | G110: TET2 | H110: ENST00000380013 | I110: missense_variant | J110: Ata/Gta|p.Ile1762Val/c.5284A>G | K110: 421 | L110: 382 | M110: 804 | N110: 0.4751243781 | O110: 1 | P110: 1 | Q110: 1 | R110: 1 | S110: 1 | T110: 1 | U110: 1 | V110: 1 | W110: 8 | X110: 37.335 | Y110: NO | Z110: COSM3760322 | AA110: haematopoietic_and_lymphoid_tissue, prostate, thyroid | AB110: 2, 5, 1 | AC110: rs2454206 | AD110: rs2454206 | AE110: NO | AF110: 0.272 | AG110: NO | AH110: YES | AI110: 0.041 | AJ110: Tolerated | AK110: 37.22 | AL110: 38.65 | AM110: 151 | AN110: 149 | AO110: 301 | AP110: 0.4950166113 | AQ110: 270 | AR110: 233 | AS110: 503 | AT110: 0.4632206759 | AU110: 0.3810468916 | AV110: 62 | AW110: 62 | AX110: Polymorphism
A111: VAF, many samples, ESP6500, dbSNP, ExAC, ClinVar, prediction | B111: UPN_Te3_058 | C111: 4 | D111: 106196951 | E111: A | F111: G | G111: TET2 | H111: ENST00000380013 | I111: missense_variant | J111: Ata/Gta|p.Ile1762Val/c.5284A>G | K111: 675 | L111: 625 | M111: 1301 | N111: 0.4803996925 | O111: 1 | P111: 1 | Q111: 1 | R111: 1 | S111: 1 | T111: 1 | U111: 1 | V111: 1 | W111: 8 | X111: 37.335 | Y111: NO | Z111: COSM3760322 | AA111: haematopoietic_and_lymphoid_tissue, prostate, thyroid | AB111: 2, 5, 1 | AC111: rs2454206 | AD111: rs2454206 | AE111: NO | AF111: 0.272 | AG111: NO | AH111: YES | AI111: 0.041 | AJ111: Tolerated | AK111: 36.84 | AL111: 38.19 | AM111: 236 | AN111: 218 | AO111: 454 | AP111: 0.4801762115 | AQ111: 439 | AR111: 407 | AS111: 847 | AT111: 0.4805194805 | AU111: 1 | AV111: 62 | AW111: 62 | AX111: Polymorphism
A112: VAF, many samples, ESP6500, dbSNP, ExAC, ClinVar, prediction | B112: UPN_Te3_059 | C112: 4 | D112: 106196951 | E112: A | F112: G | G112: TET2 | H112: ENST00000380013 | I112: missense_variant | J112: Ata/Gta|p.Ile1762Val/c.5284A>G | K112: 1 | L112: 1260 | M112: 1261 | N112: 0.9992069786 | O112: 1 | P112: 1 | Q112: 1 | R112: 1 | S112: 1 | T112: 1 | U112: 1 | V112: 1 | W112: 8 | X112: 37.335 | Y112: NO | Z112: COSM3760322 | AA112: haematopoietic_and_lymphoid_tissue, prostate, thyroid | AB112: 2, 5, 1 | AC112: rs2454206 | AD112: rs2454206 | AE112: NO | AF112: 0.272 | AG112: NO | AH112: YES | AI112: 0.041 | AJ112: Tolerated | AK112: 40 | AL112: 38.61 | AM112: 0 | AN112: 492 | AO112: 492 | AP112: 1 | AQ112: 1 | AR112: 768 | AS112: 769 | AT112: 0.9986996099 | AU112: 1 | AV112: 62 | AW112: 62 | AX112: Polymorphism
A113: VAF, many samples, ESP6500, dbSNP, ExAC, ClinVar, prediction | B113: UPN_Te3_061 | C113: 4 | D113: 106196951 | E113: A | F113: G | G113: TET2 | H113: ENST00000380013 | I113: missense_variant | J113: Ata/Gta|p.Ile1762Val/c.5284A>G | K113: 4 | L113: 526 | M113: 530 | N113: 0.9924528302 | O113: 1 | P113: 1 | Q113: 1 | R113: 1 | S113: 1 | T113: 1 | U113: 1 | V113: 1 | W113: 8 | X113: 37.335 | Y113: NO | Z113: COSM3760322 | AA113: haematopoietic_and_lymphoid_tissue, prostate, thyroid | AB113: 2, 5, 1 | AC113: rs2454206 | AD113: rs2454206 | AE113: NO | AF113: 0.272 | AG113: NO | AH113: YES | AI113: 0.041 | AJ113: Tolerated | AK113: 33.25 | AL113: 37.14 | AM113: 0 | AN113: 304 | AO113: 304 | AP113: 1 | AQ113: 4 | AR113: 222 | AS113: 226 | AT113: 0.982300885 | AU113: 0.0325587527 | AV113: 62 | AW113: 62 | AX113: Polymorphism
A114: VAF, many samples, ESP6500, dbSNP, ExAC, ClinVar, prediction | B114: UPN_Te3_063 | C114: 4 | D114: 106196951 | E114: A | F114: G | G114: TET2 | H114: ENST00000380013 | I114: missense_variant | J114: Ata/Gta|p.Ile1762Val/c.5284A>G | K114: 808 | L114: 1058 | M114: 1875 | N114: 0.5642666667 | O114: 1 | P114: 1 | Q114: 1 | R114: 1 | S114: 1 | T114: 1 | U114: 1 | V114: 1 | W114: 8 | X114: 37.335 | Y114: NO | Z114: COSM3760322 | AA114: haematopoietic_and_lymphoid_tissue, prostate, thyroid | AB114: 2, 5, 1 | AC114: rs2454206 | AD114: rs2454206 | AE114: NO | AF114: 0.272 | AG114: NO | AH114: YES | AI114: 0.041 | AJ114: Tolerated | AK114: 36.37 | AL114: 38.15 | AM114: 384 | AN114: 449 | AO114: 836 | AP114: 0.5370813397 | AQ114: 424 | AR114: 609 | AS114: 1039 | AT114: 0.5861405197 | AU114: 0.0306491382 | AV114: 62 | AW114: 62 | AX114: Polymorphism
A115: VAF, many samples, ESP6500, dbSNP, ExAC, ClinVar, prediction | B115: UPN_Te3_064 | C115: 4 | D115: 106196951 | E115: A | F115: G | G115: TET2 | H115: ENST00000380013 | I115: missense_variant | J115: Ata/Gta|p.Ile1762Val/c.5284A>G | K115: 65 | L115: 102 | M115: 167 | N115: 0.6107784431 | O115: 1 | P115: 1 | Q115: 1 | R115: 1 | S115: 1 | T115: 1 | U115: 1 | V115: 1 | W115: 8 | X115: 37.335 | Y115: NO | Z115: COSM3760322 | AA115: haematopoietic_and_lymphoid_tissue, prostate, thyroid | AB115: 2, 5, 1 | AC115: rs2454206 | AD115: rs2454206 | AE115: NO | AF115: 0.272 | AG115: NO | AH115: YES | AI115: 0.041 | AJ115: Tolerated | AK115: 36.06 | AL115: 37.38 | AM115: 26 | AN115: 50 | AO115: 76 | AP115: 0.6578947368 | AQ115: 39 | AR115: 52 | AS115: 91 | AT115: 0.5714285714 | AU115: 0.2689577297 | AV115: 62 | AW115: 62 | AX115: Polymorphism
A116: VAF, many samples, ESP6500, dbSNP, ExAC, ClinVar, prediction | B116: UPN_Te3_065 | C116: 4 | D116: 106196951 | E116: A | F116: G | G116: TET2 | H116: ENST00000380013 | I116: missense_variant | J116: Ata/Gta|p.Ile1762Val/c.5284A>G | K116: 0 | L116: 1747 | M116: 1747 | N116: 1 | O116: 1 | P116: 1 | Q116: 1 | R116: 1 | S116: 1 | T116: 1 | U116: 1 | V116: 1 | W116: 8 | X116: 37.335 | Y116: NO | Z116: COSM3760322 | AA116: haematopoietic_and_lymphoid_tissue, prostate, thyroid | AB116: 2, 5, 1 | AC116: rs2454206 | AD116: rs2454206 | AE116: NO | AF116: 0.272 | AG116: NO | AH116: YES | AI116: 0.041 | AJ116: Tolerated | AK116: 0 | AL116: 38.26 | AM116: 0 | AN116: 768 | AO116: 768 | AP116: 1 | AQ116: 0 | AR116: 979 | AS116: 979 | AT116: 1 | AU116: 1 | AV116: 62 | AW116: 62 | AX116: Polymorphism
A117: VAF, many samples, ESP6500, dbSNP, ExAC, ClinVar, prediction | B117: UPN_Te3_066 | C117: 4 | D117: 106196951 | E117: A | F117: G | G117: TET2 | H117: ENST00000380013 | I117: missense_variant | J117: Ata/Gta|p.Ile1762Val/c.5284A>G | K117: 0 | L117: 537 | M117: 538 | N117: 0.9981412639 | O117: 1 | P117: 1 | Q117: 1 | R117: 1 | S117: 1 | T117: 1 | U117: 1 | V117: 1 | W117: 8 | X117: 37.335 | Y117: NO | Z117: COSM3760322 | AA117: haematopoietic_and_lymphoid_tissue, prostate, thyroid | AB117: 2, 5, 1 | AC117: rs2454206 | AD117: rs2454206 | AE117: NO | AF117: 0.272 | AG117: NO | AH117: YES | AI117: 0.041 | AJ117: Tolerated | AK117: 0 | AL117: 37.23 | AM117: 0 | AN117: 302 | AO117: 303 | AP117: 0.99669967 | AQ117: 0 | AR117: 235 | AS117: 235 | AT117: 1 | AU117: 1 | AV117: 62 | AW117: 62 | AX117: Polymorphism
A118: VAF, many samples, ESP6500, dbSNP, ExAC, ClinVar, prediction | B118: UPN_Te3_067 | C118: 4 | D118: 106196951 | E118: A | F118: G | G118: TET2 | H118: ENST00000380013 | I118: missense_variant | J118: Ata/Gta|p.Ile1762Val/c.5284A>G | K118: 552 | L118: 773 | M118: 1326 | N118: 0.5829562594 | O118: 1 | P118: 1 | Q118: 1 | R118: 1 | S118: 1 | T118: 1 | U118: 1 | V118: 1 | W118: 8 | X118: 37.335 | Y118: NO | Z118: COSM3760322 | AA118: haematopoietic_and_lymphoid_tissue, prostate, thyroid | AB118: 2, 5, 1 | AC118: rs2454206 | AD118: rs2454206 | AE118: NO | AF118: 0.272 | AG118: NO | AH118: YES | AI118: 0.041 | AJ118: Tolerated | AK118: 37.5 | AL118: 38.34 | AM118: 214 | AN118: 265 | AO118: 479 | AP118: 0.5532359081 | AQ118: 338 | AR118: 508 | AS118: 847 | AT118: 0.5997638725 | AU118: 0.1043660458 | AV118: 62 | AW118: 62 | AX118: Polymorphism
A119: VAF, many samples, ESP6500, dbSNP, ExAC, ClinVar, prediction | B119: UPN_Te3_068 | C119: 4 | D119: 106196951 | E119: A | F119: G | G119: TET2 | H119: ENST00000380013 | I119: missense_variant | J119: Ata/Gta|p.Ile1762Val/c.5284A>G | K119: 2 | L119: 1863 | M119: 1865 | N119: 0.9989276139 | O119: 1 | P119: 1 | Q119: 1 | R119: 1 | S119: 1 | T119: 1 | U119: 1 | V119: 1 | W119: 8 | X119: 37.335 | Y119: NO | Z119: COSM3760322 | AA119: haematopoietic_and_lymphoid_tissue, prostate, thyroid | AB119: 2, 5, 1 | AC119: rs2454206 | AD119: rs2454206 | AE119: NO | AF119: 0.272 | AG119: NO | AH119: YES | AI119: 0.041 | AJ119: Tolerated | AK119: 40 | AL119: 38.04 | AM119: 0 | AN119: 619 | AO119: 619 | AP119: 1 | AQ119: 2 | AR119: 1244 | AS119: 1246 | AT119: 0.9983948636 | AU119: 1 | AV119: 62 | AW119: 62 | AX119: Polymorphism
A120: VAF, many samples, ESP6500, dbSNP, ExAC, ClinVar, prediction | B120: UPN_Te3_070 | C120: 4 | D120: 106196951 | E120: A | F120: G | G120: TET2 | H120: ENST00000380013 | I120: missense_variant | J120: Ata/Gta|p.Ile1762Val/c.5284A>G | K120: 4 | L120: 1900 | M120: 1904 | N120: 0.9978991597 | O120: 1 | P120: 1 | Q120: 1 | R120: 1 | S120: 1 | T120: 1 | U120: 1 | V120: 1 | W120: 8 | X120: 37.335 | Y120: NO | Z120: COSM3760322 | AA120: haematopoietic_and_lymphoid_tissue, prostate, thyroid | AB120: 2, 5, 1 | AC120: rs2454206 | AD120: rs2454206 | AE120: NO | AF120: 0.272 | AG120: NO | AH120: YES | AI120: 0.041 | AJ120: Tolerated | AK120: 34.25 | AL120: 37.77 | AM120: 2 | AN120: 910 | AO120: 912 | AP120: 0.9978070175 | AQ120: 2 | AR120: 990 | AS120: 992 | AT120: 0.997983871 | AU120: 1 | AV120: 62 | AW120: 62 | AX120: Polymorphism
A121: ESP6500, dbSNP, ExAC, ClinVar, prediction, many samples, likely SNP | B121: UPN_Te3_024 | C121: 4 | D121: 106197000 | E121: A | F121: G | G121: TET2 | H121: ENST00000380013 | I121: missense_variant | J121: cAt/cGt|p.His1778Arg/c.5333A>G | K121: 867 | L121: 145 | M121: 1015 | N121: 0.1428571429 | O121: 0 | P121: 1 | Q121: 0 | R121: 1 | S121: 1 | T121: 1 | U121: 0 | V121: 1 | W121: 5 | X121: 3.017 | Y121: NO | Z121: NO | AA121: NO | AB121: O | AC121: rs62621450 | AD121: rs62621450 | AE121: NO | AF121: 0.045 | AG121: NO | AH121: YES | AI121: -1.986 | AJ121: Tolerated | AK121: 38.57 | AL121: 38.24 | AM121: 471 | AN121: 66 | AO121: 538 | AP121: 0.1226765799 | AQ121: 396 | AR121: 79 | AS121: 477 | AT121: 0.1656184486 | AU121: 0.0588035905 | AV121: 11 | AW121: 11 | AX121: Probably True (-1)
A122: ESP6500, dbSNP, ExAC, ClinVar, prediction, many samples, likely SNP | B122: UPN_Te3_015 | C122: 4 | D122: 106197000 | E122: A | F122: G | G122: TET2 | H122: ENST00000380013 | I122: missense_variant | J122: cAt/cGt|p.His1778Arg/c.5333A>G | K122: 959 | L122: 232 | M122: 1194 | N122: 0.1943048576 | O122: 0 | P122: 0 | Q122: 0 | R122: 1 | S122: 1 | T122: 1 | U122: 1 | V122: 1 | W122: 5 | X122: 3.017 | Y122: NO | Z122: NO | AA122: NO | AB122: O | AC122: rs62621450 | AD122: rs62621450 | AE122: NO | AF122: 0.045 | AG122: NO | AH122: YES | AI122: -1.986 | AJ122: Tolerated | AK122: 38.31 | AL122: 36.34 | AM122: 386 | AN122: 99 | AO122: 485 | AP122: 0.2041237113 | AQ122: 573 | AR122: 133 | AS122: 709 | AT122: 0.1875881523 | AU122: 0.5036898794 | AV122: 11 | AW122: 11 | AX122: Probably True (-1)
A123: ESP6500, dbSNP, ExAC, ClinVar, prediction, many samples | B123: UPN_Te3_030 | C123: 4 | D123: 106197000 | E123: A | F123: G | G123: TET2 | H123: ENST00000380013 | I123: missense_variant | J123: cAt/cGt|p.His1778Arg/c.5333A>G | K123: 579 | L123: 342 | M123: 925 | N123: 0.3697297297 | O123: 1 | P123: 1 | Q123: 1 | R123: 1 | S123: 1 | T123: 1 | U123: 1 | V123: 1 | W123: 8 | X123: 3.017 | Y123: NO | Z123: NO | AA123: NO | AB123: O | AC123: rs62621450 | AD123: rs62621450 | AE123: NO | AF123: 0.045 | AG123: NO | AH123: YES | AI123: -1.986 | AJ123: Tolerated | AK123: 39.13 | AL123: 38.46 | AM123: 303 | AN123: 204 | AO123: 508 | AP123: 0.4015748031 | AQ123: 276 | AR123: 138 | AS123: 417 | AT123: 0.3309352518 | AU123: 0.0336224619 | AV123: 11 | AW123: 11 | AX123: Polymorphism
A124: ESP6500, dbSNP, ExAC, ClinVar, prediction, many samples, likely SNP | B124: UPN_Te3_035 | C124: 4 | D124: 106197000 | E124: A | F124: G | G124: TET2 | H124: ENST00000380013 | I124: missense_variant | J124: cAt/cGt|p.His1778Arg/c.5333A>G | K124: 684 | L124: 96 | M124: 781 | N124: 0.1229193342 | O124: 0 | P124: 1 | Q124: 0 | R124: 1 | S124: 1 | T124: 1 | U124: 0 | V124: 1 | W124: 5 | X124: 3.017 | Y124: NO | Z124: NO | AA124: NO | AB124: O | AC124: rs62621450 | AD124: rs62621450 | AE124: NO | AF124: 0.045 | AG124: NO | AH124: YES | AI124: -1.986 | AJ124: Tolerated | AK124: 38.76 | AL124: 37.54 | AM124: 291 | AN124: 49 | AO124: 340 | AP124: 0.1441176471 | AQ124: 393 | AR124: 47 | AS124: 441 | AT124: 0.1065759637 | AU124: 0.1245749501 | AV124: 11 | AW124: 11 | AX124: Probably True (-1)
A125: ESP6500, dbSNP, ExAC, ClinVar, prediction, many samples, likely SNP | B125: UPN_Te3_037 | C125: 4 | D125: 106197000 | E125: A | F125: G | G125: TET2 | H125: ENST00000380013 | I125: missense_variant | J125: cAt/cGt|p.His1778Arg/c.5333A>G | K125: 1042 | L125: 173 | M125: 1219 | N125: 0.1419196062 | O125: 0 | P125: 1 | Q125: 0 | R125: 1 | S125: 1 | T125: 1 | U125: 0 | V125: 1 | W125: 5 | X125: 3.017 | Y125: NO | Z125: NO | AA125: NO | AB125: O | AC125: rs62621450 | AD125: rs62621450 | AE125: NO | AF125: 0.045 | AG125: NO | AH125: YES | AI125: -1.986 | AJ125: Tolerated | AK125: 39.28 | AL125: 38.6 | AM125: 470 | AN125: 94 | AO125: 566 | AP125: 0.1660777385 | AQ125: 572 | AR125: 79 | AS125: 653 | AT125: 0.1209800919 | AU125: 0.0262588935 | AV125: 11 | AW125: 11 | AX125: Probably True (-1)
A126: ESP6500, dbSNP, ExAC, ClinVar, prediction, many samples | B126: UPN_Te3_040 | C126: 4 | D126: 106197000 | E126: A | F126: G | G126: TET2 | H126: ENST00000380013 | I126: missense_variant | J126: cAt/cGt|p.His1778Arg/c.5333A>G | K126: 940 | L126: 297 | M126: 1241 | N126: 0.2393231265 | O126: 1 | P126: 1 | Q126: 1 | R126: 1 | S126: 1 | T126: 1 | U126: 1 | V126: 1 | W126: 8 | X126: 3.017 | Y126: NO | Z126: NO | AA126: NO | AB126: O | AC126: rs62621450 | AD126: rs62621450 | AE126: NO | AF126: 0.045 | AG126: NO | AH126: YES | AI126: -1.986 | AJ126: Tolerated | AK126: 39.41 | AL126: 38.1 | AM126: 458 | AN126: 151 | AO126: 611 | AP126: 0.2471358429 | AQ126: 482 | AR126: 146 | AS126: 630 | AT126: 0.2317460317 | AU126: 0.549279653 | AV126: 11 | AW126: 11 | AX126: Polymorphism
A127: ESP6500, dbSNP, ExAC, ClinVar, prediction, many samples, likely SNP | B127: UPN_Te3_060 | C127: 4 | D127: 106197000 | E127: A | F127: G | G127: TET2 | H127: ENST00000380013 | I127: missense_variant | J127: cAt/cGt|p.His1778Arg/c.5333A>G | K127: 1053 | L127: 175 | M127: 1229 | N127: 0.1423921888 | O127: 0 | P127: 1 | Q127: 0 | R127: 1 | S127: 1 | T127: 1 | U127: 0 | V127: 1 | W127: 5 | X127: 3.017 | Y127: NO | Z127: NO | AA127: NO | AB127: O | AC127: rs62621450 | AD127: rs62621450 | AE127: NO | AF127: 0.045 | AG127: NO | AH127: YES | AI127: -1.986 | AJ127: Tolerated | AK127: 38.35 | AL127: 35.88 | AM127: 319 | AN127: 46 | AO127: 365 | AP127: 0.1260273973 | AQ127: 734 | AR127: 129 | AS127: 864 | AT127: 0.1493055556 | AU127: 0.3258546045 | AV127: 11 | AW127: 11 | AX127: Probably True (-1)
A128: ESP6500, dbSNP, ExAC, ClinVar, prediction, many samples, likely SNP | B128: UPN_Te3_071 | C128: 4 | D128: 106197000 | E128: A | F128: G | G128: TET2 | H128: ENST00000380013 | I128: missense_variant | J128: cAt/cGt|p.His1778Arg/c.5333A>G | K128: 431 | L128: 79 | M128: 510 | N128: 0.1549019608 | O128: 1 | P128: 1 | Q128: 0 | R128: 1 | S128: 1 | T128: 1 | U128: 0 | V128: 1 | W128: 6 | X128: 3.017 | Y128: NO | Z128: NO | AA128: NO | AB128: O | AC128: rs62621450 | AD128: rs62621450 | AE128: NO | AF128: 0.045 | AG128: NO | AH128: YES | AI128: -1.986 | AJ128: Tolerated | AK128: 35.44 | AL128: 33.89 | AM128: 291 | AN128: 50 | AO128: 341 | AP128: 0.146627566 | AQ128: 140 | AR128: 29 | AS128: 169 | AT128: 0.1715976331 | AU128: 0.5158451639 | AV128: 11 | AW128: 11 | AX128: Probably True (-2)
A129: dbSNP, ClinVar, prediction, many samples, VAF | B129: UPN_Te3_077 | C129: 7 | D129: 148525904 | E129: C | F129: G | G129: EZH2 | H129: ENST00000320356 | I129: missense_variant | J129: Gac/Cac|p.Asp185His/c.553G>C | K129: 45 | L129: 41 | M129: 87 | N129: 0.4712643678 | O129: 1 | P129: 1 | Q129: 1 | R129: 1 | S129: 1 | T129: 1 | U129: 1 | V129: 1 | W129: 8 | X129: NO | Y129: NO | Z129: COSM3762469 | AA129: soft_tissue, thyroid | AB129: 3, 1 | AC129: rs2302427 | AD129: rs2302427 | AE129: NO | AF129: NO | AG129: NO | AH129: YES | AI129: -1.884 | AJ129: Tolerated | AK129: 38.76 | AL129: 38.9 | AM129: 27 | AN129: 23 | AO129: 50 | AP129: 0.46 | AQ129: 18 | AR129: 18 | AS129: 37 | AT129: 0.4864864865 | AU129: 0.8273917199 | AV129: 13 | AW129: 13 | AX129: Polymorphism
A130: dbSNP, ClinVar, prediction, many samples, VAF | B130: UPN_Te3_078 | C130: 7 | D130: 148525904 | E130: C | F130: G | G130: EZH2 | H130: ENST00000320356 | I130: missense_variant | J130: Gac/Cac|p.Asp185His/c.553G>C | K130: 61 | L130: 52 | M130: 113 | N130: 0.4601769912 | O130: 1 | P130: 1 | Q130: 1 | R130: 1 | S130: 1 | T130: 1 | U130: 1 | V130: 1 | W130: 8 | X130: NO | Y130: NO | Z130: COSM3762469 | AA130: soft_tissue, thyroid | AB130: 3, 1 | AC130: rs2302427 | AD130: rs2302427 | AE130: NO | AF130: NO | AG130: NO | AH130: YES | AI130: -1.884 | AJ130: Tolerated | AK130: 39.43 | AL130: 38.29 | AM130: 27 | AN130: 25 | AO130: 52 | AP130: 0.4807692308 | AQ130: 34 | AR130: 27 | AS130: 61 | AT130: 0.4426229508 | AU130: 0.7087363748 | AV130: 13 | AW130: 13 | AX130: Polymorphism
A131: dbSNP, ClinVar, prediction, many samples, VAF | B131: UPN_Te3_028 | C131: 7 | D131: 148525904 | E131: C | F131: G | G131: EZH2 | H131: ENST00000320356 | I131: missense_variant | J131: Gac/Cac|p.Asp185His/c.553G>C | K131: 95 | L131: 103 | M131: 201 | N131: 0.5124378109 | O131: 1 | P131: 1 | Q131: 1 | R131: 1 | S131: 1 | T131: 1 | U131: 1 | V131: 1 | W131: 8 | X131: NO | Y131: NO | Z131: COSM3762469 | AA131: soft_tissue, thyroid | AB131: 3, 1 | AC131: rs2302427 | AD131: rs2302427 | AE131: NO | AF131: NO | AG131: NO | AH131: YES | AI131: -1.884 | AJ131: Tolerated | AK131: 39.76 | AL131: 39.61 | AM131: 44 | AN131: 54 | AO131: 99 | AP131: 0.5454545455 | AQ131: 51 | AR131: 49 | AS131: 102 | AT131: 0.4803921569 | AU131: 0.3978084654 | AV131: 13 | AW131: 13 | AX131: Polymorphism
A132: dbSNP, ClinVar, prediction, many samples, VAF | B132: UPN_Te3_085 | C132: 7 | D132: 148525904 | E132: C | F132: G | G132: EZH2 | H132: ENST00000320356 | I132: missense_variant | J132: Gac/Cac|p.Asp185His/c.553G>C | K132: 273 | L132: 107 | M132: 390 | N132: 0.2743589744 | O132: 1 | P132: 1 | Q132: 1 | R132: 1 | S132: 1 | T132: 1 | U132: 1 | V132: 1 | W132: 8 | X132: NO | Y132: NO | Z132: COSM3762469 | AA132: soft_tissue, thyroid | AB132: 3, 1 | AC132: rs2302427 | AD132: rs2302427 | AE132: NO | AF132: NO | AG132: NO | AH132: YES | AI132: -1.884 | AJ132: Tolerated | AK132: 39.34 | AL132: 39.35 | AM132: 209 | AN132: 34 | AO132: 245 | AP132: 0.1387755102 | AQ132: 64 | AR132: 73 | AS132: 145 | AT132: 0.5034482759 | AU132: 1.156685408e-15 | AV132: 13 | AW132: 13 | AX132: Polymorphism
A133: dbSNP, ClinVar, prediction, many samples, VAF | B133: UPN_Te3_006 | C133: 7 | D133: 148525904 | E133: C | F133: G | G133: EZH2 | H133: ENST00000320356 | I133: missense_variant | J133: Gac/Cac|p.Asp185His/c.553G>C | K133: 87 | L133: 108 | M133: 201 | N133: 0.5373134328 | O133: 1 | P133: 1 | Q133: 1 | R133: 1 | S133: 1 | T133: 1 | U133: 1 | V133: 1 | W133: 8 | X133: NO | Y133: NO | Z133: COSM3762469 | AA133: soft_tissue, thyroid | AB133: 3, 1 | AC133: rs2302427 | AD133: rs2302427 | AE133: NO | AF133: NO | AG133: NO | AH133: YES | AI133: -1.884 | AJ133: Tolerated | AK133: 39.62 | AL133: 39.7 | AM133: 57 | AN133: 65 | AO133: 123 | AP133: 0.5284552846 | AQ133: 30 | AR133: 43 | AS133: 78 | AT133: 0.5512820513 | AU133: 0.4607559586 | AV133: 13 | AW133: 13 | AX133: Polymorphism
A134: dbSNP, ClinVar, prediction, many samples, VAF | B134: UPN_Te3_008 | C134: 7 | D134: 148525904 | E134: C | F134: G | G134: EZH2 | H134: ENST00000320356 | I134: missense_variant | J134: Gac/Cac|p.Asp185His/c.553G>C | K134: 96 | L134: 135 | M134: 237 | N134: 0.5696202532 | O134: 1 | P134: 1 | Q134: 1 | R134: 1 | S134: 1 | T134: 1 | U134: 1 | V134: 1 | W134: 8 | X134: NO | Y134: NO | Z134: COSM3762469 | AA134: soft_tissue, thyroid | AB134: 3, 1 | AC134: rs2302427 | AD134: rs2302427 | AE134: NO | AF134: NO | AG134: NO | AH134: YES | AI134: -1.884 | AJ134: Tolerated | AK134: 39.16 | AL134: 39.29 | AM134: 56 | AN134: 78 | AO134: 134 | AP134: 0.5820895522 | AQ134: 40 | AR134: 57 | AS134: 103 | AT134: 0.5533980583 | AU134: 1 | AV134: 13 | AW134: 13 | AX134: Polymorphism
A135: dbSNP, ClinVar, prediction, many samples, VAF | B135: UPN_Te3_033 | C135: 7 | D135: 148525904 | E135: C | F135: G | G135: EZH2 | H135: ENST00000320356 | I135: missense_variant | J135: Gac/Cac|p.Asp185His/c.553G>C | K135: 101 | L135: 81 | M135: 188 | N135: 0.4308510638 | O135: 1 | P135: 1 | Q135: 1 | R135: 1 | S135: 1 | T135: 1 | U135: 1 | V135: 1 | W135: 8 | X135: NO | Y135: NO | Z135: COSM3762469 | AA135: soft_tissue, thyroid | AB135: 3, 1 | AC135: rs2302427 | AD135: rs2302427 | AE135: NO | AF135: NO | AG135: NO | AH135: YES | AI135: -1.884 | AJ135: Tolerated | AK135: 39.88 | AL135: 38.67 | AM135: 51 | AN135: 44 | AO135: 97 | AP135: 0.4536082474 | AQ135: 50 | AR135: 37 | AS135: 91 | AT135: 0.4065934066 | AU135: 0.6555060361 | AV135: 13 | AW135: 13 | AX135: Polymorphism
A136: dbSNP, ClinVar, prediction, many samples, VAF | B136: UPN_Te3_037 | C136: 7 | D136: 148525904 | E136: C | F136: G | G136: EZH2 | H136: ENST00000320356 | I136: missense_variant | J136: Gac/Cac|p.Asp185His/c.553G>C | K136: 63 | L136: 70 | M136: 137 | N136: 0.5109489051 | O136: 1 | P136: 1 | Q136: 1 | R136: 1 | S136: 1 | T136: 1 | U136: 1 | V136: 1 | W136: 8 | X136: NO | Y136: NO | Z136: COSM3762469 | AA136: soft_tissue, thyroid | AB136: 3, 1 | AC136: rs2302427 | AD136: rs2302427 | AE136: NO | AF136: NO | AG136: NO | AH136: YES | AI136: -1.884 | AJ136: Tolerated | AK136: 39.46 | AL136: 39.83 | AM136: 31 | AN136: 44 | AO136: 76 | AP136: 0.5789473684 | AQ136: 32 | AR136: 26 | AS136: 61 | AT136: 0.4262295082 | AU136: 0.1196916416 | AV136: 13 | AW136: 13 | AX136: Polymorphism
A137: dbSNP, ClinVar, prediction, many samples, VAF | B137: UPN_Te3_045 | C137: 7 | D137: 148525904 | E137: C | F137: G | G137: EZH2 | H137: ENST00000320356 | I137: missense_variant | J137: Gac/Cac|p.Asp185His/c.553G>C | K137: 60 | L137: 32 | M137: 94 | N137: 0.3404255319 | O137: 1 | P137: 1 | Q137: 1 | R137: 1 | S137: 1 | T137: 1 | U137: 1 | V137: 1 | W137: 8 | X137: NO | Y137: NO | Z137: COSM3762469 | AA137: soft_tissue, thyroid | AB137: 3, 1 | AC137: rs2302427 | AD137: rs2302427 | AE137: NO | AF137: NO | AG137: NO | AH137: YES | AI137: -1.884 | AJ137: Tolerated | AK137: 39.55 | AL137: 39.97 | AM137: 38 | AN137: 21 | AO137: 60 | AP137: 0.35 | AQ137: 22 | AR137: 11 | AS137: 34 | AT137: 0.3235294118 | AU137: 1 | AV137: 13 | AW137: 13 | AX137: Polymorphism
A138: ESP6500, ExAC, prediction, VAF | B138: UPN_Te3_057 | C138: 12 | D138: 12006412 | E138: G | F138: A | G138: ETV6 | H138: ENST00000396373 | I138: missense_variant | J138: cGg/cAg|p.Arg127Gln/c.380G>A | K138: 39 | L138: 34 | M138: 73 | N138: 0.4657534247 | O138: 1 | P138: 1 | Q138: 1 | R138: 1 | S138: 1 | T138: 1 | U138: 1 | V138: 1 | W138: 8 | X138: 0.093 | Y138: NO | Z138: NO | AA138: NO | AB138: O | AC138: NO | AD138: rs140357643 | AE138: NO | AF138: 0.0005271 | AG138: NO | AH138: NO | AI138: -0.621 | AJ138: Tolerated | AK138: 37.18 | AL138: 38.29 | AM138: 11 | AN138: 15 | AO138: 26 | AP138: 0.5769230769 | AQ138: 28 | AR138: 19 | AS138: 47 | AT138: 0.4042553191 | AU138: 0.2209018599 | AV138: 1 | AW138: 1 | AX138: Polymorphism
A139: Many samples, VAF, ESP6500, 1000 Genomes, dbSNP, ExAC, ClinVar, prediction | B139: UPN_Te3_072 | C139: 17 | D139: 7579472 | E139: G | F139: C | G139: TP53 | H139: ENST00000269305 | I139: missense_variant | J139: cCc/cGc|p.Pro72Arg/c.215C>G | K139: 4 | L139: 64 | M139: 68 | N139: 0.9411764706 | O139: 1 | P139: 1 | Q139: 1 | R139: 1 | S139: 1 | T139: 1 | U139: 1 | V139: 1 | W139: 8 | X139: 25.4767 | Y139: 0.7147 | Z139: COSM3766190, COSM3766191, COSM250061, COSM3766193, COSM3766192 | AA139: large_intestine, liver, pancreas, pleura, prostate, soft_tissue, stomach, upper_aerodigestive_tract, urinary_tract, central_nervous_system | AB139: 10, 5, 15, 5, 5, 100, 5, 7, 5, 1 | AC139: rs1042522 | AD139: rs1042522 | AE139: NO | AF139: 0.659 | AG139: NO | AH139: YES | AI139: 0.155 | AJ139: Tolerated | AK139: 14 | AL139: 33.3 | AM139: 4 | AN139: 40 | AO139: 44 | AP139: 0.9090909091 | AQ139: 0 | AR139: 24 | AS139: 24 | AT139: 1 | AU139: 0.2890929966 | AV139: 82 | AW139: 84 | AX139: Polymorphism
A140: Many samples, VAF, ESP6500, 1000 Genomes, dbSNP, ExAC, ClinVar, prediction | B140: UPN_Te3_001 | C140: 17 | D140: 7579472 | E140: G | F140: C | G140: TP53 | H140: ENST00000269305 | I140: missense_variant | J140: cCc/cGc|p.Pro72Arg/c.215C>G | K140: 3 | L140: 125 | M140: 128 | N140: 0.9765625 | O140: 1 | P140: 1 | Q140: 1 | R140: 1 | S140: 1 | T140: 1 | U140: 1 | V140: 1 | W140: 8 | X140: 25.4767 | Y140: 0.7147 | Z140: COSM3766190, COSM3766191, COSM250061, COSM3766193, COSM3766192 | AA140: large_intestine, liver, pancreas, pleura, prostate, soft_tissue, stomach, upper_aerodigestive_tract, urinary_tract, central_nervous_system | AB140: 10, 5, 15, 5, 5, 100, 5, 7, 5, 1 | AC140: rs1042522 | AD140: rs1042522 | AE140: NO | AF140: 0.659 | AG140: NO | AH140: YES | AI140: 0.155 | AJ140: Tolerated | AK140: 17.67 | AL140: 36.65 | AM140: 2 | AN140: 62 | AO140: 64 | AP140: 0.96875 | AQ140: 1 | AR140: 63 | AS140: 64 | AT140: 0.984375 | AU140: 1 | AV140: 82 | AW140: 84 | AX140: Polymorphism
A141: Many samples, VAF, ESP6500, 1000 Genomes, dbSNP, ExAC, ClinVar, prediction | B141: UPN_Te3_024 | C141: 17 | D141: 7579472 | E141: G | F141: C | G141: TP53 | H141: ENST00000269305 | I141: missense_variant | J141: cCc/cGc|p.Pro72Arg/c.215C>G | K141: 4 | L141: 398 | M141: 402 | N141: 0.9900497512 | O141: 1 | P141: 1 | Q141: 1 | R141: 1 | S141: 1 | T141: 1 | U141: 1 | V141: 1 | W141: 8 | X141: 25.4767 | Y141: 0.7147 | Z141: COSM3766190, COSM3766191, COSM250061, COSM3766193, COSM3766192 | AA141: large_intestine, liver, pancreas, pleura, prostate, soft_tissue, stomach, upper_aerodigestive_tract, urinary_tract, central_nervous_system | AB141: 10, 5, 15, 5, 5, 100, 5, 7, 5, 1 | AC141: rs1042522 | AD141: rs1042522 | AE141: NO | AF141: 0.659 | AG141: NO | AH141: YES | AI141: 0.155 | AJ141: Tolerated | AK141: 19.75 | AL141: 35.95 | AM141: 3 | AN141: 155 | AO141: 158 | AP141: 0.9810126582 | AQ141: 1 | AR141: 243 | AS141: 244 | AT141: 0.9959016393 | AU141: 0.3045222484 | AV141: 82 | AW141: 84 | AX141: Polymorphism
A142: Many samples, VAF, ESP6500, 1000 Genomes, dbSNP, ExAC, ClinVar, prediction | B142: UPN_Te3_013 | C142: 17 | D142: 7579472 | E142: G | F142: C | G142: TP53 | H142: ENST00000269305 | I142: missense_variant | J142: cCc/cGc|p.Pro72Arg/c.215C>G | K142: 18 | L142: 874 | M142: 892 | N142: 0.9798206278 | O142: 1 | P142: 1 | Q142: 1 | R142: 1 | S142: 1 | T142: 1 | U142: 1 | V142: 1 | W142: 8 | X142: 25.4767 | Y142: 0.7147 | Z142: COSM3766190, COSM3766191, COSM250061, COSM3766193, COSM3766192 | AA142: large_intestine, liver, pancreas, pleura, prostate, soft_tissue, stomach, upper_aerodigestive_tract, urinary_tract, central_nervous_system | AB142: 10, 5, 15, 5, 5, 100, 5, 7, 5, 1 | AC142: rs1042522 | AD142: rs1042522 | AE142: NO | AF142: 0.659 | AG142: NO | AH142: YES | AI142: 0.155 | AJ142: Tolerated | AK142: 16.56 | AL142: 32.72 | AM142: 14 | AN142: 458 | AO142: 472 | AP142: 0.9703389831 | AQ142: 4 | AR142: 416 | AS142: 420 | AT142: 0.9904761905 | AU142: 0.0533740444 | AV142: 82 | AW142: 84 | AX142: Polymorphism
A143: Many samples, VAF, ESP6500, 1000 Genomes, dbSNP, ExAC, ClinVar, prediction | B143: UPN_Te3_014 | C143: 17 | D143: 7579472 | E143: G | F143: C | G143: TP53 | H143: ENST00000269305 | I143: missense_variant | J143: cCc/cGc|p.Pro72Arg/c.215C>G | K143: 112 | L143: 365 | M143: 477 | N143: 0.7651991614 | O143: 1 | P143: 1 | Q143: 1 | R143: 1 | S143: 1 | T143: 1 | U143: 1 | V143: 1 | W143: 8 | X143: 25.4767 | Y143: 0.7147 | Z143: COSM3766190, COSM3766191, COSM250061, COSM3766193, COSM3766192 | AA143: large_intestine, liver, pancreas, pleura, prostate, soft_tissue, stomach, upper_aerodigestive_tract, urinary_tract, central_nervous_system | AB143: 10, 5, 15, 5, 5, 100, 5, 7, 5, 1 | AC143: rs1042522 | AD143: rs1042522 | AE143: NO | AF143: 0.659 | AG143: NO | AH143: YES | AI143: 0.155 | AJ143: Tolerated | AK143: 14.79 | AL143: 31.73 | AM143: 52 | AN143: 201 | AO143: 253 | AP143: 0.7944664032 | AQ143: 60 | AR143: 164 | AS143: 224 | AT143: 0.7321428571 | AU143: 0.1296029021 | AV143: 82 | AW143: 84 | AX143: Polymorphism
A144: Many samples, VAF, ESP6500, 1000 Genomes, dbSNP, ExAC, ClinVar, prediction | B144: UPN_Te3_015 | C144: 17 | D144: 7579472 | E144: G | F144: C | G144: TP53 | H144: ENST00000269305 | I144: missense_variant | J144: cCc/cGc|p.Pro72Arg/c.215C>G | K144: 13 | L144: 529 | M144: 545 | N144: 0.9706422018 | O144: 1 | P144: 1 | Q144: 1 | R144: 1 | S144: 1 | T144: 1 | U144: 1 | V144: 1 | W144: 8 | X144: 25.4767 | Y144: 0.7147 | Z144: COSM3766190, COSM3766191, COSM250061, COSM3766193, COSM3766192 | AA144: large_intestine, liver, pancreas, pleura, prostate, soft_tissue, stomach, upper_aerodigestive_tract, urinary_tract, central_nervous_system | AB144: 10, 5, 15, 5, 5, 100, 5, 7, 5, 1 | AC144: rs1042522 | AD144: rs1042522 | AE144: NO | AF144: 0.659 | AG144: NO | AH144: YES | AI144: 0.155 | AJ144: Tolerated | AK144: 15.69 | AL144: 32.78 | AM144: 12 | AN144: 260 | AO144: 274 | AP144: 0.9489051095 | AQ144: 1 | AR144: 269 | AS144: 271 | AT144: 0.9926199262 | AU144: 0.0030791079 | AV144: 82 | AW144: 84 | AX144: Polymorphism
A145: Many samples, VAF, ESP6500, 1000 Genomes, dbSNP, ExAC, ClinVar, prediction | B145: UPN_Te3_073 | C145: 17 | D145: 7579472 | E145: G | F145: C | G145: TP53 | H145: ENST00000269305 | I145: missense_variant | J145: cCc/cGc|p.Pro72Arg/c.215C>G | K145: 4 | L145: 203 | M145: 207 | N145: 0.9806763285 | O145: 1 | P145: 1 | Q145: 0 | R145: 1 | S145: 1 | T145: 0 | U145: 1 | V145: 1 | W145: 6 | X145: 25.4767 | Y145: 0.7147 | Z145: COSM3766190, COSM3766191, COSM250061, COSM3766193, COSM3766192 | AA145: large_intestine, liver, pancreas, pleura, prostate, soft_tissue, stomach, upper_aerodigestive_tract, urinary_tract, central_nervous_system | AB145: 10, 5, 15, 5, 5, 100, 5, 7, 5, 1 | AC145: rs1042522 | AD145: rs1042522 | AE145: NO | AF145: 0.659 | AG145: NO | AH145: YES | AI145: 0.155 | AJ145: Tolerated | AK145: 24.5 | AL145: 31.77 | AM145: 4 | AN145: 203 | AO145: 207 | AP145: 0.9806763285 | AQ145: 0 | AR145: 0 | AS145: 0 | AT145: NA | AU145: 1 | AV145: 82 | AW145: 84 | AX145: Polymorphism
A146: Many samples, VAF, ESP6500, 1000 Genomes, dbSNP, ExAC, ClinVar, prediction | B146: UPN_Te3_083 | C146: 17 | D146: 7579472 | E146: G | F146: C | G146: TP53 | H146: ENST00000269305 | I146: missense_variant | J146: cCc/cGc|p.Pro72Arg/c.215C>G | K146: 37 | L146: 166 | M146: 203 | N146: 0.8177339901 | O146: 1 | P146: 1 | Q146: 1 | R146: 1 | S146: 1 | T146: 1 | U146: 1 | V146: 1 | W146: 8 | X146: 25.4767 | Y146: 0.7147 | Z146: COSM3766190, COSM3766191, COSM250061, COSM3766193, COSM3766192 | AA146: large_intestine, liver, pancreas, pleura, prostate, soft_tissue, stomach, upper_aerodigestive_tract, urinary_tract, central_nervous_system | AB146: 10, 5, 15, 5, 5, 100, 5, 7, 5, 1 | AC146: rs1042522 | AD146: rs1042522 | AE146: NO | AF146: 0.659 | AG146: NO | AH146: YES | AI146: 0.155 | AJ146: Tolerated | AK146: 14.46 | AL146: 35.55 | AM146: 19 | AN146: 97 | AO146: 116 | AP146: 0.8362068966 | AQ146: 18 | AR146: 69 | AS146: 87 | AT146: 0.7931034483 | AU146: 0.4658618677 | AV146: 82 | AW146: 84 | AX146: Polymorphism
A147: Many samples, VAF, ESP6500, 1000 Genomes, dbSNP, ExAC, ClinVar, prediction | B147: UPN_Te3_074 | C147: 17 | D147: 7579472 | E147: G | F147: C | G147: TP53 | H147: ENST00000269305 | I147: missense_variant | J147: cCc/cGc|p.Pro72Arg/c.215C>G | K147: 9 | L147: 168 | M147: 177 | N147: 0.9491525424 | O147: 1 | P147: 1 | Q147: 1 | R147: 1 | S147: 1 | T147: 1 | U147: 1 | V147: 1 | W147: 8 | X147: 25.4767 | Y147: 0.7147 | Z147: COSM3766190, COSM3766191, COSM250061, COSM3766193, COSM3766192 | AA147: large_intestine, liver, pancreas, pleura, prostate, soft_tissue, stomach, upper_aerodigestive_tract, urinary_tract, central_nervous_system | AB147: 10, 5, 15, 5, 5, 100, 5, 7, 5, 1 | AC147: rs1042522 | AD147: rs1042522 | AE147: NO | AF147: 0.659 | AG147: NO | AH147: YES | AI147: 0.155 | AJ147: Tolerated | AK147: 19.67 | AL147: 33.14 | AM147: 5 | AN147: 95 | AO147: 100 | AP147: 0.95 | AQ147: 4 | AR147: 73 | AS147: 77 | AT147: 0.9480519481 | AU147: 1 | AV147: 82 | AW147: 84 | AX147: Polymorphism
A148: Many samples, VAF, ESP6500, 1000 Genomes, dbSNP, ExAC, ClinVar, prediction | B148: UPN_Te3_089 | C148: 17 | D148: 7579472 | E148: G | F148: C | G148: TP53 | H148: ENST00000269305 | I148: missense_variant | J148: cCc/cGc|p.Pro72Arg/c.215C>G | K148: 8 | L148: 670 | M148: 678 | N148: 0.98820059 | O148: 1 | P148: 1 | Q148: 1 | R148: 1 | S148: 1 | T148: 1 | U148: 1 | V148: 1 | W148: 8 | X148: 25.4767 | Y148: 0.7147 | Z148: COSM3766190, COSM3766191, COSM250061, COSM3766193, COSM3766192 | AA148: large_intestine, liver, pancreas, pleura, prostate, soft_tissue, stomach, upper_aerodigestive_tract, urinary_tract, central_nervous_system | AB148: 10, 5, 15, 5, 5, 100, 5, 7, 5, 1 | AC148: rs1042522 | AD148: rs1042522 | AE148: NO | AF148: 0.659 | AG148: NO | AH148: YES | AI148: 0.155 | AJ148: Tolerated | AK148: 19.25 | AL148: 38.2 | AM148: 7 | AN148: 298 | AO148: 305 | AP148: 0.9770491803 | AQ148: 1 | AR148: 372 | AS148: 373 | AT148: 0.9973190349 | AU148: 0.0256601716 | AV148: 82 | AW148: 84 | AX148: Polymorphism
A149: Many samples, VAF, ESP6500, 1000 Genomes, dbSNP, ExAC, ClinVar, prediction | B149: UPN_Te3_075 | C149: 17 | D149: 7579472 | E149: G | F149: C | G149: TP53 | H149: ENST00000269305 | I149: missense_variant | J149: cCc/cGc|p.Pro72Arg/c.215C>G | K149: 11 | L149: 124 | M149: 135 | N149: 0.9185185185 | O149: 1 | P149: 1 | Q149: 1 | R149: 1 | S149: 1 | T149: 1 | U149: 1 | V149: 1 | W149: 8 | X149: 25.4767 | Y149: 0.7147 | Z149: COSM3766190, COSM3766191, COSM250061, COSM3766193, COSM3766192 | AA149: large_intestine, liver, pancreas, pleura, prostate, soft_tissue, stomach, upper_aerodigestive_tract, urinary_tract, central_nervous_system | AB149: 10, 5, 15, 5, 5, 100, 5, 7, 5, 1 | AC149: rs1042522 | AD149: rs1042522 | AE149: NO | AF149: 0.659 | AG149: NO | AH149: YES | AI149: 0.155 | AJ149: Tolerated | AK149: 19.45 | AL149: 34.23 | AM149: 11 | AN149: 120 | AO149: 131 | AP149: 0.9160305344 | AQ149: 0 | AR149: 4 | AS149: 4 | AT149: 1 | AU149: 1 | AV149: 82 | AW149: 84 | AX149: Polymorphism
A150: Many samples, VAF, ESP6500, 1000 Genomes, dbSNP, ExAC, ClinVar, prediction | B150: UPN_Te3_076 | C150: 17 | D150: 7579472 | E150: G | F150: C | G150: TP53 | H150: ENST00000269305 | I150: missense_variant | J150: cCc/cGc|p.Pro72Arg/c.215C>G | K150: 8 | L150: 203 | M150: 211 | N150: 0.9620853081 | O150: 1 | P150: 1 | Q150: 0 | R150: 1 | S150: 1 | T150: 0 | U150: 1 | V150: 1 | W150: 6 | X150: 25.4767 | Y150: 0.7147 | Z150: COSM3766190, COSM3766191, COSM250061, COSM3766193, COSM3766192 | AA150: large_intestine, liver, pancreas, pleura, prostate, soft_tissue, stomach, upper_aerodigestive_tract, urinary_tract, central_nervous_system | AB150: 10, 5, 15, 5, 5, 100, 5, 7, 5, 1 | AC150: rs1042522 | AD150: rs1042522 | AE150: NO | AF150: 0.659 | AG150: NO | AH150: YES | AI150: 0.155 | AJ150: Tolerated | AK150: 27.25 | AL150: 33.03 | AM150: 8 | AN150: 202 | AO150: 210 | AP150: 0.9619047619 | AQ150: 0 | AR150: 1 | AS150: 1 | AT150: 1 | AU150: 1 | AV150: 82 | AW150: 84 | AX150: Polymorphism
A151: Many samples, VAF, ESP6500, 1000 Genomes, dbSNP, ExAC, ClinVar, prediction | B151: UPN_Te3_077 | C151: 17 | D151: 7579472 | E151: G | F151: C | G151: TP53 | H151: ENST00000269305 | I151: missense_variant | J151: cCc/cGc|p.Pro72Arg/c.215C>G | K151: 38 | L151: 126 | M151: 164 | N151: 0.7682926829 | O151: 1 | P151: 1 | Q151: 1 | R151: 1 | S151: 1 | T151: 1 | U151: 1 | V151: 1 | W151: 8 | X151: 25.4767 | Y151: 0.7147 | Z151: COSM3766190, COSM3766191, COSM250061, COSM3766193, COSM3766192 | AA151: large_intestine, liver, pancreas, pleura, prostate, soft_tissue, stomach, upper_aerodigestive_tract, urinary_tract, central_nervous_system | AB151: 10, 5, 15, 5, 5, 100, 5, 7, 5, 1 | AC151: rs1042522 | AD151: rs1042522 | AE151: NO | AF151: 0.659 | AG151: NO | AH151: YES | AI151: 0.155 | AJ151: Tolerated | AK151: 17.97 | AL151: 36.39 | AM151: 25 | AN151: 73 | AO151: 98 | AP151: 0.7448979592 | AQ151: 13 | AR151: 53 | AS151: 66 | AT151: 0.803030303 | AU151: 0.4526206468 | AV151: 82 | AW151: 84 | AX151: Polymorphism
A152: Many samples, VAF, ESP6500, 1000 Genomes, dbSNP, ExAC, ClinVar, prediction | B152: UPN_Te3_016 | C152: 17 | D152: 7579472 | E152: G | F152: C | G152: TP53 | H152: ENST00000269305 | I152: missense_variant | J152: cCc/cGc|p.Pro72Arg/c.215C>G | K152: 12 | L152: 393 | M152: 405 | N152: 0.9703703704 | O152: 1 | P152: 1 | Q152: 1 | R152: 1 | S152: 1 | T152: 1 | U152: 1 | V152: 1 | W152: 8 | X152: 25.4767 | Y152: 0.7147 | Z152: COSM3766190, COSM3766191, COSM250061, COSM3766193, COSM3766192 | AA152: large_intestine, liver, pancreas, pleura, prostate, soft_tissue, stomach, upper_aerodigestive_tract, urinary_tract, central_nervous_system | AB152: 10, 5, 15, 5, 5, 100, 5, 7, 5, 1 | AC152: rs1042522 | AD152: rs1042522 | AE152: NO | AF152: 0.659 | AG152: NO | AH152: YES | AI152: 0.155 | AJ152: Tolerated | AK152: 13.33 | AL152: 33.73 | AM152: 12 | AN152: 186 | AO152: 198 | AP152: 0.9393939394 | AQ152: 0 | AR152: 207 | AS152: 207 | AT152: 1 | AU152: 0.0001564313 | AV152: 82 | AW152: 84 | AX152: Polymorphism
A153: Many samples, VAF, ESP6500, 1000 Genomes, dbSNP, ExAC, ClinVar, prediction | B153: UPN_Te3_002 | C153: 17 | D153: 7579472 | E153: G | F153: C | G153: TP53 | H153: ENST00000269305 | I153: missense_variant | J153: cCc/cGc|p.Pro72Arg/c.215C>G | K153: 35 | L153: 449 | M153: 485 | N153: 0.9257731959 | O153: 1 | P153: 1 | Q153: 1 | R153: 1 | S153: 1 | T153: 1 | U153: 1 | V153: 1 | W153: 8 | X153: 25.4767 | Y153: 0.7147 | Z153: COSM3766190, COSM3766191, COSM250061, COSM3766193, COSM3766192 | AA153: large_intestine, liver, pancreas, pleura, prostate, soft_tissue, stomach, upper_aerodigestive_tract, urinary_tract, central_nervous_system | AB153: 10, 5, 15, 5, 5, 100, 5, 7, 5, 1 | AC153: rs1042522 | AD153: rs1042522 | AE153: NO | AF153: 0.659 | AG153: NO | AH153: YES | AI153: 0.155 | AJ153: Tolerated | AK153: 19.09 | AL153: 36.44 | AM153: 19 | AN153: 246 | AO153: 266 | AP153: 0.9248120301 | AQ153: 16 | AR153: 203 | AS153: 219 | AT153: 0.9269406393 | AU153: 1 | AV153: 82 | AW153: 84 | AX153: Polymorphism
A154: Many samples, VAF, ESP6500, 1000 Genomes, dbSNP, ExAC, ClinVar, prediction | B154: UPN_Te3_017 | C154: 17 | D154: 7579472 | E154: G | F154: C | G154: TP53 | H154: ENST00000269305 | I154: missense_variant | J154: cCc/cGc|p.Pro72Arg/c.215C>G | K154: 8 | L154: 289 | M154: 297 | N154: 0.9730639731 | O154: 1 | P154: 1 | Q154: 1 | R154: 1 | S154: 1 | T154: 1 | U154: 1 | V154: 1 | W154: 8 | X154: 25.4767 | Y154: 0.7147 | Z154: COSM3766190, COSM3766191, COSM250061, COSM3766193, COSM3766192 | AA154: large_intestine, liver, pancreas, pleura, prostate, soft_tissue, stomach, upper_aerodigestive_tract, urinary_tract, central_nervous_system | AB154: 10, 5, 15, 5, 5, 100, 5, 7, 5, 1 | AC154: rs1042522 | AD154: rs1042522 | AE154: NO | AF154: 0.659 | AG154: NO | AH154: YES | AI154: 0.155 | AJ154: Tolerated | AK154: 13.25 | AL154: 32.58 | AM154: 8 | AN154: 144 | AO154: 152 | AP154: 0.9473684211 | AQ154: 0 | AR154: 145 | AS154: 145 | AT154: 1 | AU154: 0.0072081272 | AV154: 82 | AW154: 84 | AX154: Polymorphism
A155: Many samples, VAF, ESP6500, 1000 Genomes, dbSNP, ExAC, ClinVar, prediction | B155: UPN_Te3_018 | C155: 17 | D155: 7579472 | E155: G | F155: C | G155: TP53 | H155: ENST00000269305 | I155: missense_variant | J155: cCc/cGc|p.Pro72Arg/c.215C>G | K155: 8 | L155: 387 | M155: 395 | N155: 0.9797468354 | O155: 1 | P155: 1 | Q155: 1 | R155: 1 | S155: 1 | T155: 1 | U155: 1 | V155: 1 | W155: 8 | X155: 25.4767 | Y155: 0.7147 | Z155: COSM3766190, COSM3766191, COSM250061, COSM3766193, COSM3766192 | AA155: large_intestine, liver, pancreas, pleura, prostate, soft_tissue, stomach, upper_aerodigestive_tract, urinary_tract, central_nervous_system | AB155: 10, 5, 15, 5, 5, 100, 5, 7, 5, 1 | AC155: rs1042522 | AD155: rs1042522 | AE155: NO | AF155: 0.659 | AG155: NO | AH155: YES | AI155: 0.155 | AJ155: Tolerated | AK155: 16.5 | AL155: 31.65 | AM155: 6 | AN155: 182 | AO155: 188 | AP155: 0.9680851064 | AQ155: 2 | AR155: 205 | AS155: 207 | AT155: 0.9903381643 | AU155: 0.1582036781 | AV155: 82 | AW155: 84 | AX155: Polymorphism
A156: Many samples, VAF, ESP6500, 1000 Genomes, dbSNP, ExAC, ClinVar, prediction | B156: UPN_Te3_078 | C156: 17 | D156: 7579472 | E156: G | F156: C | G156: TP53 | H156: ENST00000269305 | I156: missense_variant | J156: cCc/cGc|p.Pro72Arg/c.215C>G | K156: 7 | L156: 258 | M156: 267 | N156: 0.9662921348 | O156: 1 | P156: 1 | Q156: 1 | R156: 1 | S156: 1 | T156: 1 | U156: 1 | V156: 1 | W156: 8 | X156: 25.4767 | Y156: 0.7147 | Z156: COSM3766190, COSM3766191, COSM250061, COSM3766193, COSM3766192 | AA156: large_intestine, liver, pancreas, pleura, prostate, soft_tissue, stomach, upper_aerodigestive_tract, urinary_tract, central_nervous_system | AB156: 10, 5, 15, 5, 5, 100, 5, 7, 5, 1 | AC156: rs1042522 | AD156: rs1042522 | AE156: NO | AF156: 0.659 | AG156: NO | AH156: YES | AI156: 0.155 | AJ156: Tolerated | AK156: 20.57 | AL156: 36.18 | AM156: 5 | AN156: 89 | AO156: 95 | AP156: 0.9368421053 | AQ156: 2 | AR156: 169 | AS156: 172 | AT156: 0.9825581395 | AU156: 0.1009092941 | AV156: 82 | AW156: 84 | AX156: Polymorphism
A157: Many samples, VAF, ESP6500, 1000 Genomes, dbSNP, ExAC, ClinVar, prediction | B157: UPN_Te3_003 | C157: 17 | D157: 7579472 | E157: G | F157: C | G157: TP53 | H157: ENST00000269305 | I157: missense_variant | J157: cCc/cGc|p.Pro72Arg/c.215C>G | K157: 217 | L157: 452 | M157: 670 | N157: 0.6746268657 | O157: 1 | P157: 1 | Q157: 1 | R157: 1 | S157: 1 | T157: 1 | U157: 1 | V157: 1 | W157: 8 | X157: 25.4767 | Y157: 0.7147 | Z157: COSM3766190, COSM3766191, COSM250061, COSM3766193, COSM3766192 | AA157: large_intestine, liver, pancreas, pleura, prostate, soft_tissue, stomach, upper_aerodigestive_tract, urinary_tract, central_nervous_system | AB157: 10, 5, 15, 5, 5, 100, 5, 7, 5, 1 | AC157: rs1042522 | AD157: rs1042522 | AE157: NO | AF157: 0.659 | AG157: NO | AH157: YES | AI157: 0.155 | AJ157: Tolerated | AK157: 17.57 | AL157: 36.74 | AM157: 112 | AN157: 231 | AO157: 344 | AP157: 0.6715116279 | AQ157: 105 | AR157: 221 | AS157: 326 | AT157: 0.6779141104 | AU157: 0.9342324513 | AV157: 82 | AW157: 84 | AX157: Polymorphism
A158: Many samples, VAF, ESP6500, 1000 Genomes, dbSNP, ExAC, ClinVar, prediction | B158: UPN_Te3_025 | C158: 17 | D158: 7579472 | E158: G | F158: C | G158: TP53 | H158: ENST00000269305 | I158: missense_variant | J158: cCc/cGc|p.Pro72Arg/c.215C>G | K158: 64 | L158: 190 | M158: 254 | N158: 0.7480314961 | O158: 1 | P158: 1 | Q158: 1 | R158: 1 | S158: 1 | T158: 1 | U158: 1 | V158: 1 | W158: 8 | X158: 25.4767 | Y158: 0.7147 | Z158: COSM3766190, COSM3766191, COSM250061, COSM3766193, COSM3766192 | AA158: large_intestine, liver, pancreas, pleura, prostate, soft_tissue, stomach, upper_aerodigestive_tract, urinary_tract, central_nervous_system | AB158: 10, 5, 15, 5, 5, 100, 5, 7, 5, 1 | AC158: rs1042522 | AD158: rs1042522 | AE158: NO | AF158: 0.659 | AG158: NO | AH158: YES | AI158: 0.155 | AJ158: Tolerated | AK158: 16.25 | AL158: 35.65 | AM158: 29 | AN158: 97 | AO158: 126 | AP158: 0.7698412698 | AQ158: 35 | AR158: 93 | AS158: 128 | AT158: 0.7265625 | AU158: 0.471248472 | AV158: 82 | AW158: 84 | AX158: Polymorphism
A159: Many samples, VAF, ESP6500, 1000 Genomes, dbSNP, ExAC, ClinVar, prediction | B159: UPN_Te3_026 | C159: 17 | D159: 7579472 | E159: G | F159: C | G159: TP53 | H159: ENST00000269305 | I159: missense_variant | J159: cCc/cGc|p.Pro72Arg/c.215C>G | K159: 34 | L159: 172 | M159: 206 | N159: 0.8349514563 | O159: 1 | P159: 1 | Q159: 1 | R159: 1 | S159: 1 | T159: 1 | U159: 1 | V159: 1 | W159: 8 | X159: 25.4767 | Y159: 0.7147 | Z159: COSM3766190, COSM3766191, COSM250061, COSM3766193, COSM3766192 | AA159: large_intestine, liver, pancreas, pleura, prostate, soft_tissue, stomach, upper_aerodigestive_tract, urinary_tract, central_nervous_system | AB159: 10, 5, 15, 5, 5, 100, 5, 7, 5, 1 | AC159: rs1042522 | AD159: rs1042522 | AE159: NO | AF159: 0.659 | AG159: NO | AH159: YES | AI159: 0.155 | AJ159: Tolerated | AK159: 13.44 | AL159: 35.44 | AM159: 15 | AN159: 91 | AO159: 106 | AP159: 0.858490566 | AQ159: 19 | AR159: 81 | AS159: 100 | AT159: 0.81 | AU159: 0.356293018 | AV159: 82 | AW159: 84 | AX159: Polymorphism
A160: Many samples, VAF, ESP6500, 1000 Genomes, dbSNP, ExAC, ClinVar, prediction | B160: UPN_Te3_027 | C160: 17 | D160: 7579472 | E160: G | F160: C | G160: TP53 | H160: ENST00000269305 | I160: missense_variant | J160: cCc/cGc|p.Pro72Arg/c.215C>G | K160: 58 | L160: 223 | M160: 281 | N160: 0.793594306 | O160: 1 | P160: 1 | Q160: 1 | R160: 1 | S160: 1 | T160: 1 | U160: 1 | V160: 1 | W160: 8 | X160: 25.4767 | Y160: 0.7147 | Z160: COSM3766190, COSM3766191, COSM250061, COSM3766193, COSM3766192 | AA160: large_intestine, liver, pancreas, pleura, prostate, soft_tissue, stomach, upper_aerodigestive_tract, urinary_tract, central_nervous_system | AB160: 10, 5, 15, 5, 5, 100, 5, 7, 5, 1 | AC160: rs1042522 | AD160: rs1042522 | AE160: NO | AF160: 0.659 | AG160: NO | AH160: YES | AI160: 0.155 | AJ160: Tolerated | AK160: 17.38 | AL160: 35.53 | AM160: 26 | AN160: 116 | AO160: 142 | AP160: 0.8169014085 | AQ160: 32 | AR160: 107 | AS160: 139 | AT160: 0.7697841727 | AU160: 0.3773061044 | AV160: 82 | AW160: 84 | AX160: Polymorphism
A161: Many samples, VAF, ESP6500, 1000 Genomes, dbSNP, ExAC, ClinVar, prediction | B161: UPN_Te3_084 | C161: 17 | D161: 7579472 | E161: G | F161: C | G161: TP53 | H161: ENST00000269305 | I161: missense_variant | J161: cCc/cGc|p.Pro72Arg/c.215C>G | K161: 9 | L161: 417 | M161: 428 | N161: 0.9742990654 | O161: 1 | P161: 1 | Q161: 1 | R161: 1 | S161: 1 | T161: 1 | U161: 1 | V161: 1 | W161: 8 | X161: 25.4767 | Y161: 0.7147 | Z161: COSM3766190, COSM3766191, COSM250061, COSM3766193, COSM3766192 | AA161: large_intestine, liver, pancreas, pleura, prostate, soft_tissue, stomach, upper_aerodigestive_tract, urinary_tract, central_nervous_system | AB161: 10, 5, 15, 5, 5, 100, 5, 7, 5, 1 | AC161: rs1042522 | AD161: rs1042522 | AE161: NO | AF161: 0.659 | AG161: NO | AH161: YES | AI161: 0.155 | AJ161: Tolerated | AK161: 15.89 | AL161: 36.55 | AM161: 6 | AN161: 203 | AO161: 209 | AP161: 0.971291866 | AQ161: 3 | AR161: 214 | AS161: 219 | AT161: 0.9771689498 | AU161: 0.3303801639 | AV161: 82 | AW161: 84 | AX161: Polymorphism
A162: Many samples, VAF, ESP6500, 1000 Genomes, dbSNP, ExAC, ClinVar, prediction | B162: UPN_Te3_028 | C162: 17 | D162: 7579472 | E162: G | F162: C | G162: TP53 | H162: ENST00000269305 | I162: missense_variant | J162: cCc/cGc|p.Pro72Arg/c.215C>G | K162: 38 | L162: 203 | M162: 242 | N162: 0.8388429752 | O162: 1 | P162: 1 | Q162: 1 | R162: 1 | S162: 1 | T162: 1 | U162: 1 | V162: 1 | W162: 8 | X162: 25.4767 | Y162: 0.7147 | Z162: COSM3766190, COSM3766191, COSM250061, COSM3766193, COSM3766192 | AA162: large_intestine, liver, pancreas, pleura, prostate, soft_tissue, stomach, upper_aerodigestive_tract, urinary_tract, central_nervous_system | AB162: 10, 5, 15, 5, 5, 100, 5, 7, 5, 1 | AC162: rs1042522 | AD162: rs1042522 | AE162: NO | AF162: 0.659 | AG162: NO | AH162: YES | AI162: 0.155 | AJ162: Tolerated | AK162: 18.05 | AL162: 36.3 | AM162: 19 | AN162: 83 | AO162: 103 | AP162: 0.8058252427 | AQ162: 19 | AR162: 120 | AS162: 139 | AT162: 0.8633093525 | AU162: 0.3713072458 | AV162: 82 | AW162: 84 | AX162: Polymorphism
A163: Many samples, VAF, ESP6500, 1000 Genomes, dbSNP, ExAC, ClinVar, prediction | B163: UPN_Te3_079 | C163: 17 | D163: 7579472 | E163: G | F163: C | G163: TP53 | H163: ENST00000269305 | I163: missense_variant | J163: cCc/cGc|p.Pro72Arg/c.215C>G | K163: 12 | L163: 251 | M163: 265 | N163: 0.9471698113 | O163: 1 | P163: 1 | Q163: 1 | R163: 1 | S163: 1 | T163: 1 | U163: 1 | V163: 1 | W163: 8 | X163: 25.4767 | Y163: 0.7147 | Z163: COSM3766190, COSM3766191, COSM250061, COSM3766193, COSM3766192 | AA163: large_intestine, liver, pancreas, pleura, prostate, soft_tissue, stomach, upper_aerodigestive_tract, urinary_tract, central_nervous_system | AB163: 10, 5, 15, 5, 5, 100, 5, 7, 5, 1 | AC163: rs1042522 | AD163: rs1042522 | AE163: NO | AF163: 0.659 | AG163: NO | AH163: YES | AI163: 0.155 | AJ163: Tolerated | AK163: 14.33 | AL163: 36.12 | AM163: 9 | AN163: 152 | AO163: 162 | AP163: 0.9382716049 | AQ163: 3 | AR163: 99 | AS163: 103 | AT163: 0.9611650485 | AU163: 0.378651316 | AV163: 82 | AW163: 84 | AX163: Polymorphism
A164: Many samples, VAF, ESP6500, 1000 Genomes, dbSNP, ExAC, ClinVar, prediction | B164: UPN_Te3_080 | C164: 17 | D164: 7579472 | E164: G | F164: C | G164: TP53 | H164: ENST00000269305 | I164: missense_variant | J164: cCc/cGc|p.Pro72Arg/c.215C>G | K164: 2 | L164: 264 | M164: 268 | N164: 0.9850746269 | O164: 1 | P164: 1 | Q164: 1 | R164: 1 | S164: 1 | T164: 1 | U164: 1 | V164: 1 | W164: 8 | X164: 25.4767 | Y164: 0.7147 | Z164: COSM3766190, COSM3766191, COSM250061, COSM3766193, COSM3766192 | AA164: large_intestine, liver, pancreas, pleura, prostate, soft_tissue, stomach, upper_aerodigestive_tract, urinary_tract, central_nervous_system | AB164: 10, 5, 15, 5, 5, 100, 5, 7, 5, 1 | AC164: rs1042522 | AD164: rs1042522 | AE164: NO | AF164: 0.659 | AG164: NO | AH164: YES | AI164: 0.155 | AJ164: Tolerated | AK164: 16.5 | AL164: 35.66 | AM164: 2 | AN164: 93 | AO164: 95 | AP164: 0.9789473684 | AQ164: 0 | AR164: 171 | AS164: 173 | AT164: 0.9884393064 | AU164: 0.1266846361 | AV164: 82 | AW164: 84 | AX164: Polymorphism
A165: Many samples, VAF, ESP6500, 1000 Genomes, dbSNP, ExAC, ClinVar, prediction | B165: UPN_Te3_021 | C165: 17 | D165: 7579472 | E165: G | F165: C | G165: TP53 | H165: ENST00000269305 | I165: missense_variant | J165: cCc/cGc|p.Pro72Arg/c.215C>G | K165: 101 | L165: 349 | M165: 450 | N165: 0.7755555556 | O165: 1 | P165: 1 | Q165: 1 | R165: 1 | S165: 1 | T165: 1 | U165: 1 | V165: 1 | W165: 8 | X165: 25.4767 | Y165: 0.7147 | Z165: COSM3766190, COSM3766191, COSM250061, COSM3766193, COSM3766192 | AA165: large_intestine, liver, pancreas, pleura, prostate, soft_tissue, stomach, upper_aerodigestive_tract, urinary_tract, central_nervous_system | AB165: 10, 5, 15, 5, 5, 100, 5, 7, 5, 1 | AC165: rs1042522 | AD165: rs1042522 | AE165: NO | AF165: 0.659 | AG165: NO | AH165: YES | AI165: 0.155 | AJ165: Tolerated | AK165: 13.57 | AL165: 32.45 | AM165: 57 | AN165: 195 | AO165: 252 | AP165: 0.7738095238 | AQ165: 44 | AR165: 154 | AS165: 198 | AT165: 0.7777777778 | AU165: 1 | AV165: 82 | AW165: 84 | AX165: Polymorphism
A166: Many samples, VAF, ESP6500, 1000 Genomes, dbSNP, ExAC, ClinVar, prediction | B166: UPN_Te3_029 | C166: 17 | D166: 7579472 | E166: G | F166: C | G166: TP53 | H166: ENST00000269305 | I166: missense_variant | J166: cCc/cGc|p.Pro72Arg/c.215C>G | K166: 8 | L166: 498 | M166: 508 | N166: 0.9803149606 | O166: 1 | P166: 1 | Q166: 1 | R166: 1 | S166: 1 | T166: 1 | U166: 1 | V166: 1 | W166: 8 | X166: 25.4767 | Y166: 0.7147 | Z166: COSM3766190, COSM3766191, COSM250061, COSM3766193, COSM3766192 | AA166: large_intestine, liver, pancreas, pleura, prostate, soft_tissue, stomach, upper_aerodigestive_tract, urinary_tract, central_nervous_system | AB166: 10, 5, 15, 5, 5, 100, 5, 7, 5, 1 | AC166: rs1042522 | AD166: rs1042522 | AE166: NO | AF166: 0.659 | AG166: NO | AH166: YES | AI166: 0.155 | AJ166: Tolerated | AK166: 16.12 | AL166: 35.9 | AM166: 6 | AN166: 233 | AO166: 240 | AP166: 0.9708333333 | AQ166: 2 | AR166: 265 | AS166: 268 | AT166: 0.9888059701 | AU166: 0.1570828203 | AV166: 82 | AW166: 84 | AX166: Polymorphism
A167: Many samples, VAF, ESP6500, 1000 Genomes, dbSNP, ExAC, ClinVar, prediction | B167: UPN_Te3_004 | C167: 17 | D167: 7579472 | E167: G | F167: C | G167: TP53 | H167: ENST00000269305 | I167: missense_variant | J167: cCc/cGc|p.Pro72Arg/c.215C>G | K167: 46 | L167: 516 | M167: 562 | N167: 0.9181494662 | O167: 1 | P167: 1 | Q167: 1 | R167: 1 | S167: 1 | T167: 1 | U167: 1 | V167: 1 | W167: 8 | X167: 25.4767 | Y167: 0.7147 | Z167: COSM3766190, COSM3766191, COSM250061, COSM3766193, COSM3766192 | AA167: large_intestine, liver, pancreas, pleura, prostate, soft_tissue, stomach, upper_aerodigestive_tract, urinary_tract, central_nervous_system | AB167: 10, 5, 15, 5, 5, 100, 5, 7, 5, 1 | AC167: rs1042522 | AD167: rs1042522 | AE167: NO | AF167: 0.659 | AG167: NO | AH167: YES | AI167: 0.155 | AJ167: Tolerated | AK167: 18.22 | AL167: 35.51 | AM167: 32 | AN167: 271 | AO167: 303 | AP167: 0.8943894389 | AQ167: 14 | AR167: 245 | AS167: 259 | AT167: 0.9459459459 | AU167: 0.0303842926 | AV167: 82 | AW167: 84 | AX167: Polymorphism
A168: Many samples, VAF, ESP6500, 1000 Genomes, dbSNP, ExAC, ClinVar, prediction | B168: UPN_Te3_022 | C168: 17 | D168: 7579472 | E168: G | F168: C | G168: TP53 | H168: ENST00000269305 | I168: missense_variant | J168: cCc/cGc|p.Pro72Arg/c.215C>G | K168: 7 | L168: 319 | M168: 326 | N168: 0.9785276074 | O168: 1 | P168: 1 | Q168: 1 | R168: 1 | S168: 1 | T168: 1 | U168: 1 | V168: 1 | W168: 8 | X168: 25.4767 | Y168: 0.7147 | Z168: COSM3766190, COSM3766191, COSM250061, COSM3766193, COSM3766192 | AA168: large_intestine, liver, pancreas, pleura, prostate, soft_tissue, stomach, upper_aerodigestive_tract, urinary_tract, central_nervous_system | AB168: 10, 5, 15, 5, 5, 100, 5, 7, 5, 1 | AC168: rs1042522 | AD168: rs1042522 | AE168: NO | AF168: 0.659 | AG168: NO | AH168: YES | AI168: 0.155 | AJ168: Tolerated | AK168: 22 | AL168: 34.13 | AM168: 3 | AN168: 158 | AO168: 161 | AP168: 0.9813664596 | AQ168: 4 | AR168: 161 | AS168: 165 | AT168: 0.9757575758 | AU168: 1 | AV168: 82 | AW168: 84 | AX168: Polymorphism
A169: Many samples, VAF, ESP6500, 1000 Genomes, dbSNP, ExAC, ClinVar, prediction | B169: UPN_Te3_005 | C169: 17 | D169: 7579472 | E169: G | F169: C | G169: TP53 | H169: ENST00000269305 | I169: missense_variant | J169: cCc/cGc|p.Pro72Arg/c.215C>G | K169: 136 | L169: 203 | M169: 339 | N169: 0.598820059 | O169: 1 | P169: 1 | Q169: 1 | R169: 1 | S169: 1 | T169: 1 | U169: 1 | V169: 1 | W169: 8 | X169: 25.4767 | Y169: 0.7147 | Z169: COSM3766190, COSM3766191, COSM250061, COSM3766193, COSM3766192 | AA169: large_intestine, liver, pancreas, pleura, prostate, soft_tissue, stomach, upper_aerodigestive_tract, urinary_tract, central_nervous_system | AB169: 10, 5, 15, 5, 5, 100, 5, 7, 5, 1 | AC169: rs1042522 | AD169: rs1042522 | AE169: NO | AF169: 0.659 | AG169: NO | AH169: YES | AI169: 0.155 | AJ169: Tolerated | AK169: 16.49 | AL169: 35.57 | AM169: 75 | AN169: 90 | AO169: 165 | AP169: 0.5454545455 | AQ169: 61 | AR169: 113 | AS169: 174 | AT169: 0.6494252874 | AU169: 0.0595577787 | AV169: 82 | AW169: 84 | AX169: Polymorphism
A170: Many samples, VAF, ESP6500, 1000 Genomes, dbSNP, ExAC, ClinVar, prediction | B170: UPN_Te3_085 | C170: 17 | D170: 7579472 | E170: G | F170: C | G170: TP53 | H170: ENST00000269305 | I170: missense_variant | J170: cCc/cGc|p.Pro72Arg/c.215C>G | K170: 33 | L170: 148 | M170: 181 | N170: 0.817679558 | O170: 1 | P170: 1 | Q170: 1 | R170: 1 | S170: 1 | T170: 1 | U170: 1 | V170: 1 | W170: 8 | X170: 25.4767 | Y170: 0.7147 | Z170: COSM3766190, COSM3766191, COSM250061, COSM3766193, COSM3766192 | AA170: large_intestine, liver, pancreas, pleura, prostate, soft_tissue, stomach, upper_aerodigestive_tract, urinary_tract, central_nervous_system | AB170: 10, 5, 15, 5, 5, 100, 5, 7, 5, 1 | AC170: rs1042522 | AD170: rs1042522 | AE170: NO | AF170: 0.659 | AG170: NO | AH170: YES | AI170: 0.155 | AJ170: Tolerated | AK170: 14.73 | AL170: 36.44 | AM170: 33 | AN170: 75 | AO170: 108 | AP170: 0.6944444444 | AQ170: 0 | AR170: 73 | AS170: 73 | AT170: 1 | AU170: 4.411993125e-09 | AV170: 82 | AW170: 84 | AX170: Polymorphism
A171: Many samples, VAF, ESP6500, 1000 Genomes, dbSNP, ExAC, ClinVar, prediction | B171: UPN_Te3_006 | C171: 17 | D171: 7579472 | E171: G | F171: C | G171: TP53 | H171: ENST00000269305 | I171: missense_variant | J171: cCc/cGc|p.Pro72Arg/c.215C>G | K171: 21 | L171: 611 | M171: 632 | N171: 0.9667721519 | O171: 1 | P171: 1 | Q171: 1 | R171: 1 | S171: 1 | T171: 1 | U171: 1 | V171: 1 | W171: 8 | X171: 25.4767 | Y171: 0.7147 | Z171: COSM3766190, COSM3766191, COSM250061, COSM3766193, COSM3766192 | AA171: large_intestine, liver, pancreas, pleura, prostate, soft_tissue, stomach, upper_aerodigestive_tract, urinary_tract, central_nervous_system | AB171: 10, 5, 15, 5, 5, 100, 5, 7, 5, 1 | AC171: rs1042522 | AD171: rs1042522 | AE171: NO | AF171: 0.659 | AG171: NO | AH171: YES | AI171: 0.155 | AJ171: Tolerated | AK171: 17.33 | AL171: 36.14 | AM171: 17 | AN171: 327 | AO171: 344 | AP171: 0.9505813953 | AQ171: 4 | AR171: 284 | AS171: 288 | AT171: 0.9861111111 | AU171: 0.0138194781 | AV171: 82 | AW171: 84 | AX171: Polymorphism
A172: Many samples, VAF, ESP6500, 1000 Genomes, dbSNP, ExAC, ClinVar, prediction | B172: UPN_Te3_030 | C172: 17 | D172: 7579472 | E172: G | F172: C | G172: TP53 | H172: ENST00000269305 | I172: missense_variant | J172: cCc/cGc|p.Pro72Arg/c.215C>G | K172: 94 | L172: 257 | M172: 353 | N172: 0.7280453258 | O172: 1 | P172: 1 | Q172: 1 | R172: 1 | S172: 1 | T172: 1 | U172: 1 | V172: 1 | W172: 8 | X172: 25.4767 | Y172: 0.7147 | Z172: COSM3766190, COSM3766191, COSM250061, COSM3766193, COSM3766192 | AA172: large_intestine, liver, pancreas, pleura, prostate, soft_tissue, stomach, upper_aerodigestive_tract, urinary_tract, central_nervous_system | AB172: 10, 5, 15, 5, 5, 100, 5, 7, 5, 1 | AC172: rs1042522 | AD172: rs1042522 | AE172: NO | AF172: 0.659 | AG172: NO | AH172: YES | AI172: 0.155 | AJ172: Tolerated | AK172: 16.18 | AL172: 35.42 | AM172: 43 | AN172: 128 | AO172: 173 | AP172: 0.7398843931 | AQ172: 51 | AR172: 129 | AS172: 180 | AT172: 0.7166666667 | AU172: 0.5472302127 | AV172: 82 | AW172: 84 | AX172: Polymorphism
A173: Many samples, VAF, ESP6500, 1000 Genomes, dbSNP, ExAC, ClinVar, prediction | B173: UPN_Te3_086 | C173: 17 | D173: 7579472 | E173: G | F173: C | G173: TP53 | H173: ENST00000269305 | I173: missense_variant | J173: cCc/cGc|p.Pro72Arg/c.215C>G | K173: 48 | L173: 131 | M173: 181 | N173: 0.7237569061 | O173: 1 | P173: 1 | Q173: 1 | R173: 1 | S173: 1 | T173: 1 | U173: 1 | V173: 1 | W173: 8 | X173: 25.4767 | Y173: 0.7147 | Z173: COSM3766190, COSM3766191, COSM250061, COSM3766193, COSM3766192 | AA173: large_intestine, liver, pancreas, pleura, prostate, soft_tissue, stomach, upper_aerodigestive_tract, urinary_tract, central_nervous_system | AB173: 10, 5, 15, 5, 5, 100, 5, 7, 5, 1 | AC173: rs1042522 | AD173: rs1042522 | AE173: NO | AF173: 0.659 | AG173: NO | AH173: YES | AI173: 0.155 | AJ173: Tolerated | AK173: 16.06 | AL173: 34.78 | AM173: 21 | AN173: 37 | AO173: 59 | AP173: 0.6271186441 | AQ173: 27 | AR173: 94 | AS173: 122 | AT173: 0.7704918033 | AU173: 0.0706046759 | AV173: 82 | AW173: 84 | AX173: Polymorphism
A174: Many samples, VAF, ESP6500, 1000 Genomes, dbSNP, ExAC, ClinVar, prediction | B174: UPN_Te3_023 | C174: 17 | D174: 7579472 | E174: G | F174: C | G174: TP53 | H174: ENST00000269305 | I174: missense_variant | J174: cCc/cGc|p.Pro72Arg/c.215C>G | K174: 139 | L174: 304 | M174: 443 | N174: 0.6862302483 | O174: 1 | P174: 1 | Q174: 1 | R174: 1 | S174: 1 | T174: 1 | U174: 1 | V174: 1 | W174: 8 | X174: 25.4767 | Y174: 0.7147 | Z174: COSM3766190, COSM3766191, COSM250061, COSM3766193, COSM3766192 | AA174: large_intestine, liver, pancreas, pleura, prostate, soft_tissue, stomach, upper_aerodigestive_tract, urinary_tract, central_nervous_system | AB174: 10, 5, 15, 5, 5, 100, 5, 7, 5, 1 | AC174: rs1042522 | AD174: rs1042522 | AE174: NO | AF174: 0.659 | AG174: NO | AH174: YES | AI174: 0.155 | AJ174: Tolerated | AK174: 15.81 | AL174: 34.87 | AM174: 71 | AN174: 146 | AO174: 217 | AP174: 0.6728110599 | AQ174: 68 | AR174: 158 | AS174: 226 | AT174: 0.6991150442 | AU174: 0.6087493605 | AV174: 82 | AW174: 84 | AX174: Polymorphism
A175: Many samples, VAF, ESP6500, 1000 Genomes, dbSNP, ExAC, ClinVar, prediction | B175: UPN_Te3_031 | C175: 17 | D175: 7579472 | E175: G | F175: C | G175: TP53 | H175: ENST00000269305 | I175: missense_variant | J175: cCc/cGc|p.Pro72Arg/c.215C>G | K175: 7 | L175: 383 | M175: 390 | N175: 0.9820512821 | O175: 1 | P175: 1 | Q175: 1 | R175: 1 | S175: 1 | T175: 1 | U175: 1 | V175: 1 | W175: 8 | X175: 25.4767 | Y175: 0.7147 | Z175: COSM3766190, COSM3766191, COSM250061, COSM3766193, COSM3766192 | AA175: large_intestine, liver, pancreas, pleura, prostate, soft_tissue, stomach, upper_aerodigestive_tract, urinary_tract, central_nervous_system | AB175: 10, 5, 15, 5, 5, 100, 5, 7, 5, 1 | AC175: rs1042522 | AD175: rs1042522 | AE175: NO | AF175: 0.659 | AG175: NO | AH175: YES | AI175: 0.155 | AJ175: Tolerated | AK175: 12.57 | AL175: 35.45 | AM175: 5 | AN175: 189 | AO175: 194 | AP175: 0.9742268041 | AQ175: 2 | AR175: 194 | AS175: 196 | AT175: 0.9897959184 | AU175: 0.2827330518 | AV175: 82 | AW175: 84 | AX175: Polymorphism
A176: Many samples, VAF, ESP6500, 1000 Genomes, dbSNP, ExAC, ClinVar, prediction | B176: UPN_Te3_007 | C176: 17 | D176: 7579472 | E176: G | F176: C | G176: TP53 | H176: ENST00000269305 | I176: missense_variant | J176: cCc/cGc|p.Pro72Arg/c.215C>G | K176: 90 | L176: 200 | M176: 290 | N176: 0.6896551724 | O176: 1 | P176: 1 | Q176: 1 | R176: 1 | S176: 1 | T176: 1 | U176: 1 | V176: 1 | W176: 8 | X176: 25.4767 | Y176: 0.7147 | Z176: COSM3766190, COSM3766191, COSM250061, COSM3766193, COSM3766192 | AA176: large_intestine, liver, pancreas, pleura, prostate, soft_tissue, stomach, upper_aerodigestive_tract, urinary_tract, central_nervous_system | AB176: 10, 5, 15, 5, 5, 100, 5, 7, 5, 1 | AC176: rs1042522 | AD176: rs1042522 | AE176: NO | AF176: 0.659 | AG176: NO | AH176: YES | AI176: 0.155 | AJ176: Tolerated | AK176: 16.44 | AL176: 34.38 | AM176: 59 | AN176: 108 | AO176: 167 | AP176: 0.6467065868 | AQ176: 31 | AR176: 92 | AS176: 123 | AT176: 0.7479674797 | AU176: 0.0728744177 | AV176: 82 | AW176: 84 | AX176: Polymorphism
A177: Many samples, VAF, ESP6500, 1000 Genomes, dbSNP, ExAC, ClinVar, prediction | B177: UPN_Te3_008 | C177: 17 | D177: 7579472 | E177: G | F177: C | G177: TP53 | H177: ENST00000269305 | I177: missense_variant | J177: cCc/cGc|p.Pro72Arg/c.215C>G | K177: 16 | L177: 587 | M177: 605 | N177: 0.9702479339 | O177: 1 | P177: 1 | Q177: 1 | R177: 1 | S177: 1 | T177: 1 | U177: 1 | V177: 1 | W177: 8 | X177: 25.4767 | Y177: 0.7147 | Z177: COSM3766190, COSM3766191, COSM250061, COSM3766193, COSM3766192 | AA177: large_intestine, liver, pancreas, pleura, prostate, soft_tissue, stomach, upper_aerodigestive_tract, urinary_tract, central_nervous_system | AB177: 10, 5, 15, 5, 5, 100, 5, 7, 5, 1 | AC177: rs1042522 | AD177: rs1042522 | AE177: NO | AF177: 0.659 | AG177: NO | AH177: YES | AI177: 0.155 | AJ177: Tolerated | AK177: 24.31 | AL177: 35.18 | AM177: 13 | AN177: 326 | AO177: 341 | AP177: 0.9560117302 | AQ177: 3 | AR177: 261 | AS177: 264 | AT177: 0.9886363636 | AU177: 0.043804534 | AV177: 82 | AW177: 84 | AX177: Polymorphism
A178: Many samples, VAF, ESP6500, 1000 Genomes, dbSNP, ExAC, ClinVar, prediction | B178: UPN_Te3_032 | C178: 17 | D178: 7579472 | E178: G | F178: C | G178: TP53 | H178: ENST00000269305 | I178: missense_variant | J178: cCc/cGc|p.Pro72Arg/c.215C>G | K178: 4 | L178: 420 | M178: 424 | N178: 0.9905660377 | O178: 1 | P178: 1 | Q178: 1 | R178: 1 | S178: 1 | T178: 1 | U178: 1 | V178: 1 | W178: 8 | X178: 25.4767 | Y178: 0.7147 | Z178: COSM3766190, COSM3766191, COSM250061, COSM3766193, COSM3766192 | AA178: large_intestine, liver, pancreas, pleura, prostate, soft_tissue, stomach, upper_aerodigestive_tract, urinary_tract, central_nervous_system | AB178: 10, 5, 15, 5, 5, 100, 5, 7, 5, 1 | AC178: rs1042522 | AD178: rs1042522 | AE178: NO | AF178: 0.659 | AG178: NO | AH178: YES | AI178: 0.155 | AJ178: Tolerated | AK178: 11 | AL178: 35.91 | AM178: 4 | AN178: 186 | AO178: 190 | AP178: 0.9789473684 | AQ178: 0 | AR178: 234 | AS178: 234 | AT178: 1 | AU178: 0.0396199652 | AV178: 82 | AW178: 84 | AX178: Polymorphism
A179: Many samples, VAF, ESP6500, 1000 Genomes, dbSNP, ExAC, ClinVar, prediction | B179: UPN_Te3_033 | C179: 17 | D179: 7579472 | E179: G | F179: C | G179: TP53 | H179: ENST00000269305 | I179: missense_variant | J179: cCc/cGc|p.Pro72Arg/c.215C>G | K179: 2 | L179: 231 | M179: 233 | N179: 0.991416309 | O179: 1 | P179: 1 | Q179: 1 | R179: 1 | S179: 1 | T179: 1 | U179: 1 | V179: 1 | W179: 8 | X179: 25.4767 | Y179: 0.7147 | Z179: COSM3766190, COSM3766191, COSM250061, COSM3766193, COSM3766192 | AA179: large_intestine, liver, pancreas, pleura, prostate, soft_tissue, stomach, upper_aerodigestive_tract, urinary_tract, central_nervous_system | AB179: 10, 5, 15, 5, 5, 100, 5, 7, 5, 1 | AC179: rs1042522 | AD179: rs1042522 | AE179: NO | AF179: 0.659 | AG179: NO | AH179: YES | AI179: 0.155 | AJ179: Tolerated | AK179: 20.5 | AL179: 35.72 | AM179: 0 | AN179: 96 | AO179: 96 | AP179: 1 | AQ179: 2 | AR179: 135 | AS179: 137 | AT179: 0.9854014599 | AU179: 0.5133935178 | AV179: 82 | AW179: 84 | AX179: Polymorphism
A180: Many samples, VAF, ESP6500, 1000 Genomes, dbSNP, ExAC, ClinVar, prediction | B180: UPN_Te3_034 | C180: 17 | D180: 7579472 | E180: G | F180: C | G180: TP53 | H180: ENST00000269305 | I180: missense_variant | J180: cCc/cGc|p.Pro72Arg/c.215C>G | K180: 3 | L180: 203 | M180: 206 | N180: 0.9854368932 | O180: 1 | P180: 1 | Q180: 1 | R180: 1 | S180: 1 | T180: 1 | U180: 1 | V180: 1 | W180: 8 | X180: 25.4767 | Y180: 0.7147 | Z180: COSM3766190, COSM3766191, COSM250061, COSM3766193, COSM3766192 | AA180: large_intestine, liver, pancreas, pleura, prostate, soft_tissue, stomach, upper_aerodigestive_tract, urinary_tract, central_nervous_system | AB180: 10, 5, 15, 5, 5, 100, 5, 7, 5, 1 | AC180: rs1042522 | AD180: rs1042522 | AE180: NO | AF180: 0.659 | AG180: NO | AH180: YES | AI180: 0.155 | AJ180: Tolerated | AK180: 11.67 | AL180: 35.37 | AM180: 2 | AN180: 82 | AO180: 84 | AP180: 0.9761904762 | AQ180: 1 | AR180: 121 | AS180: 122 | AT180: 0.9918032787 | AU180: 0.568188213 | AV180: 82 | AW180: 84 | AX180: Polymorphism
A181: Many samples, VAF, ESP6500, 1000 Genomes, dbSNP, ExAC, ClinVar, prediction | B181: UPN_Te3_035 | C181: 17 | D181: 7579472 | E181: G | F181: C | G181: TP53 | H181: ENST00000269305 | I181: missense_variant | J181: cCc/cGc|p.Pro72Arg/c.215C>G | K181: 167 | L181: 108 | M181: 277 | N181: 0.3898916968 | O181: 1 | P181: 1 | Q181: 1 | R181: 1 | S181: 1 | T181: 1 | U181: 1 | V181: 1 | W181: 8 | X181: 25.4767 | Y181: 0.7147 | Z181: COSM3766190, COSM3766191, COSM250061, COSM3766193, COSM3766192 | AA181: large_intestine, liver, pancreas, pleura, prostate, soft_tissue, stomach, upper_aerodigestive_tract, urinary_tract, central_nervous_system | AB181: 10, 5, 15, 5, 5, 100, 5, 7, 5, 1 | AC181: rs1042522 | AD181: rs1042522 | AE181: NO | AF181: 0.659 | AG181: NO | AH181: YES | AI181: 0.155 | AJ181: Tolerated | AK181: 17.25 | AL181: 34.33 | AM181: 75 | AN181: 68 | AO181: 144 | AP181: 0.4722222222 | AQ181: 92 | AR181: 40 | AS181: 133 | AT181: 0.3007518797 | AU181: 0.0044041967 | AV181: 82 | AW181: 84 | AX181: Polymorphism
A182: Many samples, VAF, ESP6500, 1000 Genomes, dbSNP, ExAC, ClinVar, prediction | B182: UPN_Te3_081 | C182: 17 | D182: 7579472 | E182: G | F182: C | G182: TP53 | H182: ENST00000269305 | I182: missense_variant | J182: cCc/cGc|p.Pro72Arg/c.215C>G | K182: 126 | L182: 234 | M182: 361 | N182: 0.648199446 | O182: 1 | P182: 1 | Q182: 1 | R182: 1 | S182: 1 | T182: 1 | U182: 1 | V182: 1 | W182: 8 | X182: 25.4767 | Y182: 0.7147 | Z182: COSM3766190, COSM3766191, COSM250061, COSM3766193, COSM3766192 | AA182: large_intestine, liver, pancreas, pleura, prostate, soft_tissue, stomach, upper_aerodigestive_tract, urinary_tract, central_nervous_system | AB182: 10, 5, 15, 5, 5, 100, 5, 7, 5, 1 | AC182: rs1042522 | AD182: rs1042522 | AE182: NO | AF182: 0.659 | AG182: NO | AH182: YES | AI182: 0.155 | AJ182: Tolerated | AK182: 16.87 | AL182: 35.64 | AM182: 72 | AN182: 155 | AO182: 228 | AP182: 0.6798245614 | AQ182: 54 | AR182: 79 | AS182: 133 | AT182: 0.5939849624 | AU182: 0.1088165488 | AV182: 82 | AW182: 84 | AX182: Polymorphism
A183: Many samples, VAF, ESP6500, 1000 Genomes, dbSNP, ExAC, ClinVar, prediction | B183: UPN_Te3_036 | C183: 17 | D183: 7579472 | E183: G | F183: C | G183: TP53 | H183: ENST00000269305 | I183: missense_variant | J183: cCc/cGc|p.Pro72Arg/c.215C>G | K183: 4 | L183: 222 | M183: 229 | N183: 0.9694323144 | O183: 1 | P183: 1 | Q183: 1 | R183: 1 | S183: 1 | T183: 1 | U183: 1 | V183: 1 | W183: 8 | X183: 25.4767 | Y183: 0.7147 | Z183: COSM3766190, COSM3766191, COSM250061, COSM3766193, COSM3766192 | AA183: large_intestine, liver, pancreas, pleura, prostate, soft_tissue, stomach, upper_aerodigestive_tract, urinary_tract, central_nervous_system | AB183: 10, 5, 15, 5, 5, 100, 5, 7, 5, 1 | AC183: rs1042522 | AD183: rs1042522 | AE183: NO | AF183: 0.659 | AG183: NO | AH183: YES | AI183: 0.155 | AJ183: Tolerated | AK183: 17.25 | AL183: 36.55 | AM183: 2 | AN183: 147 | AO183: 149 | AP183: 0.9865771812 | AQ183: 2 | AR183: 75 | AS183: 80 | AT183: 0.9375 | AU183: 0.6069279204 | AV183: 82 | AW183: 84 | AX183: Polymorphism
A184: Many samples, VAF, ESP6500, 1000 Genomes, dbSNP, ExAC, ClinVar, prediction | B184: UPN_Te3_037 | C184: 17 | D184: 7579472 | E184: G | F184: C | G184: TP53 | H184: ENST00000269305 | I184: missense_variant | J184: cCc/cGc|p.Pro72Arg/c.215C>G | K184: 31 | L184: 366 | M184: 397 | N184: 0.9219143577 | O184: 1 | P184: 1 | Q184: 1 | R184: 1 | S184: 1 | T184: 1 | U184: 1 | V184: 1 | W184: 8 | X184: 25.4767 | Y184: 0.7147 | Z184: COSM3766190, COSM3766191, COSM250061, COSM3766193, COSM3766192 | AA184: large_intestine, liver, pancreas, pleura, prostate, soft_tissue, stomach, upper_aerodigestive_tract, urinary_tract, central_nervous_system | AB184: 10, 5, 15, 5, 5, 100, 5, 7, 5, 1 | AC184: rs1042522 | AD184: rs1042522 | AE184: NO | AF184: 0.659 | AG184: NO | AH184: YES | AI184: 0.155 | AJ184: Tolerated | AK184: 15.84 | AL184: 36.06 | AM184: 22 | AN184: 180 | AO184: 202 | AP184: 0.8910891089 | AQ184: 9 | AR184: 186 | AS184: 195 | AT184: 0.9538461538 | AU184: 0.0241401314 | AV184: 82 | AW184: 84 | AX184: Polymorphism
A185: Many samples, VAF, ESP6500, 1000 Genomes, dbSNP, ExAC, ClinVar, prediction | B185: UPN_Te3_039 | C185: 17 | D185: 7579472 | E185: G | F185: C | G185: TP53 | H185: ENST00000269305 | I185: missense_variant | J185: cCc/cGc|p.Pro72Arg/c.215C>G | K185: 129 | L185: 333 | M185: 463 | N185: 0.7192224622 | O185: 1 | P185: 1 | Q185: 1 | R185: 1 | S185: 1 | T185: 1 | U185: 1 | V185: 1 | W185: 8 | X185: 25.4767 | Y185: 0.7147 | Z185: COSM3766190, COSM3766191, COSM250061, COSM3766193, COSM3766192 | AA185: large_intestine, liver, pancreas, pleura, prostate, soft_tissue, stomach, upper_aerodigestive_tract, urinary_tract, central_nervous_system | AB185: 10, 5, 15, 5, 5, 100, 5, 7, 5, 1 | AC185: rs1042522 | AD185: rs1042522 | AE185: NO | AF185: 0.659 | AG185: NO | AH185: YES | AI185: 0.155 | AJ185: Tolerated | AK185: 16.1 | AL185: 35.14 | AM185: 74 | AN185: 176 | AO185: 251 | AP185: 0.7011952191 | AQ185: 55 | AR185: 157 | AS185: 212 | AT185: 0.7405660377 | AU185: 0.4062309752 | AV185: 82 | AW185: 84 | AX185: Polymorphism
A186: Many samples, VAF, ESP6500, 1000 Genomes, dbSNP, ExAC, ClinVar, prediction | B186: UPN_Te3_040 | C186: 17 | D186: 7579472 | E186: G | F186: C | G186: TP53 | H186: ENST00000269305 | I186: missense_variant | J186: cCc/cGc|p.Pro72Arg/c.215C>G | K186: 22 | L186: 532 | M186: 554 | N186: 0.9602888087 | O186: 1 | P186: 1 | Q186: 1 | R186: 1 | S186: 1 | T186: 1 | U186: 1 | V186: 1 | W186: 8 | X186: 25.4767 | Y186: 0.7147 | Z186: COSM3766190, COSM3766191, COSM250061, COSM3766193, COSM3766192 | AA186: large_intestine, liver, pancreas, pleura, prostate, soft_tissue, stomach, upper_aerodigestive_tract, urinary_tract, central_nervous_system | AB186: 10, 5, 15, 5, 5, 100, 5, 7, 5, 1 | AC186: rs1042522 | AD186: rs1042522 | AE186: NO | AF186: 0.659 | AG186: NO | AH186: YES | AI186: 0.155 | AJ186: Tolerated | AK186: 17.91 | AL186: 35.91 | AM186: 18 | AN186: 290 | AO186: 308 | AP186: 0.9415584416 | AQ186: 4 | AR186: 242 | AS186: 246 | AT186: 0.9837398374 | AU186: 0.014473536 | AV186: 82 | AW186: 84 | AX186: Polymorphism
A187: Many samples, VAF, ESP6500, 1000 Genomes, dbSNP, ExAC, ClinVar, prediction | B187: UPN_Te3_087 | C187: 17 | D187: 7579472 | E187: G | F187: C | G187: TP53 | H187: ENST00000269305 | I187: missense_variant | J187: cCc/cGc|p.Pro72Arg/c.215C>G | K187: 4 | L187: 379 | M187: 383 | N187: 0.9895561358 | O187: 1 | P187: 1 | Q187: 1 | R187: 1 | S187: 1 | T187: 1 | U187: 1 | V187: 1 | W187: 8 | X187: 25.4767 | Y187: 0.7147 | Z187: COSM3766190, COSM3766191, COSM250061, COSM3766193, COSM3766192 | AA187: large_intestine, liver, pancreas, pleura, prostate, soft_tissue, stomach, upper_aerodigestive_tract, urinary_tract, central_nervous_system | AB187: 10, 5, 15, 5, 5, 100, 5, 7, 5, 1 | AC187: rs1042522 | AD187: rs1042522 | AE187: NO | AF187: 0.659 | AG187: NO | AH187: YES | AI187: 0.155 | AJ187: Tolerated | AK187: 14.5 | AL187: 35.97 | AM187: 3 | AN187: 262 | AO187: 265 | AP187: 0.9886792453 | AQ187: 1 | AR187: 117 | AS187: 118 | AT187: 0.9915254237 | AU187: 1 | AV187: 82 | AW187: 84 | AX187: Polymorphism
A188: Many samples, VAF, ESP6500, 1000 Genomes, dbSNP, ExAC, ClinVar, prediction | B188: UPN_Te3_042 | C188: 17 | D188: 7579472 | E188: G | F188: C | G188: TP53 | H188: ENST00000269305 | I188: missense_variant | J188: cCc/cGc|p.Pro72Arg/c.215C>G | K188: 128 | L188: 251 | M188: 382 | N188: 0.6570680628 | O188: 1 | P188: 1 | Q188: 1 | R188: 1 | S188: 1 | T188: 1 | U188: 1 | V188: 1 | W188: 8 | X188: 25.4767 | Y188: 0.7147 | Z188: COSM3766190, COSM3766191, COSM250061, COSM3766193, COSM3766192 | AA188: large_intestine, liver, pancreas, pleura, prostate, soft_tissue, stomach, upper_aerodigestive_tract, urinary_tract, central_nervous_system | AB188: 10, 5, 15, 5, 5, 100, 5, 7, 5, 1 | AC188: rs1042522 | AD188: rs1042522 | AE188: NO | AF188: 0.659 | AG188: NO | AH188: YES | AI188: 0.155 | AJ188: Tolerated | AK188: 16.41 | AL188: 37.25 | AM188: 67 | AN188: 138 | AO188: 207 | AP188: 0.6666666667 | AQ188: 61 | AR188: 113 | AS188: 175 | AT188: 0.6457142857 | AU188: 0.6634669013 | AV188: 82 | AW188: 84 | AX188: Polymorphism
A189: Many samples, VAF, ESP6500, 1000 Genomes, dbSNP, ExAC, ClinVar, prediction | B189: UPN_Te3_082 | C189: 17 | D189: 7579472 | E189: G | F189: C | G189: TP53 | H189: ENST00000269305 | I189: missense_variant | J189: cCc/cGc|p.Pro72Arg/c.215C>G | K189: 10 | L189: 528 | M189: 538 | N189: 0.9814126394 | O189: 1 | P189: 1 | Q189: 1 | R189: 1 | S189: 1 | T189: 1 | U189: 1 | V189: 1 | W189: 8 | X189: 25.4767 | Y189: 0.7147 | Z189: COSM3766190, COSM3766191, COSM250061, COSM3766193, COSM3766192 | AA189: large_intestine, liver, pancreas, pleura, prostate, soft_tissue, stomach, upper_aerodigestive_tract, urinary_tract, central_nervous_system | AB189: 10, 5, 15, 5, 5, 100, 5, 7, 5, 1 | AC189: rs1042522 | AD189: rs1042522 | AE189: NO | AF189: 0.659 | AG189: NO | AH189: YES | AI189: 0.155 | AJ189: Tolerated | AK189: 19.1 | AL189: 36.47 | AM189: 5 | AN189: 177 | AO189: 182 | AP189: 0.9725274725 | AQ189: 5 | AR189: 351 | AS189: 356 | AT189: 0.9859550562 | AU189: 0.3177507724 | AV189: 82 | AW189: 84 | AX189: Polymorphism
A190: Many samples, VAF, ESP6500, 1000 Genomes, dbSNP, ExAC, ClinVar, prediction | B190: UPN_Te3_009 | C190: 17 | D190: 7579472 | E190: G | F190: C | G190: TP53 | H190: ENST00000269305 | I190: missense_variant | J190: cCc/cGc|p.Pro72Arg/c.215C>G | K190: 44 | L190: 447 | M190: 492 | N190: 0.9085365854 | O190: 1 | P190: 1 | Q190: 1 | R190: 1 | S190: 1 | T190: 1 | U190: 1 | V190: 1 | W190: 8 | X190: 25.4767 | Y190: 0.7147 | Z190: COSM3766190, COSM3766191, COSM250061, COSM3766193, COSM3766192 | AA190: large_intestine, liver, pancreas, pleura, prostate, soft_tissue, stomach, upper_aerodigestive_tract, urinary_tract, central_nervous_system | AB190: 10, 5, 15, 5, 5, 100, 5, 7, 5, 1 | AC190: rs1042522 | AD190: rs1042522 | AE190: NO | AF190: 0.659 | AG190: NO | AH190: YES | AI190: 0.155 | AJ190: Tolerated | AK190: 16.93 | AL190: 35.78 | AM190: 34 | AN190: 232 | AO190: 266 | AP190: 0.8721804511 | AQ190: 10 | AR190: 215 | AS190: 226 | AT190: 0.9513274336 | AU190: 0.0013297493 | AV190: 82 | AW190: 84 | AX190: Polymorphism
A191: Many samples, VAF, ESP6500, 1000 Genomes, dbSNP, ExAC, ClinVar, prediction | B191: UPN_Te3_043 | C191: 17 | D191: 7579472 | E191: G | F191: C | G191: TP53 | H191: ENST00000269305 | I191: missense_variant | J191: cCc/cGc|p.Pro72Arg/c.215C>G | K191: 7 | L191: 631 | M191: 638 | N191: 0.9890282132 | O191: 1 | P191: 1 | Q191: 1 | R191: 1 | S191: 1 | T191: 1 | U191: 1 | V191: 1 | W191: 8 | X191: 25.4767 | Y191: 0.7147 | Z191: COSM3766190, COSM3766191, COSM250061, COSM3766193, COSM3766192 | AA191: large_intestine, liver, pancreas, pleura, prostate, soft_tissue, stomach, upper_aerodigestive_tract, urinary_tract, central_nervous_system | AB191: 10, 5, 15, 5, 5, 100, 5, 7, 5, 1 | AC191: rs1042522 | AD191: rs1042522 | AE191: NO | AF191: 0.659 | AG191: NO | AH191: YES | AI191: 0.155 | AJ191: Tolerated | AK191: 21.43 | AL191: 37.03 | AM191: 6 | AN191: 344 | AO191: 350 | AP191: 0.9828571429 | AQ191: 1 | AR191: 287 | AS191: 288 | AT191: 0.9965277778 | AU191: 0.1353539897 | AV191: 82 | AW191: 84 | AX191: Polymorphism
A192: Many samples, VAF, ESP6500, 1000 Genomes, dbSNP, ExAC, ClinVar, prediction | B192: UPN_Te3_044 | C192: 17 | D192: 7579472 | E192: G | F192: C | G192: TP53 | H192: ENST00000269305 | I192: missense_variant | J192: cCc/cGc|p.Pro72Arg/c.215C>G | K192: 11 | L192: 423 | M192: 434 | N192: 0.9746543779 | O192: 1 | P192: 1 | Q192: 1 | R192: 1 | S192: 1 | T192: 1 | U192: 1 | V192: 1 | W192: 8 | X192: 25.4767 | Y192: 0.7147 | Z192: COSM3766190, COSM3766191, COSM250061, COSM3766193, COSM3766192 | AA192: large_intestine, liver, pancreas, pleura, prostate, soft_tissue, stomach, upper_aerodigestive_tract, urinary_tract, central_nervous_system | AB192: 10, 5, 15, 5, 5, 100, 5, 7, 5, 1 | AC192: rs1042522 | AD192: rs1042522 | AE192: NO | AF192: 0.659 | AG192: NO | AH192: YES | AI192: 0.155 | AJ192: Tolerated | AK192: 17.91 | AL192: 36.32 | AM192: 7 | AN192: 237 | AO192: 244 | AP192: 0.9713114754 | AQ192: 4 | AR192: 186 | AS192: 190 | AT192: 0.9789473684 | AU192: 0.7623668574 | AV192: 82 | AW192: 84 | AX192: Polymorphism
A193: Many samples, VAF, ESP6500, 1000 Genomes, dbSNP, ExAC, ClinVar, prediction | B193: UPN_Te3_010 | C193: 17 | D193: 7579472 | E193: G | F193: C | G193: TP53 | H193: ENST00000269305 | I193: missense_variant | J193: cCc/cGc|p.Pro72Arg/c.215C>G | K193: 32 | L193: 1167 | M193: 1202 | N193: 0.9708818636 | O193: 1 | P193: 1 | Q193: 1 | R193: 1 | S193: 1 | T193: 1 | U193: 1 | V193: 1 | W193: 8 | X193: 25.4767 | Y193: 0.7147 | Z193: COSM3766190, COSM3766191, COSM250061, COSM3766193, COSM3766192 | AA193: large_intestine, liver, pancreas, pleura, prostate, soft_tissue, stomach, upper_aerodigestive_tract, urinary_tract, central_nervous_system | AB193: 10, 5, 15, 5, 5, 100, 5, 7, 5, 1 | AC193: rs1042522 | AD193: rs1042522 | AE193: NO | AF193: 0.659 | AG193: NO | AH193: YES | AI193: 0.155 | AJ193: Tolerated | AK193: 18.06 | AL193: 36.11 | AM193: 31 | AN193: 561 | AO193: 595 | AP193: 0.9428571429 | AQ193: 1 | AR193: 606 | AS193: 607 | AT193: 0.9983525535 | AU193: 3.814741343e-09 | AV193: 82 | AW193: 84 | AX193: Polymorphism
A194: Many samples, VAF, ESP6500, 1000 Genomes, dbSNP, ExAC, ClinVar, prediction | B194: UPN_Te3_011 | C194: 17 | D194: 7579472 | E194: G | F194: C | G194: TP53 | H194: ENST00000269305 | I194: missense_variant | J194: cCc/cGc|p.Pro72Arg/c.215C>G | K194: 3 | L194: 326 | M194: 331 | N194: 0.9848942598 | O194: 1 | P194: 1 | Q194: 1 | R194: 1 | S194: 1 | T194: 1 | U194: 1 | V194: 1 | W194: 8 | X194: 25.4767 | Y194: 0.7147 | Z194: COSM3766190, COSM3766191, COSM250061, COSM3766193, COSM3766192 | AA194: large_intestine, liver, pancreas, pleura, prostate, soft_tissue, stomach, upper_aerodigestive_tract, urinary_tract, central_nervous_system | AB194: 10, 5, 15, 5, 5, 100, 5, 7, 5, 1 | AC194: rs1042522 | AD194: rs1042522 | AE194: NO | AF194: 0.659 | AG194: NO | AH194: YES | AI194: 0.155 | AJ194: Tolerated | AK194: 17.67 | AL194: 34.87 | AM194: 3 | AN194: 180 | AO194: 184 | AP194: 0.9782608696 | AQ194: 0 | AR194: 146 | AS194: 147 | AT194: 0.9931972789 | AU194: 0.2572281118 | AV194: 82 | AW194: 84 | AX194: Polymorphism
A195: Many samples, VAF, ESP6500, 1000 Genomes, dbSNP, ExAC, ClinVar, prediction | B195: UPN_Te3_046 | C195: 17 | D195: 7579472 | E195: G | F195: C | G195: TP53 | H195: ENST00000269305 | I195: missense_variant | J195: cCc/cGc|p.Pro72Arg/c.215C>G | K195: 86 | L195: 127 | M195: 213 | N195: 0.5962441315 | O195: 1 | P195: 1 | Q195: 1 | R195: 1 | S195: 1 | T195: 1 | U195: 1 | V195: 1 | W195: 8 | X195: 25.4767 | Y195: 0.7147 | Z195: COSM3766190, COSM3766191, COSM250061, COSM3766193, COSM3766192 | AA195: large_intestine, liver, pancreas, pleura, prostate, soft_tissue, stomach, upper_aerodigestive_tract, urinary_tract, central_nervous_system | AB195: 10, 5, 15, 5, 5, 100, 5, 7, 5, 1 | AC195: rs1042522 | AD195: rs1042522 | AE195: NO | AF195: 0.659 | AG195: NO | AH195: YES | AI195: 0.155 | AJ195: Tolerated | AK195: 15.24 | AL195: 34.08 | AM195: 58 | AN195: 77 | AO195: 135 | AP195: 0.5703703704 | AQ195: 28 | AR195: 50 | AS195: 78 | AT195: 0.641025641 | AU195: 0.3845929209 | AV195: 82 | AW195: 84 | AX195: Polymorphism
A196: Many samples, VAF, ESP6500, 1000 Genomes, dbSNP, ExAC, ClinVar, prediction | B196: UPN_Te3_047 | C196: 17 | D196: 7579472 | E196: G | F196: C | G196: TP53 | H196: ENST00000269305 | I196: missense_variant | J196: cCc/cGc|p.Pro72Arg/c.215C>G | K196: 146 | L196: 231 | M196: 377 | N196: 0.6127320955 | O196: 1 | P196: 1 | Q196: 1 | R196: 1 | S196: 1 | T196: 1 | U196: 1 | V196: 1 | W196: 8 | X196: 25.4767 | Y196: 0.7147 | Z196: COSM3766190, COSM3766191, COSM250061, COSM3766193, COSM3766192 | AA196: large_intestine, liver, pancreas, pleura, prostate, soft_tissue, stomach, upper_aerodigestive_tract, urinary_tract, central_nervous_system | AB196: 10, 5, 15, 5, 5, 100, 5, 7, 5, 1 | AC196: rs1042522 | AD196: rs1042522 | AE196: NO | AF196: 0.659 | AG196: NO | AH196: YES | AI196: 0.155 | AJ196: Tolerated | AK196: 15.21 | AL196: 35.23 | AM196: 99 | AN196: 132 | AO196: 231 | AP196: 0.5714285714 | AQ196: 47 | AR196: 99 | AS196: 146 | AT196: 0.6780821918 | AU196: 0.0399438811 | AV196: 82 | AW196: 84 | AX196: Polymorphism
A197: Many samples, VAF, ESP6500, 1000 Genomes, dbSNP, ExAC, ClinVar, prediction | B197: UPN_Te3_048 | C197: 17 | D197: 7579472 | E197: G | F197: C | G197: TP53 | H197: ENST00000269305 | I197: missense_variant | J197: cCc/cGc|p.Pro72Arg/c.215C>G | K197: 2 | L197: 327 | M197: 330 | N197: 0.9909090909 | O197: 1 | P197: 1 | Q197: 1 | R197: 1 | S197: 1 | T197: 1 | U197: 1 | V197: 1 | W197: 8 | X197: 25.4767 | Y197: 0.7147 | Z197: COSM3766190, COSM3766191, COSM250061, COSM3766193, COSM3766192 | AA197: large_intestine, liver, pancreas, pleura, prostate, soft_tissue, stomach, upper_aerodigestive_tract, urinary_tract, central_nervous_system | AB197: 10, 5, 15, 5, 5, 100, 5, 7, 5, 1 | AC197: rs1042522 | AD197: rs1042522 | AE197: NO | AF197: 0.659 | AG197: NO | AH197: YES | AI197: 0.155 | AJ197: Tolerated | AK197: 18 | AL197: 37.81 | AM197: 1 | AN197: 175 | AO197: 177 | AP197: 0.988700565 | AQ197: 1 | AR197: 152 | AS197: 153 | AT197: 0.9934640523 | AU197: 1 | AV197: 82 | AW197: 84 | AX197: Polymorphism
A198: Many samples, VAF, ESP6500, 1000 Genomes, dbSNP, ExAC, ClinVar, prediction | B198: UPN_Te3_049 | C198: 17 | D198: 7579472 | E198: G | F198: C | G198: TP53 | H198: ENST00000269305 | I198: missense_variant | J198: cCc/cGc|p.Pro72Arg/c.215C>G | K198: 34 | L198: 406 | M198: 441 | N198: 0.9206349206 | O198: 1 | P198: 1 | Q198: 1 | R198: 1 | S198: 1 | T198: 1 | U198: 1 | V198: 1 | W198: 8 | X198: 25.4767 | Y198: 0.7147 | Z198: COSM3766190, COSM3766191, COSM250061, COSM3766193, COSM3766192 | AA198: large_intestine, liver, pancreas, pleura, prostate, soft_tissue, stomach, upper_aerodigestive_tract, urinary_tract, central_nervous_system | AB198: 10, 5, 15, 5, 5, 100, 5, 7, 5, 1 | AC198: rs1042522 | AD198: rs1042522 | AE198: NO | AF198: 0.659 | AG198: NO | AH198: YES | AI198: 0.155 | AJ198: Tolerated | AK198: 17.32 | AL198: 37.14 | AM198: 17 | AN198: 228 | AO198: 245 | AP198: 0.9306122449 | AQ198: 17 | AR198: 178 | AS198: 196 | AT198: 0.9081632653 | AU198: 0.590386174 | AV198: 82 | AW198: 84 | AX198: Polymorphism
A199: Many samples, VAF, ESP6500, 1000 Genomes, dbSNP, ExAC, ClinVar, prediction | B199: UPN_Te3_012 | C199: 17 | D199: 7579472 | E199: G | F199: C | G199: TP53 | H199: ENST00000269305 | I199: missense_variant | J199: cCc/cGc|p.Pro72Arg/c.215C>G | K199: 105 | L199: 184 | M199: 289 | N199: 0.6366782007 | O199: 1 | P199: 1 | Q199: 1 | R199: 1 | S199: 1 | T199: 1 | U199: 1 | V199: 1 | W199: 8 | X199: 25.4767 | Y199: 0.7147 | Z199: COSM3766190, COSM3766191, COSM250061, COSM3766193, COSM3766192 | AA199: large_intestine, liver, pancreas, pleura, prostate, soft_tissue, stomach, upper_aerodigestive_tract, urinary_tract, central_nervous_system | AB199: 10, 5, 15, 5, 5, 100, 5, 7, 5, 1 | AC199: rs1042522 | AD199: rs1042522 | AE199: NO | AF199: 0.659 | AG199: NO | AH199: YES | AI199: 0.155 | AJ199: Tolerated | AK199: 16.81 | AL199: 35.54 | AM199: 53 | AN199: 93 | AO199: 146 | AP199: 0.6369863014 | AQ199: 52 | AR199: 91 | AS199: 143 | AT199: 0.6363636364 | AU199: 1 | AV199: 82 | AW199: 84 | AX199: Polymorphism
A200: Many samples, VAF, ESP6500, 1000 Genomes, dbSNP, ExAC, ClinVar, prediction | B200: UPN_Te3_088 | C200: 17 | D200: 7579472 | E200: G | F200: C | G200: TP53 | H200: ENST00000269305 | I200: missense_variant | J200: cCc/cGc|p.Pro72Arg/c.215C>G | K200: 4 | L200: 230 | M200: 235 | N200: 0.9787234043 | O200: 1 | P200: 1 | Q200: 1 | R200: 1 | S200: 1 | T200: 1 | U200: 1 | V200: 1 | W200: 8 | X200: 25.4767 | Y200: 0.7147 | Z200: COSM3766190, COSM3766191, COSM250061, COSM3766193, COSM3766192 | AA200: large_intestine, liver, pancreas, pleura, prostate, soft_tissue, stomach, upper_aerodigestive_tract, urinary_tract, central_nervous_system | AB200: 10, 5, 15, 5, 5, 100, 5, 7, 5, 1 | AC200: rs1042522 | AD200: rs1042522 | AE200: NO | AF200: 0.659 | AG200: NO | AH200: YES | AI200: 0.155 | AJ200: Tolerated | AK200: 20.25 | AL200: 36.88 | AM200: 2 | AN200: 39 | AO200: 41 | AP200: 0.9512195122 | AQ200: 2 | AR200: 191 | AS200: 194 | AT200: 0.9845360825 | AU200: 0.1425211363 | AV200: 82 | AW200: 84 | AX200: Polymorphism
... 111 more rows

Sheet FN Mutations
A1: True because... | B1: Sample | C1: Chr | D1: Pos | E1: Ref | F1: Alt | G1: Gene | H1: ENST | I1: Type | J1: Mutation | K1: Nr_Ref | L1: Nr_Alt | M1: DP | N1: VAF | O1: GATK | P1: Platypus | Q1: VarScan | R1: LoFreq | S1: FreeBayes | T1: SNVer | U1: SAMtools | V1: VarDict | W1: Called | X1: ESP6500 | Y1: G1000 | Z1: Cosmic | AA1: Cosmic_location | AB1: Cosmic_occurence | AC1: dbSNP_SNPs | AD1: dbSNP_SNVs | AE1: PM_flag | AF1: ExAC | AG1: ClinVar_clinical | AH1: ClinVar_noimpact | AI1: provean_score | AJ1: prediction | AK1: BQ_Ref | AL1: BQ_Alt | AM1: V38 | AN1: V39 | AO1: V40 | AP1: V41 | AQ1: V42 | AR1: V43 | AS1: V44 | AT1: V45 | AU1: strandbias | AV1: nr_samples | AW1: nr_samples_similar | AX1: Category
A2: Validated by independent analysis | B2: UPN_Te3_024 | C2: 2 | D2: 25470559 | E2: G | F2: A | G2: DNMT3A | AX2: > Coverage too low! 5 ref, 18 alt, 23 dp
A3: Validated by independent analysis | B3: UPN_Te3_041 | C3: 2 | D3: 198267484 | E3: C | F3: T | G3: SF3B1 | AX3: > Coverage too low! 21 ref, 8 alt, 29 dp
A4: Validated by re-sequencing (Illumina) | B4: UPN_Te3_053 | C4: 4 | D4: 106157219 | E4: CTTCAGAGACTGAGCCA | F4: C | G4: TET2 | H4: ENST00000380013 | I4: frameshift_variant | J4: tcagagactgagccattt/|p.Ser708fs/c.2123_2138delCAGAGACTGAGCCATT | K4: 1154 | L4: 35 | M4: 1200 | N4: 0.02916666667 | O4: 0 | P4: 1 | Q4: 0 | R4: 0 | S4: 1 | T4: 0 | U4: 0 | V4: 1 | W4: 3 | X4: NO | Y4: NO | Z4: NO | AA4: NO | AB4: O | AC4: NO | AD4: NO | AE4: NO | AF4: NO | AG4: NO | AH4: NO | AI4: NA | AJ4: NA | AK4: 38.48 | AL4: NA | AM4: 518 | AN4: 16 | AO4: 535 | AP4: 0.02990654206 | AQ4: 636 | AR4: 19 | AS4: 665 | AT4: 0.02857142857 | AU4: 1 | AV4: 1 | AW4: 1 | AX4: Artifact (2)

Sheet FN Polymorphisms
A1: True because... | B1: Sample | C1: Chr | D1: Pos | E1: Ref | F1: Alt | G1: Gene | H1: ENST | I1: Type | J1: Mutation | K1: Nr_Ref | L1: Nr_Alt | M1: DP | N1: VAF | O1: GATK | P1: Platypus | Q1: VarScan | R1: LoFreq | S1: FreeBayes | T1: SNVer | U1: SAMtools | V1: VarDict | W1: Called | X1: ESP6500 | Y1: G1000 | Z1: Cosmic | AA1: Cosmic_location | AB1: Cosmic_occurence | AC1: dbSNP_SNPs | AD1: dbSNP_SNVs | AE1: PM_flag | AF1: ExAC | AG1: ClinVar_clinical | AH1: ClinVar_noimpact | AI1: provean_score | AJ1: prediction | AK1: BQ_Ref | AL1: BQ_Alt | AM1: V38 | AN1: V39 | AO1: V40 | AP1: V41 | AQ1: V42 | AR1: V43 | AS1: V44 | AT1: V45 | AU1: strandbias | AV1: nr_samples | AW1: nr_samples_similar | AX1: Category

Sheet FP Mutations
A1: Artifact because... | B1: Sample | C1: Chr | D1: Pos | E1: Ref | F1: Alt | G1: Gene | H1: ENST | I1: Type | J1: Mutation | K1: Nr_Ref | L1: Nr_Alt | M1: DP | N1: VAF | O1: GATK | P1: Platypus | Q1: VarScan | R1: LoFreq | S1: FreeBayes | T1: SNVer | U1: SAMtools | V1: VarDict | W1: Called | X1: ESP6500 | Y1: G1000 | Z1: Cosmic | AA1: Cosmic_location | AB1: Cosmic_occurence | AC1: dbSNP_SNPs | AD1: dbSNP_SNVs | AE1: PM_flag | AF1: ExAC | AG1: ClinVar_clinical | AH1: ClinVar_noimpact | AI1: provean_score | AJ1: prediction | AK1: BQ_Ref | AL1: BQ_Alt | AM1: V38 | AN1: V39 | AO1: V40 | AP1: V41 | AQ1: V42 | AR1: V43 | AS1: V44 | AT1: V45 | AU1: strandbias | AV1: nr_samples | AW1: nr_samples_similar | AX1: Category
A2: Inspected, low frequency, inframe | B2: UPN_Te3_059 | C2: 2 | D2: 25463297 | E2: AAAG | F2: A | G2: DNMT3A | H2: ENST00000264709 | I2: disruptive_inframe_deletion | J2: ttcttt/ttt|p.Phe732del/c.2193_2195delCTT | K2: 940 | L2: 78 | M2: 1021 | N2: 0.0763956905 | O2: 1 | P2: 1 | Q2: 0 | R2: 0 | S2: 0 | T2: 1 | U2: 0 | V2: 1 | W2: 4 | X2: NO | Y2: NO | Z2: NO | AA2: NA | AB2: NA | AC2: NO | AD2: NO | AE2: NO | AF2: NO | AG2: NO | AH2: NO | AI2: -15.491 | AJ2: Deleterious | AK2: 33.22 | AL2: NA | AM2: 535 | AN2: 41 | AO2: 578 | AP2: 0.07093425606 | AQ2: 405 | AR2: 37 | AS2: 443 | AT2: 0.0835214447 | AU2: 0.4771708557 | AV2: 1 | AW2: 1 | AX2: Probably True (-1)
A3: Very low bq, many samples (identified artifact) | B3: UPN_Te3_075 | C3: 2 | D3: 25467170 | E3: GC | F3: G | G3: DNMT3A | H3: ENST00000264709 | I3: frameshift_variant | J3: ggg/|p.Pro569fs/c.1704delG | K3: 28 | L3: 87 | M3: 120 | N3: 0.725 | O3: 1 | P3: 1 | Q3: 1 | R3: 0 | S3: 1 | T3: 1 | U3: 1 | V3: 0 | W3: 6 | X3: NO | Y3: NO | Z3: NO | AA3: NA | AB3: NA | AC3: NO | AD3: NO | AE3: NO | AF3: NO | AG3: NO | AH3: NO | AI3: NA | AJ3: NA | AK3: 13.04 | AL3: NA | AM3: 28 | AN3: 87 | AO3: 120 | AP3: 0.725 | AQ3: 0 | AR3: 0 | AS3: 0 | AT3: NA | AU3: 1 | AV3: 30 | AW3: 30 | AX3: Probably True (-1)
A4: Inspected, not in Illumina | B4: UPN_Te3_026 | C4: 2 | D4: 25467449 | E4: C | F4: A | G4: DNMT3A | H4: ENST00000264709 | I4: missense_variant | J4: Ggc/Tgc|p.Gly543Cys/c.1627G>T | K4: 549 | L4: 37 | M4: 589 | N4: 0.06281833616 | O4: 0 | P4: 0 | Q4: 0 | R4: 1 | S4: 1 | T4: 1 | U4: 0 | V4: 1 | W4: 4 | X4: NO | Y4: NO | Z4: COSM87002 | AA4: haematopoietic_and_lymphoid_tissue | AB4: 13 | AC4: NO | AD4: NO | AE4: NO | AF4: 3.295e-05 | AG4: NO | AH4: NO | AI4: -7.59 | AJ4: Deleterious | AK4: 24.57 | AL4: 39.05 | AM4: 226 | AN4: 25 | AO4: 251 | AP4: 0.09960159363 | AQ4: 323 | AR4: 12 | AS4: 338 | AT4: 0.03550295858 | AU4: 0.001930296924 | AV4: 3 | AW4: 3 | AX4: Probably True (-1)
A5: Low bq, inspected | B5: UPN_Te3_073 | C5: 2 | D5: 25497933 | E5: AC | F5: A | G5: DNMT3A | H5: ENST00000264709 | I5: frameshift_variant | J5: ggt/|p.Gly172fs/c.515delG | K5: 73 | L5: 26 | M5: 99 | N5: 0.2626262626 | O5: 1 | P5: 1 | Q5: 1 | R5: 0 | S5: 1 | T5: 1 | U5: 1 | V5: 0 | W5: 6 | X5: NO | Y5: NO | Z5: NO | AA5: NO | AB5: O | AC5: NO | AD5: NO | AE5: NO | AF5: NO | AG5: NO | AH5: NO | AI5: NA | AJ5: NA | AK5: 21.05 | AL5: NA | AM5: 73 | AN5: 26 | AO5: 99 | AP5: 0.2626262626 | AQ5: 0 | AR5: 0 | AS5: 0 | AT5: NA | AU5: 1 | AV5: 3 | AW5: 3 | AX5: Probably True (-3)
A6: Strandbias, inspected | B6: UPN_Te3_004 | C6: 2 | D6: 25523042 | E6: AC | F6: A | G6: DNMT3A | H6: ENST00000264709 | I6: frameshift_variant | J6: gtg/|p.Val48fs/c.142delG | K6: 58 | L6: 22 | M6: 81 | N6: 0.2716049383 | O6: 1 | P6: 1 | Q6: 0 | R6: 0 | S6: 1 | T6: 1 | U6: 1 | V6: 1 | W6: 6 | X6: NO | Y6: NO | Z6: NO | AA6: NO | AB6: O | AC6: NO | AD6: NO | AE6: NO | AF6: NO | AG6: NO | AH6: NO | AI6: NA | AJ6: NA | AK6: 33.38 | AL6: NA | AM6: 16 | AN6: 22 | AO6: 39 | AP6: 0.5641025641 | AQ6: 42 | AR6: 0 | AS6: 42 | AT6: 0 | AU6: 8.21002994e-10 | AV6: 1 | AW6: 1 | AX6: Probably True (-2)
A7: Low bq, inspected | B7: UPN_Te3_073 | C7: 2 | D7: 198266607 | E7: C | F7: CA | G7: SF3B1 | H7: ENST00000335508 | I7: frameshift_variant | J7: ttg/ttTg|p.Leu743fs/c.2228dupT | K7: 101 | L7: 53 | M7: 102 | N7: 0.5196078431 | O7: 1 | P7: 1 | Q7: 1 | R7: 0 | S7: 1 | T7: 1 | U7: 0 | V7: 0 | W7: 5 | X7: NO | Y7: NO | Z7: NO | AA7: NO | AB7: O | AC7: NO | AD7: NO | AE7: NO | AF7: NO | AG7: NO | AH7: NO | AI7: NA | AJ7: NA | AK7: 23.83 | AL7: NA | AM7: 101 | AN7: 53 | AO7: 102 | AP7: 0.5196078431 | AQ7: 0 | AR7: 0 | AS7: 0 | AT7: NA | AU7: 1 | AV7: 1 | AW7: 1 | AX7: Probably True (-2)
A8: Inspected | B8: UPN_Te3_076 | C8: 2 | D8: 198267704 | E8: TC | F8: T | G8: SF3B1 | H8: ENST00000335508 | I8: frameshift_variant | J8: gaa/|p.Glu592fs/c.1774delG | K8: 271 | L8: 24 | M8: 298 | N8: 0.08053691275 | O8: 0 | P8: 1 | Q8: 0 | R8: 0 | S8: 0 | T8: 1 | U8: 0 | V8: 0 | W8: 2 | X8: NO | Y8: NO | Z8: NO | AA8: NO | AB8: O | AC8: NO | AD8: NO | AE8: NO | AF8: NO | AG8: NO | AH8: NO | AI8: NA | AJ8: NA | AK8: 26.66 | AL8: NA | AM8: 270 | AN8: 24 | AO8: 297 | AP8: 0.08080808081 | AQ8: 1 | AR8: 0 | AS8: 1 | AT8: 0 | AU8: 1 | AV8: 1 | AW8: 1 | AX8: Hotspot (-2)
A9: Inspected, TC repeat | B9: UPN_Te3_082 | C9: 4 | D9: 106155402 | E9: TTC | F9: T | G9: TET2 | H9: ENST00000380013 | I9: frameshift_variant | J9: tct/|p.Ser104fs/c.311_312delCT | K9: 265 | L9: 153 | M9: 421 | N9: 0.3634204276 | O9: 1 | P9: 1 | Q9: 1 | R9: 0 | S9: 1 | T9: 1 | U9: 0 | V9: 1 | W9: 6 | X9: NO | Y9: NO | Z9: NO | AA9: NA | AB9: NA | AC9: NO | AD9: NO | AE9: NO | AF9: NO | AG9: NO | AH9: NO | AI9: NA | AJ9: NA | AK9: 38.08 | AL9: NA | AM9: 172 | AN9: 97 | AO9: 271 | AP9: 0.3579335793 | AQ9: 93 | AR9: 56 | AS9: 150 | AT9: 0.3733333333 | AU9: 0.8321605429 | AV9: 1 | AW9: 1 | AX9: Probably True (-3)
A10: Looks like SNP, but VAF too low | B10: UPN_Te3_035 | C10: 4 | D10: 106155751 | E10: G | F10: A | G10: TET2 | H10: ENST00000380013 | I10: missense_variant | J10: Gtg/Atg|p.Val218Met/c.652G>A | K10: 462 | L10: 83 | M10: 547 | N10: 0.1517367459 | O10: 1 | P10: 0 | Q10: 0 | R10: 1 | S10: 1 | T10: 1 | U10: 1 | V10: 1 | W10: 6 | X10: 2.093 | Y10: NO | Z10: COSM4416139, COSM4416140 | AA10: haematopoietic_and_lymphoid_tissue | AB10: 2 | AC10: rs6843141 | AD10: rs6843141 | AE10: NO | AF10: NA | AG10: NO | AH10: YES | AI10: 0.498 | AJ10: Tolerated | AK10: 38.56 | AL10: 38.6 | AM10: 248 | AN10: 24 | AO10: 272 | AP10: 0.0882352941 | AQ10: 214 | AR10: 59 | AS10: 275 | AT10: 0.2145454545 | AU10: 4.111725278e-05 | AV10: 7 | AW10: 7 | AX10: Probably True (-1)
A11: Looks like SNP, but VAF too low | B11: UPN_Te3_043 | C11: 4 | D11: 106155751 | E11: G | F11: A | G11: TET2 | H11: ENST00000380013 | I11: missense_variant | J11: Gtg/Atg|p.Val218Met/c.652G>A | K11: 699 | L11: 163 | M11: 868 | N11: 0.1877880184 | O11: 1 | P11: 1 | Q11: 0 | R11: 1 | S11: 1 | T11: 1 | U11: 1 | V11: 1 | W11: 7 | X11: 2.093 | Y11: NO | Z11: COSM4416139, COSM4416140 | AA11: haematopoietic_and_lymphoid_tissue | AB11: 2 | AC11: rs6843141 | AD11: rs6843141 | AE11: NO | AF11: NA | AG11: NO | AH11: YES | AI11: 0.498 | AJ11: Tolerated | AK11: 39.04 | AL11: 39.38 | AM11: 304 | AN11: 69 | AO11: 374 | AP11: 0.1844919786 | AQ11: 395 | AR11: 94 | AS11: 494 | AT11: 0.1902834008 | AU11: 0.8606862418 | AV11: 7 | AW11: 7 | AX11: Probably True (-1)
A12: Looks like SNP, but VAF too low | B12: UPN_Te3_027 | C12: 4 | D12: 106156163 | E12: G | F12: A | G12: TET2 | H12: ENST00000380013 | I12: missense_variant | J12: gGt/gAt|p.Gly355Asp/c.1064G>A | K12: 998 | L12: 114 | M12: 1112 | N12: 0.1025179856 | O12: 1 | P12: 1 | Q12: 0 | R12: 1 | S12: 1 | T12: 1 | U12: 0 | V12: 1 | W12: 6 | X12: 4.3721 | Y12: NO | Z12: NO | AA12: NO | AB12: O | AC12: rs61744960 | AD12: rs61744960 | AE12: NO | AF12: 0.027 | AG12: NO | AH12: YES | AI12: -1.044 | AJ12: Tolerated | AK12: 37.96 | AL12: 39.08 | AM12: 526 | AN12: 62 | AO12: 588 | AP12: 0.1054421769 | AQ12: 472 | AR12: 52 | AS12: 524 | AT12: 0.0992366412 | AU12: 0.7669320744 | AV12: 7 | AW12: 7 | AX12: Probably True (-1)
A13: Inspected | B13: UPN_Te3_042 | C13: 4 | D13: 106156747 | E13: C | F13: T | G13: TET2 | H13: ENST00000380013 | I13: stop_gained | J13: Cga/Tga|p.Arg550*/c.1648C>T | K13: 1184 | L13: 37 | M13: 1222 | N13: 0.03027823241 | O13: 0 | P13: 0 | Q13: 0 | R13: 1 | S13: 1 | T13: 1 | U13: 0 | V13: 1 | W13: 4 | X13: NO | Y13: NO | Z13: COSM41644, COSM1318629 | AA13: haematopoietic_and_lymphoid_tissue | AB13: 33 | AC13: NO | AD13: NO | AE13: NO | AF13: NA | AG13: NO | AH13: NO | AI13: NA | AJ13: NA | AK13: 39.42 | AL13: 39.35 | AM13: 580 | AN13: 18 | AO13: 599 | AP13: 0.03005008347 | AQ13: 604 | AR13: 19 | AS13: 623 | AT13: 0.0304975923 | AU13: 1 | AV13: 1 | AW13: 1 | AX13: Probably True (-3)
A14: Inspected, homo-T, deletion in many samples visible | B14: UPN_Te3_028 | C14: 4 | D14: 106157235 | E14: AT | F14: A | G14: TET2 | H14: ENST00000380013 | I14: frameshift_variant | J14: tca/|p.Ser714fs/c.2140delT | K14: 421 | L14: 203 | M14: 627 | N14: 0.3237639553 | O14: 1 | P14: 1 | Q14: 1 | R14: 0 | S14: 1 | T14: 1 | U14: 0 | V14: 1 | W14: 6 | X14: NO | Y14: NO | Z14: NO | AA14: NO | AB14: O | AC14: NO | AD14: NO | AE14: NO | AF14: NO | AG14: NO | AH14: NO | AI14: NA | AJ14: NA | AK14: 28.59 | AL14: NA | AM14: 218 | AN14: 108 | AO14: 327 | AP14: 0.3302752294 | AQ14: 203 | AR14: 95 | AS14: 300 | AT14: 0.3166666667 | AU14: 0.7975353092 | AV14: 17 | AW14: 17 | AX14: Probably True (-1)
A15: Inspected | B15: UPN_Te3_006 | C15: 4 | D15: 106157986 | E15: C | F15: T | G15: TET2 | H15: ENST00000380013 | I15: stop_gained | J15: Cag/Tag|p.Gln963*/c.2887C>T | K15: 586 | L15: 74 | M15: 661 | N15: 0.1119515885 | O15: 1 | P15: 1 | Q15: 0 | R15: 1 | S15: 1 | T15: 1 | U15: 0 | V15: 1 | W15: 6 | X15: NO | Y15: NO | Z15: COSM100070 | AA15: haematopoietic_and_lymphoid_tissue | AB15: 1 | AC15: NO | AD15: NO | AE15: NO | AF15: NO | AG15: NO | AH15: NO | AI15: NA | AJ15: NA | AK15: 39.61 | AL15: 39.68 | AM15: 302 | AN15: 32 | AO15: 334 | AP15: 0.09580838323 | AQ15: 284 | AR15: 42 | AS15: 327 | AT15: 0.128440367 | AU15: 0.2171105154 | AV15: 1 | AW15: 1 | AX15: Probably True (-5)
A16: Low bq, inspected | B16: UPN_Te3_074 | C16: 4 | D16: 106158099 | E16: CA | F16: C | G16: TET2 | H16: ENST00000380013 | I16: frameshift_variant | J16: aca/|p.Thr1002fs/c.3004delA | K16: 137 | L16: 50 | M16: 274 | N16: 0.1824817518 | O16: 1 | P16: 1 | Q16: 1 | R16: 0 | S16: 0 | T16: 1 | U16: 0 | V16: 1 | W16: 5 | X16: NO | Y16: NO | Z16: NO | AA16: NO | AB16: O | AC16: NO | AD16: NO | AE16: NO | AF16: NO | AG16: NO | AH16: NO | AI16: NA | AJ16: NA | AK16: 22.11 | AL16: NA | AM16: 93 | AN16: 36 | AO16: 135 | AP16: 0.2666666667 | AQ16: 44 | AR16: 14 | AS16: 139 | AT16: 0.1007194245 | AU16: 0.7212628858 | AV16: 2 | AW16: 2 | AX16: Probably True (-2)
A17: Many samples, tolerated, low freq, no database | B17: UPN_Te3_013 | C17: 4 | D17: 106158341 | E17: T | F17: C | G17: TET2 | H17: ENST00000380013 | I17: missense_variant | J17: tTa/tCa|p.Leu1081Ser/c.3242T>C | K17: 1149 | L17: 147 | M17: 1296 | N17: 0.1134259259 | O17: 0 | P17: 1 | Q17: 0 | R17: 1 | S17: 1 | T17: 1 | U17: 0 | V17: 1 | W17: 5 | X17: NO | Y17: NO | Z17: NO | AA17: NA | AB17: NA | AC17: NO | AD17: NO | AE17: NO | AF17: NO | AG17: NO | AH17: NO | AI17: 0.085 | AJ17: Tolerated | AK17: 32.43 | AL17: 36.96 | AM17: 557 | AN17: 67 | AO17: 624 | AP17: 0.1073717949 | AQ17: 592 | AR17: 80 | AS17: 672 | AT17: 0.119047619 | AU17: 0.5399414886 | AV17: 17 | AW17: 17 | AX17: Probably True (-2)
A18: Many samples, tolerated, low freq, no database | B18: UPN_Te3_076 | C18: 4 | D18: 106158341 | E18: T | F18: C | G18: TET2 | H18: ENST00000380013 | I18: missense_variant | J18: tTa/tCa|p.Leu1081Ser/c.3242T>C | K18: 259 | L18: 50 | M18: 309 | N18: 0.1618122977 | O18: 0 | P18: 1 | Q18: 0 | R18: 1 | S18: 1 | T18: 1 | U18: 0 | V18: 1 | W18: 5 | X18: NO | Y18: NO | Z18: NO | AA18: NA | AB18: NA | AC18: NO | AD18: NO | AE18: NO | AF18: NO | AG18: NO | AH18: NO | AI18: 0.085 | AJ18: Tolerated | AK18: 29.89 | AL18: 39.6 | AM18: 4 | AN18: 2 | AO18: 6 | AP18: 0.3333333333 | AQ18: 255 | AR18: 48 | AS18: 303 | AT18: 0.1584158416 | AU18: 0.2507960076 | AV18: 17 | AW18: 17 | AX18: Probably True (-2)
A19: Many samples, tolerated, low freq, no database | B19: UPN_Te3_003 | C19: 4 | D19: 106158341 | E19: T | F19: C | G19: TET2 | H19: ENST00000380013 | I19: missense_variant | J19: tTa/tCa|p.Leu1081Ser/c.3242T>C | K19: 2572 | L19: 391 | M19: 2965 | N19: 0.1318718381 | O19: 0 | P19: 1 | Q19: 0 | R19: 1 | S19: 1 | T19: 1 | U19: 0 | V19: 1 | W19: 5 | X19: NO | Y19: NO | Z19: NO | AA19: NA | AB19: NA | AC19: NO | AD19: NO | AE19: NO | AF19: NO | AG19: NO | AH19: NO | AI19: 0.085 | AJ19: Tolerated | AK19: 35.22 | AL19: 38.64 | AM19: 1330 | AN19: 177 | AO19: 1509 | AP19: 0.1172962227 | AQ19: 1242 | AR19: 214 | AS19: 1456 | AT19: 0.146978022 | AU19: 0.0195013161 | AV19: 17 | AW19: 17 | AX19: Probably True (-2)
A20: Many samples, tolerated, low freq, no database | B20: UPN_Te3_027 | C20: 4 | D20: 106158341 | E20: T | F20: C | G20: TET2 | H20: ENST00000380013 | I20: missense_variant | J20: tTa/tCa|p.Leu1081Ser/c.3242T>C | K20: 1689 | L20: 170 | M20: 1860 | N20: 0.0913978495 | O20: 0 | P20: 1 | Q20: 0 | R20: 1 | S20: 1 | T20: 1 | U20: 0 | V20: 1 | W20: 5 | X20: NO | Y20: NO | Z20: NO | AA20: NA | AB20: NA | AC20: NO | AD20: NO | AE20: NO | AF20: NO | AG20: NO | AH20: NO | AI20: 0.085 | AJ20: Tolerated | AK20: 34.03 | AL20: 38.03 | AM20: 851 | AN20: 93 | AO20: 945 | AP20: 0.0984126984 | AQ20: 838 | AR20: 77 | AS20: 915 | AT20: 0.0841530055 | AU20: 0.2961525282 | AV20: 17 | AW20: 17 | AX20: Probably True (-1)
A21: Many samples, tolerated, low freq, no database | B21: UPN_Te3_086 | C21: 4 | D21: 106158341 | E21: T | F21: C | G21: TET2 | H21: ENST00000380013 | I21: missense_variant | J21: tTa/tCa|p.Leu1081Ser/c.3242T>C | K21: 248 | L21: 32 | M21: 280 | N21: 0.1142857143 | O21: 0 | P21: 1 | Q21: 0 | R21: 1 | S21: 1 | T21: 1 | U21: 0 | V21: 1 | W21: 5 | X21: NO | Y21: NO | Z21: NO | AA21: NA | AB21: NA | AC21: NO | AD21: NO | AE21: NO | AF21: NO | AG21: NO | AH21: NO | AI21: 0.085 | AJ21: Tolerated | AK21: 32.53 | AL21: 37.19 | AM21: 187 | AN21: 17 | AO21: 204 | AP21: 0.0833333333 | AQ21: 61 | AR21: 15 | AS21: 76 | AT21: 0.1973684211 | AU21: 0.0110128699 | AV21: 17 | AW21: 17 | AX21: Probably True (-2)
A22: Many samples, tolerated, low freq, no database | B22: UPN_Te3_008 | C22: 4 | D22: 106158341 | E22: T | F22: C | G22: TET2 | H22: ENST00000380013 | I22: missense_variant | J22: tTa/tCa|p.Leu1081Ser/c.3242T>C | K22: 1368 | L22: 135 | M22: 1503 | N22: 0.0898203593 | O22: 0 | P22: 1 | Q22: 0 | R22: 1 | S22: 1 | T22: 1 | U22: 0 | V22: 1 | W22: 5 | X22: NO | Y22: NO | Z22: NO | AA22: NA | AB22: NA | AC22: NO | AD22: NO | AE22: NO | AF22: NO | AG22: NO | AH22: NO | AI22: 0.085 | AJ22: Tolerated | AK22: 34.53 | AL22: 37.84 | AM22: 629 | AN22: 58 | AO22: 687 | AP22: 0.0844250364 | AQ22: 739 | AR22: 77 | AS22: 816 | AT22: 0.0943627451 | AU22: 0.5270247775 | AV22: 17 | AW22: 17 | AX22: Probably True (-1)
A23: Many samples, tolerated, low freq, no database | B23: UPN_Te3_032 | C23: 4 | D23: 106158341 | E23: T | F23: C | G23: TET2 | H23: ENST00000380013 | I23: missense_variant | J23: tTa/tCa|p.Leu1081Ser/c.3242T>C | K23: 1529 | L23: 142 | M23: 1671 | N23: 0.0849790545 | O23: 0 | P23: 1 | Q23: 0 | R23: 1 | S23: 1 | T23: 1 | U23: 0 | V23: 1 | W23: 5 | X23: NO | Y23: NO | Z23: NO | AA23: NA | AB23: NA | AC23: NO | AD23: NO | AE23: NO | AF23: NO | AG23: NO | AH23: NO | AI23: 0.085 | AJ23: Tolerated | AK23: 34.11 | AL23: 37.66 | AM23: 810 | AN23: 74 | AO23: 884 | AP23: 0.0837104072 | AQ23: 719 | AR23: 68 | AS23: 787 | AT23: 0.0864040661 | AU23: 0.8608204343 | AV23: 17 | AW23: 17 | AX23: Probably True (-1)
A24: Many samples, tolerated, low freq, no database | B24: UPN_Te3_081 | C24: 4 | D24: 106158341 | E24: T | F24: C | G24: TET2 | H24: ENST00000380013 | I24: missense_variant | J24: tTa/tCa|p.Leu1081Ser/c.3242T>C | K24: 438 | L24: 47 | M24: 485 | N24: 0.0969072165 | O24: 0 | P24: 1 | Q24: 0 | R24: 1 | S24: 1 | T24: 1 | U24: 0 | V24: 1 | W24: 5 | X24: NO | Y24: NO | Z24: NO | AA24: NA | AB24: NA | AC24: NO | AD24: NO | AE24: NO | AF24: NO | AG24: NO | AH24: NO | AI24: 0.085 | AJ24: Tolerated | AK24: 32.4 | AL24: 35.32 | AM24: 160 | AN24: 19 | AO24: 179 | AP24: 0.1061452514 | AQ24: 278 | AR24: 28 | AS24: 306 | AT24: 0.091503268 | AU24: 0.6345976104 | AV24: 17 | AW24: 17 | AX24: Probably True (-1)
A25: Many samples, tolerated, low freq, no database | B25: UPN_Te3_037 | C25: 4 | D25: 106158341 | E25: T | F25: C | G25: TET2 | H25: ENST00000380013 | I25: missense_variant | J25: tTa/tCa|p.Leu1081Ser/c.3242T>C | K25: 1461 | L25: 179 | M25: 1640 | N25: 0.1091463415 | O25: 0 | P25: 1 | Q25: 0 | R25: 1 | S25: 1 | T25: 1 | U25: 0 | V25: 1 | W25: 5 | X25: NO | Y25: NO | Z25: NO | AA25: NA | AB25: NA | AC25: NO | AD25: NO | AE25: NO | AF25: NO | AG25: NO | AH25: NO | AI25: 0.085 | AJ25: Tolerated | AK25: 33.46 | AL25: 37.91 | AM25: 689 | AN25: 89 | AO25: 778 | AP25: 0.1143958869 | AQ25: 772 | AR25: 90 | AS25: 862 | AT25: 0.1044083527 | AU25: 0.5267663138 | AV25: 17 | AW25: 17 | AX25: Probably True (-2)
A26: Many samples, tolerated, low freq, no database | B26: UPN_Te3_042 | C26: 4 | D26: 106158341 | E26: T | F26: C | G26: TET2 | H26: ENST00000380013 | I26: missense_variant | J26: tTa/tCa|p.Leu1081Ser/c.3242T>C | K26: 1425 | L26: 175 | M26: 1600 | N26: 0.109375 | O26: 0 | P26: 1 | Q26: 0 | R26: 1 | S26: 1 | T26: 1 | U26: 0 | V26: 1 | W26: 5 | X26: NO | Y26: NO | Z26: NO | AA26: NA | AB26: NA | AC26: NO | AD26: NO | AE26: NO | AF26: NO | AG26: NO | AH26: NO | AI26: 0.085 | AJ26: Tolerated | AK26: 33.62 | AL26: 37.35 | AM26: 624 | AN26: 69 | AO26: 693 | AP26: 0.0995670996 | AQ26: 801 | AR26: 106 | AS26: 907 | AT26: 0.1168687982 | AU26: 0.2936973666 | AV26: 17 | AW26: 17 | AX26: Probably True (-2)
A27: Many samples, tolerated, low freq, no database | B27: UPN_Te3_082 | C27: 4 | D27: 106158341 | E27: T | F27: C | G27: TET2 | H27: ENST00000380013 | I27: missense_variant | J27: tTa/tCa|p.Leu1081Ser/c.3242T>C | K27: 525 | L27: 98 | M27: 623 | N27: 0.1573033708 | O27: 1 | P27: 1 | Q27: 0 | R27: 1 | S27: 1 | T27: 1 | U27: 0 | V27: 1 | W27: 6 | X27: NO | Y27: NO | Z27: NO | AA27: NA | AB27: NA | AC27: NO | AD27: NO | AE27: NO | AF27: NO | AG27: NO | AH27: NO | AI27: 0.085 | AJ27: Tolerated | AK27: 33.34 | AL27: 36.93 | AM27: 339 | AN27: 56 | AO27: 395 | AP27: 0.1417721519 | AQ27: 186 | AR27: 42 | AS27: 228 | AT27: 0.1842105263 | AU27: 0.1713806664 | AV27: 17 | AW27: 17 | AX27: Probably True (-1)
A28: Many samples, tolerated, low freq, no database | B28: UPN_Te3_047 | C28: 4 | D28: 106158341 | E28: T | F28: C | G28: TET2 | H28: ENST00000380013 | I28: missense_variant | J28: tTa/tCa|p.Leu1081Ser/c.3242T>C | K28: 1421 | L28: 133 | M28: 1554 | N28: 0.0855855856 | O28: 0 | P28: 1 | Q28: 0 | R28: 1 | S28: 1 | T28: 1 | U28: 0 | V28: 1 | W28: 5 | X28: NO | Y28: NO | Z28: NO | AA28: NA | AB28: NA | AC28: NO | AD28: NO | AE28: NO | AF28: NO | AG28: NO | AH28: NO | AI28: 0.085 | AJ28: Tolerated | AK28: 33.25 | AL28: 36.59 | AM28: 562 | AN28: 65 | AO28: 627 | AP28: 0.1036682616 | AQ28: 859 | AR28: 68 | AS28: 927 | AT28: 0.0733549083 | AU28: 0.0417964299 | AV28: 17 | AW28: 17 | AX28: Probably True (-1)
A29: Many samples, tolerated, low freq, no database | B29: UPN_Te3_052 | C29: 4 | D29: 106158341 | E29: T | F29: C | G29: TET2 | H29: ENST00000380013 | I29: missense_variant | J29: tTa/tCa|p.Leu1081Ser/c.3242T>C | K29: 1147 | L29: 143 | M29: 1290 | N29: 0.1108527132 | O29: 0 | P29: 0 | Q29: 0 | R29: 1 | S29: 1 | T29: 1 | U29: 0 | V29: 1 | W29: 4 | X29: NO | Y29: NO | Z29: NO | AA29: NA | AB29: NA | AC29: NO | AD29: NO | AE29: NO | AF29: NO | AG29: NO | AH29: NO | AI29: 0.085 | AJ29: Tolerated | AK29: 32.77 | AL29: 37.99 | AM29: 517 | AN29: 65 | AO29: 582 | AP29: 0.1116838488 | AQ29: 630 | AR29: 78 | AS29: 708 | AT29: 0.1101694915 | AU29: 0.9292821511 | AV29: 17 | AW29: 17 | AX29: Probably True (-1)
A30: Many samples, tolerated, low freq, no database | B30: UPN_Te3_057 | C30: 4 | D30: 106158341 | E30: T | F30: C | G30: TET2 | H30: ENST00000380013 | I30: missense_variant | J30: tTa/tCa|p.Leu1081Ser/c.3242T>C | K30: 1050 | L30: 169 | M30: 1220 | N30: 0.1385245902 | O30: 0 | P30: 1 | Q30: 0 | R30: 1 | S30: 1 | T30: 1 | U30: 0 | V30: 1 | W30: 5 | X30: NO | Y30: NO | Z30: NO | AA30: NA | AB30: NA | AC30: NO | AD30: NO | AE30: NO | AF30: NO | AG30: NO | AH30: NO | AI30: 0.085 | AJ30: Tolerated | AK30: 32.58 | AL30: 37.07 | AM30: 434 | AN30: 69 | AO30: 504 | AP30: 0.1369047619 | AQ30: 616 | AR30: 100 | AS30: 716 | AT30: 0.1396648045 | AU30: 0.9330395767 | AV30: 17 | AW30: 17 | AX30: Probably True (-2)
A31: Many samples, tolerated, low freq, no database | B31: UPN_Te3_067 | C31: 4 | D31: 106158341 | E31: T | F31: C | G31: TET2 | H31: ENST00000380013 | I31: missense_variant | J31: tTa/tCa|p.Leu1081Ser/c.3242T>C | K31: 2024 | L31: 283 | M31: 2307 | N31: 0.1226701344 | O31: 0 | P31: 1 | Q31: 0 | R31: 1 | S31: 1 | T31: 1 | U31: 0 | V31: 1 | W31: 5 | X31: NO | Y31: NO | Z31: NO | AA31: NA | AB31: NA | AC31: NO | AD31: NO | AE31: NO | AF31: NO | AG31: NO | AH31: NO | AI31: 0.085 | AJ31: Tolerated | AK31: 32.69 | AL31: 37.81 | AM31: 731 | AN31: 87 | AO31: 818 | AP31: 0.1063569682 | AQ31: 1293 | AR31: 196 | AS31: 1489 | AT31: 0.1316319678 | AU31: 0.0844834171 | AV31: 17 | AW31: 17 | AX31: Probably True (-2)
A32: Low bq, >1 sample, TET2, no database | B32: UPN_Te3_073 | C32: 4 | D32: 106158378 | E32: CA | F32: C | G32: TET2 | H32: ENST00000380013 | I32: frameshift_variant | J32: aga/|p.Arg1095fs/c.3283delA | K32: 143 | L32: 63 | M32: 207 | N32: 0.3043478261 | O32: 1 | P32: 1 | Q32: 1 | R32: 0 | S32: 1 | T32: 1 | U32: 0 | V32: 0 | W32: 5 | X32: NO | Y32: NO | Z32: NO | AA32: NA | AB32: NA | AC32: NO | AD32: NO | AE32: NO | AF32: NO | AG32: NO | AH32: NO | AI32: NA | AJ32: NA | AK32: 20.34 | AL32: NA | AM32: 0 | AN32: 0 | AO32: 0 | AP32: NA | AQ32: 143 | AR32: 63 | AS32: 207 | AT32: 0.3043478261 | AU32: 1 | AV32: 3 | AW32: 3 | AX32: Probably True (-2)
A33: Low bq, >1 sample, TET2, no database | B33: UPN_Te3_075 | C33: 4 | D33: 106158378 | E33: CA | F33: C | G33: TET2 | H33: ENST00000380013 | I33: frameshift_variant | J33: aga/|p.Arg1095fs/c.3283delA | K33: 92 | L33: 30 | M33: 123 | N33: 0.243902439 | O33: 0 | P33: 1 | Q33: 1 | R33: 0 | S33: 1 | T33: 1 | U33: 0 | V33: 0 | W33: 4 | X33: NO | Y33: NO | Z33: NO | AA33: NA | AB33: NA | AC33: NO | AD33: NO | AE33: NO | AF33: NO | AG33: NO | AH33: NO | AI33: NA | AJ33: NA | AK33: 21.61 | AL33: NA | AM33: 4 | AN33: 0 | AO33: 4 | AP33: 0 | AQ33: 88 | AR33: 30 | AS33: 119 | AT33: 0.2521008403 | AU33: 0.571076771 | AV33: 3 | AW33: 3 | AX33: Probably True (-1)
A34: Low bq, >1 sample, TET2, no database | B34: UPN_Te3_076 | C34: 4 | D34: 106158378 | E34: CA | F34: C | G34: TET2 | H34: ENST00000380013 | I34: frameshift_variant | J34: aga/|p.Arg1095fs/c.3283delA | K34: 124 | L34: 38 | M34: 164 | N34: 0.2317073171 | O34: 0 | P34: 1 | Q34: 1 | R34: 0 | S34: 1 | T34: 1 | U34: 0 | V34: 0 | W34: 4 | X34: NO | Y34: NO | Z34: NO | AA34: NA | AB34: NA | AC34: NO | AD34: NO | AE34: NO | AF34: NO | AG34: NO | AH34: NO | AI34: NA | AJ34: NA | AK34: 21.61 | AL34: NA | AM34: 3 | AN34: 0 | AO34: 3 | AP34: 0 | AQ34: 121 | AR34: 38 | AS34: 161 | AT34: 0.2360248447 | AU34: 1 | AV34: 3 | AW34: 3 | AX34: Probably True (-1)
A35: Low bq, >1 sample, TET2, no database | B35: UPN_Te3_073 | C35: 4 | D35: 106162506 | E35: T | F35: TA | G35: TET2 | H35: ENST00000380013 | I35: frameshift_variant | J35: gaa/Agaa|p.Glu1141fs/c.3420_3421insA | K35: 109 | L35: 21 | M35: 109 | N35: 0.1926605505 | O35: 1 | P35: 1 | Q35: 0 | R35: 0 | S35: 1 | T35: 1 | U35: 1 | V35: 0 | W35: 5 | X35: NO | Y35: NO | Z35: NO | AA35: NO | AB35: O | AC35: NO | AD35: NO | AE35: NO | AF35: NO | AG35: NO | AH35: NO | AI35: NA | AJ35: NA | AK35: 27.26 | AL35: NA | AM35: 0 | AN35: 0 | AO35: 0 | AP35: NA | AQ35: 109 | AR35: 21 | AS35: 109 | AT35: 0.1926605505 | AU35: 1 | AV35: 3 | AW35: 3 | AX35: Probably True (-2)
A36: Low bq, >1 sample, TET2, no database | B36: UPN_Te3_075 | C36: 4 | D36: 106162506 | E36: T | F36: TA | G36: TET2 | H36: ENST00000380013 | I36: frameshift_variant | J36: gaa/Agaa|p.Glu1141fs/c.3420_3421insA | K36: 124 | L36: 23 | M36: 124 | N36: 0.185483871 | O36: 1 | P36: 1 | Q36: 0 | R36: 0 | S36: 1 | T36: 1 | U36: 1 | V36: 0 | W36: 5 | X36: NO | Y36: NO | Z36: NO | AA36: NO | AB36: O | AC36: NO | AD36: NO | AE36: NO | AF36: NO | AG36: NO | AH36: NO | AI36: NA | AJ36: NA | AK36: 27.81 | AL36: NA | AM36: 3 | AN36: 0 | AO36: 3 | AP36: 0 | AQ36: 121 | AR36: 23 | AS36: 121 | AT36: 0.1900826446 | AU36: 1 | AV36: 3 | AW36: 3 | AX36: Probably True (-2)
A37: Low bq, >1 sample, TET2, no database | B37: UPN_Te3_076 | C37: 4 | D37: 106162506 | E37: T | F37: TA | G37: TET2 | H37: ENST00000380013 | I37: frameshift_variant | J37: gaa/Agaa|p.Glu1141fs/c.3420_3421insA | K37: 89 | L37: 27 | M37: 89 | N37: 0.3033707865 | O37: 1 | P37: 1 | Q37: 1 | R37: 0 | S37: 1 | T37: 1 | U37: 1 | V37: 0 | W37: 6 | X37: NO | Y37: NO | Z37: NO | AA37: NO | AB37: O | AC37: NO | AD37: NO | AE37: NO | AF37: NO | AG37: NO | AH37: NO | AI37: NA | AJ37: NA | AK37: 26.57 | AL37: NA | AM37: 2 | AN37: 0 | AO37: 2 | AP37: 0 | AQ37: 87 | AR37: 27 | AS37: 87 | AT37: 0.3103448276 | AU37: 1 | AV37: 3 | AW37: 3 | AX37: Probably True (-3)
A38: Low bq, >1 sample, TET2, no database | B38: UPN_Te3_075 | C38: 4 | D38: 106193934 | E38: CA | F38: C | G38: TET2 | H38: ENST00000380013 | I38: frameshift_variant | J38: agg/|p.Arg1467fs/c.4399delA | K38: 258 | L38: 33 | M38: 291 | N38: 0.1134020619 | O38: 0 | P38: 1 | Q38: 0 | R38: 0 | S38: 1 | T38: 1 | U38: 0 | V38: 1 | W38: 4 | X38: NO | Y38: NO | Z38: NO | AA38: NA | AB38: NA | AC38: NO | AD38: NO | AE38: NO | AF38: NO | AG38: NO | AH38: NO | AI38: NA | AJ38: NA | AK38: 26.1 | AL38: NA | AM38: 4 | AN38: 0 | AO38: 4 | AP38: 0 | AQ38: 254 | AR38: 33 | AS38: 287 | AT38: 0.1149825784 | AU38: 1 | AV38: 3 | AW38: 3 | AX38: Probably True (-1)
A39: Low bq, >1 sample, TET2, no database | B39: UPN_Te3_076 | C39: 4 | D39: 106193934 | E39: CA | F39: C | G39: TET2 | H39: ENST00000380013 | I39: frameshift_variant | J39: agg/|p.Arg1467fs/c.4399delA | K39: 227 | L39: 46 | M39: 273 | N39: 0.1684981685 | O39: 1 | P39: 1 | Q39: 0 | R39: 0 | S39: 1 | T39: 1 | U39: 0 | V39: 1 | W39: 5 | X39: NO | Y39: NO | Z39: NO | AA39: NA | AB39: NA | AC39: NO | AD39: NO | AE39: NO | AF39: NO | AG39: NO | AH39: NO | AI39: NA | AJ39: NA | AK39: 26.04 | AL39: NA | AM39: 0 | AN39: 0 | AO39: 0 | AP39: NA | AQ39: 227 | AR39: 46 | AS39: 273 | AT39: 0.1684981685 | AU39: 1 | AV39: 3 | AW39: 3 | AX39: Probably True (-2)
A40: Low bq, >1 sample, TET2, no database | B40: UPN_Te3_074 | C40: 4 | D40: 106194034 | E40: CA | F40: C | G40: TET2 | H40: ENST00000380013 | I40: frameshift_variant | J40: aaa/|p.Lys1500fs/c.4500delA | K40: 91 | L40: 28 | M40: 120 | N40: 0.2333333333 | O40: 1 | P40: 1 | Q40: 1 | R40: 0 | S40: 1 | T40: 1 | U40: 0 | V40: 1 | W40: 6 | X40: NO | Y40: NO | Z40: NO | AA40: NA | AB40: NA | AC40: NO | AD40: NO | AE40: NO | AF40: NO | AG40: NO | AH40: NO | AI40: NA | AJ40: NA | AK40: 23.13 | AL40: NA | AM40: 45 | AN40: 24 | AO40: 70 | AP40: 0.3428571429 | AQ40: 46 | AR40: 4 | AS40: 50 | AT40: 0.08 | AU40: 0.0008135232322 | AV40: 1 | AW40: 1 | AX40: Probably True (-2)
A41: Low bq, >1 sample, TET2, no database | B41: UPN_Te3_073 | C41: 4 | D41: 106196278 | E41: GC | F41: G | G41: TET2 | H41: ENST00000380013 | I41: frameshift_variant | J41: cag/|p.Gln1539fs/c.4615delC | K41: 168 | L41: 25 | M41: 195 | N41: 0.1282051282 | O41: 0 | P41: 1 | Q41: 0 | R41: 0 | S41: 1 | T41: 1 | U41: 0 | V41: 1 | W41: 4 | X41: NO | Y41: NO | Z41: NO | AA41: NO | AB41: O | AC41: NO | AD41: NO | AE41: NO | AF41: NO | AG41: NO | AH41: NO | AI41: NA | AJ41: NA | AK41: 26.08 | AL41: NA | AM41: 0 | AN41: 0 | AO41: 0 | AP41: NA | AQ41: 168 | AR41: 25 | AS41: 195 | AT41: 0.1282051282 | AU41: 1 | AV41: 2 | AW41: 2 | AX41: Probably True (-1)
A42: Low bq, >1 sample, TET2, no database | B42: UPN_Te3_075 | C42: 4 | D42: 106196278 | E42: GC | F42: G | G42: TET2 | H42: ENST00000380013 | I42: frameshift_variant | J42: cag/|p.Gln1539fs/c.4615delC | K42: 229 | L42: 34 | M42: 266 | N42: 0.1278195489 | O42: 0 | P42: 1 | Q42: 0 | R42: 0 | S42: 1 | T42: 1 | U42: 0 | V42: 1 | W42: 4 | X42: NO | Y42: NO | Z42: NO | AA42: NO | AB42: O | AC42: NO | AD42: NO | AE42: NO | AF42: NO | AG42: NO | AH42: NO | AI42: NA | AJ42: NA | AK42: 27.55 | AL42: NA | AM42: 0 | AN42: 0 | AO42: 0 | AP42: NA | AQ42: 229 | AR42: 34 | AS42: 266 | AT42: 0.1278195489 | AU42: 1 | AV42: 2 | AW42: 2 | AX42: Probably True (-1)
A43: Strandbias, low VAF, but tolerated | B43: UPN_Te3_087 | C43: 4 | D43: 106196645 | E43: A | F43: G | G43: TET2 | H43: ENST00000380013 | I43: missense_variant | J43: Agg/Ggg|p.Arg1660Gly/c.4978A>G | K43: 389 | L43: 97 | M43: 505 | N43: 0.1920792079 | O43: 1 | P43: 1 | Q43: 0 | R43: 1 | S43: 1 | T43: 1 | U43: 0 | V43: 1 | W43: 6 | X43: NO | Y43: NO | Z43: NO | AA43: NO | AB43: O | AC43: NO | AD43: NO | AE43: NO | AF43: NO | AG43: NO | AH43: NO | AI43: -1.308 | AJ43: Tolerated | AK43: 38.4 | AL43: 33.92 | AM43: 99 | AN43: 67 | AO43: 185 | AP43: 0.3621621622 | AQ43: 290 | AR43: 30 | AS43: 320 | AT43: 0.09375 | AU43: 3.261651482e-15 | AV43: 2 | AW43: 2 | AX43: Probably True (-4)
A44: Many samples, tolerated, but VAF too low | B44: UPN_Te3_001 | C44: 4 | D44: 106196672 | E44: A | F44: G | G44: TET2 | H44: ENST00000380013 | I44: missense_variant | J44: Aag/Gag|p.Lys1669Glu/c.5005A>G | K44: 568 | L44: 111 | M44: 703 | N44: 0.1578947368 | O44: 1 | P44: 1 | Q44: 0 | R44: 1 | S44: 1 | T44: 1 | U44: 0 | V44: 1 | W44: 6 | X44: NO | Y44: NO | Z44: NO | AA44: NA | AB44: NA | AC44: NO | AD44: NO | AE44: NO | AF44: NO | AG44: NO | AH44: NO | AI44: -0.958 | AJ44: Tolerated | AK44: 38.96 | AL44: 39.38 | AM44: 265 | AN44: 60 | AO44: 339 | AP44: 0.1769911504 | AQ44: 303 | AR44: 51 | AS44: 364 | AT44: 0.1401098901 | AU44: 0.1768665067 | AV44: 35 | AW44: 135 | AX44: Probably True (-1)
A45: Many samples, tolerated, but VAF too low | B45: UPN_Te3_016 | C45: 4 | D45: 106196672 | E45: A | F45: G | G45: TET2 | H45: ENST00000380013 | I45: missense_variant | J45: Aag/Gag|p.Lys1669Glu/c.5005A>G | K45: 1007 | L45: 107 | M45: 1149 | N45: 0.093124456 | O45: 0 | P45: 1 | Q45: 0 | R45: 1 | S45: 1 | T45: 1 | U45: 0 | V45: 1 | W45: 5 | X45: NO | Y45: NO | Z45: NO | AA45: NA | AB45: NA | AC45: NO | AD45: NO | AE45: NO | AF45: NO | AG45: NO | AH45: NO | AI45: -0.958 | AJ45: Tolerated | AK45: 38.37 | AL45: 39.26 | AM45: 535 | AN45: 57 | AO45: 615 | AP45: 0.0926829268 | AQ45: 472 | AR45: 50 | AS45: 534 | AT45: 0.0936329588 | AU45: 1 | AV45: 35 | AW45: 135 | AX45: Probably True (-1)
A46: Many samples, tolerated, but VAF too low | B46: UPN_Te3_021 | C46: 4 | D46: 106196672 | E46: A | F46: G | G46: TET2 | H46: ENST00000380013 | I46: missense_variant | J46: Aag/Gag|p.Lys1669Glu/c.5005A>G | K46: 1296 | L46: 151 | M46: 1512 | N46: 0.0998677249 | O46: 0 | P46: 1 | Q46: 0 | R46: 1 | S46: 1 | T46: 1 | U46: 0 | V46: 1 | W46: 5 | X46: NO | Y46: NO | Z46: NO | AA46: NA | AB46: NA | AC46: NO | AD46: NO | AE46: NO | AF46: NO | AG46: NO | AH46: NO | AI46: -0.958 | AJ46: Tolerated | AK46: 38.79 | AL46: 38.73 | AM46: 581 | AN46: 59 | AO46: 677 | AP46: 0.0871491876 | AQ46: 715 | AR46: 92 | AS46: 835 | AT46: 0.1101796407 | AU46: 0.1943293704 | AV46: 35 | AW46: 135 | AX46: Probably True (-1)
A47: Many samples, tolerated, but VAF too low | B47: UPN_Te3_040 | C47: 4 | D47: 106196672 | E47: A | F47: G | G47: TET2 | H47: ENST00000380013 | I47: missense_variant | J47: Aag/Gag|p.Lys1669Glu/c.5005A>G | K47: 1210 | L47: 116 | M47: 1333 | N47: 0.0870217554 | O47: 0 | P47: 1 | Q47: 0 | R47: 1 | S47: 1 | T47: 1 | U47: 0 | V47: 1 | W47: 5 | X47: NO | Y47: NO | Z47: NO | AA47: NA | AB47: NA | AC47: NO | AD47: NO | AE47: NO | AF47: NO | AG47: NO | AH47: NO | AI47: -0.958 | AJ47: Tolerated | AK47: 38.61 | AL47: 39.34 | AM47: 552 | AN47: 65 | AO47: 621 | AP47: 0.1046698873 | AQ47: 658 | AR47: 51 | AS47: 712 | AT47: 0.0716292135 | AU47: 0.0324893669 | AV47: 35 | AW47: 135 | AX47: Probably True (-1)
A48: Many samples, tolerated, but VAF too low | B48: UPN_Te3_011 | C48: 4 | D48: 106196672 | E48: A | F48: G | G48: TET2 | H48: ENST00000380013 | I48: missense_variant | J48: Aag/Gag|p.Lys1669Glu/c.5005A>G | K48: 637 | L48: 136 | M48: 810 | N48: 0.1679012346 | O48: 0 | P48: 1 | Q48: 0 | R48: 1 | S48: 1 | T48: 1 | U48: 1 | V48: 1 | W48: 6 | X48: NO | Y48: NO | Z48: NO | AA48: NA | AB48: NA | AC48: NO | AD48: NO | AE48: NO | AF48: NO | AG48: NO | AH48: NO | AI48: -0.958 | AJ48: Tolerated | AK48: 38.77 | AL48: 39.64 | AM48: 346 | AN48: 80 | AO48: 441 | AP48: 0.1814058957 | AQ48: 291 | AR48: 56 | AS48: 369 | AT48: 0.1517615176 | AU48: 0.3442836942 | AV48: 35 | AW48: 135 | AX48: Probably True (-1)
A49: Many samples, tolerated, but VAF too low | B49: UPN_Te3_050 | C49: 4 | D49: 106196672 | E49: A | F49: G | G49: TET2 | H49: ENST00000380013 | I49: missense_variant | J49: Aag/Gag|p.Lys1669Glu/c.5005A>G | K49: 903 | L49: 159 | M49: 1095 | N49: 0.1452054795 | O49: 1 | P49: 1 | Q49: 0 | R49: 1 | S49: 1 | T49: 1 | U49: 0 | V49: 1 | W49: 6 | X49: NO | Y49: NO | Z49: NO | AA49: NA | AB49: NA | AC49: NO | AD49: NO | AE49: NO | AF49: NO | AG49: NO | AH49: NO | AI49: -0.958 | AJ49: Tolerated | AK49: 38.43 | AL49: 39.12 | AM49: 418 | AN49: 67 | AO49: 507 | AP49: 0.1321499014 | AQ49: 485 | AR49: 92 | AS49: 588 | AT49: 0.156462585 | AU49: 0.3435196463 | AV49: 35 | AW49: 135 | AX49: Probably True (-1)
A50: Many samples, tolerated, but VAF too low | B50: UPN_Te3_055 | C50: 4 | D50: 106196672 | E50: A | F50: G | G50: TET2 | H50: ENST00000380013 | I50: missense_variant | J50: Aag/Gag|p.Lys1669Glu/c.5005A>G | K50: 989 | L50: 257 | M50: 1314 | N50: 0.195585997 | O50: 0 | P50: 1 | Q50: 0 | R50: 1 | S50: 1 | T50: 1 | U50: 1 | V50: 1 | W50: 6 | X50: NO | Y50: NO | Z50: NO | AA50: NA | AB50: NA | AC50: NO | AD50: NO | AE50: NO | AF50: NO | AG50: NO | AH50: NO | AI50: -0.958 | AJ50: Tolerated | AK50: 38.11 | AL50: 39.27 | AM50: 494 | AN50: 137 | AO50: 662 | AP50: 0.2069486405 | AQ50: 495 | AR50: 120 | AS50: 652 | AT50: 0.1840490798 | AU50: 0.3628041909 | AV50: 35 | AW50: 135 | AX50: Probably True (-1)
A51: Many samples, tolerated, but VAF too low | B51: UPN_Te3_065 | C51: 4 | D51: 106196672 | E51: A | F51: G | G51: TET2 | H51: ENST00000380013 | I51: missense_variant | J51: Aag/Gag|p.Lys1669Glu/c.5005A>G | K51: 1522 | L51: 336 | M51: 1937 | N51: 0.1734641198 | O51: 0 | P51: 1 | Q51: 0 | R51: 1 | S51: 1 | T51: 1 | U51: 1 | V51: 1 | W51: 6 | X51: NO | Y51: NO | Z51: NO | AA51: NA | AB51: NA | AC51: NO | AD51: NO | AE51: NO | AF51: NO | AG51: NO | AH51: NO | AI51: -0.958 | AJ51: Tolerated | AK51: 38.03 | AL51: 38.06 | AM51: 630 | AN51: 162 | AO51: 821 | AP51: 0.197320341 | AQ51: 892 | AR51: 174 | AS51: 1116 | AT51: 0.1559139785 | AU51: 0.0241085892 | AV51: 35 | AW51: 135 | AX51: Probably True (-1)
A52: Many samples, tolerated, but VAF too low | B52: UPN_Te3_070 | C52: 4 | D52: 106196672 | E52: A | F52: G | G52: TET2 | H52: ENST00000380013 | I52: missense_variant | J52: Aag/Gag|p.Lys1669Glu/c.5005A>G | K52: 1889 | L52: 199 | M52: 2102 | N52: 0.0946717412 | O52: 0 | P52: 1 | Q52: 0 | R52: 1 | S52: 1 | T52: 1 | U52: 0 | V52: 1 | W52: 5 | X52: NO | Y52: NO | Z52: NO | AA52: NA | AB52: NA | AC52: NO | AD52: NO | AE52: NO | AF52: NO | AG52: NO | AH52: NO | AI52: -0.958 | AJ52: Tolerated | AK52: 37.43 | AL52: 37.08 | AM52: 902 | AN52: 96 | AO52: 1008 | AP52: 0.0952380952 | AQ52: 987 | AR52: 103 | AS52: 1094 | AT52: 0.0941499086 | AU52: 0.9405588041 | AV52: 35 | AW52: 135 | AX52: Probably True (-1)
A53: Looks like SNP, but VAF too low | B53: UPN_Te3_026 | C53: 4 | D53: 106196829 | E53: T | F53: G | G53: TET2 | H53: ENST00000380013 | I53: missense_variant | J53: tTg/tGg|p.Leu1721Trp/c.5162T>G | K53: 730 | L53: 159 | M53: 891 | N53: 0.1784511785 | O53: 1 | P53: 0 | Q53: 0 | R53: 1 | S53: 1 | T53: 1 | U53: 1 | V53: 1 | W53: 6 | X53: 13.4821 | Y53: NO | Z53: COSM5020013 | AA53: soft_tissue | AB53: 4 | AC53: rs34402524 | AD53: rs34402524 | AE53: NO | AF53: 0.118 | AG53: NO | AH53: YES | AI53: -0.294 | AJ53: Tolerated | AK53: 38.76 | AL53: 38.59 | AM53: 424 | AN53: 70 | AO53: 496 | AP53: 0.1411290323 | AQ53: 306 | AR53: 89 | AS53: 395 | AT53: 0.2253164557 | AU53: 0.0014813743 | AV53: 24 | AW53: 24 | AX53: Probably True (-1)
A54: Inspected | B54: UPN_Te3_062 | C54: 4 | D54: 106197149 | E54: C | F54: T | G54: TET2 | H54: ENST00000380013 | I54: stop_gained | J54: Cag/Tag|p.Gln1828*/c.5482C>T | K54: 861 | L54: 50 | M54: 911 | N54: 0.05488474204 | O54: 0 | P54: 0 | Q54: 0 | R54: 1 | S54: 1 | T54: 1 | U54: 0 | V54: 1 | W54: 4 | X54: NO | Y54: NO | Z54: COSM87182 | AA54: haematopoietic_and_lymphoid_tissue | AB54: 2 | AC54: NO | AD54: NO | AE54: NO | AF54: NO | AG54: NO | AH54: NO | AI54: NA | AJ54: NA | AK54: 38.27 | AL54: 35.1 | AM54: 289 | AN54: 21 | AO54: 310 | AP54: 0.06774193548 | AQ54: 572 | AR54: 29 | AS54: 601 | AT54: 0.04825291181 | AU54: 0.2229400647 | AV54: 1 | AW54: 1 | AX54: Probably True (-3)
A55: Low bq, poly-G, inspected | B55: UPN_Te3_075 | C55: 7 | D55: 148515156 | E55: TG | F55: T | G55: EZH2 | H55: ENST00000320356 | I55: frameshift_variant | J55: cca/|p.Pro351fs/c.1052delC | K55: 119 | L55: 46 | M55: 165 | N55: 0.2787878788 | O55: 1 | P55: 1 | Q55: 1 | R55: 0 | S55: 1 | T55: 1 | U55: 0 | V55: 0 | W55: 5 | X55: NO | Y55: NO | Z55: NO | AA55: NO | AB55: O | AC55: NO | AD55: NO | AE55: NO | AF55: NO | AG55: NO | AH55: NO | AI55: NA | AJ55: NA | AK55: 19.82 | AL55: NA | AM55: 119 | AN55: 46 | AO55: 165 | AP55: 0.2787878788 | AQ55: 0 | AR55: 0 | AS55: 0 | AT55: NA | AU55: 1 | AV55: 2 | AW55: 2 | AX55: Probably True (-2)
A56: Low bq, poly-G, inspected | B56: UPN_Te3_076 | C56: 7 | D56: 148515156 | E56: TG | F56: T | G56: EZH2 | H56: ENST00000320356 | I56: frameshift_variant | J56: cca/|p.Pro351fs/c.1052delC | K56: 112 | L56: 33 | M56: 145 | N56: 0.2275862069 | O56: 0 | P56: 1 | Q56: 1 | R56: 0 | S56: 1 | T56: 1 | U56: 0 | V56: 0 | W56: 4 | X56: NO | Y56: NO | Z56: NO | AA56: NO | AB56: O | AC56: NO | AD56: NO | AE56: NO | AF56: NO | AG56: NO | AH56: NO | AI56: NA | AJ56: NA | AK56: 20.06 | AL56: NA | AM56: 112 | AN56: 32 | AO56: 144 | AP56: 0.2222222222 | AQ56: 0 | AR56: 1 | AS56: 1 | AT56: 1 | AU56: 0.2275862069 | AV56: 2 | AW56: 2 | AX56: Probably True (-1)
A57: Looks like SNP, but VAF too low | B57: UPN_Te3_084 | C57: 7 | D57: 148525904 | E57: C | F57: G | G57: EZH2 | H57: ENST00000320356 | I57: missense_variant | J57: Gac/Cac|p.Asp185His/c.553G>C | K57: 253 | L57: 29 | M57: 282 | N57: 0.1028368794 | O57: 1 | P57: 1 | Q57: 0 | R57: 1 | S57: 1 | T57: 1 | U57: 0 | V57: 1 | W57: 6 | X57: NO | Y57: NO | Z57: COSM3762469 | AA57: soft_tissue, thyroid | AB57: 3, 1 | AC57: rs2302427 | AD57: rs2302427 | AE57: NO | AF57: NO | AG57: NO | AH57: YES | AI57: -1.884 | AJ57: Tolerated | AK57: 39.52 | AL57: 39.48 | AM57: 147 | AN57: 8 | AO57: 155 | AP57: 0.0516129032 | AQ57: 106 | AR57: 21 | AS57: 127 | AT57: 0.1653543307 | AU57: 0.0026140049 | AV57: 13 | AW57: 13 | AX57: Probably True (-2)
A58: Inspected, stretch of 3 Cs, ins in several samples visible | B58: UPN_Te3_016 | C58: 7 | D58: 148526838 | E58: T | F58: TC | G58: EZH2 | H58: ENST00000320356 | I58: frameshift_variant | J58: ggg/gggG|p.Lys156fs/c.465dupG | K58: 802 | L58: 107 | M58: 804 | N58: 0.1330845771 | O58: 0 | P58: 1 | Q58: 0 | R58: 0 | S58: 1 | T58: 1 | U58: 0 | V58: 1 | W58: 4 | X58: NO | Y58: NO | Z58: NO | AA58: NO | AB58: O | AC58: NO | AD58: NO | AE58: NO | AF58: NO | AG58: NO | AH58: NO | AI58: NA | AJ58: NA | AK58: 33.63 | AL58: NA | AM58: 409 | AN58: 68 | AO58: 411 | AP58: 0.1654501217 | AQ58: 393 | AR58: 39 | AS58: 393 | AT58: 0.09923664122 | AU58: 0.01750262737 | AV58: 1 | AW58: 1 | AX58: Probably True (-1)
A59: Inspected, poly-A, low nr reads, low bq | B59: UPN_Te3_072 | C59: 7 | D59: 148529728 | E59: T | F59: TA | G59: EZH2 | H59: ENST00000320356 | I59: frameshift_variant | J59: ttt/tttT|p.Met121fs/c.360dupT | K59: 83 | L59: 27 | M59: 83 | N59: 0.3253012048 | O59: 1 | P59: 1 | Q59: 0 | R59: 0 | S59: 1 | T59: 1 | U59: 1 | V59: 0 | W59: 5 | X59: NO | Y59: NO | Z59: NO | AA59: NO | AB59: O | AC59: NO | AD59: NO | AE59: NO | AF59: NO | AG59: NO | AH59: NO | AI59: NA | AJ59: NA | AK59: 27.43 | AL59: NA | AM59: 23 | AN59: 1 | AO59: 23 | AP59: 0.04347826087 | AQ59: 60 | AR59: 26 | AS59: 60 | AT59: 0.4333333333 | AU59: 0.007072899558 | AV59: 1 | AW59: 1 | AX59: Probably True (-1)
A60: Inspected, poly-A | B60: UPN_Te3_073 | C60: 7 | D60: 148529815 | E60: G | F60: GA | G60: EZH2 | H60: ENST00000320356 | I60: frameshift_variant | J60: ttt/tttT|p.Pro92fs/c.273dupT | K60: 138 | L60: 40 | M60: 138 | N60: 0.2898550725 | O60: 1 | P60: 1 | Q60: 1 | R60: 0 | S60: 1 | T60: 1 | U60: 1 | V60: 0 | W60: 6 | X60: NO | Y60: NO | Z60: NO | AA60: NO | AB60: O | AC60: NO | AD60: NO | AE60: NO | AF60: NO | AG60: NO | AH60: NO | AI60: NA | AJ60: NA | AK60: 31.88 | AL60: NA | AM60: 138 | AN60: 40 | AO60: 138 | AP60: 0.2898550725 | AQ60: 0 | AR60: 0 | AS60: 0 | AT60: NA | AU60: 1 | AV60: 4 | AW60: 4 | AX60: Probably True (-1)
A61: Inspected, stretch of 3 Ts,del in several samples visible | B61: UPN_Te3_075 | C61: 9 | D61: 5073744 | E61: AT | F61: A | G61: JAK2 | H61: ENST00000381652 | I61: frameshift_variant | J61: ttg/|p.Leu609fs/c.1826delT | K61: 120 | L61: 31 | M61: 152 | N61: 0.2039473684 | O61: 0 | P61: 1 | Q61: 1 | R61: 0 | S61: 1 | T61: 1 | U61: 1 | V61: 1 | W61: 6 | X61: NO | Y61: NO | Z61: NO | AA61: NO | AB61: O | AC61: NO | AD61: NO | AE61: NO | AF61: NO | AG61: NO | AH61: NO | AI61: NA | AJ61: NA | AK61: 15.26 | AL61: NA | AM61: 0 | AN61: 0 | AO61: 0 | AP61: NA | AQ61: 120 | AR61: 31 | AS61: 152 | AT61: 0.2039473684 | AU61: 1 | AV61: 11 | AW61: 11 | AX61: Probably True (-1)
A62: Inspected, stretch of 4 Ts,del in several samples visible | B62: UPN_Te3_073 | C62: 12 | D62: 11992138 | E62: GT | F62: G | G62: ETV6 | H62: ENST00000396373 | I62: frameshift_variant | J62: tct/|p.Ser78fs/c.232delT | K62: 16 | L62: 45 | M62: 62 | N62: 0.7258064516 | O62: 1 | P62: 1 | Q62: 1 | R62: 0 | S62: 1 | T62: 1 | U62: 1 | V62: 1 | W62: 7 | X62: NO | Y62: NO | Z62: NO | AA62: NO | AB62: O | AC62: NO | AD62: NO | AE62: NO | AF62: NO | AG62: NO | AH62: NO | AI62: NA | AJ62: NA | AK62: 23.25 | AL62: NA | AM62: 0 | AN62: 0 | AO62: 0 | AP62: NA | AQ62: 16 | AR62: 45 | AS62: 62 | AT62: 0.7258064516 | AU62: 1 | AV62: 7 | AW62: 7 | AX62: Probably True (-1)
A63: Inspected, stretch of 4 Ts,del in several samples visible | B63: UPN_Te3_076 | C63: 12 | D63: 11992138 | E63: GT | F63: G | G63: ETV6 | H63: ENST00000396373 | I63: frameshift_variant | J63: tct/|p.Ser78fs/c.232delT | K63: 89 | L63: 268 | M63: 362 | N63: 0.7403314917 | O63: 1 | P63: 1 | Q63: 1 | R63: 0 | S63: 1 | T63: 1 | U63: 0 | V63: 1 | W63: 6 | X63: NO | Y63: NO | Z63: NO | AA63: NO | AB63: O | AC63: NO | AD63: NO | AE63: NO | AF63: NO | AG63: NO | AH63: NO | AI63: NA | AJ63: NA | AK63: 22.93 | AL63: NA | AM63: 1 | AN63: 0 | AO63: 1 | AP63: 0 | AQ63: 88 | AR63: 268 | AS63: 361 | AT63: 0.7423822715 | AU63: 0.2492997199 | AV63: 7 | AW63: 7 | AX63: Probably True (-1)
A64: Inspected, poly-C, low nr alt | B64: UPN_Te3_073 | C64: 12 | D64: 12022491 | E64: GC | F64: G | G64: ETV6 | H64: ENST00000396373 | I64: frameshift_variant | J64: ctc/|p.Leu201fs/c.601delC | K64: 60 | L64: 24 | M64: 84 | N64: 0.2857142857 | O64: 1 | P64: 1 | Q64: 1 | R64: 0 | S64: 1 | T64: 1 | U64: 1 | V64: 1 | W64: 7 | X64: NO | Y64: NO | Z64: NO | AA64: NO | AB64: O | AC64: NO | AD64: NO | AE64: NO | AF64: NO | AG64: NO | AH64: NO | AI64: NA | AJ64: NA | AK64: 22.97 | AL64: NA | AM64: 0 | AN64: 0 | AO64: 0 | AP64: NA | AQ64: 60 | AR64: 24 | AS64: 84 | AT64: 0.2857142857 | AU64: 1 | AV64: 4 | AW64: 4 | AX64: Probably True (-1)
A65: Inspected, poly-C, low nr alt | B65: UPN_Te3_073 | C65: 12 | D65: 12022664 | E65: GC | F65: G | G65: ETV6 | H65: ENST00000396373 | I65: frameshift_variant | J65: cgg/|p.Arg259fs/c.775delC | K65: 82 | L65: 30 | M65: 112 | N65: 0.2678571429 | O65: 1 | P65: 1 | Q65: 1 | R65: 0 | S65: 1 | T65: 1 | U65: 0 | V65: 0 | W65: 5 | X65: NO | Y65: NO | Z65: NO | AA65: NO | AB65: O | AC65: NO | AD65: NO | AE65: NO | AF65: NO | AG65: NO | AH65: NO | AI65: NA | AJ65: NA | AK65: 18.91 | AL65: NA | AM65: 0 | AN65: 0 | AO65: 0 | AP65: NA | AQ65: 82 | AR65: 30 | AS65: 112 | AT65: 0.2678571429 | AU65: 1 | AV65: 3 | AW65: 4 | AX65: Probably True (-1)
A66: Inspected, poly-C, del visible in several samples | B66: UPN_Te3_076 | C66: 12 | D66: 25380231 | E66: TC | F66: T | G66: KRAS | H66: ENST00000256078 | I66: frameshift_variant | J66: gag/|p.Glu76fs/c.226delG | K66: 138 | L66: 73 | M66: 213 | N66: 0.3427230047 | O66: 1 | P66: 1 | Q66: 1 | R66: 0 | S66: 1 | T66: 1 | U66: 1 | V66: 0 | W66: 6 | X66: NO | Y66: NO | Z66: NO | AA66: NO | AB66: O | AC66: NO | AD66: NO | AE66: NO | AF66: NO | AG66: NO | AH66: NO | AI66: NA | AJ66: NA | AK66: 20.14 | AL66: NA | AM66: 136 | AN66: 73 | AO66: 211 | AP66: 0.345971564 | AQ66: 2 | AR66: 0 | AS66: 2 | AT66: 0 | AU66: 0.5452945159 | AV66: 38 | AW66: 38 | AX66: Probably True (-1)
A67: Looks like SNP, but VAF too low | B67: UPN_Te3_062 | C67: 17 | D67: 7577538 | E67: C | F67: T | G67: TP53 | H67: ENST00000269305 | I67: missense_variant | J67: cGg/cAg|p.Arg248Gln/c.743G>A | K67: 688 | L67: 45 | M67: 735 | N67: 0.0612244898 | O67: 0 | P67: 0 | Q67: 0 | R67: 1 | S67: 1 | T67: 1 | U67: 0 | V67: 1 | W67: 4 | X67: 0.0116 | Y67: NO | Z67: COSM99020, COSM3356964, COSM99602, COSM1640830, COSM10662 | AA67: bone, breast, central_nervous_system, endometrium, haematopoietic_and_lymphoid_tissue, kidney, large_intestine, liver, lung, oesophagus, ovary, pancreas, prostate, skin, stomach, upper_aerodigestive_tract, urinary_tract, adrenal_gland, biliary_tract, cervix, NS, peritoneum, pituitary, pleura, small_intestine, thyroid, vulva | AB67: 14, 98, 138, 39, 101, 12, 302, 21, 96, 99, 62, 62, 16, 18, 100, 98, 58, 1, 4, 3, 2289, 1, 1, 1, 7, 5, 8 | AC67: rs11540652 | AD67: rs11540652 | AE67: NO | AF67: 5.765e-05 | AG67: NO | AH67: NO | AI67: -3.92 | AJ67: Deleterious | AK67: 33.68 | AL67: 38.69 | AM67: 420 | AN67: 28 | AO67: 449 | AP67: 0.06236080178 | AQ67: 268 | AR67: 17 | AS67: 286 | AT67: 0.05944055944 | AU67: 1 | AV67: 1 | AW67: 1 | AX67: Probably True (-4)
A68: Inspected, low nr alt, del visible in several samples | B68: UPN_Te3_073 | C68: 17 | D68: 7577549 | E68: GC | F68: G | G68: TP53 | H68: ENST00000269305 | I68: frameshift_variant | J68: ggc/|p.Gly244fs/c.731delG | K68: 167 | L68: 27 | M68: 195 | N68: 0.1384615385 | O68: 0 | P68: 1 | Q68: 0 | R68: 0 | S68: 1 | T68: 1 | U68: 0 | V68: 1 | W68: 4 | X68: NO | Y68: NO | Z68: NO | AA68: NA | AB68: NA | AC68: NO | AD68: NO | AE68: NO | AF68: NO | AG68: NO | AH68: NO | AI68: NA | AJ68: NA | AK68: 28.58 | AL68: NA | AM68: 167 | AN68: 27 | AO68: 195 | AP68: 0.1384615385 | AQ68: 0 | AR68: 0 | AS68: 0 | AT68: NA | AU68: 1 | AV68: 1 | AW68: 1 | AX68: Probably True (-1)
A69: Many samples, low bq | B69: UPN_Te3_073 | C69: 19 | D69: 33792533 | E69: AG | F69: A | G69: CEBPA | H69: ENST00000498907 | I69: frameshift_variant | J69: ctc/|p.Leu263fs/c.787delC | K69: 76 | L69: 40 | M69: 116 | N69: 0.3448275862 | O69: 1 | P69: 0 | Q69: 1 | R69: 0 | S69: 1 | T69: 1 | U69: 1 | V69: 1 | W69: 6 | X69: NO | Y69: NO | Z69: NO | AA69: NA | AB69: NA | AC69: NO | AD69: NO | AE69: NO | AF69: NO | AG69: NO | AH69: NO | AI69: NA | AJ69: NA | AK69: 20.01 | AL69: NA | AM69: 76 | AN69: 40 | AO69: 116 | AP69: 0.3448275862 | AQ69: 0 | AR69: 0 | AS69: 0 | AT69: NA | AU69: 1 | AV69: 4 | AW69: 4 | AX69: Probably True (-1)
A70: Many samples, low bq | B70: UPN_Te3_075 | C70: 19 | D70: 33792533 | E70: AG | F70: A | G70: CEBPA | H70: ENST00000498907 | I70: frameshift_variant | J70: ctc/|p.Leu263fs/c.787delC | K70: 64 | L70: 31 | M70: 96 | N70: 0.3229166667 | O70: 1 | P70: 0 | Q70: 1 | R70: 0 | S70: 1 | T70: 1 | U70: 1 | V70: 1 | W70: 6 | X70: NO | Y70: NO | Z70: NO | AA70: NA | AB70: NA | AC70: NO | AD70: NO | AE70: NO | AF70: NO | AG70: NO | AH70: NO | AI70: NA | AJ70: NA | AK70: 21.39 | AL70: NA | AM70: 63 | AN70: 31 | AO70: 95 | AP70: 0.3263157895 | AQ70: 1 | AR70: 0 | AS70: 1 | AT70: 0 | AU70: 1 | AV70: 4 | AW70: 4 | AX70: Probably True (-1)
A71: Many samples, low bq | B71: UPN_Te3_076 | C71: 19 | D71: 33792533 | E71: AG | F71: A | G71: CEBPA | H71: ENST00000498907 | I71: frameshift_variant | J71: ctc/|p.Leu263fs/c.787delC | K71: 111 | L71: 54 | M71: 165 | N71: 0.3272727273 | O71: 1 | P71: 0 | Q71: 1 | R71: 0 | S71: 1 | T71: 1 | U71: 1 | V71: 1 | W71: 6 | X71: NO | Y71: NO | Z71: NO | AA71: NA | AB71: NA | AC71: NO | AD71: NO | AE71: NO | AF71: NO | AG71: NO | AH71: NO | AI71: NA | AJ71: NA | AK71: 22.48 | AL71: NA | AM71: 108 | AN71: 54 | AO71: 162 | AP71: 0.3333333333 | AQ71: 3 | AR71: 0 | AS71: 3 | AT71: 0 | AU71: 0.5515487057 | AV71: 4 | AW71: 4 | AX71: Probably True (-1)
A72: Inspected | B72: UPN_Te3_067 | C72: 20 | D72: 31022289 | E72: C | F72: T | G72: ASXL1 | H72: ENST00000375687 | I72: stop_gained | J72: Cag/Tag|p.Gln592*/c.1774C>T | K72: 744 | L72: 63 | M72: 807 | N72: 0.0780669145 | O72: 0 | P72: 0 | Q72: 0 | R72: 1 | S72: 1 | T72: 1 | U72: 0 | V72: 1 | W72: 4 | X72: NO | Y72: NO | Z72: COSM96400 | AA72: haematopoietic_and_lymphoid_tissue, large_intestine | AB72: 3, 1 | AC72: NO | AD72: NO | AE72: NO | AF72: NO | AG72: NO | AH72: NO | AI72: NA | AJ72: NA | AK72: 37.81 | AL72: 37.02 | AM72: 329 | AN72: 29 | AO72: 358 | AP72: 0.08100558659 | AQ72: 415 | AR72: 34 | AS72: 449 | AT72: 0.07572383073 | AU72: 0.7930311054 | AV72: 1 | AW72: 1 | AX72: Probably True (-3)
A73: Inspected | B73: UPN_Te3_015 | C73: 20 | D73: 31022450 | E73: TG | F73: T | G73: ASXL1 | H73: ENST00000375687 | I73: frameshift_variant | J73: ggc/|p.Gly646fs/c.1937delG | K73: 125 | L73: 53 | M73: 211 | N73: 0.2511848341 | O73: 1 | P73: 1 | Q73: 1 | R73: 0 | S73: 0 | T73: 1 | U73: 1 | V73: 0 | W73: 5 | X73: NO | Y73: NO | Z73: NO | AA73: NA | AB73: NA | AC73: NO | AD73: NO | AE73: NO | AF73: NO | AG73: NO | AH73: NO | AI73: NA | AJ73: NA | AK73: 16.32 | AL73: NA | AM73: 34 | AN73: 47 | AO73: 109 | AP73: 0.4311926606 | AQ73: 91 | AR73: 6 | AS73: 102 | AT73: 0.05882352941 | AU73: 1.496695318e-14 | AV73: 62 | AW73: 62 | AX73: Hotspot (-1)
A74: Inspected | B74: UPN_Te3_002 | C74: 20 | D74: 31022450 | E74: TG | F74: T | G74: ASXL1 | H74: ENST00000375687 | I74: frameshift_variant | J74: ggc/|p.Gly646fs/c.1937delG | K74: 368 | L74: 88 | M74: 514 | N74: 0.1712062257 | O74: 1 | P74: 1 | Q74: 1 | R74: 0 | S74: 0 | T74: 1 | U74: 0 | V74: 0 | W74: 4 | X74: NO | Y74: NO | Z74: NO | AA74: NA | AB74: NA | AC74: NO | AD74: NO | AE74: NO | AF74: NO | AG74: NO | AH74: NO | AI74: NA | AJ74: NA | AK74: 18.45 | AL74: NA | AM74: 136 | AN74: 78 | AO74: 268 | AP74: 0.2910447761 | AQ74: 232 | AR74: 10 | AS74: 246 | AT74: 0.0406504065 | AU74: 1.4649505e-19 | AV74: 62 | AW74: 62 | AX74: Hotspot (-1)
A75: Inspected | B75: UPN_Te3_081 | C75: 20 | D75: 31022450 | E75: TG | F75: T | G75: ASXL1 | H75: ENST00000375687 | I75: frameshift_variant | J75: ggc/|p.Gly646fs/c.1937delG | K75: 33 | L75: 22 | M75: 59 | N75: 0.3728813559 | O75: 1 | P75: 1 | Q75: 1 | R75: 0 | S75: 0 | T75: 1 | U75: 1 | V75: 0 | W75: 5 | X75: NO | Y75: NO | Z75: NO | AA75: NA | AB75: NA | AC75: NO | AD75: NO | AE75: NO | AF75: NO | AG75: NO | AH75: NO | AI75: NA | AJ75: NA | AK75: 15.7 | AL75: NA | AM75: 20 | AN75: 21 | AO75: 45 | AP75: 0.4666666667 | AQ75: 13 | AR75: 1 | AS75: 14 | AT75: 0.07142857143 | AU75: 0.00405082651 | AV75: 62 | AW75: 62 | AX75: Hotspot (-2)
A76: Inspected | B76: UPN_Te3_050 | C76: 20 | D76: 31022450 | E76: TG | F76: T | G76: ASXL1 | H76: ENST00000375687 | I76: frameshift_variant | J76: ggc/|p.Gly646fs/c.1937delG | K76: 145 | L76: 32 | M76: 188 | N76: 0.170212766 | O76: 1 | P76: 1 | Q76: 1 | R76: 0 | S76: 0 | T76: 1 | U76: 1 | V76: 1 | W76: 6 | X76: NO | Y76: NO | Z76: NO | AA76: NA | AB76: NA | AC76: NO | AD76: NO | AE76: NO | AF76: NO | AG76: NO | AH76: NO | AI76: NA | AJ76: NA | AK76: 18.51 | AL76: NA | AM76: 50 | AN76: 26 | AO76: 85 | AP76: 0.3058823529 | AQ76: 95 | AR76: 6 | AS76: 103 | AT76: 0.05825242718 | AU76: 2.092376004e-06 | AV76: 62 | AW76: 62 | AX76: Hotspot (-2)
A77: Inspected | B77: UPN_Te3_052 | C77: 20 | D77: 31022450 | E77: TG | F77: T | G77: ASXL1 | H77: ENST00000375687 | I77: frameshift_variant | J77: ggc/|p.Gly646fs/c.1937delG | K77: 81 | L77: 26 | M77: 114 | N77: 0.2280701754 | O77: 1 | P77: 1 | Q77: 1 | R77: 0 | S77: 0 | T77: 1 | U77: 1 | V77: 0 | W77: 5 | X77: NO | Y77: NO | Z77: NO | AA77: NA | AB77: NA | AC77: NO | AD77: NO | AE77: NO | AF77: NO | AG77: NO | AH77: NO | AI77: NA | AJ77: NA | AK77: 18.38 | AL77: NA | AM77: 28 | AN77: 23 | AO77: 58 | AP77: 0.3965517241 | AQ77: 53 | AR77: 3 | AS77: 56 | AT77: 0.05357142857 | AU77: 1.165372808e-06 | AV77: 62 | AW77: 62 | AX77: Hotspot (-1)
A78: Inspected | B78: UPN_Te3_061 | C78: 20 | D78: 31022450 | E78: TG | F78: T | G78: ASXL1 | H78: ENST00000375687 | I78: frameshift_variant | J78: ggc/|p.Gly646fs/c.1937delG | K78: 132 | L78: 30 | M78: 172 | N78: 0.1744186047 | O78: 1 | P78: 1 | Q78: 1 | R78: 0 | S78: 0 | T78: 1 | U78: 1 | V78: 1 | W78: 6 | X78: NO | Y78: NO | Z78: NO | AA78: NA | AB78: NA | AC78: NO | AD78: NO | AE78: NO | AF78: NO | AG78: NO | AH78: NO | AI78: NA | AJ78: NA | AK78: 19.36 | AL78: NA | AM78: 32 | AN78: 24 | AO78: 66 | AP78: 0.3636363636 | AQ78: 100 | AR78: 6 | AS78: 106 | AT78: 0.05660377358 | AU78: 1.93662317e-08 | AV78: 62 | AW78: 62 | AX78: Hotspot (-2)
A79: Inspected | B79: UPN_Te3_083 | C79: 20 | D79: 31022451 | E79: G | F79: T | G79: ASXL1 | H79: ENST00000375687 | I79: missense_variant | J79: Ggc/Tgc|p.Gly646Cys/c.1936G>T | K79: 128 | L79: 34 | M79: 209 | N79: 0.1626794258 | O79: 0 | P79: 1 | Q79: 0 | R79: 0 | S79: 1 | T79: 0 | U79: 0 | V79: 0 | W79: 2 | X79: NO | Y79: NO | Z79: NO | AA79: NA | AB79: NA | AC79: NO | AD79: NO | AE79: NO | AF79: NO | AG79: NO | AH79: NO | AI79: -3.953 | AJ79: Deleterious | AK79: 17.63 | AL79: 21.06 | AM79: 63 | AN79: 32 | AO79: 142 | AP79: 0.2253521127 | AQ79: 65 | AR79: 2 | AS79: 67 | AT79: 0.02985074627 | AU79: 4.811434422e-07 | AV79: 42 | AW79: 42 | AX79: Hotspot (-1)
A80: Inspected | B80: UPN_Te3_003 | C80: 20 | D80: 31022451 | E80: G | F80: T | G80: ASXL1 | H80: ENST00000375687 | I80: missense_variant | J80: Ggc/Tgc|p.Gly646Cys/c.1936G>T | K80: 142 | L80: 38 | M80: 198 | N80: 0.1919191919 | O80: 0 | P80: 1 | Q80: 0 | R80: 0 | S80: 1 | T80: 0 | U80: 0 | V80: 0 | W80: 2 | X80: NO | Y80: NO | Z80: NO | AA80: NA | AB80: NA | AC80: NO | AD80: NO | AE80: NO | AF80: NO | AG80: NO | AH80: NO | AI80: -3.953 | AJ80: Deleterious | AK80: 18.96 | AL80: 22.42 | AM80: 45 | AN80: 36 | AO80: 99 | AP80: 0.3636363636 | AQ80: 97 | AR80: 2 | AS80: 99 | AT80: 0.0202020202 | AU80: 4.546052086e-13 | AV80: 42 | AW80: 42 | AX80: Hotspot (-1)
A81: Inspected | B81: UPN_Te3_010 | C81: 20 | D81: 31022451 | E81: G | F81: T | G81: ASXL1 | H81: ENST00000375687 | I81: missense_variant | J81: Ggc/Tgc|p.Gly646Cys/c.1936G>T | K81: 116 | L81: 33 | M81: 187 | N81: 0.1764705882 | O81: 0 | P81: 1 | Q81: 0 | R81: 0 | S81: 1 | T81: 0 | U81: 0 | V81: 0 | W81: 2 | X81: NO | Y81: NO | Z81: NO | AA81: NA | AB81: NA | AC81: NO | AD81: NO | AE81: NO | AF81: NO | AG81: NO | AH81: NO | AI81: -3.953 | AJ81: Deleterious | AK81: 19.26 | AL81: 22.61 | AM81: 34 | AN81: 33 | AO81: 102 | AP81: 0.3235294118 | AQ81: 82 | AR81: 0 | AS81: 85 | AT81: 0 | AU81: 1.100474559e-14 | AV81: 42 | AW81: 42 | AX81: Hotspot (-1)
A82: Inspected | B82: UPN_Te3_011 | C82: 20 | D82: 31022451 | E82: G | F82: T | G82: ASXL1 | H82: ENST00000375687 | I82: missense_variant | J82: Ggc/Tgc|p.Gly646Cys/c.1936G>T | K82: 161 | L82: 28 | M82: 222 | N82: 0.1261261261 | O82: 0 | P82: 1 | Q82: 0 | R82: 0 | S82: 1 | T82: 0 | U82: 0 | V82: 0 | W82: 2 | X82: NO | Y82: NO | Z82: NO | AA82: NA | AB82: NA | AC82: NO | AD82: NO | AE82: NO | AF82: NO | AG82: NO | AH82: NO | AI82: -3.953 | AJ82: Deleterious | AK82: 18.86 | AL82: 24.36 | AM82: 59 | AN82: 24 | AO82: 115 | AP82: 0.2086956522 | AQ82: 102 | AR82: 4 | AS82: 107 | AT82: 0.03738317757 | AU82: 1.594614158e-06 | AV82: 42 | AW82: 42 | AX82: Hotspot (-1)
A83: Low bq, inspected, poly-C | B83: UPN_Te3_073 | C83: 20 | D83: 31022562 | E83: AC | F83: A | G83: ASXL1 | H83: ENST00000375687 | I83: frameshift_variant | J83: cct/|p.Pro684fs/c.2051delC | K83: 97 | L83: 33 | M83: 131 | N83: 0.2519083969 | O83: 1 | P83: 1 | Q83: 1 | R83: 0 | S83: 0 | T83: 1 | U83: 0 | V83: 1 | W83: 5 | X83: NO | Y83: NO | Z83: NO | AA83: NA | AB83: NA | AC83: NO | AD83: NO | AE83: NO | AF83: NO | AG83: NO | AH83: NO | AI83: NA | AJ83: NA | AK83: 22.88 | AL83: NA | AM83: 0 | AN83: 0 | AO83: 0 | AP83: NA | AQ83: 97 | AR83: 33 | AS83: 131 | AT83: 0.2519083969 | AU83: 1 | AV83: 2 | AW83: 2 | AX83: Probably True (-2)
A84: Low bq, many samples, poly-C | B84: UPN_Te3_075 | C84: 20 | D84: 31022562 | E84: AC | F84: A | G84: ASXL1 | H84: ENST00000375687 | I84: frameshift_variant | J84: cct/|p.Pro684fs/c.2051delC | K84: 172 | L84: 40 | M84: 213 | N84: 0.1877934272 | O84: 0 | P84: 1 | Q84: 1 | R84: 0 | S84: 0 | T84: 1 | U84: 0 | V84: 1 | W84: 4 | X84: NO | Y84: NO | Z84: NO | AA84: NA | AB84: NA | AC84: NO | AD84: NO | AE84: NO | AF84: NO | AG84: NO | AH84: NO | AI84: NA | AJ84: NA | AK84: 24.23 | AL84: NA | AM84: 0 | AN84: 0 | AO84: 0 | AP84: NA | AQ84: 172 | AR84: 40 | AS84: 213 | AT84: 0.1877934272 | AU84: 1 | AV84: 2 | AW84: 2 | AX84: Probably True (-1)
A85: Inspected, del visible in several samples | B85: UPN_Te3_075 | C85: 20 | D85: 31023410 | E85: AG | F85: A | G85: ASXL1 | H85: ENST00000375687 | I85: frameshift_variant | J85: gga/|p.Gly966fs/c.2897delG | K85: 427 | L85: 56 | M85: 483 | N85: 0.115942029 | O85: 0 | P85: 1 | Q85: 0 | R85: 0 | S85: 1 | T85: 1 | U85: 0 | V85: 1 | W85: 4 | X85: NO | Y85: NO | Z85: NO | AA85: NA | AB85: NA | AC85: NO | AD85: NO | AE85: NO | AF85: NO | AG85: NO | AH85: NO | AI85: NA | AJ85: NA | AK85: 30.2 | AL85: NA | AM85: 3 | AN85: 0 | AO85: 3 | AP85: 0 | AQ85: 424 | AR85: 56 | AS85: 480 | AT85: 0.1166666667 | AU85: 1 | AV85: 3 | AW85: 3 | AX85: Probably True (-1)
A86: Many samples, low bq | B86: UPN_Te3_073 | C86: 20 | D86: 31024012 | E86: GC | F86: G | G86: ASXL1 | H86: ENST00000375687 | I86: frameshift_variant | J86: ccc/|p.Ser1168fs/c.3501delC | K86: 174 | L86: 83 | M86: 259 | N86: 0.3204633205 | O86: 1 | P86: 1 | Q86: 1 | R86: 0 | S86: 1 | T86: 1 | U86: 0 | V86: 1 | W86: 6 | X86: NO | Y86: NO | Z86: NO | AA86: NO | AB86: O | AC86: NO | AD86: NO | AE86: NO | AF86: NO | AG86: NO | AH86: NO | AI86: NA | AJ86: NA | AK86: 22.51 | AL86: NA | AM86: 0 | AN86: 0 | AO86: 0 | AP86: NA | AQ86: 174 | AR86: 83 | AS86: 259 | AT86: 0.3204633205 | AU86: 1 | AV86: 13 | AW86: 13 | AX86: Probably True (-1)
A87: Inspected, messi region, low bq | B87: UPN_Te3_073 | C87: 20 | D87: 31024018 | E87: GT | F87: G | G87: ASXL1 | H87: ENST00000375687 | I87: frameshift_variant | J87: tct/|p.Ser1169fs/c.3505delT | K87: 175 | L87: 84 | M87: 259 | N87: 0.3243243243 | O87: 1 | P87: 1 | Q87: 1 | R87: 0 | S87: 1 | T87: 1 | U87: 0 | V87: 1 | W87: 6 | X87: NO | Y87: NO | Z87: NO | AA87: NA | AB87: NA | AC87: NO | AD87: NO | AE87: NO | AF87: NO | AG87: NO | AH87: NO | AI87: NA | AJ87: NA | AK87: 23.3 | AL87: NA | AM87: 0 | AN87: 0 | AO87: 0 | AP87: NA | AQ87: 175 | AR87: 84 | AS87: 259 | AT87: 0.3243243243 | AU87: 1 | AV87: 8 | AW87: 8 | AX87: Probably True (-1)
A88: Inspected, messi region | B88: UPN_Te3_076 | C88: 20 | D88: 31024018 | E88: GT | F88: G | G88: ASXL1 | H88: ENST00000375687 | I88: frameshift_variant | J88: tct/|p.Ser1169fs/c.3505delT | K88: 595 | L88: 215 | M88: 813 | N88: 0.2644526445 | O88: 1 | P88: 1 | Q88: 1 | R88: 0 | S88: 1 | T88: 1 | U88: 0 | V88: 1 | W88: 6 | X88: NO | Y88: NO | Z88: NO | AA88: NA | AB88: NA | AC88: NO | AD88: NO | AE88: NO | AF88: NO | AG88: NO | AH88: NO | AI88: NA | AJ88: NA | AK88: 30.13 | AL88: NA | AM88: 3 | AN88: 0 | AO88: 3 | AP88: 0 | AQ88: 592 | AR88: 215 | AS88: 810 | AT88: 0.2654320988 | AU88: 0.5694553232 | AV88: 8 | AW88: 8 | AX88: Probably True (-1)
A89: Many samples, tolerated, but VAF too low | B89: UPN_Te3_083 | C89: 20 | D89: 31024054 | E89: A | F89: G | G89: ASXL1 | H89: ENST00000375687 | I89: missense_variant | J89: gAt/gGt|p.Asp1180Gly/c.3539A>G | K89: 815 | L89: 57 | M89: 872 | N89: 0.0653669725 | O89: 0 | P89: 0 | Q89: 0 | R89: 1 | S89: 1 | T89: 1 | U89: 0 | V89: 1 | W89: 4 | X89: NO | Y89: NO | Z89: NO | AA89: NO | AB89: O | AC89: NO | AD89: NO | AE89: NO | AF89: 8.236e-06 | AG89: NO | AH89: NO | AI89: -1.053 | AJ89: Tolerated | AK89: 36.4 | AL89: 32.51 | AM89: 434 | AN89: 27 | AO89: 461 | AP89: 0.0585683297 | AQ89: 381 | AR89: 30 | AS89: 411 | AT89: 0.0729927007 | AU89: 0.4125839575 | AV89: 40 | AW89: 40 | AX89: Probably True (-1)
A90: Many samples, tolerated, but VAF too low | B90: UPN_Te3_081 | C90: 20 | D90: 31024054 | E90: A | F90: G | G90: ASXL1 | H90: ENST00000375687 | I90: missense_variant | J90: gAt/gGt|p.Asp1180Gly/c.3539A>G | K90: 193 | L90: 20 | M90: 213 | N90: 0.0938967136 | O90: 0 | P90: 0 | Q90: 0 | R90: 1 | S90: 1 | T90: 1 | U90: 0 | V90: 1 | W90: 4 | X90: NO | Y90: NO | Z90: NO | AA90: NO | AB90: O | AC90: NO | AD90: NO | AE90: NO | AF90: 8.236e-06 | AG90: NO | AH90: NO | AI90: -1.053 | AJ90: Tolerated | AK90: 36.34 | AL90: 32 | AM90: 76 | AN90: 12 | AO90: 88 | AP90: 0.1363636364 | AQ90: 117 | AR90: 8 | AS90: 125 | AT90: 0.064 | AU90: 0.0952464285 | AV90: 40 | AW90: 40 | AX90: Probably True (-1)
A91: Many samples, tolerated, but VAF too low | B91: UPN_Te3_046 | C91: 20 | D91: 31024054 | E91: A | F91: G | G91: ASXL1 | H91: ENST00000375687 | I91: missense_variant | J91: gAt/gGt|p.Asp1180Gly/c.3539A>G | K91: 179 | L91: 33 | M91: 212 | N91: 0.1556603774 | O91: 0 | P91: 1 | Q91: 0 | R91: 1 | S91: 1 | T91: 1 | U91: 0 | V91: 1 | W91: 5 | X91: NO | Y91: NO | Z91: NO | AA91: NO | AB91: O | AC91: NO | AD91: NO | AE91: NO | AF91: 8.236e-06 | AG91: NO | AH91: NO | AI91: -1.053 | AJ91: Tolerated | AK91: 38.17 | AL91: 33.76 | AM91: 58 | AN91: 12 | AO91: 70 | AP91: 0.1714285714 | AQ91: 121 | AR91: 21 | AS91: 142 | AT91: 0.1478873239 | AU91: 0.6892929712 | AV91: 40 | AW91: 40 | AX91: Probably True (-2)
A92: Inspected | B92: UPN_Te3_038 | C92: 20 | D92: 31024339 | E92: C | F92: A | G92: ASXL1 | H92: ENST00000375687 | I92: stop_gained | J92: tCa/tAa|p.Ser1275*/c.3824C>A | K92: 1174 | L92: 140 | M92: 1315 | N92: 0.1064638783 | O92: 0 | P92: 1 | Q92: 0 | R92: 1 | S92: 1 | T92: 1 | U92: 0 | V92: 1 | W92: 5 | X92: NO | Y92: NO | Z92: NO | AA92: NA | AB92: NA | AC92: NO | AD92: NO | AE92: NO | AF92: NO | AG92: NO | AH92: NO | AI92: NA | AJ92: NA | AK92: 38.67 | AL92: 34.32 | AM92: 560 | AN92: 69 | AO92: 630 | AP92: 0.1095238095 | AQ92: 614 | AR92: 71 | AS92: 685 | AT92: 0.103649635 | AU92: 0.7884200187 | AV92: 1 | AW92: 1 | AX92: Probably True (-4)
A93: Tolerated, VAF much too low, identified artifact in other sample | B93: UPN_Te3_037 | C93: 20 | D93: 31024614 | E93: G | F93: C | G93: ASXL1 | H93: ENST00000375687 | I93: missense_variant | J93: Gtc/Ctc|p.Val1367Leu/c.4099G>C | K93: 1012 | L93: 22 | M93: 1040 | N93: 0.02115384615 | O93: 0 | P93: 0 | Q93: 0 | R93: 1 | S93: 1 | T93: 1 | U93: 0 | V93: 1 | W93: 4 | X93: NO | Y93: NO | Z93: NO | AA93: NA | AB93: NA | AC93: NO | AD93: NO | AE93: NO | AF93: NO | AG93: NO | AH93: NO | AI93: -0.785 | AJ93: Tolerated | AK93: 39.34 | AL93: 38.18 | AM93: 420 | AN93: 8 | AO93: 429 | AP93: 0.01864801865 | AQ93: 592 | AR93: 14 | AS93: 611 | AT93: 0.02291325696 | AU93: 0.6691175353 | AV93: 2 | AW93: 2 | AX93: Probably True (-1)
A94: Inspected, several indels (varying length) visible | B94: UPN_Te3_087 | C94: 21 | D94: 36164482 | E94: TG | F94: T | G94: RUNX1 | H94: ENST00000437180 | I94: frameshift_variant | J94: acc/|p.Asn465fs/c.1392delC | K94: 56 | L94: 30 | M94: 86 | N94: 0.3488372093 | O94: 1 | P94: 1 | Q94: 0 | R94: 0 | S94: 1 | T94: 1 | U94: 1 | V94: 1 | W94: 6 | X94: NO | Y94: NO | Z94: NO | AA94: NO | AB94: O | AC94: NO | AD94: NO | AE94: NO | AF94: NO | AG94: NO | AH94: NO | AI94: NA | AJ94: NA | AK94: 18 | AL94: NA | AM94: 11 | AN94: 0 | AO94: 11 | AP94: 0 | AQ94: 45 | AR94: 30 | AS94: 75 | AT94: 0.4 | AU94: 0.007058118637 | AV94: 4 | AW94: 4 | AX94: Probably True (-1)
A95: Low VAF, many samples, identified artifact in other samples | B95: UPN_Te3_025 | C95: 21 | D95: 36164635 | E95: A | F95: C | G95: RUNX1 | H95: ENST00000437180 | I95: missense_variant | J95: Tac/Gac|p.Tyr414Asp/c.1240T>G | K95: 2309 | L95: 91 | M95: 2496 | N95: 0.03645833333 | O95: 0 | P95: 0 | Q95: 0 | R95: 1 | S95: 1 | T95: 1 | U95: 0 | V95: 1 | W95: 4 | X95: NO | Y95: NO | Z95: NO | AA95: NO | AB95: O | AC95: NO | AD95: NO | AE95: NO | AF95: NO | AG95: NO | AH95: NO | AI95: -7.583 | AJ95: Deleterious | AK95: 38.04 | AL95: 36.95 | AM95: 1078 | AN95: 44 | AO95: 1183 | AP95: 0.03719357566 | AQ95: 1231 | AR95: 47 | AS95: 1313 | AT95: 0.03579588728 | AU95: 0.8305258389 | AV95: 8 | AW95: 35 | AX95: Probably True (-1)
